Workbook

Sheet Instructivo
J3: Herramienta Simulador de créditos
B6: El libro contiene MACROS, por lo tanto debe habilitar los MACROS al abrir el archivo.

Sheet Alternativas
R3: Herramienta Simulador de créditos
B6: Volver al Instructivo
B8: ALTERNATIVA FINANCIAMIENTO 1 | M8: ? | T8: ALTERNATIVA FINANCIAMIENTO 2 | AE8: ?
B9: Entidad Bancaria | C9: BBVA | T9: Entidad Bancaria | U9: Santander
B10: Línea Crediticia | C10: Sola Firma | T10: Línea Crediticia | U10: Sola Firma
B11: Moneda | C11: Dólares | M11: Celda Ajustable | T11: Moneda | U11: Dólares | AE11: Celda Ajustable
B12: Monto | C12: =IF(C11="Pesos","ARS","USD") -> USD | D12: 20000 | M12: Celda Ajustable | T12: Monto | U12: =IF(U11="Pesos","ARS","USD") -> USD | V12: 30000 | AE12: Celda Ajustable
B13: Gastos Otorgamiento | C13: 0 | M13: Celda Ajustable | T13: Gasto Otorgamiento | U13: 5000 | AE13: Celda Ajustable
B14: Sistema amortización | C14: Alemán | M14: Celda Ajustable | T14: Sistema amortización | U14: Francés | AE14: Celda Ajustable
B15: Tasa anual | C15: 0.28 | M15: Celda Ajustable | T15: Tasa anual | U15: 0.1 | AE15: Celda Ajustable
B16: Periodos por año | C16: 12 | D16: =VLOOKUP(C16,'Para Ocultar'!A2:B7,2) -> Mensual | M16: Celda Ajustable | T16: Periodos por año | U16: 12 | V16: =VLOOKUP(U16,'Para Ocultar'!A2:B7,2) -> Mensual | AE16: Celda Ajustable
B17: Cantidad de Cuotas | C17: 25 | M17: Celda Ajustable | T17: Cantidad de Cuotas | U17: 50 | AE17: Celda Ajustable
B18: Cuotas de Gracia | C18: 1 | M18: Celda Ajustable | T18: Cuotas de Gracia | U18: 0 | AE18: Celda Ajustable
B19: Mes otorgamiento | C19: 1 | M19: Celda Ajustable | T19: Mes otorgamiento | U19: =C19 -> 1
B20: Año otorgamiento | C20: 2022 | G20: =(1+IRR(G24:G144))^C16-1 -> 0.3188805059 | I20: Anualidad | J20: =(C15/C16)/(1-(1/(1+(C15/C16))^C17)) -> 0.05324660316 | K20: =(1+IRR(K24:K144))^C16-1 -> 0.3188805059 | M20: Celda Ajustable | T20: Año otorgamiento | U20: 2022 | Y20: =(1+IRR(Y24:Y144))^U16-1 -> 0.1047130674 | AA20: Anualidad | AB20: =(U15/U16)/(1-(1/(1+(U15/U16))^U17)) -> 0.02453721411 | AC20: =(1+IRR(AC24:AC144))^U16-1 -> 0.1047130674 | AE20: Celda Ajustable
E22: Alemán | I22: Francés
C23: Mes | D23: Año | E23: Capital | F23: Interés | G23: Cuota | H23: Saldo | I23: Capital | J23: Interés | K23: Cuota | L23: Saldo | M23: =E23 -> Capital | N23: =F23 -> Interés | O23: Cuota | P23: Saldo | Q23: CASH $ | R23: CASH U$S | U23: Mes | W23: Capital | X23: Interés | Y23: Cuota | Z23: Saldo | AA23: Capital | AB23: Interés | AC23: Cuota | AD23: Saldo | AE23: =W23 -> Capital | AF23: =X23 -> Interés | AG23: =Y23 -> Cuota | AH23: =Z23 -> Saldo | AI23: CASH $ | AJ23: CASH U$S
B24: Otorgamiento | C24: =C19 -> 1 | D24: =C20 -> 2022 | G24: =H24 -> 20000 | H24: =D12 -> 20000 | K24: =D12 -> 20000 | L24: =D12 -> 20000 | M24: =IF($C$14="Alemán",E24,I24) -> 0 | N24: =IF($C$14="Alemán",F24,J24) -> 0 | O24: =-C13 -> 0 | P24: =IF($C$14="Alemán",H24,L24) -> 20000 | Q24: =SUMPRODUCT((C24='Comparación Alternativas'!$Z$5:$Z$246)*(Alternativas!D24='Comparación Alternativas'!$AA$5:$AA$246)*('Comparación Alternativas'!$AQ$5:$AQ$246)) -> 20000 | R24: =SUMPRODUCT((C24='Comparación Alternativas'!$Z$5:$Z$246)*('Comparación Alternativas'!$AA$5:$AA$246=Alternativas!D24)*('Comparación Alternativas'!$BA$5:$BA$246)) -> 200 | T24: Otorgamiento | U24: =U19 -> 1 | V24: =U20 -> 2022 | Y24: =Z24 -> 30000 | Z24: =V12 -> 30000 | AC24: =V12 -> 30000 | AD24: =V12 -> 30000 | AE24: =IF($U$14="Alemán",W24,AA24) -> 0 | AF24: =IF($U$14="Alemán",X24,AB24) -> 0 | AG24: =-U13 -> -5000 | AH24: 30000 | AI24: =SUMPRODUCT((U24='Comparación Alternativas'!$Z$5:$Z$246)*('Comparación Alternativas'!$AA$5:$AA$246=Alternativas!V24)*('Comparación Alternativas'!$AV$5:$AV$246)) -> 2500000 | AJ24: =SUMPRODUCT((U24='Comparación Alternativas'!$Z$5:$Z$246)*('Comparación Alternativas'!$AA$5:$AA$246=Alternativas!V24)*('Comparación Alternativas'!$BF$5:$BF$246)) -> 25000
B25: 1 | C25: =IF(C24+SUMPRODUCT(($C$16='Para Ocultar'!$A$2:$A$7)*('Para Ocultar'!$C$2:$C$7))>12,(C24+SUMPRODUCT(($C$16='Para Ocultar'!$A$2:$A$7)*('Para Ocultar'!$C$2:$C$7)))-12,C24+SUMPRODUCT(($C$16='Para Ocultar'!$A$2:$A$7)*('Para Ocultar'!$C$2:$C$7))) -> 2 | D25: =IF(C25<=C24,D24+1,D24) -> 2022 | E25: =IF($C$18>=B25,0,-IF(B25<=$C$17+$C$18,$D$12/$C$17,0)) -> 0 | F25: =-H24*($C$15/$C$16) -> -466.6666667 | G25: =F25+E25 -> -466.6666667 | H25: =E25+H24 -> 20000 | I25: =L24-L24+K25-J25 -> 0 | J25: =-L24*$C$15/$C$16 -> -466.6666667 | K25: =-IF($C$18>=B25,$D$12*$C$15/$C$16,IF($C$17+$C$18>=B25,$D$12*$J$20,0)) -> -466.6666667 | L25: =L24+I25 -> 20000 | M25: =IF($C$14="Alemán",E25,I25) -> 0 | N25: =IF($C$14="Alemán",F25,J25) -> -466.6666667 | O25: =IF($C$14="Alemán",G25,K25) -> -466.6666667 | P25: =IF($C$14="Alemán",H25,L25) -> 20000 | Q25: =SUMPRODUCT((C25='Comparación Alternativas'!$Z$5:$Z$246)*(Alternativas!D25='Comparación Alternativas'!$AA$5:$AA$246)*('Comparación Alternativas'!$AQ$5:$AQ$246)) -> -466.6666667 | R25: =SUMPRODUCT((C25='Comparación Alternativas'!$Z$5:$Z$246)*('Comparación Alternativas'!$AA$5:$AA$246=Alternativas!D25)*('Comparación Alternativas'!$BA$5:$BA$246)) -> -4.177090155 | T25: 1 | U25: =IF(U24+SUMPRODUCT(($U$16='Para Ocultar'!$A$2:$A$7)*('Para Ocultar'!$C$2:$C$7))>12,(U24+SUMPRODUCT(($U$16='Para Ocultar'!$A$2:$A$7)*('Para Ocultar'!$C$2:$C$7)))-12,U24+SUMPRODUCT(($U$16='Para Ocultar'!$A$2:$A$7)*('Para Ocultar'!$C$2:$C$7))) -> 2 | V25: =IF(U25<=U24,V24+1,V24) -> 2022 | W25: =IF($U$18>=T25,0,-IF(T25<=$U$17+$U$18,$V$12/$U$17,0)) -> -600 | X25: =-Z24*($U$15/$U$16) -> -250 | Y25: =X25+W25 -> -850 | Z25: =W25+Z24 -> 29400 | AA25: =AD24-AD24+AC25-AB25 -> -486.1164233 | AB25: =-AD24*$U$15/$U$16 -> -250 | AC25: =-IF($U$18>=T25,$V$12*$U$15/$U$16,IF($U$17+$U$18>=T25,$V$12*$AB$20,0)) -> -736.1164233 | AD25: =AD24+AA25 -> 29513.88358 | AE25: =IF($U$14="Alemán",W25,AA25) -> -486.1164233 | AF25: =IF($U$14="Alemán",X25,AB25) -> -250 | AG25: =IF($U$14="Alemán",Y25,AC25) -> -736.1164233 | AH25: =IF($U$14="Alemán",Z25,AD25) -> 29513.88358 | AI25: =SUMPRODUCT((U25='Comparación Alternativas'!$Z$5:$Z$246)*('Comparación Alternativas'!$AA$5:$AA$246=Alternativas!V25)*('Comparación Alternativas'!$AV$5:$AV$246)) -> -82239.3065 | AJ25: =SUMPRODUCT((U25='Comparación Alternativas'!$Z$5:$Z$246)*('Comparación Alternativas'!$AA$5:$AA$246=Alternativas!V25)*('Comparación Alternativas'!$BF$5:$BF$246)) -> -736.1164233
B26: 2 | C26: =IF(C25+SUMPRODUCT(($C$16='Para Ocultar'!$A$2:$A$7)*('Para Ocultar'!$C$2:$C$7))>12,(C25+SUMPRODUCT(($C$16='Para Ocultar'!$A$2:$A$7)*('Para Ocultar'!$C$2:$C$7)))-12,C25+SUMPRODUCT(($C$16='Para Ocultar'!$A$2:$A$7)*('Para Ocultar'!$C$2:$C$7))) -> 3 | D26: =IF(C26<=C25,D25+1,D25) -> 2022 | E26: =IF($C$18>=B26,0,-IF(B26<=$C$17+$C$18,$D$12/$C$17,0)) -> -800 | F26: =-H25*($C$15/$C$16) -> -466.6666667 | G26: -1266.666667 | H26: =E26+H25 -> 19200 | I26: =L25-L25+K26-J26 -> -598.2653965 | J26: =-L25*$C$15/$C$16 -> -466.6666667 | K26: =-IF($C$18>=B26,$D$12*$C$15/$C$16,IF($C$17+$C$18>=B26,$D$12*$J$20,0)) -> -1064.932063 | L26: =L25+I26 -> 19401.7346 | M26: -800 | N26: -466.6666667 | O26: -1266.666667 | P26: 19200 | Q26: =SUMPRODUCT((C26='Comparación Alternativas'!$Z$5:$Z$246)*(Alternativas!D26='Comparación Alternativas'!$AA$5:$AA$246)*('Comparación Alternativas'!$AQ$5:$AQ$246)) -> -1266.666667 | R26: =SUMPRODUCT((C26='Comparación Alternativas'!$Z$5:$Z$246)*('Comparación Alternativas'!$AA$5:$AA$246=Alternativas!D26)*('Comparación Alternativas'!$BA$5:$BA$246)) -> -10.2613098 | T26: 2 | U26: =IF(U25+SUMPRODUCT(($U$16='Para Ocultar'!$A$2:$A$7)*('Para Ocultar'!$C$2:$C$7))>12,(U25+SUMPRODUCT(($U$16='Para Ocultar'!$A$2:$A$7)*('Para Ocultar'!$C$2:$C$7)))-12,U25+SUMPRODUCT(($U$16='Para Ocultar'!$A$2:$A$7)*('Para Ocultar'!$C$2:$C$7))) -> 3 | V26: =IF(U26<=U25,V25+1,V25) -> 2022 | W26: =IF($U$18>=T26,0,-IF(T26<=$U$17+$U$18,$V$12/$U$17,0)) -> -600 | X26: =-Z25*($U$15/$U$16) -> -245 | Y26: -845 | Z26: =W26+Z25 -> 28800 | AA26: =AD25-AD25+AC26-AB26 -> -490.1673935 | AB26: =-AD25*$U$15/$U$16 -> -245.9490298 | AC26: =-IF($U$18>=T26,$V$12*$U$15/$U$16,IF($U$17+$U$18>=T26,$V$12*$AB$20,0)) -> -736.1164233 | AD26: =AD25+AA26 -> 29023.71618 | AE26: -490.1673935 | AF26: -245.9490298 | AG26: -736.1164233 | AH26: 29023.71618 | AI26: =SUMPRODUCT((U26='Comparación Alternativas'!$Z$5:$Z$246)*('Comparación Alternativas'!$AA$5:$AA$246=Alternativas!V26)*('Comparación Alternativas'!$AV$5:$AV$246)) -> -90866.97067 | AJ26: =SUMPRODUCT((U26='Comparación Alternativas'!$Z$5:$Z$246)*('Comparación Alternativas'!$AA$5:$AA$246=Alternativas!V26)*('Comparación Alternativas'!$BF$5:$BF$246)) -> -736.1164233
B27: 3 | C27: =IF(C26+SUMPRODUCT(($C$16='Para Ocultar'!$A$2:$A$7)*('Para Ocultar'!$C$2:$C$7))>12,(C26+SUMPRODUCT(($C$16='Para Ocultar'!$A$2:$A$7)*('Para Ocultar'!$C$2:$C$7)))-12,C26+SUMPRODUCT(($C$16='Para Ocultar'!$A$2:$A$7)*('Para Ocultar'!$C$2:$C$7))) -> 4 | D27: =IF(C27<=C26,D26+1,D26) -> 2022 | E27: =IF($C$18>=B27,0,-IF(B27<=$C$17+$C$18,$D$12/$C$17,0)) -> -800 | F27: -448 | G27: -1248 | H27: =E27+H26 -> 18400 | I27: -612.2249225 | J27: -452.7071407 | K27: -1064.932063 | L27: 18789.50968 | M27: -800 | N27: -448 | O27: -1248 | P27: 18400 | Q27: =SUMPRODUCT((C27='Comparación Alternativas'!$Z$5:$Z$246)*(Alternativas!D27='Comparación Alternativas'!$AA$5:$AA$246)*('Comparación Alternativas'!$AQ$5:$AQ$246)) -> -1248 | R27: =SUMPRODUCT((C27='Comparación Alternativas'!$Z$5:$Z$246)*('Comparación Alternativas'!$AA$5:$AA$246=Alternativas!D27)*('Comparación Alternativas'!$BA$5:$BA$246)) -> -9.233395326 | T27: 3 | U27: =IF(U26+SUMPRODUCT(($U$16='Para Ocultar'!$A$2:$A$7)*('Para Ocultar'!$C$2:$C$7))>12,(U26+SUMPRODUCT(($U$16='Para Ocultar'!$A$2:$A$7)*('Para Ocultar'!$C$2:$C$7)))-12,U26+SUMPRODUCT(($U$16='Para Ocultar'!$A$2:$A$7)*('Para Ocultar'!$C$2:$C$7))) -> 4 | V27: 2022 | W27: -600 | X27: -240 | Y27: -840 | Z27: 28200 | AA27: -494.2521218 | AB27: =-AD26*$U$15/$U$16 -> -241.8643015 | AC27: =-IF($U$18>=T27,$V$12*$U$15/$U$16,IF($U$17+$U$18>=T27,$V$12*$AB$20,0)) -> -736.1164233 | AD27: =AD26+AA27 -> 28529.46406 | AE27: -494.2521218 | AF27: -241.8643015 | AG27: -736.1164233 | AH27: 28529.46406 | AI27: =SUMPRODUCT((U27='Comparación Alternativas'!$Z$5:$Z$246)*('Comparación Alternativas'!$AA$5:$AA$246=Alternativas!V27)*('Comparación Alternativas'!$AV$5:$AV$246)) -> -99494.63484 | AJ27: =SUMPRODUCT((U27='Comparación Alternativas'!$Z$5:$Z$246)*('Comparación Alternativas'!$AA$5:$AA$246=Alternativas!V27)*('Comparación Alternativas'!$BF$5:$BF$246)) -> -736.1164233
B28: 4 | C28: =IF(C27+SUMPRODUCT(($C$16='Para Ocultar'!$A$2:$A$7)*('Para Ocultar'!$C$2:$C$7))>12,(C27+SUMPRODUCT(($C$16='Para Ocultar'!$A$2:$A$7)*('Para Ocultar'!$C$2:$C$7)))-12,C27+SUMPRODUCT(($C$16='Para Ocultar'!$A$2:$A$7)*('Para Ocultar'!$C$2:$C$7))) -> 5 | D28: 2022 | E28: =IF($C$18>=B28,0,-IF(B28<=$C$17+$C$18,$D$12/$C$17,0)) -> -800 | F28: -429.3333333 | G28: -1229.333333 | H28: 17600 | I28: -626.5101706 | J28: -438.4218926 | K28: -1064.932063 | L28: 18162.99951 | M28: -800 | N28: -429.3333333 | O28: -1229.333333 | P28: 17600 | Q28: =SUMPRODUCT((C28='Comparación Alternativas'!$Z$5:$Z$246)*(Alternativas!D28='Comparación Alternativas'!$AA$5:$AA$246)*('Comparación Alternativas'!$AQ$5:$AQ$246)) -> -1229.333333 | R28: =SUMPRODUCT((C28='Comparación Alternativas'!$Z$5:$Z$246)*('Comparación Alternativas'!$AA$5:$AA$246=Alternativas!D28)*('Comparación Alternativas'!$BA$5:$BA$246)) -> -8.369526589 | T28: 4 | U28: =IF(U27+SUMPRODUCT(($U$16='Para Ocultar'!$A$2:$A$7)*('Para Ocultar'!$C$2:$C$7))>12,(U27+SUMPRODUCT(($U$16='Para Ocultar'!$A$2:$A$7)*('Para Ocultar'!$C$2:$C$7)))-12,U27+SUMPRODUCT(($U$16='Para Ocultar'!$A$2:$A$7)*('Para Ocultar'!$C$2:$C$7))) -> 5 | V28: 2022 | W28: -600 | X28: -235 | Y28: -835 | Z28: 27600 | AA28: -498.3708894 | AB28: -237.7455338 | AC28: -736.1164233 | AD28: 28031.09317 | AE28: -498.3708894 | AF28: -237.7455338 | AG28: -736.1164233 | AH28: 28031.09317 | AI28: =SUMPRODUCT((U28='Comparación Alternativas'!$Z$5:$Z$246)*('Comparación Alternativas'!$AA$5:$AA$246=Alternativas!V28)*('Comparación Alternativas'!$AV$5:$AV$246)) -> -108122.299 | AJ28: =SUMPRODUCT((U28='Comparación Alternativas'!$Z$5:$Z$246)*('Comparación Alternativas'!$AA$5:$AA$246=Alternativas!V28)*('Comparación Alternativas'!$BF$5:$BF$246)) -> -736.1164233
B29: 5 | C29: =IF(C28+SUMPRODUCT(($C$16='Para Ocultar'!$A$2:$A$7)*('Para Ocultar'!$C$2:$C$7))>12,(C28+SUMPRODUCT(($C$16='Para Ocultar'!$A$2:$A$7)*('Para Ocultar'!$C$2:$C$7)))-12,C28+SUMPRODUCT(($C$16='Para Ocultar'!$A$2:$A$7)*('Para Ocultar'!$C$2:$C$7))) -> 6 | D29: 2022 | E29: =IF($C$18>=B29,0,-IF(B29<=$C$17+$C$18,$D$12/$C$17,0)) -> -800 | F29: -410.6666667 | G29: -1210.666667 | H29: 16800 | I29: -641.1287413 | J29: -423.8033219 | K29: -1064.932063 | L29: 17521.87077 | M29: -800 | N29: -410.6666667 | O29: -1210.666667 | P29: 16800 | Q29: =SUMPRODUCT((C29='Comparación Alternativas'!$Z$5:$Z$246)*(Alternativas!D29='Comparación Alternativas'!$AA$5:$AA$246)*('Comparación Alternativas'!$AQ$5:$AQ$246)) -> -1210.666667 | R29: =SUMPRODUCT((C29='Comparación Alternativas'!$Z$5:$Z$246)*('Comparación Alternativas'!$AA$5:$AA$246=Alternativas!D29)*('Comparación Alternativas'!$BA$5:$BA$246)) -> -7.633335311 | T29: 5 | U29: =IF(U28+SUMPRODUCT(($U$16='Para Ocultar'!$A$2:$A$7)*('Para Ocultar'!$C$2:$C$7))>12,(U28+SUMPRODUCT(($U$16='Para Ocultar'!$A$2:$A$7)*('Para Ocultar'!$C$2:$C$7)))-12,U28+SUMPRODUCT(($U$16='Para Ocultar'!$A$2:$A$7)*('Para Ocultar'!$C$2:$C$7))) -> 6 | V29: 2022 | W29: -600 | X29: -230 | Y29: -830 | Z29: 27000 | AA29: -502.5239802 | AB29: -233.5924431 | AC29: -736.1164233 | AD29: 27528.56919 | AE29: -502.5239802 | AF29: -233.5924431 | AG29: -736.1164233 | AH29: 27528.56919 | AI29: =SUMPRODUCT((U29='Comparación Alternativas'!$Z$5:$Z$246)*('Comparación Alternativas'!$AA$5:$AA$246=Alternativas!V29)*('Comparación Alternativas'!$AV$5:$AV$246)) -> -116749.9632 | AJ29: =SUMPRODUCT((U29='Comparación Alternativas'!$Z$5:$Z$246)*('Comparación Alternativas'!$AA$5:$AA$246=Alternativas!V29)*('Comparación Alternativas'!$BF$5:$BF$246)) -> -736.1164233
B30: 6 | C30: =IF(C29+SUMPRODUCT(($C$16='Para Ocultar'!$A$2:$A$7)*('Para Ocultar'!$C$2:$C$7))>12,(C29+SUMPRODUCT(($C$16='Para Ocultar'!$A$2:$A$7)*('Para Ocultar'!$C$2:$C$7)))-12,C29+SUMPRODUCT(($C$16='Para Ocultar'!$A$2:$A$7)*('Para Ocultar'!$C$2:$C$7))) -> 7 | D30: 2022 | E30: =IF($C$18>=B30,0,-IF(B30<=$C$17+$C$18,$D$12/$C$17,0)) -> -800 | F30: -392 | G30: -1192 | H30: 16000 | I30: -656.0884119 | J30: -408.8436513 | K30: -1064.932063 | L30: 16865.78236 | M30: -800 | N30: -392 | O30: -1192 | P30: 16000 | Q30: =SUMPRODUCT((C30='Comparación Alternativas'!$Z$5:$Z$246)*(Alternativas!D30='Comparación Alternativas'!$AA$5:$AA$246)*('Comparación Alternativas'!$AQ$5:$AQ$246)) -> -1192 | R30: =SUMPRODUCT((C30='Comparación Alternativas'!$Z$5:$Z$246)*('Comparación Alternativas'!$AA$5:$AA$246=Alternativas!D30)*('Comparación Alternativas'!$BA$5:$BA$246)) -> -6.998463722 | T30: 6 | U30: =IF(U29+SUMPRODUCT(($U$16='Para Ocultar'!$A$2:$A$7)*('Para Ocultar'!$C$2:$C$7))>12,(U29+SUMPRODUCT(($U$16='Para Ocultar'!$A$2:$A$7)*('Para Ocultar'!$C$2:$C$7)))-12,U29+SUMPRODUCT(($U$16='Para Ocultar'!$A$2:$A$7)*('Para Ocultar'!$C$2:$C$7))) -> 7 | V30: 2022 | W30: -600 | X30: -225 | Y30: -825 | Z30: 26400 | AA30: -506.71168 | AB30: -229.4047433 | AC30: -736.1164233 | AD30: 27021.85751 | AE30: -506.71168 | AF30: -229.4047433 | AG30: -736.1164233 | AH30: 27021.85751 | AI30: =SUMPRODUCT((U30='Comparación Alternativas'!$Z$5:$Z$246)*('Comparación Alternativas'!$AA$5:$AA$246=Alternativas!V30)*('Comparación Alternativas'!$AV$5:$AV$246)) -> -125377.6273 | AJ30: =SUMPRODUCT((U30='Comparación Alternativas'!$Z$5:$Z$246)*('Comparación Alternativas'!$AA$5:$AA$246=Alternativas!V30)*('Comparación Alternativas'!$BF$5:$BF$246)) -> -736.1164233
B31: 7 | C31: =IF(C30+SUMPRODUCT(($C$16='Para Ocultar'!$A$2:$A$7)*('Para Ocultar'!$C$2:$C$7))>12,(C30+SUMPRODUCT(($C$16='Para Ocultar'!$A$2:$A$7)*('Para Ocultar'!$C$2:$C$7)))-12,C30+SUMPRODUCT(($C$16='Para Ocultar'!$A$2:$A$7)*('Para Ocultar'!$C$2:$C$7))) -> 8 | D31: 2022 | E31: -800 | F31: -373.3333333 | G31: -1173.333333 | H31: 15200 | I31: -671.3971415 | J31: -393.5349217 | K31: -1064.932063 | L31: 16194.38522 | M31: -800 | N31: -373.3333333 | O31: -1173.333333 | P31: 15200 | Q31: =SUMPRODUCT((C31='Comparación Alternativas'!$Z$5:$Z$246)*(Alternativas!D31='Comparación Alternativas'!$AA$5:$AA$246)*('Comparación Alternativas'!$AQ$5:$AQ$246)) -> -1173.333333 | R31: =SUMPRODUCT((C31='Comparación Alternativas'!$Z$5:$Z$246)*('Comparación Alternativas'!$AA$5:$AA$246=Alternativas!D31)*('Comparación Alternativas'!$BA$5:$BA$246)) -> -6.445342023 | T31: 7 | U31: =IF(U30+SUMPRODUCT(($U$16='Para Ocultar'!$A$2:$A$7)*('Para Ocultar'!$C$2:$C$7))>12,(U30+SUMPRODUCT(($U$16='Para Ocultar'!$A$2:$A$7)*('Para Ocultar'!$C$2:$C$7)))-12,U30+SUMPRODUCT(($U$16='Para Ocultar'!$A$2:$A$7)*('Para Ocultar'!$C$2:$C$7))) -> 8 | V31: 2022 | W31: -600 | X31: -220 | Y31: -820 | Z31: 25800 | AA31: -510.9342774 | AB31: -225.1821459 | AC31: -736.1164233 | AD31: 26510.92323 | AE31: -510.9342774 | AF31: -225.1821459 | AG31: -736.1164233 | AH31: 26510.92323 | AI31: =SUMPRODUCT((U31='Comparación Alternativas'!$Z$5:$Z$246)*('Comparación Alternativas'!$AA$5:$AA$246=Alternativas!V31)*('Comparación Alternativas'!$AV$5:$AV$246)) -> -134005.2915 | AJ31: =SUMPRODUCT((U31='Comparación Alternativas'!$Z$5:$Z$246)*('Comparación Alternativas'!$AA$5:$AA$246=Alternativas!V31)*('Comparación Alternativas'!$BF$5:$BF$246)) -> -736.1164233
B32: 8 | C32: =IF(C31+SUMPRODUCT(($C$16='Para Ocultar'!$A$2:$A$7)*('Para Ocultar'!$C$2:$C$7))>12,(C31+SUMPRODUCT(($C$16='Para Ocultar'!$A$2:$A$7)*('Para Ocultar'!$C$2:$C$7)))-12,C31+SUMPRODUCT(($C$16='Para Ocultar'!$A$2:$A$7)*('Para Ocultar'!$C$2:$C$7))) -> 9 | D32: 2022 | E32: -800 | F32: -354.6666667 | G32: -1154.666667 | H32: 14400 | I32: -687.0630748 | J32: -377.8689884 | K32: -1064.932063 | L32: 15507.32214 | M32: -800 | N32: -354.6666667 | O32: -1154.666667 | P32: 14400 | Q32: =SUMPRODUCT((C32='Comparación Alternativas'!$Z$5:$Z$246)*(Alternativas!D32='Comparación Alternativas'!$AA$5:$AA$246)*('Comparación Alternativas'!$AQ$5:$AQ$246)) -> -1154.666667 | R32: =SUMPRODUCT((C32='Comparación Alternativas'!$Z$5:$Z$246)*('Comparación Alternativas'!$AA$5:$AA$246=Alternativas!D32)*('Comparación Alternativas'!$BA$5:$BA$246)) -> -5.959135409 | T32: 8 | U32: =IF(U31+SUMPRODUCT(($U$16='Para Ocultar'!$A$2:$A$7)*('Para Ocultar'!$C$2:$C$7))>12,(U31+SUMPRODUCT(($U$16='Para Ocultar'!$A$2:$A$7)*('Para Ocultar'!$C$2:$C$7)))-12,U31+SUMPRODUCT(($U$16='Para Ocultar'!$A$2:$A$7)*('Para Ocultar'!$C$2:$C$7))) -> 9 | V32: 2022 | W32: -600 | X32: -215 | Y32: -815 | Z32: 25200 | AA32: -515.192063 | AB32: -220.9243603 | AC32: -736.1164233 | AD32: 25995.73117 | AE32: -515.192063 | AF32: -220.9243603 | AG32: -736.1164233 | AH32: 25995.73117 | AI32: =SUMPRODUCT((U32='Comparación Alternativas'!$Z$5:$Z$246)*('Comparación Alternativas'!$AA$5:$AA$246=Alternativas!V32)*('Comparación Alternativas'!$AV$5:$AV$246)) -> -142632.9557 | AJ32: =SUMPRODUCT((U32='Comparación Alternativas'!$Z$5:$Z$246)*('Comparación Alternativas'!$AA$5:$AA$246=Alternativas!V32)*('Comparación Alternativas'!$BF$5:$BF$246)) -> -736.1164233
B33: 9 | C33: =IF(C32+SUMPRODUCT(($C$16='Para Ocultar'!$A$2:$A$7)*('Para Ocultar'!$C$2:$C$7))>12,(C32+SUMPRODUCT(($C$16='Para Ocultar'!$A$2:$A$7)*('Para Ocultar'!$C$2:$C$7)))-12,C32+SUMPRODUCT(($C$16='Para Ocultar'!$A$2:$A$7)*('Para Ocultar'!$C$2:$C$7))) -> 10 | D33: 2022 | E33: -800 | F33: -336 | G33: -1136 | H33: 13600 | I33: -703.0945466 | J33: -361.8375166 | K33: -1064.932063 | L33: 14804.22759 | M33: -800 | N33: -336 | O33: -1136 | P33: 13600 | Q33: =SUMPRODUCT((C33='Comparación Alternativas'!$Z$5:$Z$246)*(Alternativas!D33='Comparación Alternativas'!$AA$5:$AA$246)*('Comparación Alternativas'!$AQ$5:$AQ$246)) -> -1136 | R33: =SUMPRODUCT((C33='Comparación Alternativas'!$Z$5:$Z$246)*('Comparación Alternativas'!$AA$5:$AA$246=Alternativas!D33)*('Comparación Alternativas'!$BA$5:$BA$246)) -> -5.528393693 | T33: 9 | U33: =IF(U32+SUMPRODUCT(($U$16='Para Ocultar'!$A$2:$A$7)*('Para Ocultar'!$C$2:$C$7))>12,(U32+SUMPRODUCT(($U$16='Para Ocultar'!$A$2:$A$7)*('Para Ocultar'!$C$2:$C$7)))-12,U32+SUMPRODUCT(($U$16='Para Ocultar'!$A$2:$A$7)*('Para Ocultar'!$C$2:$C$7))) -> 10 | V33: 2022 | W33: -600 | X33: -210 | Y33: -810 | Z33: 24600 | AA33: -519.4853302 | AB33: -216.6310931 | AC33: -736.1164233 | AD33: 25476.24584 | AE33: -519.4853302 | AF33: -216.6310931 | AG33: -736.1164233 | AH33: 25476.24584 | AI33: =SUMPRODUCT((U33='Comparación Alternativas'!$Z$5:$Z$246)*('Comparación Alternativas'!$AA$5:$AA$246=Alternativas!V33)*('Comparación Alternativas'!$AV$5:$AV$246)) -> -151260.6199 | AJ33: =SUMPRODUCT((U33='Comparación Alternativas'!$Z$5:$Z$246)*('Comparación Alternativas'!$AA$5:$AA$246=Alternativas!V33)*('Comparación Alternativas'!$BF$5:$BF$246)) -> -736.1164233
B34: 10 | C34: =IF(C33+SUMPRODUCT(($C$16='Para Ocultar'!$A$2:$A$7)*('Para Ocultar'!$C$2:$C$7))>12,(C33+SUMPRODUCT(($C$16='Para Ocultar'!$A$2:$A$7)*('Para Ocultar'!$C$2:$C$7)))-12,C33+SUMPRODUCT(($C$16='Para Ocultar'!$A$2:$A$7)*('Para Ocultar'!$C$2:$C$7))) -> 11 | D34: 2022 | E34: -800 | F34: -317.3333333 | G34: -1117.333333 | H34: 12800 | I34: -719.500086 | J34: -345.4319772 | K34: -1064.932063 | L34: 14084.72751 | M34: -800 | N34: -317.3333333 | O34: -1117.333333 | P34: 12800 | Q34: =SUMPRODUCT((C34='Comparación Alternativas'!$Z$5:$Z$246)*(Alternativas!D34='Comparación Alternativas'!$AA$5:$AA$246)*('Comparación Alternativas'!$AQ$5:$AQ$246)) -> -1117.333333 | R34: =SUMPRODUCT((C34='Comparación Alternativas'!$Z$5:$Z$246)*('Comparación Alternativas'!$AA$5:$AA$246=Alternativas!D34)*('Comparación Alternativas'!$BA$5:$BA$246)) -> -5.144138121 | T34: 10 | U34: =IF(U33+SUMPRODUCT(($U$16='Para Ocultar'!$A$2:$A$7)*('Para Ocultar'!$C$2:$C$7))>12,(U33+SUMPRODUCT(($U$16='Para Ocultar'!$A$2:$A$7)*('Para Ocultar'!$C$2:$C$7)))-12,U33+SUMPRODUCT(($U$16='Para Ocultar'!$A$2:$A$7)*('Para Ocultar'!$C$2:$C$7))) -> 11 | V34: 2022 | W34: -600 | X34: -205 | Y34: -805 | Z34: 24000 | AA34: -523.8143746 | AB34: -212.3020487 | AC34: -736.1164233 | AD34: 24952.43147 | AE34: -523.8143746 | AF34: -212.3020487 | AG34: -736.1164233 | AH34: 24952.43147 | AI34: =SUMPRODUCT((U34='Comparación Alternativas'!$Z$5:$Z$246)*('Comparación Alternativas'!$AA$5:$AA$246=Alternativas!V34)*('Comparación Alternativas'!$AV$5:$AV$246)) -> -159888.284 | AJ34: =SUMPRODUCT((U34='Comparación Alternativas'!$Z$5:$Z$246)*('Comparación Alternativas'!$AA$5:$AA$246=Alternativas!V34)*('Comparación Alternativas'!$BF$5:$BF$246)) -> -736.1164233
B35: 11 | C35: =IF(C34+SUMPRODUCT(($C$16='Para Ocultar'!$A$2:$A$7)*('Para Ocultar'!$C$2:$C$7))>12,(C34+SUMPRODUCT(($C$16='Para Ocultar'!$A$2:$A$7)*('Para Ocultar'!$C$2:$C$7)))-12,C34+SUMPRODUCT(($C$16='Para Ocultar'!$A$2:$A$7)*('Para Ocultar'!$C$2:$C$7))) -> 12 | D35: 2022 | E35: -800 | F35: -298.6666667 | G35: -1098.666667 | H35: 12000 | I35: -736.2884213 | J35: -328.6436419 | K35: -1064.932063 | L35: 13348.43909 | M35: -800 | N35: -298.6666667 | O35: -1098.666667 | P35: 12000 | Q35: =SUMPRODUCT((C35='Comparación Alternativas'!$Z$5:$Z$246)*(Alternativas!D35='Comparación Alternativas'!$AA$5:$AA$246)*('Comparación Alternativas'!$AQ$5:$AQ$246)) -> -1098.666667 | R35: =SUMPRODUCT((C35='Comparación Alternativas'!$Z$5:$Z$246)*('Comparación Alternativas'!$AA$5:$AA$246=Alternativas!D35)*('Comparación Alternativas'!$BA$5:$BA$246)) -> -7.811563682 | T35: 11 | U35: =IF(U34+SUMPRODUCT(($U$16='Para Ocultar'!$A$2:$A$7)*('Para Ocultar'!$C$2:$C$7))>12,(U34+SUMPRODUCT(($U$16='Para Ocultar'!$A$2:$A$7)*('Para Ocultar'!$C$2:$C$7)))-12,U34+SUMPRODUCT(($U$16='Para Ocultar'!$A$2:$A$7)*('Para Ocultar'!$C$2:$C$7))) -> 12 | V35: 2022 | W35: -600 | X35: -200 | Y35: -800 | Z35: 23400 | AA35: -528.1794944 | AB35: -207.9369289 | AC35: -736.1164233 | AD35: 24424.25197 | AE35: -528.1794944 | AF35: -207.9369289 | AG35: -736.1164233 | AH35: 24424.25197 | AI35: =SUMPRODUCT((U35='Comparación Alternativas'!$Z$5:$Z$246)*('Comparación Alternativas'!$AA$5:$AA$246=Alternativas!V35)*('Comparación Alternativas'!$AV$5:$AV$246)) -> -103531.97 | AJ35: =SUMPRODUCT((U35='Comparación Alternativas'!$Z$5:$Z$246)*('Comparación Alternativas'!$AA$5:$AA$246=Alternativas!V35)*('Comparación Alternativas'!$BF$5:$BF$246)) -> -736.1164233
B36: 12 | C36: =IF(C35+SUMPRODUCT(($C$16='Para Ocultar'!$A$2:$A$7)*('Para Ocultar'!$C$2:$C$7))>12,(C35+SUMPRODUCT(($C$16='Para Ocultar'!$A$2:$A$7)*('Para Ocultar'!$C$2:$C$7)))-12,C35+SUMPRODUCT(($C$16='Para Ocultar'!$A$2:$A$7)*('Para Ocultar'!$C$2:$C$7))) -> 1 | D36: 2023 | E36: -800 | F36: -280 | G36: -1080 | H36: 11200 | I36: -753.4684845 | J36: -311.4635787 | K36: -1064.932063 | L36: 12594.9706 | M36: -800 | N36: -280 | O36: -1080 | P36: 11200 | Q36: =SUMPRODUCT((C36='Comparación Alternativas'!$Z$5:$Z$246)*(Alternativas!D36='Comparación Alternativas'!$AA$5:$AA$246)*('Comparación Alternativas'!$AQ$5:$AQ$246)) -> -1080 | R36: =SUMPRODUCT((C36='Comparación Alternativas'!$Z$5:$Z$246)*('Comparación Alternativas'!$AA$5:$AA$246=Alternativas!D36)*('Comparación Alternativas'!$BA$5:$BA$246)) -> -7.507687768 | T36: 12 | U36: =IF(U35+SUMPRODUCT(($U$16='Para Ocultar'!$A$2:$A$7)*('Para Ocultar'!$C$2:$C$7))>12,(U35+SUMPRODUCT(($U$16='Para Ocultar'!$A$2:$A$7)*('Para Ocultar'!$C$2:$C$7)))-12,U35+SUMPRODUCT(($U$16='Para Ocultar'!$A$2:$A$7)*('Para Ocultar'!$C$2:$C$7))) -> 1 | V36: 2023 | W36: -600 | X36: -195 | Y36: -795 | Z36: 22800 | AA36: -532.5809902 | AB36: -203.5354331 | AC36: -736.1164233 | AD36: 23891.67098 | AE36: -532.5809902 | AF36: -203.5354331 | AG36: -736.1164233 | AH36: 23891.67098 | AI36: =SUMPRODUCT((U36='Comparación Alternativas'!$Z$5:$Z$246)*('Comparación Alternativas'!$AA$5:$AA$246=Alternativas!V36)*('Comparación Alternativas'!$AV$5:$AV$246)) -> -105892.2216 | AJ36: =SUMPRODUCT((U36='Comparación Alternativas'!$Z$5:$Z$246)*('Comparación Alternativas'!$AA$5:$AA$246=Alternativas!V36)*('Comparación Alternativas'!$BF$5:$BF$246)) -> -736.1164233
B37: 13 | C37: =IF(C36+SUMPRODUCT(($C$16='Para Ocultar'!$A$2:$A$7)*('Para Ocultar'!$C$2:$C$7))>12,(C36+SUMPRODUCT(($C$16='Para Ocultar'!$A$2:$A$7)*('Para Ocultar'!$C$2:$C$7)))-12,C36+SUMPRODUCT(($C$16='Para Ocultar'!$A$2:$A$7)*('Para Ocultar'!$C$2:$C$7))) -> 2 | D37: 2023 | E37: -800 | F37: -261.3333333 | G37: -1061.333333 | H37: 10400 | I37: -771.0494158 | J37: -293.8826474 | K37: -1064.932063 | L37: 11823.92119 | M37: -800 | N37: -261.3333333 | O37: -1061.333333 | P37: 10400 | Q37: =SUMPRODUCT((C37='Comparación Alternativas'!$Z$5:$Z$246)*(Alternativas!D37='Comparación Alternativas'!$AA$5:$AA$246)*('Comparación Alternativas'!$AQ$5:$AQ$246)) -> -1061.333333 | R37: =SUMPRODUCT((C37='Comparación Alternativas'!$Z$5:$Z$246)*('Comparación Alternativas'!$AA$5:$AA$246=Alternativas!D37)*('Comparación Alternativas'!$BA$5:$BA$246)) -> -7.217062796 | T37: 13 | U37: =IF(U36+SUMPRODUCT(($U$16='Para Ocultar'!$A$2:$A$7)*('Para Ocultar'!$C$2:$C$7))>12,(U36+SUMPRODUCT(($U$16='Para Ocultar'!$A$2:$A$7)*('Para Ocultar'!$C$2:$C$7)))-12,U36+SUMPRODUCT(($U$16='Para Ocultar'!$A$2:$A$7)*('Para Ocultar'!$C$2:$C$7))) -> 2 | V37: 2023 | W37: -600 | X37: -190 | Y37: -790 | Z37: 22200 | AA37: -537.0191651 | AB37: -199.0972582 | AC37: -736.1164233 | AD37: 23354.65182 | AE37: -537.0191651 | AF37: -199.0972582 | AG37: -736.1164233 | AH37: 23354.65182 | AI37: =SUMPRODUCT((U37='Comparación Alternativas'!$Z$5:$Z$246)*('Comparación Alternativas'!$AA$5:$AA$246=Alternativas!V37)*('Comparación Alternativas'!$AV$5:$AV$246)) -> -108252.4733 | AJ37: =SUMPRODUCT((U37='Comparación Alternativas'!$Z$5:$Z$246)*('Comparación Alternativas'!$AA$5:$AA$246=Alternativas!V37)*('Comparación Alternativas'!$BF$5:$BF$246)) -> -736.1164233
B38: 14 | C38: =IF(C37+SUMPRODUCT(($C$16='Para Ocultar'!$A$2:$A$7)*('Para Ocultar'!$C$2:$C$7))>12,(C37+SUMPRODUCT(($C$16='Para Ocultar'!$A$2:$A$7)*('Para Ocultar'!$C$2:$C$7)))-12,C37+SUMPRODUCT(($C$16='Para Ocultar'!$A$2:$A$7)*('Para Ocultar'!$C$2:$C$7))) -> 3 | D38: 2023 | E38: -800 | F38: -242.6666667 | G38: -1042.666667 | H38: 9600 | I38: -789.0405689 | J38: -275.8914944 | K38: -1064.932063 | L38: 11034.88062 | M38: -800 | N38: -242.6666667 | O38: -1042.666667 | P38: 9600 | Q38: =SUMPRODUCT((C38='Comparación Alternativas'!$Z$5:$Z$246)*(Alternativas!D38='Comparación Alternativas'!$AA$5:$AA$246)*('Comparación Alternativas'!$AQ$5:$AQ$246)) -> -1042.666667 | R38: =SUMPRODUCT((C38='Comparación Alternativas'!$Z$5:$Z$246)*('Comparación Alternativas'!$AA$5:$AA$246=Alternativas!D38)*('Comparación Alternativas'!$BA$5:$BA$246)) -> -6.93884052 | T38: 14 | U38: =IF(U37+SUMPRODUCT(($U$16='Para Ocultar'!$A$2:$A$7)*('Para Ocultar'!$C$2:$C$7))>12,(U37+SUMPRODUCT(($U$16='Para Ocultar'!$A$2:$A$7)*('Para Ocultar'!$C$2:$C$7)))-12,U37+SUMPRODUCT(($U$16='Para Ocultar'!$A$2:$A$7)*('Para Ocultar'!$C$2:$C$7))) -> 3 | V38: 2023 | W38: -600 | X38: -185 | Y38: -785 | Z38: 21600 | AA38: -541.4943248 | AB38: -194.6220985 | AC38: -736.1164233 | AD38: 22813.15749 | AE38: -541.4943248 | AF38: -194.6220985 | AG38: -736.1164233 | AH38: 22813.15749 | AI38: =SUMPRODUCT((U38='Comparación Alternativas'!$Z$5:$Z$246)*('Comparación Alternativas'!$AA$5:$AA$246=Alternativas!V38)*('Comparación Alternativas'!$AV$5:$AV$246)) -> -110612.7249 | AJ38: =SUMPRODUCT((U38='Comparación Alternativas'!$Z$5:$Z$246)*('Comparación Alternativas'!$AA$5:$AA$246=Alternativas!V38)*('Comparación Alternativas'!$BF$5:$BF$246)) -> -736.1164233
B39: 15 | C39: =IF(C38+SUMPRODUCT(($C$16='Para Ocultar'!$A$2:$A$7)*('Para Ocultar'!$C$2:$C$7))>12,(C38+SUMPRODUCT(($C$16='Para Ocultar'!$A$2:$A$7)*('Para Ocultar'!$C$2:$C$7)))-12,C38+SUMPRODUCT(($C$16='Para Ocultar'!$A$2:$A$7)*('Para Ocultar'!$C$2:$C$7))) -> 4 | D39: 2023 | E39: -800 | F39: -224 | G39: -1024 | H39: 8800 | I39: -807.4515155 | J39: -257.4805477 | K39: -1064.932063 | L39: 10227.4291 | M39: -800 | N39: -224 | O39: -1024 | P39: 8800 | Q39: =SUMPRODUCT((C39='Comparación Alternativas'!$Z$5:$Z$246)*(Alternativas!D39='Comparación Alternativas'!$AA$5:$AA$246)*('Comparación Alternativas'!$AQ$5:$AQ$246)) -> -1024 | R39: =SUMPRODUCT((C39='Comparación Alternativas'!$Z$5:$Z$246)*('Comparación Alternativas'!$AA$5:$AA$246=Alternativas!D39)*('Comparación Alternativas'!$BA$5:$BA$246)) -> -6.672243584 | T39: 15 | U39: =IF(U38+SUMPRODUCT(($U$16='Para Ocultar'!$A$2:$A$7)*('Para Ocultar'!$C$2:$C$7))>12,(U38+SUMPRODUCT(($U$16='Para Ocultar'!$A$2:$A$7)*('Para Ocultar'!$C$2:$C$7)))-12,U38+SUMPRODUCT(($U$16='Para Ocultar'!$A$2:$A$7)*('Para Ocultar'!$C$2:$C$7))) -> 4 | V39: 2023 | W39: -600 | X39: -180 | Y39: -780 | Z39: 21000 | AA39: -546.0067775 | AB39: -190.1096458 | AC39: -736.1164233 | AD39: 22267.15071 | AE39: -546.0067775 | AF39: -190.1096458 | AG39: -736.1164233 | AH39: 22267.15071 | AI39: =SUMPRODUCT((U39='Comparación Alternativas'!$Z$5:$Z$246)*('Comparación Alternativas'!$AA$5:$AA$246=Alternativas!V39)*('Comparación Alternativas'!$AV$5:$AV$246)) -> -112972.9765 | AJ39: =SUMPRODUCT((U39='Comparación Alternativas'!$Z$5:$Z$246)*('Comparación Alternativas'!$AA$5:$AA$246=Alternativas!V39)*('Comparación Alternativas'!$BF$5:$BF$246)) -> -736.1164233
B40: 16 | C40: =IF(C39+SUMPRODUCT(($C$16='Para Ocultar'!$A$2:$A$7)*('Para Ocultar'!$C$2:$C$7))>12,(C39+SUMPRODUCT(($C$16='Para Ocultar'!$A$2:$A$7)*('Para Ocultar'!$C$2:$C$7)))-12,C39+SUMPRODUCT(($C$16='Para Ocultar'!$A$2:$A$7)*('Para Ocultar'!$C$2:$C$7))) -> 5 | D40: 2023 | E40: -800 | F40: -205.3333333 | G40: -1005.333333 | H40: 8000 | I40: -826.2920508 | J40: -238.6400124 | K40: -1064.932063 | L40: 9401.137051 | M40: -800 | N40: -205.3333333 | O40: -1005.333333 | P40: 8000 | Q40: =SUMPRODUCT((C40='Comparación Alternativas'!$Z$5:$Z$246)*(Alternativas!D40='Comparación Alternativas'!$AA$5:$AA$246)*('Comparación Alternativas'!$AQ$5:$AQ$246)) -> -1005.333333 | R40: =SUMPRODUCT((C40='Comparación Alternativas'!$Z$5:$Z$246)*('Comparación Alternativas'!$AA$5:$AA$246=Alternativas!D40)*('Comparación Alternativas'!$BA$5:$BA$246)) -> -6.416558262 | T40: 16 | U40: =IF(U39+SUMPRODUCT(($U$16='Para Ocultar'!$A$2:$A$7)*('Para Ocultar'!$C$2:$C$7))>12,(U39+SUMPRODUCT(($U$16='Para Ocultar'!$A$2:$A$7)*('Para Ocultar'!$C$2:$C$7)))-12,U39+SUMPRODUCT(($U$16='Para Ocultar'!$A$2:$A$7)*('Para Ocultar'!$C$2:$C$7))) -> 5 | V40: 2023 | W40: -600 | X40: -175 | Y40: -775 | Z40: 20400 | AA40: -550.556834 | AB40: -185.5595893 | AC40: -736.1164233 | AD40: 21716.59388 | AE40: -550.556834 | AF40: -185.5595893 | AG40: -736.1164233 | AH40: 21716.59388 | AI40: =SUMPRODUCT((U40='Comparación Alternativas'!$Z$5:$Z$246)*('Comparación Alternativas'!$AA$5:$AA$246=Alternativas!V40)*('Comparación Alternativas'!$AV$5:$AV$246)) -> -115333.2281 | AJ40: =SUMPRODUCT((U40='Comparación Alternativas'!$Z$5:$Z$246)*('Comparación Alternativas'!$AA$5:$AA$246=Alternativas!V40)*('Comparación Alternativas'!$BF$5:$BF$246)) -> -736.1164233
B41: 17 | C41: =IF(C40+SUMPRODUCT(($C$16='Para Ocultar'!$A$2:$A$7)*('Para Ocultar'!$C$2:$C$7))>12,(C40+SUMPRODUCT(($C$16='Para Ocultar'!$A$2:$A$7)*('Para Ocultar'!$C$2:$C$7)))-12,C40+SUMPRODUCT(($C$16='Para Ocultar'!$A$2:$A$7)*('Para Ocultar'!$C$2:$C$7))) -> 6 | D41: 2023 | E41: -800 | F41: -186.6666667 | G41: -986.6666667 | H41: 7200 | I41: -845.5721987 | J41: -219.3598645 | K41: -1064.932063 | L41: 8555.564853 | M41: -800 | N41: -186.6666667 | O41: -986.6666667 | P41: 7200 | Q41: =SUMPRODUCT((C41='Comparación Alternativas'!$Z$5:$Z$246)*(Alternativas!D41='Comparación Alternativas'!$AA$5:$AA$246)*('Comparación Alternativas'!$AQ$5:$AQ$246)) -> -986.6666667 | R41: =SUMPRODUCT((C41='Comparación Alternativas'!$Z$5:$Z$246)*('Comparación Alternativas'!$AA$5:$AA$246=Alternativas!D41)*('Comparación Alternativas'!$BA$5:$BA$246)) -> -6.171128082 | T41: 17 | U41: =IF(U40+SUMPRODUCT(($U$16='Para Ocultar'!$A$2:$A$7)*('Para Ocultar'!$C$2:$C$7))>12,(U40+SUMPRODUCT(($U$16='Para Ocultar'!$A$2:$A$7)*('Para Ocultar'!$C$2:$C$7)))-12,U40+SUMPRODUCT(($U$16='Para Ocultar'!$A$2:$A$7)*('Para Ocultar'!$C$2:$C$7))) -> 6 | V41: 2023 | W41: -600 | X41: -170 | Y41: -770 | Z41: 19800 | AA41: -555.1448076 | AB41: -180.9716157 | AC41: -736.1164233 | AD41: 21161.44907 | AE41: -555.1448076 | AF41: -180.9716157 | AG41: -736.1164233 | AH41: 21161.44907 | AI41: =SUMPRODUCT((U41='Comparación Alternativas'!$Z$5:$Z$246)*('Comparación Alternativas'!$AA$5:$AA$246=Alternativas!V41)*('Comparación Alternativas'!$AV$5:$AV$246)) -> -117693.4797 | AJ41: =SUMPRODUCT((U41='Comparación Alternativas'!$Z$5:$Z$246)*('Comparación Alternativas'!$AA$5:$AA$246=Alternativas!V41)*('Comparación Alternativas'!$BF$5:$BF$246)) -> -736.1164233
B42: 18 | C42: =IF(C41+SUMPRODUCT(($C$16='Para Ocultar'!$A$2:$A$7)*('Para Ocultar'!$C$2:$C$7))>12,(C41+SUMPRODUCT(($C$16='Para Ocultar'!$A$2:$A$7)*('Para Ocultar'!$C$2:$C$7)))-12,C41+SUMPRODUCT(($C$16='Para Ocultar'!$A$2:$A$7)*('Para Ocultar'!$C$2:$C$7))) -> 7 | D42: 2023 | E42: -800 | F42: -168 | G42: -968 | H42: 6400 | I42: -865.3022166 | J42: -199.6298466 | K42: -1064.932063 | L42: 7690.262636 | M42: -800 | N42: -168 | O42: -968 | P42: 6400 | Q42: =SUMPRODUCT((C42='Comparación Alternativas'!$Z$5:$Z$246)*(Alternativas!D42='Comparación Alternativas'!$AA$5:$AA$246)*('Comparación Alternativas'!$AQ$5:$AQ$246)) -> -968 | R42: =SUMPRODUCT((C42='Comparación Alternativas'!$Z$5:$Z$246)*('Comparación Alternativas'!$AA$5:$AA$246=Alternativas!D42)*('Comparación Alternativas'!$BA$5:$BA$246)) -> -5.935348198 | T42: 18 | U42: =IF(U41+SUMPRODUCT(($U$16='Para Ocultar'!$A$2:$A$7)*('Para Ocultar'!$C$2:$C$7))>12,(U41+SUMPRODUCT(($U$16='Para Ocultar'!$A$2:$A$7)*('Para Ocultar'!$C$2:$C$7)))-12,U41+SUMPRODUCT(($U$16='Para Ocultar'!$A$2:$A$7)*('Para Ocultar'!$C$2:$C$7))) -> 7 | V42: 2023 | W42: -600 | X42: -165 | Y42: -765 | Z42: 19200 | AA42: -559.7710143 | AB42: -176.3454089 | AC42: -736.1164233 | AD42: 20601.67806 | AE42: -559.7710143 | AF42: -176.3454089 | AG42: -736.1164233 | AH42: 20601.67806 | AI42: =SUMPRODUCT((U42='Comparación Alternativas'!$Z$5:$Z$246)*('Comparación Alternativas'!$AA$5:$AA$246=Alternativas!V42)*('Comparación Alternativas'!$AV$5:$AV$246)) -> -120053.7313 | AJ42: =SUMPRODUCT((U42='Comparación Alternativas'!$Z$5:$Z$246)*('Comparación Alternativas'!$AA$5:$AA$246=Alternativas!V42)*('Comparación Alternativas'!$BF$5:$BF$246)) -> -736.1164233
B43: 19 | C43: =IF(C42+SUMPRODUCT(($C$16='Para Ocultar'!$A$2:$A$7)*('Para Ocultar'!$C$2:$C$7))>12,(C42+SUMPRODUCT(($C$16='Para Ocultar'!$A$2:$A$7)*('Para Ocultar'!$C$2:$C$7)))-12,C42+SUMPRODUCT(($C$16='Para Ocultar'!$A$2:$A$7)*('Para Ocultar'!$C$2:$C$7))) -> 8 | D43: 2023 | E43: -800 | F43: -149.3333333 | G43: -949.3333333 | H43: 5600 | I43: -885.4926017 | J43: -179.4394615 | K43: -1064.932063 | L43: 6804.770034 | M43: -800 | N43: -149.3333333 | O43: -949.3333333 | P43: 5600 | Q43: =SUMPRODUCT((C43='Comparación Alternativas'!$Z$5:$Z$246)*(Alternativas!D43='Comparación Alternativas'!$AA$5:$AA$246)*('Comparación Alternativas'!$AQ$5:$AQ$246)) -> -949.3333333 | R43: =SUMPRODUCT((C43='Comparación Alternativas'!$Z$5:$Z$246)*('Comparación Alternativas'!$AA$5:$AA$246=Alternativas!D43)*('Comparación Alternativas'!$BA$5:$BA$246)) -> -5.70866041 | T43: 19 | U43: =IF(U42+SUMPRODUCT(($U$16='Para Ocultar'!$A$2:$A$7)*('Para Ocultar'!$C$2:$C$7))>12,(U42+SUMPRODUCT(($U$16='Para Ocultar'!$A$2:$A$7)*('Para Ocultar'!$C$2:$C$7)))-12,U42+SUMPRODUCT(($U$16='Para Ocultar'!$A$2:$A$7)*('Para Ocultar'!$C$2:$C$7))) -> 8 | V43: 2023 | W43: -600 | X43: -160 | Y43: -760 | Z43: 18600 | AA43: -564.4357728 | AB43: -171.6806505 | AC43: -736.1164233 | AD43: 20037.24229 | AE43: -564.4357728 | AF43: -171.6806505 | AG43: -736.1164233 | AH43: 20037.24229 | AI43: =SUMPRODUCT((U43='Comparación Alternativas'!$Z$5:$Z$246)*('Comparación Alternativas'!$AA$5:$AA$246=Alternativas!V43)*('Comparación Alternativas'!$AV$5:$AV$246)) -> -122413.9829 | AJ43: =SUMPRODUCT((U43='Comparación Alternativas'!$Z$5:$Z$246)*('Comparación Alternativas'!$AA$5:$AA$246=Alternativas!V43)*('Comparación Alternativas'!$BF$5:$BF$246)) -> -736.1164233
B44: 20 | C44: =IF(C43+SUMPRODUCT(($C$16='Para Ocultar'!$A$2:$A$7)*('Para Ocultar'!$C$2:$C$7))>12,(C43+SUMPRODUCT(($C$16='Para Ocultar'!$A$2:$A$7)*('Para Ocultar'!$C$2:$C$7)))-12,C43+SUMPRODUCT(($C$16='Para Ocultar'!$A$2:$A$7)*('Para Ocultar'!$C$2:$C$7))) -> 9 | D44: 2023 | E44: -800 | F44: -130.6666667 | G44: -930.6666667 | H44: 4800 | I44: -906.1540957 | J44: -158.7779675 | K44: -1064.932063 | L44: 5898.615939 | M44: -800 | N44: -130.6666667 | O44: -930.6666667 | P44: 4800 | Q44: =SUMPRODUCT((C44='Comparación Alternativas'!$Z$5:$Z$246)*(Alternativas!D44='Comparación Alternativas'!$AA$5:$AA$246)*('Comparación Alternativas'!$AQ$5:$AQ$246)) -> -930.6666667 | R44: =SUMPRODUCT((C44='Comparación Alternativas'!$Z$5:$Z$246)*('Comparación Alternativas'!$AA$5:$AA$246=Alternativas!D44)*('Comparación Alternativas'!$BA$5:$BA$246)) -> -5.490548754 | T44: 20 | U44: =IF(U43+SUMPRODUCT(($U$16='Para Ocultar'!$A$2:$A$7)*('Para Ocultar'!$C$2:$C$7))>12,(U43+SUMPRODUCT(($U$16='Para Ocultar'!$A$2:$A$7)*('Para Ocultar'!$C$2:$C$7)))-12,U43+SUMPRODUCT(($U$16='Para Ocultar'!$A$2:$A$7)*('Para Ocultar'!$C$2:$C$7))) -> 9 | V44: 2023 | W44: -600 | X44: -155 | Y44: -755 | Z44: 18000 | AA44: -569.1394042 | AB44: -166.977019 | AC44: -736.1164233 | AD44: 19468.10288 | AE44: -569.1394042 | AF44: -166.977019 | AG44: -736.1164233 | AH44: 19468.10288 | AI44: =SUMPRODUCT((U44='Comparación Alternativas'!$Z$5:$Z$246)*('Comparación Alternativas'!$AA$5:$AA$246=Alternativas!V44)*('Comparación Alternativas'!$AV$5:$AV$246)) -> -124774.2345 | AJ44: =SUMPRODUCT((U44='Comparación Alternativas'!$Z$5:$Z$246)*('Comparación Alternativas'!$AA$5:$AA$246=Alternativas!V44)*('Comparación Alternativas'!$BF$5:$BF$246)) -> -736.1164233
B45: 21 | C45: =IF(C44+SUMPRODUCT(($C$16='Para Ocultar'!$A$2:$A$7)*('Para Ocultar'!$C$2:$C$7))>12,(C44+SUMPRODUCT(($C$16='Para Ocultar'!$A$2:$A$7)*('Para Ocultar'!$C$2:$C$7)))-12,C44+SUMPRODUCT(($C$16='Para Ocultar'!$A$2:$A$7)*('Para Ocultar'!$C$2:$C$7))) -> 10 | D45: 2023 | E45: -800 | F45: -112 | G45: -912 | H45: 4000 | I45: -927.2976913 | J45: -137.6343719 | K45: -1064.932063 | L45: 4971.318247 | M45: -800 | N45: -112 | O45: -912 | P45: 4000 | Q45: =SUMPRODUCT((C45='Comparación Alternativas'!$Z$5:$Z$246)*(Alternativas!D45='Comparación Alternativas'!$AA$5:$AA$246)*('Comparación Alternativas'!$AQ$5:$AQ$246)) -> -912 | R45: =SUMPRODUCT((C45='Comparación Alternativas'!$Z$5:$Z$246)*('Comparación Alternativas'!$AA$5:$AA$246=Alternativas!D45)*('Comparación Alternativas'!$BA$5:$BA$246)) -> -5.280535584 | T45: 21 | U45: =IF(U44+SUMPRODUCT(($U$16='Para Ocultar'!$A$2:$A$7)*('Para Ocultar'!$C$2:$C$7))>12,(U44+SUMPRODUCT(($U$16='Para Ocultar'!$A$2:$A$7)*('Para Ocultar'!$C$2:$C$7)))-12,U44+SUMPRODUCT(($U$16='Para Ocultar'!$A$2:$A$7)*('Para Ocultar'!$C$2:$C$7))) -> 10 | V45: 2023 | W45: -600 | X45: -150 | Y45: -750 | Z45: 17400 | AA45: -573.8822326 | AB45: -162.2341907 | AC45: -736.1164233 | AD45: 18894.22065 | AE45: -573.8822326 | AF45: -162.2341907 | AG45: -736.1164233 | AH45: 18894.22065 | AI45: =SUMPRODUCT((U45='Comparación Alternativas'!$Z$5:$Z$246)*('Comparación Alternativas'!$AA$5:$AA$246=Alternativas!V45)*('Comparación Alternativas'!$AV$5:$AV$246)) -> -127134.4861 | AJ45: =SUMPRODUCT((U45='Comparación Alternativas'!$Z$5:$Z$246)*('Comparación Alternativas'!$AA$5:$AA$246=Alternativas!V45)*('Comparación Alternativas'!$BF$5:$BF$246)) -> -736.1164233
B46: 22 | C46: =IF(C45+SUMPRODUCT(($C$16='Para Ocultar'!$A$2:$A$7)*('Para Ocultar'!$C$2:$C$7))>12,(C45+SUMPRODUCT(($C$16='Para Ocultar'!$A$2:$A$7)*('Para Ocultar'!$C$2:$C$7)))-12,C45+SUMPRODUCT(($C$16='Para Ocultar'!$A$2:$A$7)*('Para Ocultar'!$C$2:$C$7))) -> 11 | D46: 2023 | E46: -800 | F46: -93.33333333 | G46: -893.3333333 | H46: 3200 | I46: -948.9346374 | J46: -115.9974258 | K46: -1064.932063 | L46: 4022.38361 | M46: -800 | N46: -93.33333333 | O46: -893.3333333 | P46: 3200 | Q46: =SUMPRODUCT((C46='Comparación Alternativas'!$Z$5:$Z$246)*(Alternativas!D46='Comparación Alternativas'!$AA$5:$AA$246)*('Comparación Alternativas'!$AQ$5:$AQ$246)) -> -893.3333333 | R46: =SUMPRODUCT((C46='Comparación Alternativas'!$Z$5:$Z$246)*('Comparación Alternativas'!$AA$5:$AA$246=Alternativas!D46)*('Comparación Alternativas'!$BA$5:$BA$246)) -> -5.078178076 | T46: 22 | U46: =IF(U45+SUMPRODUCT(($U$16='Para Ocultar'!$A$2:$A$7)*('Para Ocultar'!$C$2:$C$7))>12,(U45+SUMPRODUCT(($U$16='Para Ocultar'!$A$2:$A$7)*('Para Ocultar'!$C$2:$C$7)))-12,U45+SUMPRODUCT(($U$16='Para Ocultar'!$A$2:$A$7)*('Para Ocultar'!$C$2:$C$7))) -> 11 | V46: 2023 | W46: -600 | X46: -145 | Y46: -745 | Z46: 16800 | AA46: -578.6645845 | AB46: -157.4518387 | AC46: -736.1164233 | AD46: 18315.55606 | AE46: -578.6645845 | AF46: -157.4518387 | AG46: -736.1164233 | AH46: 18315.55606 | AI46: =SUMPRODUCT((U46='Comparación Alternativas'!$Z$5:$Z$246)*('Comparación Alternativas'!$AA$5:$AA$246=Alternativas!V46)*('Comparación Alternativas'!$AV$5:$AV$246)) -> -129494.7377 | AJ46: =SUMPRODUCT((U46='Comparación Alternativas'!$Z$5:$Z$246)*('Comparación Alternativas'!$AA$5:$AA$246=Alternativas!V46)*('Comparación Alternativas'!$BF$5:$BF$246)) -> -736.1164233
B47: 23 | C47: =IF(C46+SUMPRODUCT(($C$16='Para Ocultar'!$A$2:$A$7)*('Para Ocultar'!$C$2:$C$7))>12,(C46+SUMPRODUCT(($C$16='Para Ocultar'!$A$2:$A$7)*('Para Ocultar'!$C$2:$C$7)))-12,C46+SUMPRODUCT(($C$16='Para Ocultar'!$A$2:$A$7)*('Para Ocultar'!$C$2:$C$7))) -> 12 | D47: 2023 | E47: -800 | F47: -74.66666667 | G47: -874.6666667 | H47: 2400 | I47: -971.0764456 | J47: -93.85561756 | K47: -1064.932063 | L47: 3051.307164 | M47: -800 | N47: -74.66666667 | O47: -874.6666667 | P47: 2400 | Q47: =SUMPRODUCT((C47='Comparación Alternativas'!$Z$5:$Z$246)*(Alternativas!D47='Comparación Alternativas'!$AA$5:$AA$246)*('Comparación Alternativas'!$AQ$5:$AQ$246)) -> -874.6666667 | R47: =SUMPRODUCT((C47='Comparación Alternativas'!$Z$5:$Z$246)*('Comparación Alternativas'!$AA$5:$AA$246=Alternativas!D47)*('Comparación Alternativas'!$BA$5:$BA$246)) -> -4.883065111 | T47: 23 | U47: =IF(U46+SUMPRODUCT(($U$16='Para Ocultar'!$A$2:$A$7)*('Para Ocultar'!$C$2:$C$7))>12,(U46+SUMPRODUCT(($U$16='Para Ocultar'!$A$2:$A$7)*('Para Ocultar'!$C$2:$C$7)))-12,U46+SUMPRODUCT(($U$16='Para Ocultar'!$A$2:$A$7)*('Para Ocultar'!$C$2:$C$7))) -> 12 | V47: 2023 | W47: -600 | X47: -140 | Y47: -740 | Z47: 16200 | AA47: -583.4867894 | AB47: -152.6296339 | AC47: -736.1164233 | AD47: 17732.06928 | AE47: -583.4867894 | AF47: -152.6296339 | AG47: -736.1164233 | AH47: 17732.06928 | AI47: =SUMPRODUCT((U47='Comparación Alternativas'!$Z$5:$Z$246)*('Comparación Alternativas'!$AA$5:$AA$246=Alternativas!V47)*('Comparación Alternativas'!$AV$5:$AV$246)) -> -131854.9894 | AJ47: =SUMPRODUCT((U47='Comparación Alternativas'!$Z$5:$Z$246)*('Comparación Alternativas'!$AA$5:$AA$246=Alternativas!V47)*('Comparación Alternativas'!$BF$5:$BF$246)) -> -736.1164233
B48: 24 | C48: =IF(C47+SUMPRODUCT(($C$16='Para Ocultar'!$A$2:$A$7)*('Para Ocultar'!$C$2:$C$7))>12,(C47+SUMPRODUCT(($C$16='Para Ocultar'!$A$2:$A$7)*('Para Ocultar'!$C$2:$C$7)))-12,C47+SUMPRODUCT(($C$16='Para Ocultar'!$A$2:$A$7)*('Para Ocultar'!$C$2:$C$7))) -> 1 | D48: 2024 | E48: -800 | F48: -56 | G48: -856 | H48: 1600 | I48: -993.734896 | J48: -71.19716717 | K48: -1064.932063 | L48: 2057.572268 | M48: -800 | N48: -56 | O48: -856 | P48: 1600 | Q48: =SUMPRODUCT((C48='Comparación Alternativas'!$Z$5:$Z$246)*(Alternativas!D48='Comparación Alternativas'!$AA$5:$AA$246)*('Comparación Alternativas'!$AQ$5:$AQ$246)) -> -856 | R48: =SUMPRODUCT((C48='Comparación Alternativas'!$Z$5:$Z$246)*('Comparación Alternativas'!$AA$5:$AA$246=Alternativas!D48)*('Comparación Alternativas'!$BA$5:$BA$246)) -> -5.21329457 | T48: 24 | U48: =IF(U47+SUMPRODUCT(($U$16='Para Ocultar'!$A$2:$A$7)*('Para Ocultar'!$C$2:$C$7))>12,(U47+SUMPRODUCT(($U$16='Para Ocultar'!$A$2:$A$7)*('Para Ocultar'!$C$2:$C$7)))-12,U47+SUMPRODUCT(($U$16='Para Ocultar'!$A$2:$A$7)*('Para Ocultar'!$C$2:$C$7))) -> 1 | V48: 2024 | W48: -600 | X48: -135 | Y48: -735 | Z48: 15600 | AA48: -588.3491793 | AB48: -147.767244 | AC48: -736.1164233 | AD48: 17143.7201 | AE48: -588.3491793 | AF48: -147.767244 | AG48: -736.1164233 | AH48: 17143.7201 | AI48: =SUMPRODUCT((U48='Comparación Alternativas'!$Z$5:$Z$246)*('Comparación Alternativas'!$AA$5:$AA$246=Alternativas!V48)*('Comparación Alternativas'!$AV$5:$AV$246)) -> -120867.0736 | AJ48: =SUMPRODUCT((U48='Comparación Alternativas'!$Z$5:$Z$246)*('Comparación Alternativas'!$AA$5:$AA$246=Alternativas!V48)*('Comparación Alternativas'!$BF$5:$BF$246)) -> -736.1164233
B49: 25 | C49: =IF(C48+SUMPRODUCT(($C$16='Para Ocultar'!$A$2:$A$7)*('Para Ocultar'!$C$2:$C$7))>12,(C48+SUMPRODUCT(($C$16='Para Ocultar'!$A$2:$A$7)*('Para Ocultar'!$C$2:$C$7)))-12,C48+SUMPRODUCT(($C$16='Para Ocultar'!$A$2:$A$7)*('Para Ocultar'!$C$2:$C$7))) -> 2 | D49: 2024 | E49: -800 | F49: -37.33333333 | G49: -837.3333333 | H49: 800 | I49: -1016.922044 | J49: -48.01001959 | K49: -1064.932063 | L49: 1040.650225 | M49: -800 | N49: -37.33333333 | O49: -837.3333333 | P49: 800 | Q49: =SUMPRODUCT((C49='Comparación Alternativas'!$Z$5:$Z$246)*(Alternativas!D49='Comparación Alternativas'!$AA$5:$AA$246)*('Comparación Alternativas'!$AQ$5:$AQ$246)) -> -837.3333333 | R49: =SUMPRODUCT((C49='Comparación Alternativas'!$Z$5:$Z$246)*('Comparación Alternativas'!$AA$5:$AA$246=Alternativas!D49)*('Comparación Alternativas'!$BA$5:$BA$246)) -> -5.60956992 | T49: 25 | U49: =IF(U48+SUMPRODUCT(($U$16='Para Ocultar'!$A$2:$A$7)*('Para Ocultar'!$C$2:$C$7))>12,(U48+SUMPRODUCT(($U$16='Para Ocultar'!$A$2:$A$7)*('Para Ocultar'!$C$2:$C$7)))-12,U48+SUMPRODUCT(($U$16='Para Ocultar'!$A$2:$A$7)*('Para Ocultar'!$C$2:$C$7))) -> 2 | V49: 2024 | W49: -600 | X49: -130 | Y49: -730 | Z49: 15000 | AA49: -593.2520892 | AB49: -142.8643341 | AC49: -736.1164233 | AD49: 16550.46801 | AE49: -593.2520892 | AF49: -142.8643341 | AG49: -736.1164233 | AH49: 16550.46801 | AI49: =SUMPRODUCT((U49='Comparación Alternativas'!$Z$5:$Z$246)*('Comparación Alternativas'!$AA$5:$AA$246=Alternativas!V49)*('Comparación Alternativas'!$AV$5:$AV$246)) -> -109879.1578 | AJ49: =SUMPRODUCT((U49='Comparación Alternativas'!$Z$5:$Z$246)*('Comparación Alternativas'!$AA$5:$AA$246=Alternativas!V49)*('Comparación Alternativas'!$BF$5:$BF$246)) -> -736.1164233
B50: 26 | C50: =IF(C49+SUMPRODUCT(($C$16='Para Ocultar'!$A$2:$A$7)*('Para Ocultar'!$C$2:$C$7))>12,(C49+SUMPRODUCT(($C$16='Para Ocultar'!$A$2:$A$7)*('Para Ocultar'!$C$2:$C$7)))-12,C49+SUMPRODUCT(($C$16='Para Ocultar'!$A$2:$A$7)*('Para Ocultar'!$C$2:$C$7))) -> 3 | D50: 2024 | E50: -800 | F50: -18.66666667 | G50: -818.6666667 | H50: 0 | I50: -1040.650225 | J50: -24.28183857 | K50: -1064.932063 | L50: 1.002717909e-10 | M50: -800 | N50: -18.66666667 | O50: -818.6666667 | P50: 0 | Q50: =SUMPRODUCT((C50='Comparación Alternativas'!$Z$5:$Z$246)*(Alternativas!D50='Comparación Alternativas'!$AA$5:$AA$246)*('Comparación Alternativas'!$AQ$5:$AQ$246)) -> -818.6666667 | R50: =SUMPRODUCT((C50='Comparación Alternativas'!$Z$5:$Z$246)*('Comparación Alternativas'!$AA$5:$AA$246=Alternativas!D50)*('Comparación Alternativas'!$BA$5:$BA$246)) -> -6.09390646 | T50: 26 | U50: =IF(U49+SUMPRODUCT(($U$16='Para Ocultar'!$A$2:$A$7)*('Para Ocultar'!$C$2:$C$7))>12,(U49+SUMPRODUCT(($U$16='Para Ocultar'!$A$2:$A$7)*('Para Ocultar'!$C$2:$C$7)))-12,U49+SUMPRODUCT(($U$16='Para Ocultar'!$A$2:$A$7)*('Para Ocultar'!$C$2:$C$7))) -> 3 | V50: 2024 | W50: -600 | X50: -125 | Y50: -725 | Z50: 14400 | AA50: -598.1958566 | AB50: -137.9205667 | AC50: -736.1164233 | AD50: 15952.27215 | AE50: -598.1958566 | AF50: -137.9205667 | AG50: -736.1164233 | AH50: 15952.27215 | AI50: =SUMPRODUCT((U50='Comparación Alternativas'!$Z$5:$Z$246)*('Comparación Alternativas'!$AA$5:$AA$246=Alternativas!V50)*('Comparación Alternativas'!$AV$5:$AV$246)) -> -98891.24202 | AJ50: =SUMPRODUCT((U50='Comparación Alternativas'!$Z$5:$Z$246)*('Comparación Alternativas'!$AA$5:$AA$246=Alternativas!V50)*('Comparación Alternativas'!$BF$5:$BF$246)) -> -736.1164233
B51: 27 | C51: =IF(C50+SUMPRODUCT(($C$16='Para Ocultar'!$A$2:$A$7)*('Para Ocultar'!$C$2:$C$7))>12,(C50+SUMPRODUCT(($C$16='Para Ocultar'!$A$2:$A$7)*('Para Ocultar'!$C$2:$C$7)))-12,C50+SUMPRODUCT(($C$16='Para Ocultar'!$A$2:$A$7)*('Para Ocultar'!$C$2:$C$7))) -> 4 | D51: 2024 | E51: 0 | F51: 0 | G51: 0 | H51: 0 | I51: 2.33967512e-12 | J51: -2.33967512e-12 | K51: 0 | L51: 1.02611466e-10 | M51: 0 | N51: 0 | O51: 0 | P51: 0 | Q51: =SUMPRODUCT((C51='Comparación Alternativas'!$Z$5:$Z$246)*(Alternativas!D51='Comparación Alternativas'!$AA$5:$AA$246)*('Comparación Alternativas'!$AQ$5:$AQ$246)) -> 0 | R51: =SUMPRODUCT((C51='Comparación Alternativas'!$Z$5:$Z$246)*('Comparación Alternativas'!$AA$5:$AA$246=Alternativas!D51)*('Comparación Alternativas'!$BA$5:$BA$246)) -> 0 | T51: 27 | U51: =IF(U50+SUMPRODUCT(($U$16='Para Ocultar'!$A$2:$A$7)*('Para Ocultar'!$C$2:$C$7))>12,(U50+SUMPRODUCT(($U$16='Para Ocultar'!$A$2:$A$7)*('Para Ocultar'!$C$2:$C$7)))-12,U50+SUMPRODUCT(($U$16='Para Ocultar'!$A$2:$A$7)*('Para Ocultar'!$C$2:$C$7))) -> 4 | V51: 2024 | W51: -600 | X51: -120 | Y51: -720 | Z51: 13800 | AA51: -603.180822 | AB51: -132.9356013 | AC51: -736.1164233 | AD51: 15349.09133 | AE51: -603.180822 | AF51: -132.9356013 | AG51: -736.1164233 | AH51: 15349.09133 | AI51: =SUMPRODUCT((U51='Comparación Alternativas'!$Z$5:$Z$246)*('Comparación Alternativas'!$AA$5:$AA$246=Alternativas!V51)*('Comparación Alternativas'!$AV$5:$AV$246)) -> -87903.32624 | AJ51: =SUMPRODUCT((U51='Comparación Alternativas'!$Z$5:$Z$246)*('Comparación Alternativas'!$AA$5:$AA$246=Alternativas!V51)*('Comparación Alternativas'!$BF$5:$BF$246)) -> -736.1164233
B52: 28 | C52: =IF(C51+SUMPRODUCT(($C$16='Para Ocultar'!$A$2:$A$7)*('Para Ocultar'!$C$2:$C$7))>12,(C51+SUMPRODUCT(($C$16='Para Ocultar'!$A$2:$A$7)*('Para Ocultar'!$C$2:$C$7)))-12,C51+SUMPRODUCT(($C$16='Para Ocultar'!$A$2:$A$7)*('Para Ocultar'!$C$2:$C$7))) -> 5 | D52: 2024 | E52: 0 | F52: 0 | G52: 0 | H52: 0 | I52: 2.39426754e-12 | J52: -2.39426754e-12 | K52: 0 | L52: 1.050057335e-10 | M52: 0 | N52: 0 | O52: 0 | P52: 0 | Q52: =SUMPRODUCT((C52='Comparación Alternativas'!$Z$5:$Z$246)*(Alternativas!D52='Comparación Alternativas'!$AA$5:$AA$246)*('Comparación Alternativas'!$AQ$5:$AQ$246)) -> 0 | R52: =SUMPRODUCT((C52='Comparación Alternativas'!$Z$5:$Z$246)*('Comparación Alternativas'!$AA$5:$AA$246=Alternativas!D52)*('Comparación Alternativas'!$BA$5:$BA$246)) -> 0 | T52: 28 | U52: =IF(U51+SUMPRODUCT(($U$16='Para Ocultar'!$A$2:$A$7)*('Para Ocultar'!$C$2:$C$7))>12,(U51+SUMPRODUCT(($U$16='Para Ocultar'!$A$2:$A$7)*('Para Ocultar'!$C$2:$C$7)))-12,U51+SUMPRODUCT(($U$16='Para Ocultar'!$A$2:$A$7)*('Para Ocultar'!$C$2:$C$7))) -> 5 | V52: 2024 | W52: -600 | X52: -115 | Y52: -715 | Z52: 13200 | AA52: -608.2073289 | AB52: -127.9090944 | AC52: -736.1164233 | AD52: 14740.884 | AE52: -608.2073289 | AF52: -127.9090944 | AG52: -736.1164233 | AH52: 14740.884 | AI52: =SUMPRODUCT((U52='Comparación Alternativas'!$Z$5:$Z$246)*('Comparación Alternativas'!$AA$5:$AA$246=Alternativas!V52)*('Comparación Alternativas'!$AV$5:$AV$246)) -> -76915.41046 | AJ52: =SUMPRODUCT((U52='Comparación Alternativas'!$Z$5:$Z$246)*('Comparación Alternativas'!$AA$5:$AA$246=Alternativas!V52)*('Comparación Alternativas'!$BF$5:$BF$246)) -> -736.1164233
B53: 29 | C53: =IF(C52+SUMPRODUCT(($C$16='Para Ocultar'!$A$2:$A$7)*('Para Ocultar'!$C$2:$C$7))>12,(C52+SUMPRODUCT(($C$16='Para Ocultar'!$A$2:$A$7)*('Para Ocultar'!$C$2:$C$7)))-12,C52+SUMPRODUCT(($C$16='Para Ocultar'!$A$2:$A$7)*('Para Ocultar'!$C$2:$C$7))) -> 6 | D53: 2024 | E53: 0 | F53: 0 | G53: 0 | H53: 0 | I53: 2.450133782e-12 | J53: -2.450133782e-12 | K53: 0 | L53: 1.074558673e-10 | M53: 0 | N53: 0 | O53: 0 | P53: 0 | Q53: =SUMPRODUCT((C53='Comparación Alternativas'!$Z$5:$Z$246)*(Alternativas!D53='Comparación Alternativas'!$AA$5:$AA$246)*('Comparación Alternativas'!$AQ$5:$AQ$246)) -> 0 | R53: =SUMPRODUCT((C53='Comparación Alternativas'!$Z$5:$Z$246)*('Comparación Alternativas'!$AA$5:$AA$246=Alternativas!D53)*('Comparación Alternativas'!$BA$5:$BA$246)) -> 0 | T53: 29 | U53: =IF(U52+SUMPRODUCT(($U$16='Para Ocultar'!$A$2:$A$7)*('Para Ocultar'!$C$2:$C$7))>12,(U52+SUMPRODUCT(($U$16='Para Ocultar'!$A$2:$A$7)*('Para Ocultar'!$C$2:$C$7)))-12,U52+SUMPRODUCT(($U$16='Para Ocultar'!$A$2:$A$7)*('Para Ocultar'!$C$2:$C$7))) -> 6 | V53: 2024 | W53: -600 | X53: -110 | Y53: -710 | Z53: 12600 | AA53: -613.2757233 | AB53: -122.8407 | AC53: -736.1164233 | AD53: 14127.60828 | AE53: -613.2757233 | AF53: -122.8407 | AG53: -736.1164233 | AH53: 14127.60828 | AI53: =SUMPRODUCT((U53='Comparación Alternativas'!$Z$5:$Z$246)*('Comparación Alternativas'!$AA$5:$AA$246=Alternativas!V53)*('Comparación Alternativas'!$AV$5:$AV$246)) -> -65927.49468 | AJ53: =SUMPRODUCT((U53='Comparación Alternativas'!$Z$5:$Z$246)*('Comparación Alternativas'!$AA$5:$AA$246=Alternativas!V53)*('Comparación Alternativas'!$BF$5:$BF$246)) -> -736.1164233
B54: 30 | C54: =IF(C53+SUMPRODUCT(($C$16='Para Ocultar'!$A$2:$A$7)*('Para Ocultar'!$C$2:$C$7))>12,(C53+SUMPRODUCT(($C$16='Para Ocultar'!$A$2:$A$7)*('Para Ocultar'!$C$2:$C$7)))-12,C53+SUMPRODUCT(($C$16='Para Ocultar'!$A$2:$A$7)*('Para Ocultar'!$C$2:$C$7))) -> 7 | D54: 2024 | E54: 0 | F54: 0 | G54: 0 | H54: 0 | I54: 2.507303571e-12 | J54: -2.507303571e-12 | K54: 0 | L54: 1.099631709e-10 | M54: 0 | N54: 0 | O54: 0 | P54: 0 | Q54: =SUMPRODUCT((C54='Comparación Alternativas'!$Z$5:$Z$246)*(Alternativas!D54='Comparación Alternativas'!$AA$5:$AA$246)*('Comparación Alternativas'!$AQ$5:$AQ$246)) -> 0 | R54: =SUMPRODUCT((C54='Comparación Alternativas'!$Z$5:$Z$246)*('Comparación Alternativas'!$AA$5:$AA$246=Alternativas!D54)*('Comparación Alternativas'!$BA$5:$BA$246)) -> 0 | T54: 30 | U54: =IF(U53+SUMPRODUCT(($U$16='Para Ocultar'!$A$2:$A$7)*('Para Ocultar'!$C$2:$C$7))>12,(U53+SUMPRODUCT(($U$16='Para Ocultar'!$A$2:$A$7)*('Para Ocultar'!$C$2:$C$7)))-12,U53+SUMPRODUCT(($U$16='Para Ocultar'!$A$2:$A$7)*('Para Ocultar'!$C$2:$C$7))) -> 7 | V54: 2024 | W54: -600 | X54: -105 | Y54: -705 | Z54: 12000 | AA54: -618.3863543 | AB54: -117.730069 | AC54: -736.1164233 | AD54: 13509.22192 | AE54: -618.3863543 | AF54: -117.730069 | AG54: -736.1164233 | AH54: 13509.22192 | AI54: =SUMPRODUCT((U54='Comparación Alternativas'!$Z$5:$Z$246)*('Comparación Alternativas'!$AA$5:$AA$246=Alternativas!V54)*('Comparación Alternativas'!$AV$5:$AV$246)) -> -54939.5789 | AJ54: =SUMPRODUCT((U54='Comparación Alternativas'!$Z$5:$Z$246)*('Comparación Alternativas'!$AA$5:$AA$246=Alternativas!V54)*('Comparación Alternativas'!$BF$5:$BF$246)) -> -736.1164233
B55: 31 | C55: =IF(C54+SUMPRODUCT(($C$16='Para Ocultar'!$A$2:$A$7)*('Para Ocultar'!$C$2:$C$7))>12,(C54+SUMPRODUCT(($C$16='Para Ocultar'!$A$2:$A$7)*('Para Ocultar'!$C$2:$C$7)))-12,C54+SUMPRODUCT(($C$16='Para Ocultar'!$A$2:$A$7)*('Para Ocultar'!$C$2:$C$7))) -> 8 | D55: 2024 | E55: 0 | F55: 0 | G55: 0 | H55: 0 | I55: 2.565807321e-12 | J55: -2.565807321e-12 | K55: 0 | L55: 1.125289782e-10 | M55: 0 | N55: 0 | O55: 0 | P55: 0 | Q55: =SUMPRODUCT((C55='Comparación Alternativas'!$Z$5:$Z$246)*(Alternativas!D55='Comparación Alternativas'!$AA$5:$AA$246)*('Comparación Alternativas'!$AQ$5:$AQ$246)) -> 0 | R55: =SUMPRODUCT((C55='Comparación Alternativas'!$Z$5:$Z$246)*('Comparación Alternativas'!$AA$5:$AA$246=Alternativas!D55)*('Comparación Alternativas'!$BA$5:$BA$246)) -> 0 | T55: 31 | U55: =IF(U54+SUMPRODUCT(($U$16='Para Ocultar'!$A$2:$A$7)*('Para Ocultar'!$C$2:$C$7))>12,(U54+SUMPRODUCT(($U$16='Para Ocultar'!$A$2:$A$7)*('Para Ocultar'!$C$2:$C$7)))-12,U54+SUMPRODUCT(($U$16='Para Ocultar'!$A$2:$A$7)*('Para Ocultar'!$C$2:$C$7))) -> 8 | V55: 2024 | W55: -600 | X55: -100 | Y55: -700 | Z55: 11400 | AA55: -623.5395739 | AB55: -112.5768493 | AC55: -736.1164233 | AD55: 12885.68235 | AE55: -623.5395739 | AF55: -112.5768493 | AG55: -736.1164233 | AH55: =IF($U$14="Alemán",Z55,AD55) -> 12885.68235 | AI55: =SUMPRODUCT((U55='Comparación Alternativas'!$Z$5:$Z$246)*('Comparación Alternativas'!$AA$5:$AA$246=Alternativas!V55)*('Comparación Alternativas'!$AV$5:$AV$246)) -> -43951.66312 | AJ55: =SUMPRODUCT((U55='Comparación Alternativas'!$Z$5:$Z$246)*('Comparación Alternativas'!$AA$5:$AA$246=Alternativas!V55)*('Comparación Alternativas'!$BF$5:$BF$246)) -> -736.1164233
B56: 32 | C56: =IF(C55+SUMPRODUCT(($C$16='Para Ocultar'!$A$2:$A$7)*('Para Ocultar'!$C$2:$C$7))>12,(C55+SUMPRODUCT(($C$16='Para Ocultar'!$A$2:$A$7)*('Para Ocultar'!$C$2:$C$7)))-12,C55+SUMPRODUCT(($C$16='Para Ocultar'!$A$2:$A$7)*('Para Ocultar'!$C$2:$C$7))) -> 9 | D56: 2024 | E56: 0 | F56: 0 | G56: 0 | H56: 0 | I56: 2.625676158e-12 | J56: -2.625676158e-12 | K56: 0 | L56: 1.151546544e-10 | M56: 0 | N56: 0 | O56: 0 | P56: 0 | Q56: =SUMPRODUCT((C56='Comparación Alternativas'!$Z$5:$Z$246)*(Alternativas!D56='Comparación Alternativas'!$AA$5:$AA$246)*('Comparación Alternativas'!$AQ$5:$AQ$246)) -> 0 | R56: =SUMPRODUCT((C56='Comparación Alternativas'!$Z$5:$Z$246)*('Comparación Alternativas'!$AA$5:$AA$246=Alternativas!D56)*('Comparación Alternativas'!$BA$5:$BA$246)) -> 0 | T56: 32 | U56: =IF(U55+SUMPRODUCT(($U$16='Para Ocultar'!$A$2:$A$7)*('Para Ocultar'!$C$2:$C$7))>12,(U55+SUMPRODUCT(($U$16='Para Ocultar'!$A$2:$A$7)*('Para Ocultar'!$C$2:$C$7)))-12,U55+SUMPRODUCT(($U$16='Para Ocultar'!$A$2:$A$7)*('Para Ocultar'!$C$2:$C$7))) -> 9 | V56: 2024 | W56: -600 | X56: -95 | Y56: -695 | Z56: 10800 | AA56: -628.7357371 | AB56: -107.3806862 | AC56: -736.1164233 | AD56: 12256.94661 | AE56: -628.7357371 | AF56: -107.3806862 | AG56: -736.1164233 | AH56: =IF($U$14="Alemán",Z56,AD56) -> 12256.94661 | AI56: =SUMPRODUCT((U56='Comparación Alternativas'!$Z$5:$Z$246)*('Comparación Alternativas'!$AA$5:$AA$246=Alternativas!V56)*('Comparación Alternativas'!$AV$5:$AV$246)) -> 0 | AJ56: =SUMPRODUCT((U56='Comparación Alternativas'!$Z$5:$Z$246)*('Comparación Alternativas'!$AA$5:$AA$246=Alternativas!V56)*('Comparación Alternativas'!$BF$5:$BF$246)) -> 0
B57: 33 | C57: =IF(C56+SUMPRODUCT(($C$16='Para Ocultar'!$A$2:$A$7)*('Para Ocultar'!$C$2:$C$7))>12,(C56+SUMPRODUCT(($C$16='Para Ocultar'!$A$2:$A$7)*('Para Ocultar'!$C$2:$C$7)))-12,C56+SUMPRODUCT(($C$16='Para Ocultar'!$A$2:$A$7)*('Para Ocultar'!$C$2:$C$7))) -> 10 | D57: 2024 | E57: 0 | F57: =-H56*($C$15/$C$16) -> 0 | G57: =F57+E57 -> 0 | H57: =E57+H56 -> 0 | I57: =L56-L56+K57-J57 -> 2.686941935e-12 | J57: =-L56*$C$15/$C$16 -> -2.686941935e-12 | K57: 0 | L57: =L56+I57 -> 1.178415963e-10 | M57: 0 | N57: 0 | O57: 0 | P57: 0 | Q57: =SUMPRODUCT((C57='Comparación Alternativas'!$Z$5:$Z$246)*(Alternativas!D57='Comparación Alternativas'!$AA$5:$AA$246)*('Comparación Alternativas'!$AQ$5:$AQ$246)) -> 0 | R57: =SUMPRODUCT((C57='Comparación Alternativas'!$Z$5:$Z$246)*('Comparación Alternativas'!$AA$5:$AA$246=Alternativas!D57)*('Comparación Alternativas'!$BA$5:$BA$246)) -> 0 | T57: 33 | U57: =IF(U56+SUMPRODUCT(($U$16='Para Ocultar'!$A$2:$A$7)*('Para Ocultar'!$C$2:$C$7))>12,(U56+SUMPRODUCT(($U$16='Para Ocultar'!$A$2:$A$7)*('Para Ocultar'!$C$2:$C$7)))-12,U56+SUMPRODUCT(($U$16='Para Ocultar'!$A$2:$A$7)*('Para Ocultar'!$C$2:$C$7))) -> 10 | V57: 2024 | W57: -600 | X57: -90 | Y57: =X57+W57 -> -690 | Z57: =W57+Z56 -> 10200 | AA57: =AD56-AD56+AC57-AB57 -> -633.9752015 | AB57: -102.1412218 | AC57: -736.1164233 | AD57: =AD56+AA57 -> 11622.97141 | AE57: -633.9752015 | AF57: -102.1412218 | AG57: -736.1164233 | AH57: 11622.97141 | AI57: =SUMPRODUCT((U57='Comparación Alternativas'!$Z$5:$Z$246)*('Comparación Alternativas'!$AA$5:$AA$246=Alternativas!V57)*('Comparación Alternativas'!$AV$5:$AV$246)) -> 0 | AJ57: =SUMPRODUCT((U57='Comparación Alternativas'!$Z$5:$Z$246)*('Comparación Alternativas'!$AA$5:$AA$246=Alternativas!V57)*('Comparación Alternativas'!$BF$5:$BF$246)) -> 0
B58: 34 | C58: =IF(C57+SUMPRODUCT(($C$16='Para Ocultar'!$A$2:$A$7)*('Para Ocultar'!$C$2:$C$7))>12,(C57+SUMPRODUCT(($C$16='Para Ocultar'!$A$2:$A$7)*('Para Ocultar'!$C$2:$C$7)))-12,C57+SUMPRODUCT(($C$16='Para Ocultar'!$A$2:$A$7)*('Para Ocultar'!$C$2:$C$7))) -> 11 | D58: 2024 | E58: 0 | F58: 0 | G58: 0 | H58: 0 | I58: 2.749637247e-12 | J58: -2.749637247e-12 | K58: 0 | L58: 1.205912335e-10 | M58: 0 | N58: 0 | O58: 0 | P58: 0 | Q58: =SUMPRODUCT((C58='Comparación Alternativas'!$Z$5:$Z$246)*(Alternativas!D58='Comparación Alternativas'!$AA$5:$AA$246)*('Comparación Alternativas'!$AQ$5:$AQ$246)) -> 0 | R58: =SUMPRODUCT((C58='Comparación Alternativas'!$Z$5:$Z$246)*('Comparación Alternativas'!$AA$5:$AA$246=Alternativas!D58)*('Comparación Alternativas'!$BA$5:$BA$246)) -> 0 | T58: 34 | U58: =IF(U57+SUMPRODUCT(($U$16='Para Ocultar'!$A$2:$A$7)*('Para Ocultar'!$C$2:$C$7))>12,(U57+SUMPRODUCT(($U$16='Para Ocultar'!$A$2:$A$7)*('Para Ocultar'!$C$2:$C$7)))-12,U57+SUMPRODUCT(($U$16='Para Ocultar'!$A$2:$A$7)*('Para Ocultar'!$C$2:$C$7))) -> 11 | V58: 2024 | W58: -600 | X58: -85 | Y58: -685 | Z58: 9600 | AA58: -639.2583282 | AB58: -96.85809508 | AC58: -736.1164233 | AD58: 10983.71308 | AE58: -639.2583282 | AF58: -96.85809508 | AG58: -736.1164233 | AH58: 10983.71308 | AI58: =SUMPRODUCT((U58='Comparación Alternativas'!$Z$5:$Z$246)*('Comparación Alternativas'!$AA$5:$AA$246=Alternativas!V58)*('Comparación Alternativas'!$AV$5:$AV$246)) -> 0 | AJ58: =SUMPRODUCT((U58='Comparación Alternativas'!$Z$5:$Z$246)*('Comparación Alternativas'!$AA$5:$AA$246=Alternativas!V58)*('Comparación Alternativas'!$BF$5:$BF$246)) -> 0
B59: 35 | C59: =IF(C58+SUMPRODUCT(($C$16='Para Ocultar'!$A$2:$A$7)*('Para Ocultar'!$C$2:$C$7))>12,(C58+SUMPRODUCT(($C$16='Para Ocultar'!$A$2:$A$7)*('Para Ocultar'!$C$2:$C$7)))-12,C58+SUMPRODUCT(($C$16='Para Ocultar'!$A$2:$A$7)*('Para Ocultar'!$C$2:$C$7))) -> 12 | D59: 2024 | E59: 0 | F59: 0 | G59: 0 | H59: 0 | I59: 2.813795449e-12 | J59: -2.813795449e-12 | K59: 0 | L59: 1.23405029e-10 | M59: 0 | N59: 0 | O59: 0 | P59: 0 | Q59: =SUMPRODUCT((C59='Comparación Alternativas'!$Z$5:$Z$246)*(Alternativas!D59='Comparación Alternativas'!$AA$5:$AA$246)*('Comparación Alternativas'!$AQ$5:$AQ$246)) -> 0 | R59: =SUMPRODUCT((C59='Comparación Alternativas'!$Z$5:$Z$246)*('Comparación Alternativas'!$AA$5:$AA$246=Alternativas!D59)*('Comparación Alternativas'!$BA$5:$BA$246)) -> 0 | T59: 35 | U59: =IF(U58+SUMPRODUCT(($U$16='Para Ocultar'!$A$2:$A$7)*('Para Ocultar'!$C$2:$C$7))>12,(U58+SUMPRODUCT(($U$16='Para Ocultar'!$A$2:$A$7)*('Para Ocultar'!$C$2:$C$7)))-12,U58+SUMPRODUCT(($U$16='Para Ocultar'!$A$2:$A$7)*('Para Ocultar'!$C$2:$C$7))) -> 12 | V59: 2024 | W59: -600 | X59: -80 | Y59: -680 | Z59: 9000 | AA59: -644.5854809 | AB59: -91.53094234 | AC59: -736.1164233 | AD59: 10339.1276 | AE59: -644.5854809 | AF59: -91.53094234 | AG59: -736.1164233 | AH59: 10339.1276 | AI59: =SUMPRODUCT((U59='Comparación Alternativas'!$Z$5:$Z$246)*('Comparación Alternativas'!$AA$5:$AA$246=Alternativas!V59)*('Comparación Alternativas'!$AV$5:$AV$246)) -> 0 | AJ59: =SUMPRODUCT((U59='Comparación Alternativas'!$Z$5:$Z$246)*('Comparación Alternativas'!$AA$5:$AA$246=Alternativas!V59)*('Comparación Alternativas'!$BF$5:$BF$246)) -> 0
B60: 36 | C60: =IF(C59+SUMPRODUCT(($C$16='Para Ocultar'!$A$2:$A$7)*('Para Ocultar'!$C$2:$C$7))>12,(C59+SUMPRODUCT(($C$16='Para Ocultar'!$A$2:$A$7)*('Para Ocultar'!$C$2:$C$7)))-12,C59+SUMPRODUCT(($C$16='Para Ocultar'!$A$2:$A$7)*('Para Ocultar'!$C$2:$C$7))) -> 1 | D60: 2025 | E60: 0 | F60: 0 | G60: 0 | H60: 0 | I60: 2.879450677e-12 | J60: -2.879450677e-12 | K60: 0 | L60: 1.262844797e-10 | M60: 0 | N60: 0 | O60: 0 | P60: 0 | Q60: =SUMPRODUCT((C60='Comparación Alternativas'!$Z$5:$Z$246)*(Alternativas!D60='Comparación Alternativas'!$AA$5:$AA$246)*('Comparación Alternativas'!$AQ$5:$AQ$246)) -> 0 | R60: =SUMPRODUCT((C60='Comparación Alternativas'!$Z$5:$Z$246)*('Comparación Alternativas'!$AA$5:$AA$246=Alternativas!D60)*('Comparación Alternativas'!$BA$5:$BA$246)) -> 0 | T60: 36 | U60: =IF(U59+SUMPRODUCT(($U$16='Para Ocultar'!$A$2:$A$7)*('Para Ocultar'!$C$2:$C$7))>12,(U59+SUMPRODUCT(($U$16='Para Ocultar'!$A$2:$A$7)*('Para Ocultar'!$C$2:$C$7)))-12,U59+SUMPRODUCT(($U$16='Para Ocultar'!$A$2:$A$7)*('Para Ocultar'!$C$2:$C$7))) -> 1 | V60: 2025 | W60: -600 | X60: -75 | Y60: -675 | Z60: 8400 | AA60: -649.9570266 | AB60: -86.15939667 | AC60: -736.1164233 | AD60: 9689.170573 | AE60: -649.9570266 | AF60: -86.15939667 | AG60: -736.1164233 | AH60: =IF($U$14="Alemán",Z60,AD60) -> 9689.170573 | AI60: =SUMPRODUCT((U60='Comparación Alternativas'!$Z$5:$Z$246)*('Comparación Alternativas'!$AA$5:$AA$246=Alternativas!V60)*('Comparación Alternativas'!$AV$5:$AV$246)) -> 0 | AJ60: =SUMPRODUCT((U60='Comparación Alternativas'!$Z$5:$Z$246)*('Comparación Alternativas'!$AA$5:$AA$246=Alternativas!V60)*('Comparación Alternativas'!$BF$5:$BF$246)) -> 0
B61: 37 | C61: =IF(C60+SUMPRODUCT(($C$16='Para Ocultar'!$A$2:$A$7)*('Para Ocultar'!$C$2:$C$7))>12,(C60+SUMPRODUCT(($C$16='Para Ocultar'!$A$2:$A$7)*('Para Ocultar'!$C$2:$C$7)))-12,C60+SUMPRODUCT(($C$16='Para Ocultar'!$A$2:$A$7)*('Para Ocultar'!$C$2:$C$7))) -> 2 | D61: 2025 | E61: 0 | F61: 0 | G61: 0 | H61: 0 | I61: 2.946637859e-12 | J61: -2.946637859e-12 | K61: 0 | L61: 1.292311175e-10 | M61: 0 | N61: 0 | O61: 0 | P61: 0 | Q61: =SUMPRODUCT((C61='Comparación Alternativas'!$Z$5:$Z$246)*(Alternativas!D61='Comparación Alternativas'!$AA$5:$AA$246)*('Comparación Alternativas'!$AQ$5:$AQ$246)) -> 0 | R61: =SUMPRODUCT((C61='Comparación Alternativas'!$Z$5:$Z$246)*('Comparación Alternativas'!$AA$5:$AA$246=Alternativas!D61)*('Comparación Alternativas'!$BA$5:$BA$246)) -> 0 | T61: 37 | U61: =IF(U60+SUMPRODUCT(($U$16='Para Ocultar'!$A$2:$A$7)*('Para Ocultar'!$C$2:$C$7))>12,(U60+SUMPRODUCT(($U$16='Para Ocultar'!$A$2:$A$7)*('Para Ocultar'!$C$2:$C$7)))-12,U60+SUMPRODUCT(($U$16='Para Ocultar'!$A$2:$A$7)*('Para Ocultar'!$C$2:$C$7))) -> 2 | V61: 2025 | W61: -600 | X61: -70 | Y61: -670 | Z61: 7800 | AA61: -655.3733352 | AB61: -80.74308811 | AC61: -736.1164233 | AD61: =AD60+AA61 -> 9033.797238 | AE61: -655.3733352 | AF61: -80.74308811 | AG61: -736.1164233 | AH61: 9033.797238 | AI61: =SUMPRODUCT((U61='Comparación Alternativas'!$Z$5:$Z$246)*('Comparación Alternativas'!$AA$5:$AA$246=Alternativas!V61)*('Comparación Alternativas'!$AV$5:$AV$246)) -> 0 | AJ61: =SUMPRODUCT((U61='Comparación Alternativas'!$Z$5:$Z$246)*('Comparación Alternativas'!$AA$5:$AA$246=Alternativas!V61)*('Comparación Alternativas'!$BF$5:$BF$246)) -> 0
B62: 38 | C62: =IF(C61+SUMPRODUCT(($C$16='Para Ocultar'!$A$2:$A$7)*('Para Ocultar'!$C$2:$C$7))>12,(C61+SUMPRODUCT(($C$16='Para Ocultar'!$A$2:$A$7)*('Para Ocultar'!$C$2:$C$7)))-12,C61+SUMPRODUCT(($C$16='Para Ocultar'!$A$2:$A$7)*('Para Ocultar'!$C$2:$C$7))) -> 3 | D62: 2025 | E62: 0 | F62: 0 | G62: 0 | H62: 0 | I62: 3.015392742e-12 | J62: -3.015392742e-12 | K62: 0 | L62: 1.322465103e-10 | M62: 0 | N62: 0 | O62: 0 | P62: 0 | Q62: =SUMPRODUCT((C62='Comparación Alternativas'!$Z$5:$Z$246)*(Alternativas!D62='Comparación Alternativas'!$AA$5:$AA$246)*('Comparación Alternativas'!$AQ$5:$AQ$246)) -> 0 | R62: =SUMPRODUCT((C62='Comparación Alternativas'!$Z$5:$Z$246)*('Comparación Alternativas'!$AA$5:$AA$246=Alternativas!D62)*('Comparación Alternativas'!$BA$5:$BA$246)) -> 0 | T62: 38 | U62: =IF(U61+SUMPRODUCT(($U$16='Para Ocultar'!$A$2:$A$7)*('Para Ocultar'!$C$2:$C$7))>12,(U61+SUMPRODUCT(($U$16='Para Ocultar'!$A$2:$A$7)*('Para Ocultar'!$C$2:$C$7)))-12,U61+SUMPRODUCT(($U$16='Para Ocultar'!$A$2:$A$7)*('Para Ocultar'!$C$2:$C$7))) -> 3 | V62: 2025 | W62: -600 | X62: -65 | Y62: -665 | Z62: 7200 | AA62: -660.8347796 | AB62: -75.28164365 | AC62: -736.1164233 | AD62: 8372.962459 | AE62: -660.8347796 | AF62: -75.28164365 | AG62: -736.1164233 | AH62: 8372.962459 | AI62: =SUMPRODUCT((U62='Comparación Alternativas'!$Z$5:$Z$246)*('Comparación Alternativas'!$AA$5:$AA$246=Alternativas!V62)*('Comparación Alternativas'!$AV$5:$AV$246)) -> 0 | AJ62: =SUMPRODUCT((U62='Comparación Alternativas'!$Z$5:$Z$246)*('Comparación Alternativas'!$AA$5:$AA$246=Alternativas!V62)*('Comparación Alternativas'!$BF$5:$BF$246)) -> 0
B63: 39 | C63: =IF(C62+SUMPRODUCT(($C$16='Para Ocultar'!$A$2:$A$7)*('Para Ocultar'!$C$2:$C$7))>12,(C62+SUMPRODUCT(($C$16='Para Ocultar'!$A$2:$A$7)*('Para Ocultar'!$C$2:$C$7)))-12,C62+SUMPRODUCT(($C$16='Para Ocultar'!$A$2:$A$7)*('Para Ocultar'!$C$2:$C$7))) -> 4 | D63: 2025 | E63: 0 | F63: 0 | G63: 0 | H63: 0 | I63: 3.085751906e-12 | J63: -3.085751906e-12 | K63: 0 | L63: 1.353322622e-10 | M63: 0 | N63: 0 | O63: 0 | P63: 0 | Q63: =SUMPRODUCT((C63='Comparación Alternativas'!$Z$5:$Z$246)*(Alternativas!D63='Comparación Alternativas'!$AA$5:$AA$246)*('Comparación Alternativas'!$AQ$5:$AQ$246)) -> 0 | R63: =SUMPRODUCT((C63='Comparación Alternativas'!$Z$5:$Z$246)*('Comparación Alternativas'!$AA$5:$AA$246=Alternativas!D63)*('Comparación Alternativas'!$BA$5:$BA$246)) -> 0 | T63: 39 | U63: =IF(U62+SUMPRODUCT(($U$16='Para Ocultar'!$A$2:$A$7)*('Para Ocultar'!$C$2:$C$7))>12,(U62+SUMPRODUCT(($U$16='Para Ocultar'!$A$2:$A$7)*('Para Ocultar'!$C$2:$C$7)))-12,U62+SUMPRODUCT(($U$16='Para Ocultar'!$A$2:$A$7)*('Para Ocultar'!$C$2:$C$7))) -> 4 | V63: 2025 | W63: -600 | X63: -60 | Y63: -660 | Z63: 6600 | AA63: -666.3417361 | AB63: -69.77468715 | AC63: -736.1164233 | AD63: 7706.620722 | AE63: -666.3417361 | AF63: -69.77468715 | AG63: -736.1164233 | AH63: 7706.620722 | AI63: =SUMPRODUCT((U63='Comparación Alternativas'!$Z$5:$Z$246)*('Comparación Alternativas'!$AA$5:$AA$246=Alternativas!V63)*('Comparación Alternativas'!$AV$5:$AV$246)) -> 0 | AJ63: =SUMPRODUCT((U63='Comparación Alternativas'!$Z$5:$Z$246)*('Comparación Alternativas'!$AA$5:$AA$246=Alternativas!V63)*('Comparación Alternativas'!$BF$5:$BF$246)) -> 0
B64: 40 | C64: =IF(C63+SUMPRODUCT(($C$16='Para Ocultar'!$A$2:$A$7)*('Para Ocultar'!$C$2:$C$7))>12,(C63+SUMPRODUCT(($C$16='Para Ocultar'!$A$2:$A$7)*('Para Ocultar'!$C$2:$C$7)))-12,C63+SUMPRODUCT(($C$16='Para Ocultar'!$A$2:$A$7)*('Para Ocultar'!$C$2:$C$7))) -> 5 | D64: 2025 | E64: 0 | F64: 0 | G64: 0 | H64: 0 | I64: 3.157752784e-12 | J64: -3.157752784e-12 | K64: 0 | L64: 1.38490015e-10 | M64: 0 | N64: 0 | O64: 0 | P64: 0 | Q64: =SUMPRODUCT((C64='Comparación Alternativas'!$Z$5:$Z$246)*(Alternativas!D64='Comparación Alternativas'!$AA$5:$AA$246)*('Comparación Alternativas'!$AQ$5:$AQ$246)) -> 0 | R64: =SUMPRODUCT((C64='Comparación Alternativas'!$Z$5:$Z$246)*('Comparación Alternativas'!$AA$5:$AA$246=Alternativas!D64)*('Comparación Alternativas'!$BA$5:$BA$246)) -> 0 | T64: 40 | U64: =IF(U63+SUMPRODUCT(($U$16='Para Ocultar'!$A$2:$A$7)*('Para Ocultar'!$C$2:$C$7))>12,(U63+SUMPRODUCT(($U$16='Para Ocultar'!$A$2:$A$7)*('Para Ocultar'!$C$2:$C$7)))-12,U63+SUMPRODUCT(($U$16='Para Ocultar'!$A$2:$A$7)*('Para Ocultar'!$C$2:$C$7))) -> 5 | V64: 2025 | W64: -600 | X64: -55 | Y64: -655 | Z64: 6000 | AA64: -671.8945839 | AB64: -64.22183935 | AC64: -736.1164233 | AD64: 7034.726138 | AE64: -671.8945839 | AF64: -64.22183935 | AG64: -736.1164233 | AH64: 7034.726138 | AI64: =SUMPRODUCT((U64='Comparación Alternativas'!$Z$5:$Z$246)*('Comparación Alternativas'!$AA$5:$AA$246=Alternativas!V64)*('Comparación Alternativas'!$AV$5:$AV$246)) -> 0 | AJ64: =SUMPRODUCT((U64='Comparación Alternativas'!$Z$5:$Z$246)*('Comparación Alternativas'!$AA$5:$AA$246=Alternativas!V64)*('Comparación Alternativas'!$BF$5:$BF$246)) -> 0
B65: 41 | C65: =IF(C64+SUMPRODUCT(($C$16='Para Ocultar'!$A$2:$A$7)*('Para Ocultar'!$C$2:$C$7))>12,(C64+SUMPRODUCT(($C$16='Para Ocultar'!$A$2:$A$7)*('Para Ocultar'!$C$2:$C$7)))-12,C64+SUMPRODUCT(($C$16='Para Ocultar'!$A$2:$A$7)*('Para Ocultar'!$C$2:$C$7))) -> 6 | D65: 2025 | E65: 0 | F65: 0 | G65: 0 | H65: 0 | I65: 3.231433682e-12 | J65: -3.231433682e-12 | K65: 0 | L65: 1.417214486e-10 | M65: 0 | N65: 0 | O65: 0 | P65: 0 | Q65: =SUMPRODUCT((C65='Comparación Alternativas'!$Z$5:$Z$246)*(Alternativas!D65='Comparación Alternativas'!$AA$5:$AA$246)*('Comparación Alternativas'!$AQ$5:$AQ$246)) -> 0 | R65: =SUMPRODUCT((C65='Comparación Alternativas'!$Z$5:$Z$246)*('Comparación Alternativas'!$AA$5:$AA$246=Alternativas!D65)*('Comparación Alternativas'!$BA$5:$BA$246)) -> 0 | T65: 41 | U65: =IF(U64+SUMPRODUCT(($U$16='Para Ocultar'!$A$2:$A$7)*('Para Ocultar'!$C$2:$C$7))>12,(U64+SUMPRODUCT(($U$16='Para Ocultar'!$A$2:$A$7)*('Para Ocultar'!$C$2:$C$7)))-12,U64+SUMPRODUCT(($U$16='Para Ocultar'!$A$2:$A$7)*('Para Ocultar'!$C$2:$C$7))) -> 6 | V65: 2025 | W65: -600 | X65: -50 | Y65: -650 | Z65: 5400 | AA65: -677.4937055 | AB65: -58.62271782 | AC65: -736.1164233 | AD65: 6357.232433 | AE65: -677.4937055 | AF65: -58.62271782 | AG65: -736.1164233 | AH65: 6357.232433 | AI65: =SUMPRODUCT((U65='Comparación Alternativas'!$Z$5:$Z$246)*('Comparación Alternativas'!$AA$5:$AA$246=Alternativas!V65)*('Comparación Alternativas'!$AV$5:$AV$246)) -> 0 | AJ65: =SUMPRODUCT((U65='Comparación Alternativas'!$Z$5:$Z$246)*('Comparación Alternativas'!$AA$5:$AA$246=Alternativas!V65)*('Comparación Alternativas'!$BF$5:$BF$246)) -> 0
B66: 42 | C66: =IF(C65+SUMPRODUCT(($C$16='Para Ocultar'!$A$2:$A$7)*('Para Ocultar'!$C$2:$C$7))>12,(C65+SUMPRODUCT(($C$16='Para Ocultar'!$A$2:$A$7)*('Para Ocultar'!$C$2:$C$7)))-12,C65+SUMPRODUCT(($C$16='Para Ocultar'!$A$2:$A$7)*('Para Ocultar'!$C$2:$C$7))) -> 7 | D66: 2025 | E66: 0 | F66: 0 | G66: 0 | H66: 0 | I66: 3.306833802e-12 | J66: -3.306833802e-12 | K66: 0 | L66: 1.450282824e-10 | M66: 0 | N66: 0 | O66: 0 | P66: 0 | Q66: =SUMPRODUCT((C66='Comparación Alternativas'!$Z$5:$Z$246)*(Alternativas!D66='Comparación Alternativas'!$AA$5:$AA$246)*('Comparación Alternativas'!$AQ$5:$AQ$246)) -> 0 | R66: =SUMPRODUCT((C66='Comparación Alternativas'!$Z$5:$Z$246)*('Comparación Alternativas'!$AA$5:$AA$246=Alternativas!D66)*('Comparación Alternativas'!$BA$5:$BA$246)) -> 0 | T66: 42 | U66: =IF(U65+SUMPRODUCT(($U$16='Para Ocultar'!$A$2:$A$7)*('Para Ocultar'!$C$2:$C$7))>12,(U65+SUMPRODUCT(($U$16='Para Ocultar'!$A$2:$A$7)*('Para Ocultar'!$C$2:$C$7)))-12,U65+SUMPRODUCT(($U$16='Para Ocultar'!$A$2:$A$7)*('Para Ocultar'!$C$2:$C$7))) -> 7 | V66: 2025 | W66: -600 | X66: -45 | Y66: -645 | Z66: 4800 | AA66: -683.1394863 | AB66: -52.97693694 | AC66: -736.1164233 | AD66: 5674.092947 | AE66: -683.1394863 | AF66: -52.97693694 | AG66: -736.1164233 | AH66: 5674.092947 | AI66: =SUMPRODUCT((U66='Comparación Alternativas'!$Z$5:$Z$246)*('Comparación Alternativas'!$AA$5:$AA$246=Alternativas!V66)*('Comparación Alternativas'!$AV$5:$AV$246)) -> 0 | AJ66: =SUMPRODUCT((U66='Comparación Alternativas'!$Z$5:$Z$246)*('Comparación Alternativas'!$AA$5:$AA$246=Alternativas!V66)*('Comparación Alternativas'!$BF$5:$BF$246)) -> 0
B67: 43 | C67: =IF(C66+SUMPRODUCT(($C$16='Para Ocultar'!$A$2:$A$7)*('Para Ocultar'!$C$2:$C$7))>12,(C66+SUMPRODUCT(($C$16='Para Ocultar'!$A$2:$A$7)*('Para Ocultar'!$C$2:$C$7)))-12,C66+SUMPRODUCT(($C$16='Para Ocultar'!$A$2:$A$7)*('Para Ocultar'!$C$2:$C$7))) -> 8 | D67: 2025 | E67: 0 | F67: 0 | G67: 0 | H67: 0 | I67: 3.383993257e-12 | J67: -3.383993257e-12 | K67: 0 | L67: 1.484122757e-10 | M67: 0 | N67: 0 | O67: 0 | P67: 0 | Q67: =SUMPRODUCT((C67='Comparación Alternativas'!$Z$5:$Z$246)*(Alternativas!D67='Comparación Alternativas'!$AA$5:$AA$246)*('Comparación Alternativas'!$AQ$5:$AQ$246)) -> 0 | R67: =SUMPRODUCT((C67='Comparación Alternativas'!$Z$5:$Z$246)*('Comparación Alternativas'!$AA$5:$AA$246=Alternativas!D67)*('Comparación Alternativas'!$BA$5:$BA$246)) -> 0 | T67: 43 | U67: =IF(U66+SUMPRODUCT(($U$16='Para Ocultar'!$A$2:$A$7)*('Para Ocultar'!$C$2:$C$7))>12,(U66+SUMPRODUCT(($U$16='Para Ocultar'!$A$2:$A$7)*('Para Ocultar'!$C$2:$C$7)))-12,U66+SUMPRODUCT(($U$16='Para Ocultar'!$A$2:$A$7)*('Para Ocultar'!$C$2:$C$7))) -> 8 | V67: 2025 | W67: -600 | X67: -40 | Y67: -640 | Z67: 4200 | AA67: -688.8323154 | AB67: -47.28410789 | AC67: -736.1164233 | AD67: 4985.260631 | AE67: -688.8323154 | AF67: -47.28410789 | AG67: -736.1164233 | AH67: 4985.260631 | AI67: =SUMPRODUCT((U67='Comparación Alternativas'!$Z$5:$Z$246)*('Comparación Alternativas'!$AA$5:$AA$246=Alternativas!V67)*('Comparación Alternativas'!$AV$5:$AV$246)) -> 0 | AJ67: =SUMPRODUCT((U67='Comparación Alternativas'!$Z$5:$Z$246)*('Comparación Alternativas'!$AA$5:$AA$246=Alternativas!V67)*('Comparación Alternativas'!$BF$5:$BF$246)) -> 0
B68: 44 | C68: =IF(C67+SUMPRODUCT(($C$16='Para Ocultar'!$A$2:$A$7)*('Para Ocultar'!$C$2:$C$7))>12,(C67+SUMPRODUCT(($C$16='Para Ocultar'!$A$2:$A$7)*('Para Ocultar'!$C$2:$C$7)))-12,C67+SUMPRODUCT(($C$16='Para Ocultar'!$A$2:$A$7)*('Para Ocultar'!$C$2:$C$7))) -> 9 | D68: 2025 | E68: 0 | F68: 0 | G68: 0 | H68: 0 | I68: 3.4629531e-12 | J68: -3.4629531e-12 | K68: 0 | L68: 1.518752288e-10 | M68: 0 | N68: 0 | O68: 0 | P68: 0 | Q68: =SUMPRODUCT((C68='Comparación Alternativas'!$Z$5:$Z$246)*(Alternativas!D68='Comparación Alternativas'!$AA$5:$AA$246)*('Comparación Alternativas'!$AQ$5:$AQ$246)) -> 0 | R68: =SUMPRODUCT((C68='Comparación Alternativas'!$Z$5:$Z$246)*('Comparación Alternativas'!$AA$5:$AA$246=Alternativas!D68)*('Comparación Alternativas'!$BA$5:$BA$246)) -> 0 | T68: 44 | U68: =IF(U67+SUMPRODUCT(($U$16='Para Ocultar'!$A$2:$A$7)*('Para Ocultar'!$C$2:$C$7))>12,(U67+SUMPRODUCT(($U$16='Para Ocultar'!$A$2:$A$7)*('Para Ocultar'!$C$2:$C$7)))-12,U67+SUMPRODUCT(($U$16='Para Ocultar'!$A$2:$A$7)*('Para Ocultar'!$C$2:$C$7))) -> 9 | V68: 2025 | W68: -600 | X68: -35 | Y68: -635 | Z68: 3600 | AA68: -694.5725847 | AB68: -41.54383859 | AC68: -736.1164233 | AD68: 4290.688047 | AE68: -694.5725847 | AF68: -41.54383859 | AG68: -736.1164233 | AH68: 4290.688047 | AI68: =SUMPRODUCT((U68='Comparación Alternativas'!$Z$5:$Z$246)*('Comparación Alternativas'!$AA$5:$AA$246=Alternativas!V68)*('Comparación Alternativas'!$AV$5:$AV$246)) -> 0 | AJ68: =SUMPRODUCT((U68='Comparación Alternativas'!$Z$5:$Z$246)*('Comparación Alternativas'!$AA$5:$AA$246=Alternativas!V68)*('Comparación Alternativas'!$BF$5:$BF$246)) -> 0
B69: 45 | C69: =IF(C68+SUMPRODUCT(($C$16='Para Ocultar'!$A$2:$A$7)*('Para Ocultar'!$C$2:$C$7))>12,(C68+SUMPRODUCT(($C$16='Para Ocultar'!$A$2:$A$7)*('Para Ocultar'!$C$2:$C$7)))-12,C68+SUMPRODUCT(($C$16='Para Ocultar'!$A$2:$A$7)*('Para Ocultar'!$C$2:$C$7))) -> 10 | D69: 2025 | E69: 0 | F69: 0 | G69: 0 | H69: 0 | I69: 3.543755339e-12 | J69: -3.543755339e-12 | K69: 0 | L69: 1.554189841e-10 | M69: 0 | N69: 0 | O69: 0 | P69: 0 | Q69: =SUMPRODUCT((C69='Comparación Alternativas'!$Z$5:$Z$246)*(Alternativas!D69='Comparación Alternativas'!$AA$5:$AA$246)*('Comparación Alternativas'!$AQ$5:$AQ$246)) -> 0 | R69: =SUMPRODUCT((C69='Comparación Alternativas'!$Z$5:$Z$246)*('Comparación Alternativas'!$AA$5:$AA$246=Alternativas!D69)*('Comparación Alternativas'!$BA$5:$BA$246)) -> 0 | T69: 45 | U69: =IF(U68+SUMPRODUCT(($U$16='Para Ocultar'!$A$2:$A$7)*('Para Ocultar'!$C$2:$C$7))>12,(U68+SUMPRODUCT(($U$16='Para Ocultar'!$A$2:$A$7)*('Para Ocultar'!$C$2:$C$7)))-12,U68+SUMPRODUCT(($U$16='Para Ocultar'!$A$2:$A$7)*('Para Ocultar'!$C$2:$C$7))) -> 10 | V69: 2025 | W69: -600 | X69: -30 | Y69: -630 | Z69: 3000 | AA69: -700.3606896 | AB69: -35.75573372 | AC69: -736.1164233 | AD69: 3590.327357 | AE69: -700.3606896 | AF69: -35.75573372 | AG69: -736.1164233 | AH69: 3590.327357 | AI69: =SUMPRODUCT((U69='Comparación Alternativas'!$Z$5:$Z$246)*('Comparación Alternativas'!$AA$5:$AA$246=Alternativas!V69)*('Comparación Alternativas'!$AV$5:$AV$246)) -> 0 | AJ69: =SUMPRODUCT((U69='Comparación Alternativas'!$Z$5:$Z$246)*('Comparación Alternativas'!$AA$5:$AA$246=Alternativas!V69)*('Comparación Alternativas'!$BF$5:$BF$246)) -> 0
B70: 46 | C70: =IF(C69+SUMPRODUCT(($C$16='Para Ocultar'!$A$2:$A$7)*('Para Ocultar'!$C$2:$C$7))>12,(C69+SUMPRODUCT(($C$16='Para Ocultar'!$A$2:$A$7)*('Para Ocultar'!$C$2:$C$7)))-12,C69+SUMPRODUCT(($C$16='Para Ocultar'!$A$2:$A$7)*('Para Ocultar'!$C$2:$C$7))) -> 11 | D70: 2025 | E70: 0 | F70: 0 | G70: 0 | H70: 0 | I70: 3.626442963e-12 | J70: -3.626442963e-12 | K70: 0 | L70: 1.590454271e-10 | M70: 0 | N70: 0 | O70: 0 | P70: 0 | Q70: =SUMPRODUCT((C70='Comparación Alternativas'!$Z$5:$Z$246)*(Alternativas!D70='Comparación Alternativas'!$AA$5:$AA$246)*('Comparación Alternativas'!$AQ$5:$AQ$246)) -> 0 | R70: =SUMPRODUCT((C70='Comparación Alternativas'!$Z$5:$Z$246)*('Comparación Alternativas'!$AA$5:$AA$246=Alternativas!D70)*('Comparación Alternativas'!$BA$5:$BA$246)) -> 0 | T70: 46 | U70: =IF(U69+SUMPRODUCT(($U$16='Para Ocultar'!$A$2:$A$7)*('Para Ocultar'!$C$2:$C$7))>12,(U69+SUMPRODUCT(($U$16='Para Ocultar'!$A$2:$A$7)*('Para Ocultar'!$C$2:$C$7)))-12,U69+SUMPRODUCT(($U$16='Para Ocultar'!$A$2:$A$7)*('Para Ocultar'!$C$2:$C$7))) -> 11 | V70: 2025 | W70: -600 | X70: -25 | Y70: -625 | Z70: 2400 | AA70: -706.1970286 | AB70: -29.91939464 | AC70: -736.1164233 | AD70: 2884.130328 | AE70: -706.1970286 | AF70: -29.91939464 | AG70: -736.1164233 | AH70: 2884.130328 | AI70: =SUMPRODUCT((U70='Comparación Alternativas'!$Z$5:$Z$246)*('Comparación Alternativas'!$AA$5:$AA$246=Alternativas!V70)*('Comparación Alternativas'!$AV$5:$AV$246)) -> 0 | AJ70: =SUMPRODUCT((U70='Comparación Alternativas'!$Z$5:$Z$246)*('Comparación Alternativas'!$AA$5:$AA$246=Alternativas!V70)*('Comparación Alternativas'!$BF$5:$BF$246)) -> 0
B71: 47 | C71: =IF(C70+SUMPRODUCT(($C$16='Para Ocultar'!$A$2:$A$7)*('Para Ocultar'!$C$2:$C$7))>12,(C70+SUMPRODUCT(($C$16='Para Ocultar'!$A$2:$A$7)*('Para Ocultar'!$C$2:$C$7)))-12,C70+SUMPRODUCT(($C$16='Para Ocultar'!$A$2:$A$7)*('Para Ocultar'!$C$2:$C$7))) -> 12 | D71: 2025 | E71: 0 | F71: 0 | G71: 0 | H71: 0 | I71: 3.711059966e-12 | J71: -3.711059966e-12 | K71: 0 | L71: 1.627564871e-10 | M71: 0 | N71: 0 | O71: 0 | P71: 0 | Q71: =SUMPRODUCT((C71='Comparación Alternativas'!$Z$5:$Z$246)*(Alternativas!D71='Comparación Alternativas'!$AA$5:$AA$246)*('Comparación Alternativas'!$AQ$5:$AQ$246)) -> 0 | R71: =SUMPRODUCT((C71='Comparación Alternativas'!$Z$5:$Z$246)*('Comparación Alternativas'!$AA$5:$AA$246=Alternativas!D71)*('Comparación Alternativas'!$BA$5:$BA$246)) -> 0 | T71: 47 | U71: =IF(U70+SUMPRODUCT(($U$16='Para Ocultar'!$A$2:$A$7)*('Para Ocultar'!$C$2:$C$7))>12,(U70+SUMPRODUCT(($U$16='Para Ocultar'!$A$2:$A$7)*('Para Ocultar'!$C$2:$C$7)))-12,U70+SUMPRODUCT(($U$16='Para Ocultar'!$A$2:$A$7)*('Para Ocultar'!$C$2:$C$7))) -> 12 | V71: 2025 | W71: -600 | X71: -20 | Y71: -620 | Z71: 1800 | AA71: -712.0820039 | AB71: -24.0344194 | AC71: -736.1164233 | AD71: 2172.048324 | AE71: -712.0820039 | AF71: -24.0344194 | AG71: -736.1164233 | AH71: 2172.048324 | AI71: =SUMPRODUCT((U71='Comparación Alternativas'!$Z$5:$Z$246)*('Comparación Alternativas'!$AA$5:$AA$246=Alternativas!V71)*('Comparación Alternativas'!$AV$5:$AV$246)) -> 0 | AJ71: =SUMPRODUCT((U71='Comparación Alternativas'!$Z$5:$Z$246)*('Comparación Alternativas'!$AA$5:$AA$246=Alternativas!V71)*('Comparación Alternativas'!$BF$5:$BF$246)) -> 0
B72: 48 | C72: =IF(C71+SUMPRODUCT(($C$16='Para Ocultar'!$A$2:$A$7)*('Para Ocultar'!$C$2:$C$7))>12,(C71+SUMPRODUCT(($C$16='Para Ocultar'!$A$2:$A$7)*('Para Ocultar'!$C$2:$C$7)))-12,C71+SUMPRODUCT(($C$16='Para Ocultar'!$A$2:$A$7)*('Para Ocultar'!$C$2:$C$7))) -> 1 | D72: 2026 | E72: 0 | F72: 0 | G72: 0 | H72: 0 | I72: 3.797651365e-12 | J72: -3.797651365e-12 | K72: 0 | L72: 1.665541384e-10 | M72: 0 | N72: 0 | O72: 0 | P72: 0 | Q72: =SUMPRODUCT((C72='Comparación Alternativas'!$Z$5:$Z$246)*(Alternativas!D72='Comparación Alternativas'!$AA$5:$AA$246)*('Comparación Alternativas'!$AQ$5:$AQ$246)) -> 0 | R72: =SUMPRODUCT((C72='Comparación Alternativas'!$Z$5:$Z$246)*('Comparación Alternativas'!$AA$5:$AA$246=Alternativas!D72)*('Comparación Alternativas'!$BA$5:$BA$246)) -> 0 | T72: 48 | U72: =IF(U71+SUMPRODUCT(($U$16='Para Ocultar'!$A$2:$A$7)*('Para Ocultar'!$C$2:$C$7))>12,(U71+SUMPRODUCT(($U$16='Para Ocultar'!$A$2:$A$7)*('Para Ocultar'!$C$2:$C$7)))-12,U71+SUMPRODUCT(($U$16='Para Ocultar'!$A$2:$A$7)*('Para Ocultar'!$C$2:$C$7))) -> 1 | V72: 2026 | W72: -600 | X72: -15 | Y72: -615 | Z72: 1200 | AA72: -718.0160206 | AB72: -18.1004027 | AC72: -736.1164233 | AD72: 1454.032304 | AE72: -718.0160206 | AF72: -18.1004027 | AG72: -736.1164233 | AH72: 1454.032304 | AI72: =SUMPRODUCT((U72='Comparación Alternativas'!$Z$5:$Z$246)*('Comparación Alternativas'!$AA$5:$AA$246=Alternativas!V72)*('Comparación Alternativas'!$AV$5:$AV$246)) -> 0 | AJ72: =SUMPRODUCT((U72='Comparación Alternativas'!$Z$5:$Z$246)*('Comparación Alternativas'!$AA$5:$AA$246=Alternativas!V72)*('Comparación Alternativas'!$BF$5:$BF$246)) -> 0
B73: 49 | C73: =IF(C72+SUMPRODUCT(($C$16='Para Ocultar'!$A$2:$A$7)*('Para Ocultar'!$C$2:$C$7))>12,(C72+SUMPRODUCT(($C$16='Para Ocultar'!$A$2:$A$7)*('Para Ocultar'!$C$2:$C$7)))-12,C72+SUMPRODUCT(($C$16='Para Ocultar'!$A$2:$A$7)*('Para Ocultar'!$C$2:$C$7))) -> 2 | D73: 2026 | E73: 0 | F73: 0 | G73: 0 | H73: 0 | I73: 3.88626323e-12 | J73: -3.88626323e-12 | K73: 0 | L73: 1.704404017e-10 | M73: 0 | N73: 0 | O73: 0 | P73: 0 | Q73: =SUMPRODUCT((C73='Comparación Alternativas'!$Z$5:$Z$246)*(Alternativas!D73='Comparación Alternativas'!$AA$5:$AA$246)*('Comparación Alternativas'!$AQ$5:$AQ$246)) -> 0 | R73: =SUMPRODUCT((C73='Comparación Alternativas'!$Z$5:$Z$246)*('Comparación Alternativas'!$AA$5:$AA$246=Alternativas!D73)*('Comparación Alternativas'!$BA$5:$BA$246)) -> 0 | T73: 49 | U73: =IF(U72+SUMPRODUCT(($U$16='Para Ocultar'!$A$2:$A$7)*('Para Ocultar'!$C$2:$C$7))>12,(U72+SUMPRODUCT(($U$16='Para Ocultar'!$A$2:$A$7)*('Para Ocultar'!$C$2:$C$7)))-12,U72+SUMPRODUCT(($U$16='Para Ocultar'!$A$2:$A$7)*('Para Ocultar'!$C$2:$C$7))) -> 2 | V73: 2026 | W73: -600 | X73: -10 | Y73: -610 | Z73: 600 | AA73: -723.9994874 | AB73: -12.11693587 | AC73: -736.1164233 | AD73: 730.0328165 | AE73: -723.9994874 | AF73: -12.11693587 | AG73: -736.1164233 | AH73: 730.0328165 | AI73: =SUMPRODUCT((U73='Comparación Alternativas'!$Z$5:$Z$246)*('Comparación Alternativas'!$AA$5:$AA$246=Alternativas!V73)*('Comparación Alternativas'!$AV$5:$AV$246)) -> 0 | AJ73: =SUMPRODUCT((U73='Comparación Alternativas'!$Z$5:$Z$246)*('Comparación Alternativas'!$AA$5:$AA$246=Alternativas!V73)*('Comparación Alternativas'!$BF$5:$BF$246)) -> 0
B74: 50 | C74: =IF(C73+SUMPRODUCT(($C$16='Para Ocultar'!$A$2:$A$7)*('Para Ocultar'!$C$2:$C$7))>12,(C73+SUMPRODUCT(($C$16='Para Ocultar'!$A$2:$A$7)*('Para Ocultar'!$C$2:$C$7)))-12,C73+SUMPRODUCT(($C$16='Para Ocultar'!$A$2:$A$7)*('Para Ocultar'!$C$2:$C$7))) -> 3 | D74: 2026 | E74: 0 | F74: 0 | G74: 0 | H74: 0 | I74: 3.976942706e-12 | J74: -3.976942706e-12 | K74: 0 | L74: 1.744173444e-10 | M74: 0 | N74: 0 | O74: 0 | P74: 0 | Q74: =SUMPRODUCT((C74='Comparación Alternativas'!$Z$5:$Z$246)*(Alternativas!D74='Comparación Alternativas'!$AA$5:$AA$246)*('Comparación Alternativas'!$AQ$5:$AQ$246)) -> 0 | R74: =SUMPRODUCT((C74='Comparación Alternativas'!$Z$5:$Z$246)*('Comparación Alternativas'!$AA$5:$AA$246=Alternativas!D74)*('Comparación Alternativas'!$BA$5:$BA$246)) -> 0 | T74: 50 | U74: =IF(U73+SUMPRODUCT(($U$16='Para Ocultar'!$A$2:$A$7)*('Para Ocultar'!$C$2:$C$7))>12,(U73+SUMPRODUCT(($U$16='Para Ocultar'!$A$2:$A$7)*('Para Ocultar'!$C$2:$C$7)))-12,U73+SUMPRODUCT(($U$16='Para Ocultar'!$A$2:$A$7)*('Para Ocultar'!$C$2:$C$7))) -> 3 | V74: 2026 | W74: -600 | X74: -5 | Y74: -605 | Z74: 0 | AA74: -730.0328165 | AB74: -6.083606804 | AC74: -736.1164233 | AD74: -1.709850039e-10 | AE74: -730.0328165 | AF74: -6.083606804 | AG74: -736.1164233 | AH74: -1.709850039e-10 | AI74: =SUMPRODUCT((U74='Comparación Alternativas'!$Z$5:$Z$246)*('Comparación Alternativas'!$AA$5:$AA$246=Alternativas!V74)*('Comparación Alternativas'!$AV$5:$AV$246)) -> 0 | AJ74: =SUMPRODUCT((U74='Comparación Alternativas'!$Z$5:$Z$246)*('Comparación Alternativas'!$AA$5:$AA$246=Alternativas!V74)*('Comparación Alternativas'!$BF$5:$BF$246)) -> 0
B75: 51 | C75: =IF(C74+SUMPRODUCT(($C$16='Para Ocultar'!$A$2:$A$7)*('Para Ocultar'!$C$2:$C$7))>12,(C74+SUMPRODUCT(($C$16='Para Ocultar'!$A$2:$A$7)*('Para Ocultar'!$C$2:$C$7)))-12,C74+SUMPRODUCT(($C$16='Para Ocultar'!$A$2:$A$7)*('Para Ocultar'!$C$2:$C$7))) -> 4 | D75: 2026 | E75: 0 | F75: 0 | G75: 0 | H75: 0 | I75: 4.069738035e-12 | J75: -4.069738035e-12 | K75: 0 | L75: 1.784870824e-10 | M75: 0 | N75: 0 | O75: 0 | P75: 0 | Q75: =SUMPRODUCT((C75='Comparación Alternativas'!$Z$5:$Z$246)*(Alternativas!D75='Comparación Alternativas'!$AA$5:$AA$246)*('Comparación Alternativas'!$AQ$5:$AQ$246)) -> 0 | R75: =SUMPRODUCT((C75='Comparación Alternativas'!$Z$5:$Z$246)*('Comparación Alternativas'!$AA$5:$AA$246=Alternativas!D75)*('Comparación Alternativas'!$BA$5:$BA$246)) -> 0 | T75: 51 | U75: =IF(U74+SUMPRODUCT(($U$16='Para Ocultar'!$A$2:$A$7)*('Para Ocultar'!$C$2:$C$7))>12,(U74+SUMPRODUCT(($U$16='Para Ocultar'!$A$2:$A$7)*('Para Ocultar'!$C$2:$C$7)))-12,U74+SUMPRODUCT(($U$16='Para Ocultar'!$A$2:$A$7)*('Para Ocultar'!$C$2:$C$7))) -> 4 | V75: 2026 | W75: 0 | X75: 0 | Y75: 0 | Z75: 0 | AA75: -1.424875033e-12 | AB75: 1.424875033e-12 | AC75: 0 | AD75: -1.72409879e-10 | AE75: -1.424875033e-12 | AF75: 1.424875033e-12 | AG75: 0 | AH75: -1.72409879e-10 | AI75: =SUMPRODUCT((U75='Comparación Alternativas'!$Z$5:$Z$246)*('Comparación Alternativas'!$AA$5:$AA$246=Alternativas!V75)*('Comparación Alternativas'!$AV$5:$AV$246)) -> 0 | AJ75: =SUMPRODUCT((U75='Comparación Alternativas'!$Z$5:$Z$246)*('Comparación Alternativas'!$AA$5:$AA$246=Alternativas!V75)*('Comparación Alternativas'!$BF$5:$BF$246)) -> 0
B76: 52 | C76: =IF(C75+SUMPRODUCT(($C$16='Para Ocultar'!$A$2:$A$7)*('Para Ocultar'!$C$2:$C$7))>12,(C75+SUMPRODUCT(($C$16='Para Ocultar'!$A$2:$A$7)*('Para Ocultar'!$C$2:$C$7)))-12,C75+SUMPRODUCT(($C$16='Para Ocultar'!$A$2:$A$7)*('Para Ocultar'!$C$2:$C$7))) -> 5 | D76: 2026 | E76: 0 | F76: 0 | G76: 0 | H76: 0 | I76: 4.164698589e-12 | J76: -4.164698589e-12 | K76: 0 | L76: 1.82651781e-10 | M76: 0 | N76: 0 | O76: 0 | P76: 0 | Q76: =SUMPRODUCT((C76='Comparación Alternativas'!$Z$5:$Z$246)*(Alternativas!D76='Comparación Alternativas'!$AA$5:$AA$246)*('Comparación Alternativas'!$AQ$5:$AQ$246)) -> 0 | R76: =SUMPRODUCT((C76='Comparación Alternativas'!$Z$5:$Z$246)*('Comparación Alternativas'!$AA$5:$AA$246=Alternativas!D76)*('Comparación Alternativas'!$BA$5:$BA$246)) -> 0 | T76: 52 | U76: =IF(U75+SUMPRODUCT(($U$16='Para Ocultar'!$A$2:$A$7)*('Para Ocultar'!$C$2:$C$7))>12,(U75+SUMPRODUCT(($U$16='Para Ocultar'!$A$2:$A$7)*('Para Ocultar'!$C$2:$C$7)))-12,U75+SUMPRODUCT(($U$16='Para Ocultar'!$A$2:$A$7)*('Para Ocultar'!$C$2:$C$7))) -> 5 | V76: 2026 | W76: 0 | X76: 0 | Y76: 0 | Z76: 0 | AA76: -1.436748991e-12 | AB76: 1.436748991e-12 | AC76: 0 | AD76: -1.73846628e-10 | AE76: -1.436748991e-12 | AF76: 1.436748991e-12 | AG76: 0 | AH76: -1.73846628e-10 | AI76: =SUMPRODUCT((U76='Comparación Alternativas'!$Z$5:$Z$246)*('Comparación Alternativas'!$AA$5:$AA$246=Alternativas!V76)*('Comparación Alternativas'!$AV$5:$AV$246)) -> 0 | AJ76: =SUMPRODUCT((U76='Comparación Alternativas'!$Z$5:$Z$246)*('Comparación Alternativas'!$AA$5:$AA$246=Alternativas!V76)*('Comparación Alternativas'!$BF$5:$BF$246)) -> 0
B77: 53 | C77: =IF(C76+SUMPRODUCT(($C$16='Para Ocultar'!$A$2:$A$7)*('Para Ocultar'!$C$2:$C$7))>12,(C76+SUMPRODUCT(($C$16='Para Ocultar'!$A$2:$A$7)*('Para Ocultar'!$C$2:$C$7)))-12,C76+SUMPRODUCT(($C$16='Para Ocultar'!$A$2:$A$7)*('Para Ocultar'!$C$2:$C$7))) -> 6 | D77: 2026 | E77: 0 | F77: 0 | G77: 0 | H77: 0 | I77: 4.26187489e-12 | J77: -4.26187489e-12 | K77: 0 | L77: 1.869136559e-10 | M77: 0 | N77: 0 | O77: 0 | P77: 0 | Q77: =SUMPRODUCT((C77='Comparación Alternativas'!$Z$5:$Z$246)*(Alternativas!D77='Comparación Alternativas'!$AA$5:$AA$246)*('Comparación Alternativas'!$AQ$5:$AQ$246)) -> 0 | R77: =SUMPRODUCT((C77='Comparación Alternativas'!$Z$5:$Z$246)*('Comparación Alternativas'!$AA$5:$AA$246=Alternativas!D77)*('Comparación Alternativas'!$BA$5:$BA$246)) -> 0 | T77: 53 | U77: =IF(U76+SUMPRODUCT(($U$16='Para Ocultar'!$A$2:$A$7)*('Para Ocultar'!$C$2:$C$7))>12,(U76+SUMPRODUCT(($U$16='Para Ocultar'!$A$2:$A$7)*('Para Ocultar'!$C$2:$C$7)))-12,U76+SUMPRODUCT(($U$16='Para Ocultar'!$A$2:$A$7)*('Para Ocultar'!$C$2:$C$7))) -> 6 | V77: 2026 | W77: 0 | X77: 0 | Y77: 0 | Z77: 0 | AA77: -1.4487219e-12 | AB77: 1.4487219e-12 | AC77: 0 | AD77: -1.752953499e-10 | AE77: -1.4487219e-12 | AF77: 1.4487219e-12 | AG77: 0 | AH77: -1.752953499e-10 | AI77: =SUMPRODUCT((U77='Comparación Alternativas'!$Z$5:$Z$246)*('Comparación Alternativas'!$AA$5:$AA$246=Alternativas!V77)*('Comparación Alternativas'!$AV$5:$AV$246)) -> 0 | AJ77: =SUMPRODUCT((U77='Comparación Alternativas'!$Z$5:$Z$246)*('Comparación Alternativas'!$AA$5:$AA$246=Alternativas!V77)*('Comparación Alternativas'!$BF$5:$BF$246)) -> 0
B78: 54 | C78: =IF(C77+SUMPRODUCT(($C$16='Para Ocultar'!$A$2:$A$7)*('Para Ocultar'!$C$2:$C$7))>12,(C77+SUMPRODUCT(($C$16='Para Ocultar'!$A$2:$A$7)*('Para Ocultar'!$C$2:$C$7)))-12,C77+SUMPRODUCT(($C$16='Para Ocultar'!$A$2:$A$7)*('Para Ocultar'!$C$2:$C$7))) -> 7 | D78: 2026 | E78: 0 | F78: 0 | G78: 0 | H78: 0 | I78: 4.361318637e-12 | J78: -4.361318637e-12 | K78: =-IF($C$18>=B78,$C$12*$C$15/$C$16,IF($C$17+$C$18>=B78,$C$12*$J$20,0)) -> 0 | L78: 1.912749745e-10 | M78: 0 | N78: 0 | O78: 0 | P78: 0 | Q78: =SUMPRODUCT((C78='Comparación Alternativas'!$Z$5:$Z$246)*(Alternativas!D78='Comparación Alternativas'!$AA$5:$AA$246)*('Comparación Alternativas'!$AQ$5:$AQ$246)) -> 0 | R78: =SUMPRODUCT((C78='Comparación Alternativas'!$Z$5:$Z$246)*('Comparación Alternativas'!$AA$5:$AA$246=Alternativas!D78)*('Comparación Alternativas'!$BA$5:$BA$246)) -> 0 | T78: 54 | U78: =IF(U77+SUMPRODUCT(($U$16='Para Ocultar'!$A$2:$A$7)*('Para Ocultar'!$C$2:$C$7))>12,(U77+SUMPRODUCT(($U$16='Para Ocultar'!$A$2:$A$7)*('Para Ocultar'!$C$2:$C$7)))-12,U77+SUMPRODUCT(($U$16='Para Ocultar'!$A$2:$A$7)*('Para Ocultar'!$C$2:$C$7))) -> 7 | V78: 2026 | W78: 0 | X78: 0 | Y78: 0 | Z78: 0 | AA78: -1.460794582e-12 | AB78: 1.460794582e-12 | AC78: =-IF($U$18>=T78,$U$12*$U$15/$U$16,IF($U$17+$U$18>=T78,$U$12*$AB$20,0)) -> 0 | AD78: -1.767561444e-10 | AE78: =IF($U$14="Alemán",W78,AA78) -> -1.460794582e-12 | AF78: 1.460794582e-12 | AG78: 0 | AH78: -1.767561444e-10 | AI78: =SUMPRODUCT((U78='Comparación Alternativas'!$Z$5:$Z$246)*('Comparación Alternativas'!$AA$5:$AA$246=Alternativas!V78)*('Comparación Alternativas'!$AV$5:$AV$246)) -> 0 | AJ78: =SUMPRODUCT((U78='Comparación Alternativas'!$Z$5:$Z$246)*('Comparación Alternativas'!$AA$5:$AA$246=Alternativas!V78)*('Comparación Alternativas'!$BF$5:$BF$246)) -> 0
B79: 55 | C79: =IF(C78+SUMPRODUCT(($C$16='Para Ocultar'!$A$2:$A$7)*('Para Ocultar'!$C$2:$C$7))>12,(C78+SUMPRODUCT(($C$16='Para Ocultar'!$A$2:$A$7)*('Para Ocultar'!$C$2:$C$7)))-12,C78+SUMPRODUCT(($C$16='Para Ocultar'!$A$2:$A$7)*('Para Ocultar'!$C$2:$C$7))) -> 8 | D79: 2026 | E79: 0 | F79: 0 | G79: 0 | H79: 0 | I79: 4.463082739e-12 | J79: -4.463082739e-12 | K79: 0 | L79: 1.957380573e-10 | M79: 0 | N79: 0 | O79: 0 | P79: 0 | Q79: =SUMPRODUCT((C79='Comparación Alternativas'!$Z$5:$Z$246)*(Alternativas!D79='Comparación Alternativas'!$AA$5:$AA$246)*('Comparación Alternativas'!$AQ$5:$AQ$246)) -> 0 | R79: =SUMPRODUCT((C79='Comparación Alternativas'!$Z$5:$Z$246)*('Comparación Alternativas'!$AA$5:$AA$246=Alternativas!D79)*('Comparación Alternativas'!$BA$5:$BA$246)) -> 0 | T79: 55 | U79: =IF(U78+SUMPRODUCT(($U$16='Para Ocultar'!$A$2:$A$7)*('Para Ocultar'!$C$2:$C$7))>12,(U78+SUMPRODUCT(($U$16='Para Ocultar'!$A$2:$A$7)*('Para Ocultar'!$C$2:$C$7)))-12,U78+SUMPRODUCT(($U$16='Para Ocultar'!$A$2:$A$7)*('Para Ocultar'!$C$2:$C$7))) -> 8 | V79: 2026 | W79: 0 | X79: 0 | Y79: 0 | Z79: 0 | AA79: -1.47296787e-12 | AB79: 1.47296787e-12 | AC79: 0 | AD79: -1.782291123e-10 | AE79: -1.47296787e-12 | AF79: 1.47296787e-12 | AG79: 0 | AH79: -1.782291123e-10 | AI79: =SUMPRODUCT((U79='Comparación Alternativas'!$Z$5:$Z$246)*('Comparación Alternativas'!$AA$5:$AA$246=Alternativas!V79)*('Comparación Alternativas'!$AV$5:$AV$246)) -> 0 | AJ79: =SUMPRODUCT((U79='Comparación Alternativas'!$Z$5:$Z$246)*('Comparación Alternativas'!$AA$5:$AA$246=Alternativas!V79)*('Comparación Alternativas'!$BF$5:$BF$246)) -> 0
B80: 56 | C80: =IF(C79+SUMPRODUCT(($C$16='Para Ocultar'!$A$2:$A$7)*('Para Ocultar'!$C$2:$C$7))>12,(C79+SUMPRODUCT(($C$16='Para Ocultar'!$A$2:$A$7)*('Para Ocultar'!$C$2:$C$7)))-12,C79+SUMPRODUCT(($C$16='Para Ocultar'!$A$2:$A$7)*('Para Ocultar'!$C$2:$C$7))) -> 9 | D80: 2026 | E80: 0 | F80: 0 | G80: 0 | H80: 0 | I80: 4.567221336e-12 | J80: -4.567221336e-12 | K80: 0 | L80: 2.003052786e-10 | M80: 0 | N80: 0 | O80: 0 | P80: 0 | Q80: =SUMPRODUCT((C80='Comparación Alternativas'!$Z$5:$Z$246)*(Alternativas!D80='Comparación Alternativas'!$AA$5:$AA$246)*('Comparación Alternativas'!$AQ$5:$AQ$246)) -> 0 | R80: =SUMPRODUCT((C80='Comparación Alternativas'!$Z$5:$Z$246)*('Comparación Alternativas'!$AA$5:$AA$246=Alternativas!D80)*('Comparación Alternativas'!$BA$5:$BA$246)) -> 0 | T80: 56 | U80: =IF(U79+SUMPRODUCT(($U$16='Para Ocultar'!$A$2:$A$7)*('Para Ocultar'!$C$2:$C$7))>12,(U79+SUMPRODUCT(($U$16='Para Ocultar'!$A$2:$A$7)*('Para Ocultar'!$C$2:$C$7)))-12,U79+SUMPRODUCT(($U$16='Para Ocultar'!$A$2:$A$7)*('Para Ocultar'!$C$2:$C$7))) -> 9 | V80: 2026 | W80: 0 | X80: 0 | Y80: 0 | Z80: 0 | AA80: -1.485242603e-12 | AB80: 1.485242603e-12 | AC80: 0 | AD80: -1.797143549e-10 | AE80: -1.485242603e-12 | AF80: 1.485242603e-12 | AG80: 0 | AH80: -1.797143549e-10 | AI80: =SUMPRODUCT((U80='Comparación Alternativas'!$Z$5:$Z$246)*('Comparación Alternativas'!$AA$5:$AA$246=Alternativas!V80)*('Comparación Alternativas'!$AV$5:$AV$246)) -> 0 | AJ80: =SUMPRODUCT((U80='Comparación Alternativas'!$Z$5:$Z$246)*('Comparación Alternativas'!$AA$5:$AA$246=Alternativas!V80)*('Comparación Alternativas'!$BF$5:$BF$246)) -> 0
B81: 57 | C81: =IF(C80+SUMPRODUCT(($C$16='Para Ocultar'!$A$2:$A$7)*('Para Ocultar'!$C$2:$C$7))>12,(C80+SUMPRODUCT(($C$16='Para Ocultar'!$A$2:$A$7)*('Para Ocultar'!$C$2:$C$7)))-12,C80+SUMPRODUCT(($C$16='Para Ocultar'!$A$2:$A$7)*('Para Ocultar'!$C$2:$C$7))) -> 10 | D81: 2026 | E81: 0 | F81: 0 | G81: 0 | H81: 0 | I81: 4.673789834e-12 | J81: -4.673789834e-12 | K81: 0 | L81: 2.049790684e-10 | M81: 0 | N81: 0 | O81: 0 | P81: 0 | Q81: =SUMPRODUCT((C81='Comparación Alternativas'!$Z$5:$Z$246)*(Alternativas!D81='Comparación Alternativas'!$AA$5:$AA$246)*('Comparación Alternativas'!$AQ$5:$AQ$246)) -> 0 | R81: =SUMPRODUCT((C81='Comparación Alternativas'!$Z$5:$Z$246)*('Comparación Alternativas'!$AA$5:$AA$246=Alternativas!D81)*('Comparación Alternativas'!$BA$5:$BA$246)) -> 0 | T81: 57 | U81: =IF(U80+SUMPRODUCT(($U$16='Para Ocultar'!$A$2:$A$7)*('Para Ocultar'!$C$2:$C$7))>12,(U80+SUMPRODUCT(($U$16='Para Ocultar'!$A$2:$A$7)*('Para Ocultar'!$C$2:$C$7)))-12,U80+SUMPRODUCT(($U$16='Para Ocultar'!$A$2:$A$7)*('Para Ocultar'!$C$2:$C$7))) -> 10 | V81: 2026 | W81: 0 | X81: 0 | Y81: 0 | Z81: 0 | AA81: -1.497619624e-12 | AB81: 1.497619624e-12 | AC81: 0 | AD81: -1.812119745e-10 | AE81: -1.497619624e-12 | AF81: 1.497619624e-12 | AG81: 0 | AH81: -1.812119745e-10 | AI81: =SUMPRODUCT((U81='Comparación Alternativas'!$Z$5:$Z$246)*('Comparación Alternativas'!$AA$5:$AA$246=Alternativas!V81)*('Comparación Alternativas'!$AV$5:$AV$246)) -> 0 | AJ81: =SUMPRODUCT((U81='Comparación Alternativas'!$Z$5:$Z$246)*('Comparación Alternativas'!$AA$5:$AA$246=Alternativas!V81)*('Comparación Alternativas'!$BF$5:$BF$246)) -> 0
B82: 58 | C82: =IF(C81+SUMPRODUCT(($C$16='Para Ocultar'!$A$2:$A$7)*('Para Ocultar'!$C$2:$C$7))>12,(C81+SUMPRODUCT(($C$16='Para Ocultar'!$A$2:$A$7)*('Para Ocultar'!$C$2:$C$7)))-12,C81+SUMPRODUCT(($C$16='Para Ocultar'!$A$2:$A$7)*('Para Ocultar'!$C$2:$C$7))) -> 11 | D82: 2026 | E82: 0 | F82: 0 | G82: 0 | H82: 0 | I82: 4.78284493e-12 | J82: -4.78284493e-12 | K82: 0 | L82: 2.097619134e-10 | M82: 0 | N82: 0 | O82: 0 | P82: 0 | Q82: =SUMPRODUCT((C82='Comparación Alternativas'!$Z$5:$Z$246)*(Alternativas!D82='Comparación Alternativas'!$AA$5:$AA$246)*('Comparación Alternativas'!$AQ$5:$AQ$246)) -> 0 | R82: =SUMPRODUCT((C82='Comparación Alternativas'!$Z$5:$Z$246)*('Comparación Alternativas'!$AA$5:$AA$246=Alternativas!D82)*('Comparación Alternativas'!$BA$5:$BA$246)) -> 0 | T82: 58 | U82: =IF(U81+SUMPRODUCT(($U$16='Para Ocultar'!$A$2:$A$7)*('Para Ocultar'!$C$2:$C$7))>12,(U81+SUMPRODUCT(($U$16='Para Ocultar'!$A$2:$A$7)*('Para Ocultar'!$C$2:$C$7)))-12,U81+SUMPRODUCT(($U$16='Para Ocultar'!$A$2:$A$7)*('Para Ocultar'!$C$2:$C$7))) -> 11 | V82: 2026 | W82: 0 | X82: 0 | Y82: 0 | Z82: 0 | AA82: -1.510099788e-12 | AB82: 1.510099788e-12 | AC82: 0 | AD82: -1.827220743e-10 | AE82: -1.510099788e-12 | AF82: 1.510099788e-12 | AG82: 0 | AH82: -1.827220743e-10 | AI82: =SUMPRODUCT((U82='Comparación Alternativas'!$Z$5:$Z$246)*('Comparación Alternativas'!$AA$5:$AA$246=Alternativas!V82)*('Comparación Alternativas'!$AV$5:$AV$246)) -> 0 | AJ82: =SUMPRODUCT((U82='Comparación Alternativas'!$Z$5:$Z$246)*('Comparación Alternativas'!$AA$5:$AA$246=Alternativas!V82)*('Comparación Alternativas'!$BF$5:$BF$246)) -> 0
B83: 59 | C83: =IF(C82+SUMPRODUCT(($C$16='Para Ocultar'!$A$2:$A$7)*('Para Ocultar'!$C$2:$C$7))>12,(C82+SUMPRODUCT(($C$16='Para Ocultar'!$A$2:$A$7)*('Para Ocultar'!$C$2:$C$7)))-12,C82+SUMPRODUCT(($C$16='Para Ocultar'!$A$2:$A$7)*('Para Ocultar'!$C$2:$C$7))) -> 12 | D83: 2026 | E83: 0 | F83: 0 | G83: 0 | H83: 0 | I83: 4.894444645e-12 | J83: -4.894444645e-12 | K83: 0 | L83: 2.14656358e-10 | M83: 0 | N83: 0 | O83: 0 | P83: 0 | Q83: =SUMPRODUCT((C83='Comparación Alternativas'!$Z$5:$Z$246)*(Alternativas!D83='Comparación Alternativas'!$AA$5:$AA$246)*('Comparación Alternativas'!$AQ$5:$AQ$246)) -> 0 | R83: =SUMPRODUCT((C83='Comparación Alternativas'!$Z$5:$Z$246)*('Comparación Alternativas'!$AA$5:$AA$246=Alternativas!D83)*('Comparación Alternativas'!$BA$5:$BA$246)) -> 0 | T83: 59 | U83: =IF(U82+SUMPRODUCT(($U$16='Para Ocultar'!$A$2:$A$7)*('Para Ocultar'!$C$2:$C$7))>12,(U82+SUMPRODUCT(($U$16='Para Ocultar'!$A$2:$A$7)*('Para Ocultar'!$C$2:$C$7)))-12,U82+SUMPRODUCT(($U$16='Para Ocultar'!$A$2:$A$7)*('Para Ocultar'!$C$2:$C$7))) -> 12 | V83: 2026 | W83: 0 | X83: 0 | Y83: 0 | Z83: 0 | AA83: -1.522683953e-12 | AB83: 1.522683953e-12 | AC83: 0 | AD83: -1.842447583e-10 | AE83: -1.522683953e-12 | AF83: 1.522683953e-12 | AG83: 0 | AH83: -1.842447583e-10 | AI83: =SUMPRODUCT((U83='Comparación Alternativas'!$Z$5:$Z$246)*('Comparación Alternativas'!$AA$5:$AA$246=Alternativas!V83)*('Comparación Alternativas'!$AV$5:$AV$246)) -> 0 | AJ83: =SUMPRODUCT((U83='Comparación Alternativas'!$Z$5:$Z$246)*('Comparación Alternativas'!$AA$5:$AA$246=Alternativas!V83)*('Comparación Alternativas'!$BF$5:$BF$246)) -> 0
B84: 60 | C84: =IF(C83+SUMPRODUCT(($C$16='Para Ocultar'!$A$2:$A$7)*('Para Ocultar'!$C$2:$C$7))>12,(C83+SUMPRODUCT(($C$16='Para Ocultar'!$A$2:$A$7)*('Para Ocultar'!$C$2:$C$7)))-12,C83+SUMPRODUCT(($C$16='Para Ocultar'!$A$2:$A$7)*('Para Ocultar'!$C$2:$C$7))) -> 1 | D84: 2027 | E84: 0 | F84: 0 | G84: 0 | H84: 0 | I84: 5.008648354e-12 | J84: -5.008648354e-12 | K84: 0 | L84: 2.196650064e-10 | M84: 0 | N84: 0 | O84: 0 | P84: 0 | Q84: =SUMPRODUCT((C84='Comparación Alternativas'!$Z$5:$Z$246)*(Alternativas!D84='Comparación Alternativas'!$AA$5:$AA$246)*('Comparación Alternativas'!$AQ$5:$AQ$246)) -> 0 | R84: =SUMPRODUCT((C84='Comparación Alternativas'!$Z$5:$Z$246)*('Comparación Alternativas'!$AA$5:$AA$246=Alternativas!D84)*('Comparación Alternativas'!$BA$5:$BA$246)) -> 0 | T84: 60 | U84: =IF(U83+SUMPRODUCT(($U$16='Para Ocultar'!$A$2:$A$7)*('Para Ocultar'!$C$2:$C$7))>12,(U83+SUMPRODUCT(($U$16='Para Ocultar'!$A$2:$A$7)*('Para Ocultar'!$C$2:$C$7)))-12,U83+SUMPRODUCT(($U$16='Para Ocultar'!$A$2:$A$7)*('Para Ocultar'!$C$2:$C$7))) -> 1 | V84: 2027 | W84: 0 | X84: 0 | Y84: 0 | Z84: 0 | AA84: -1.535372986e-12 | AB84: 1.535372986e-12 | AC84: 0 | AD84: -1.857801313e-10 | AE84: -1.535372986e-12 | AF84: 1.535372986e-12 | AG84: 0 | AH84: -1.857801313e-10 | AI84: =SUMPRODUCT((U84='Comparación Alternativas'!$Z$5:$Z$246)*('Comparación Alternativas'!$AA$5:$AA$246=Alternativas!V84)*('Comparación Alternativas'!$AV$5:$AV$246)) -> 0 | AJ84: =SUMPRODUCT((U84='Comparación Alternativas'!$Z$5:$Z$246)*('Comparación Alternativas'!$AA$5:$AA$246=Alternativas!V84)*('Comparación Alternativas'!$BF$5:$BF$246)) -> 0
B85: 61 | C85: =IF(C84+SUMPRODUCT(($C$16='Para Ocultar'!$A$2:$A$7)*('Para Ocultar'!$C$2:$C$7))>12,(C84+SUMPRODUCT(($C$16='Para Ocultar'!$A$2:$A$7)*('Para Ocultar'!$C$2:$C$7)))-12,C84+SUMPRODUCT(($C$16='Para Ocultar'!$A$2:$A$7)*('Para Ocultar'!$C$2:$C$7))) -> 2 | D85: 2027 | E85: 0 | F85: 0 | G85: 0 | H85: 0 | I85: 5.125516815e-12 | J85: -5.125516815e-12 | K85: 0 | L85: 2.247905232e-10 | M85: 0 | N85: 0 | O85: 0 | P85: 0 | Q85: =SUMPRODUCT((C85='Comparación Alternativas'!$Z$5:$Z$246)*(Alternativas!D85='Comparación Alternativas'!$AA$5:$AA$246)*('Comparación Alternativas'!$AQ$5:$AQ$246)) -> 0 | R85: =SUMPRODUCT((C85='Comparación Alternativas'!$Z$5:$Z$246)*('Comparación Alternativas'!$AA$5:$AA$246=Alternativas!D85)*('Comparación Alternativas'!$BA$5:$BA$246)) -> 0 | T85: 61 | U85: =IF(U84+SUMPRODUCT(($U$16='Para Ocultar'!$A$2:$A$7)*('Para Ocultar'!$C$2:$C$7))>12,(U84+SUMPRODUCT(($U$16='Para Ocultar'!$A$2:$A$7)*('Para Ocultar'!$C$2:$C$7)))-12,U84+SUMPRODUCT(($U$16='Para Ocultar'!$A$2:$A$7)*('Para Ocultar'!$C$2:$C$7))) -> 2 | V85: 2027 | W85: 0 | X85: 0 | Y85: 0 | Z85: 0 | AA85: -1.548167761e-12 | AB85: 1.548167761e-12 | AC85: 0 | AD85: -1.87328299e-10 | AE85: -1.548167761e-12 | AF85: 1.548167761e-12 | AG85: 0 | AH85: -1.87328299e-10 | AI85: =SUMPRODUCT((U85='Comparación Alternativas'!$Z$5:$Z$246)*('Comparación Alternativas'!$AA$5:$AA$246=Alternativas!V85)*('Comparación Alternativas'!$AV$5:$AV$246)) -> 0 | AJ85: =SUMPRODUCT((U85='Comparación Alternativas'!$Z$5:$Z$246)*('Comparación Alternativas'!$AA$5:$AA$246=Alternativas!V85)*('Comparación Alternativas'!$BF$5:$BF$246)) -> 0
B86: 62 | C86: =IF(C85+SUMPRODUCT(($C$16='Para Ocultar'!$A$2:$A$7)*('Para Ocultar'!$C$2:$C$7))>12,(C85+SUMPRODUCT(($C$16='Para Ocultar'!$A$2:$A$7)*('Para Ocultar'!$C$2:$C$7)))-12,C85+SUMPRODUCT(($C$16='Para Ocultar'!$A$2:$A$7)*('Para Ocultar'!$C$2:$C$7))) -> 3 | D86: 2027 | E86: 0 | F86: 0 | G86: 0 | H86: 0 | I86: 5.245112207e-12 | J86: -5.245112207e-12 | K86: 0 | L86: 2.300356354e-10 | M86: 0 | N86: 0 | O86: 0 | P86: 0 | Q86: =SUMPRODUCT((C86='Comparación Alternativas'!$Z$5:$Z$246)*(Alternativas!D86='Comparación Alternativas'!$AA$5:$AA$246)*('Comparación Alternativas'!$AQ$5:$AQ$246)) -> 0 | R86: =SUMPRODUCT((C86='Comparación Alternativas'!$Z$5:$Z$246)*('Comparación Alternativas'!$AA$5:$AA$246=Alternativas!D86)*('Comparación Alternativas'!$BA$5:$BA$246)) -> 0 | T86: 62 | U86: =IF(U85+SUMPRODUCT(($U$16='Para Ocultar'!$A$2:$A$7)*('Para Ocultar'!$C$2:$C$7))>12,(U85+SUMPRODUCT(($U$16='Para Ocultar'!$A$2:$A$7)*('Para Ocultar'!$C$2:$C$7)))-12,U85+SUMPRODUCT(($U$16='Para Ocultar'!$A$2:$A$7)*('Para Ocultar'!$C$2:$C$7))) -> 3 | V86: 2027 | W86: 0 | X86: 0 | Y86: 0 | Z86: 0 | AA86: -1.561069159e-12 | AB86: 1.561069159e-12 | AC86: 0 | AD86: -1.888893682e-10 | AE86: -1.561069159e-12 | AF86: 1.561069159e-12 | AG86: 0 | AH86: -1.888893682e-10 | AI86: =SUMPRODUCT((U86='Comparación Alternativas'!$Z$5:$Z$246)*('Comparación Alternativas'!$AA$5:$AA$246=Alternativas!V86)*('Comparación Alternativas'!$AV$5:$AV$246)) -> 0 | AJ86: =SUMPRODUCT((U86='Comparación Alternativas'!$Z$5:$Z$246)*('Comparación Alternativas'!$AA$5:$AA$246=Alternativas!V86)*('Comparación Alternativas'!$BF$5:$BF$246)) -> 0
B87: 63 | C87: =IF(C86+SUMPRODUCT(($C$16='Para Ocultar'!$A$2:$A$7)*('Para Ocultar'!$C$2:$C$7))>12,(C86+SUMPRODUCT(($C$16='Para Ocultar'!$A$2:$A$7)*('Para Ocultar'!$C$2:$C$7)))-12,C86+SUMPRODUCT(($C$16='Para Ocultar'!$A$2:$A$7)*('Para Ocultar'!$C$2:$C$7))) -> 4 | D87: 2027 | E87: 0 | F87: 0 | G87: 0 | H87: 0 | I87: 5.367498159e-12 | J87: -5.367498159e-12 | K87: 0 | L87: 2.354031335e-10 | M87: 0 | N87: 0 | O87: 0 | P87: 0 | Q87: =SUMPRODUCT((C87='Comparación Alternativas'!$Z$5:$Z$246)*(Alternativas!D87='Comparación Alternativas'!$AA$5:$AA$246)*('Comparación Alternativas'!$AQ$5:$AQ$246)) -> 0 | R87: =SUMPRODUCT((C87='Comparación Alternativas'!$Z$5:$Z$246)*('Comparación Alternativas'!$AA$5:$AA$246=Alternativas!D87)*('Comparación Alternativas'!$BA$5:$BA$246)) -> 0 | T87: 63 | U87: =IF(U86+SUMPRODUCT(($U$16='Para Ocultar'!$A$2:$A$7)*('Para Ocultar'!$C$2:$C$7))>12,(U86+SUMPRODUCT(($U$16='Para Ocultar'!$A$2:$A$7)*('Para Ocultar'!$C$2:$C$7)))-12,U86+SUMPRODUCT(($U$16='Para Ocultar'!$A$2:$A$7)*('Para Ocultar'!$C$2:$C$7))) -> 4 | V87: 2027 | W87: 0 | X87: 0 | Y87: 0 | Z87: 0 | AA87: -1.574078068e-12 | AB87: 1.574078068e-12 | AC87: 0 | AD87: -1.904634462e-10 | AE87: -1.574078068e-12 | AF87: 1.574078068e-12 | AG87: 0 | AH87: -1.904634462e-10 | AI87: =SUMPRODUCT((U87='Comparación Alternativas'!$Z$5:$Z$246)*('Comparación Alternativas'!$AA$5:$AA$246=Alternativas!V87)*('Comparación Alternativas'!$AV$5:$AV$246)) -> 0 | AJ87: =SUMPRODUCT((U87='Comparación Alternativas'!$Z$5:$Z$246)*('Comparación Alternativas'!$AA$5:$AA$246=Alternativas!V87)*('Comparación Alternativas'!$BF$5:$BF$246)) -> 0
B88: 64 | C88: =IF(C87+SUMPRODUCT(($C$16='Para Ocultar'!$A$2:$A$7)*('Para Ocultar'!$C$2:$C$7))>12,(C87+SUMPRODUCT(($C$16='Para Ocultar'!$A$2:$A$7)*('Para Ocultar'!$C$2:$C$7)))-12,C87+SUMPRODUCT(($C$16='Para Ocultar'!$A$2:$A$7)*('Para Ocultar'!$C$2:$C$7))) -> 5 | D88: 2027 | E88: 0 | F88: 0 | G88: 0 | H88: 0 | I88: 5.492739783e-12 | J88: -5.492739783e-12 | K88: 0 | L88: 2.408958733e-10 | M88: 0 | N88: 0 | O88: 0 | P88: 0 | Q88: =SUMPRODUCT((C88='Comparación Alternativas'!$Z$5:$Z$246)*(Alternativas!D88='Comparación Alternativas'!$AA$5:$AA$246)*('Comparación Alternativas'!$AQ$5:$AQ$246)) -> 0 | R88: =SUMPRODUCT((C88='Comparación Alternativas'!$Z$5:$Z$246)*('Comparación Alternativas'!$AA$5:$AA$246=Alternativas!D88)*('Comparación Alternativas'!$BA$5:$BA$246)) -> 0 | T88: 64 | U88: =IF(U87+SUMPRODUCT(($U$16='Para Ocultar'!$A$2:$A$7)*('Para Ocultar'!$C$2:$C$7))>12,(U87+SUMPRODUCT(($U$16='Para Ocultar'!$A$2:$A$7)*('Para Ocultar'!$C$2:$C$7)))-12,U87+SUMPRODUCT(($U$16='Para Ocultar'!$A$2:$A$7)*('Para Ocultar'!$C$2:$C$7))) -> 5 | V88: 2027 | W88: 0 | X88: 0 | Y88: 0 | Z88: 0 | AA88: -1.587195385e-12 | AB88: 1.587195385e-12 | AC88: 0 | AD88: -1.920506416e-10 | AE88: -1.587195385e-12 | AF88: 1.587195385e-12 | AG88: 0 | AH88: -1.920506416e-10 | AI88: =SUMPRODUCT((U88='Comparación Alternativas'!$Z$5:$Z$246)*('Comparación Alternativas'!$AA$5:$AA$246=Alternativas!V88)*('Comparación Alternativas'!$AV$5:$AV$246)) -> 0 | AJ88: =SUMPRODUCT((U88='Comparación Alternativas'!$Z$5:$Z$246)*('Comparación Alternativas'!$AA$5:$AA$246=Alternativas!V88)*('Comparación Alternativas'!$BF$5:$BF$246)) -> 0
B89: 65 | C89: =IF(C88+SUMPRODUCT(($C$16='Para Ocultar'!$A$2:$A$7)*('Para Ocultar'!$C$2:$C$7))>12,(C88+SUMPRODUCT(($C$16='Para Ocultar'!$A$2:$A$7)*('Para Ocultar'!$C$2:$C$7)))-12,C88+SUMPRODUCT(($C$16='Para Ocultar'!$A$2:$A$7)*('Para Ocultar'!$C$2:$C$7))) -> 6 | D89: 2027 | E89: 0 | F89: =-H88*($C$15/$C$16) -> 0 | G89: =F89+E89 -> 0 | H89: =E89+H88 -> 0 | I89: =L88-L88+K89-J89 -> 5.620903711e-12 | J89: =-L88*$C$15/$C$16 -> -5.620903711e-12 | K89: =-IF($C$18>=B89,$C$12*$C$15/$C$16,IF($C$17+$C$18>=B89,$C$12*$J$20,0)) -> 0 | L89: =L88+I89 -> 2.46516777e-10 | M89: =IF($C$14="Alemán",E89,I89) -> 0 | N89: =IF($C$14="Alemán",F89,J89) -> 0 | O89: =IF($C$14="Alemán",G89,K89) -> 0 | P89: =IF($C$14="Alemán",H89,L89) -> 0 | Q89: =SUMPRODUCT((C89='Comparación Alternativas'!$Z$5:$Z$246)*(Alternativas!D89='Comparación Alternativas'!$AA$5:$AA$246)*('Comparación Alternativas'!$AQ$5:$AQ$246)) -> 0 | R89: =SUMPRODUCT((C89='Comparación Alternativas'!$Z$5:$Z$246)*('Comparación Alternativas'!$AA$5:$AA$246=Alternativas!D89)*('Comparación Alternativas'!$BA$5:$BA$246)) -> 0 | T89: 65 | U89: =IF(U88+SUMPRODUCT(($U$16='Para Ocultar'!$A$2:$A$7)*('Para Ocultar'!$C$2:$C$7))>12,(U88+SUMPRODUCT(($U$16='Para Ocultar'!$A$2:$A$7)*('Para Ocultar'!$C$2:$C$7)))-12,U88+SUMPRODUCT(($U$16='Para Ocultar'!$A$2:$A$7)*('Para Ocultar'!$C$2:$C$7))) -> 6 | V89: 2027 | W89: 0 | X89: 0 | Y89: =X89+W89 -> 0 | Z89: =W89+Z88 -> 0 | AA89: =AD88-AD88+AC89-AB89 -> -1.600422014e-12 | AB89: 1.600422014e-12 | AC89: =-IF($U$18>=T89,$U$12*$U$15/$U$16,IF($U$17+$U$18>=T89,$U$12*$AB$20,0)) -> 0 | AD89: =AD88+AA89 -> -1.936510636e-10 | AE89: =IF($U$14="Alemán",W89,AA89) -> -1.600422014e-12 | AF89: =IF($U$14="Alemán",X89,AB89) -> 1.600422014e-12 | AG89: =IF($U$14="Alemán",Y89,AC89) -> 0 | AH89: =IF($U$14="Alemán",Z89,AD89) -> -1.936510636e-10 | AI89: =SUMPRODUCT((U89='Comparación Alternativas'!$Z$5:$Z$246)*('Comparación Alternativas'!$AA$5:$AA$246=Alternativas!V89)*('Comparación Alternativas'!$AV$5:$AV$246)) -> 0 | AJ89: =SUMPRODUCT((U89='Comparación Alternativas'!$Z$5:$Z$246)*('Comparación Alternativas'!$AA$5:$AA$246=Alternativas!V89)*('Comparación Alternativas'!$BF$5:$BF$246)) -> 0
B90: 66 | C90: =IF(C89+SUMPRODUCT(($C$16='Para Ocultar'!$A$2:$A$7)*('Para Ocultar'!$C$2:$C$7))>12,(C89+SUMPRODUCT(($C$16='Para Ocultar'!$A$2:$A$7)*('Para Ocultar'!$C$2:$C$7)))-12,C89+SUMPRODUCT(($C$16='Para Ocultar'!$A$2:$A$7)*('Para Ocultar'!$C$2:$C$7))) -> 7 | D90: =IF(C90<=C89,D89+1,D89) -> 2027 | E90: 0 | F90: 0 | G90: 0 | H90: 0 | I90: 5.752058131e-12 | J90: -5.752058131e-12 | K90: 0 | L90: 2.522688352e-10 | M90: 0 | N90: 0 | O90: 0 | P90: 0 | Q90: =SUMPRODUCT((C90='Comparación Alternativas'!$Z$5:$Z$246)*(Alternativas!D90='Comparación Alternativas'!$AA$5:$AA$246)*('Comparación Alternativas'!$AQ$5:$AQ$246)) -> 0 | R90: =SUMPRODUCT((C90='Comparación Alternativas'!$Z$5:$Z$246)*('Comparación Alternativas'!$AA$5:$AA$246=Alternativas!D90)*('Comparación Alternativas'!$BA$5:$BA$246)) -> 0 | T90: 66 | U90: =IF(U89+SUMPRODUCT(($U$16='Para Ocultar'!$A$2:$A$7)*('Para Ocultar'!$C$2:$C$7))>12,(U89+SUMPRODUCT(($U$16='Para Ocultar'!$A$2:$A$7)*('Para Ocultar'!$C$2:$C$7)))-12,U89+SUMPRODUCT(($U$16='Para Ocultar'!$A$2:$A$7)*('Para Ocultar'!$C$2:$C$7))) -> 7 | V90: =IF(U90<=U89,V89+1,V89) -> 2027 | W90: =IF($U$18>=T90,0,-IF(T90<=$U$17+$U$18,$V$12/$U$17,0)) -> 0 | X90: =-Z89*($U$15/$U$16) -> 0 | Y90: 0 | Z90: 0 | AA90: -1.613758864e-12 | AB90: =-AD89*$U$15/$U$16 -> 1.613758864e-12 | AC90: 0 | AD90: -1.952648225e-10 | AE90: -1.613758864e-12 | AF90: 1.613758864e-12 | AG90: 0 | AH90: -1.952648225e-10 | AI90: =SUMPRODUCT((U90='Comparación Alternativas'!$Z$5:$Z$246)*('Comparación Alternativas'!$AA$5:$AA$246=Alternativas!V90)*('Comparación Alternativas'!$AV$5:$AV$246)) -> 0 | AJ90: =SUMPRODUCT((U90='Comparación Alternativas'!$Z$5:$Z$246)*('Comparación Alternativas'!$AA$5:$AA$246=Alternativas!V90)*('Comparación Alternativas'!$BF$5:$BF$246)) -> 0
B91: 67 | C91: =IF(C90+SUMPRODUCT(($C$16='Para Ocultar'!$A$2:$A$7)*('Para Ocultar'!$C$2:$C$7))>12,(C90+SUMPRODUCT(($C$16='Para Ocultar'!$A$2:$A$7)*('Para Ocultar'!$C$2:$C$7)))-12,C90+SUMPRODUCT(($C$16='Para Ocultar'!$A$2:$A$7)*('Para Ocultar'!$C$2:$C$7))) -> 8 | D91: 2027 | E91: 0 | F91: 0 | G91: 0 | H91: 0 | I91: 5.886272821e-12 | J91: -5.886272821e-12 | K91: 0 | L91: 2.58155108e-10 | M91: 0 | N91: 0 | O91: 0 | P91: 0 | Q91: =SUMPRODUCT((C91='Comparación Alternativas'!$Z$5:$Z$246)*(Alternativas!D91='Comparación Alternativas'!$AA$5:$AA$246)*('Comparación Alternativas'!$AQ$5:$AQ$246)) -> 0 | R91: =SUMPRODUCT((C91='Comparación Alternativas'!$Z$5:$Z$246)*('Comparación Alternativas'!$AA$5:$AA$246=Alternativas!D91)*('Comparación Alternativas'!$BA$5:$BA$246)) -> 0 | T91: 67 | U91: =IF(U90+SUMPRODUCT(($U$16='Para Ocultar'!$A$2:$A$7)*('Para Ocultar'!$C$2:$C$7))>12,(U90+SUMPRODUCT(($U$16='Para Ocultar'!$A$2:$A$7)*('Para Ocultar'!$C$2:$C$7)))-12,U90+SUMPRODUCT(($U$16='Para Ocultar'!$A$2:$A$7)*('Para Ocultar'!$C$2:$C$7))) -> 8 | V91: 2027 | W91: 0 | X91: 0 | Y91: 0 | Z91: 0 | AA91: -1.627206854e-12 | AB91: 1.627206854e-12 | AC91: 0 | AD91: -1.968920294e-10 | AE91: -1.627206854e-12 | AF91: 1.627206854e-12 | AG91: 0 | AH91: -1.968920294e-10 | AI91: =SUMPRODUCT((U91='Comparación Alternativas'!$Z$5:$Z$246)*('Comparación Alternativas'!$AA$5:$AA$246=Alternativas!V91)*('Comparación Alternativas'!$AV$5:$AV$246)) -> 0 | AJ91: =SUMPRODUCT((U91='Comparación Alternativas'!$Z$5:$Z$246)*('Comparación Alternativas'!$AA$5:$AA$246=Alternativas!V91)*('Comparación Alternativas'!$BF$5:$BF$246)) -> 0
B92: 68 | C92: =IF(C91+SUMPRODUCT(($C$16='Para Ocultar'!$A$2:$A$7)*('Para Ocultar'!$C$2:$C$7))>12,(C91+SUMPRODUCT(($C$16='Para Ocultar'!$A$2:$A$7)*('Para Ocultar'!$C$2:$C$7)))-12,C91+SUMPRODUCT(($C$16='Para Ocultar'!$A$2:$A$7)*('Para Ocultar'!$C$2:$C$7))) -> 9 | D92: 2027 | E92: 0 | F92: 0 | G92: 0 | H92: 0 | I92: 6.023619186e-12 | J92: -6.023619186e-12 | K92: 0 | L92: 2.641787272e-10 | M92: 0 | N92: 0 | O92: 0 | P92: 0 | Q92: =SUMPRODUCT((C92='Comparación Alternativas'!$Z$5:$Z$246)*(Alternativas!D92='Comparación Alternativas'!$AA$5:$AA$246)*('Comparación Alternativas'!$AQ$5:$AQ$246)) -> 0 | R92: =SUMPRODUCT((C92='Comparación Alternativas'!$Z$5:$Z$246)*('Comparación Alternativas'!$AA$5:$AA$246=Alternativas!D92)*('Comparación Alternativas'!$BA$5:$BA$246)) -> 0 | T92: 68 | U92: =IF(U91+SUMPRODUCT(($U$16='Para Ocultar'!$A$2:$A$7)*('Para Ocultar'!$C$2:$C$7))>12,(U91+SUMPRODUCT(($U$16='Para Ocultar'!$A$2:$A$7)*('Para Ocultar'!$C$2:$C$7)))-12,U91+SUMPRODUCT(($U$16='Para Ocultar'!$A$2:$A$7)*('Para Ocultar'!$C$2:$C$7))) -> 9 | V92: 2027 | W92: 0 | X92: 0 | Y92: 0 | Z92: 0 | AA92: -1.640766911e-12 | AB92: 1.640766911e-12 | AC92: 0 | AD92: -1.985327963e-10 | AE92: -1.640766911e-12 | AF92: 1.640766911e-12 | AG92: 0 | AH92: -1.985327963e-10 | AI92: =SUMPRODUCT((U92='Comparación Alternativas'!$Z$5:$Z$246)*('Comparación Alternativas'!$AA$5:$AA$246=Alternativas!V92)*('Comparación Alternativas'!$AV$5:$AV$246)) -> 0 | AJ92: =SUMPRODUCT((U92='Comparación Alternativas'!$Z$5:$Z$246)*('Comparación Alternativas'!$AA$5:$AA$246=Alternativas!V92)*('Comparación Alternativas'!$BF$5:$BF$246)) -> 0
B93: 69 | C93: =IF(C92+SUMPRODUCT(($C$16='Para Ocultar'!$A$2:$A$7)*('Para Ocultar'!$C$2:$C$7))>12,(C92+SUMPRODUCT(($C$16='Para Ocultar'!$A$2:$A$7)*('Para Ocultar'!$C$2:$C$7)))-12,C92+SUMPRODUCT(($C$16='Para Ocultar'!$A$2:$A$7)*('Para Ocultar'!$C$2:$C$7))) -> 10 | D93: 2027 | E93: 0 | F93: 0 | G93: 0 | H93: 0 | I93: 6.164170301e-12 | J93: -6.164170301e-12 | K93: 0 | L93: 2.703428975e-10 | M93: 0 | N93: 0 | O93: 0 | P93: 0 | Q93: =SUMPRODUCT((C93='Comparación Alternativas'!$Z$5:$Z$246)*(Alternativas!D93='Comparación Alternativas'!$AA$5:$AA$246)*('Comparación Alternativas'!$AQ$5:$AQ$246)) -> 0 | R93: =SUMPRODUCT((C93='Comparación Alternativas'!$Z$5:$Z$246)*('Comparación Alternativas'!$AA$5:$AA$246=Alternativas!D93)*('Comparación Alternativas'!$BA$5:$BA$246)) -> 0 | T93: 69 | U93: =IF(U92+SUMPRODUCT(($U$16='Para Ocultar'!$A$2:$A$7)*('Para Ocultar'!$C$2:$C$7))>12,(U92+SUMPRODUCT(($U$16='Para Ocultar'!$A$2:$A$7)*('Para Ocultar'!$C$2:$C$7)))-12,U92+SUMPRODUCT(($U$16='Para Ocultar'!$A$2:$A$7)*('Para Ocultar'!$C$2:$C$7))) -> 10 | V93: 2027 | W93: 0 | X93: 0 | Y93: 0 | Z93: 0 | AA93: -1.654439969e-12 | AB93: 1.654439969e-12 | AC93: 0 | AD93: -2.001872362e-10 | AE93: -1.654439969e-12 | AF93: 1.654439969e-12 | AG93: 0 | AH93: -2.001872362e-10 | AI93: =SUMPRODUCT((U93='Comparación Alternativas'!$Z$5:$Z$246)*('Comparación Alternativas'!$AA$5:$AA$246=Alternativas!V93)*('Comparación Alternativas'!$AV$5:$AV$246)) -> 0 | AJ93: =SUMPRODUCT((U93='Comparación Alternativas'!$Z$5:$Z$246)*('Comparación Alternativas'!$AA$5:$AA$246=Alternativas!V93)*('Comparación Alternativas'!$BF$5:$BF$246)) -> 0
B94: 70 | C94: =IF(C93+SUMPRODUCT(($C$16='Para Ocultar'!$A$2:$A$7)*('Para Ocultar'!$C$2:$C$7))>12,(C93+SUMPRODUCT(($C$16='Para Ocultar'!$A$2:$A$7)*('Para Ocultar'!$C$2:$C$7)))-12,C93+SUMPRODUCT(($C$16='Para Ocultar'!$A$2:$A$7)*('Para Ocultar'!$C$2:$C$7))) -> 11 | D94: 2027 | E94: =IF($C$18>=B94,0,-IF(B94<=$C$17+$C$18,$D$12/$C$17,0)) -> 0 | F94: 0 | G94: 0 | H94: 0 | I94: 6.308000941e-12 | J94: -6.308000941e-12 | K94: 0 | L94: 2.766508984e-10 | M94: 0 | N94: 0 | O94: 0 | P94: 0 | Q94: =SUMPRODUCT((C94='Comparación Alternativas'!$Z$5:$Z$246)*(Alternativas!D94='Comparación Alternativas'!$AA$5:$AA$246)*('Comparación Alternativas'!$AQ$5:$AQ$246)) -> 0 | R94: =SUMPRODUCT((C94='Comparación Alternativas'!$Z$5:$Z$246)*('Comparación Alternativas'!$AA$5:$AA$246=Alternativas!D94)*('Comparación Alternativas'!$BA$5:$BA$246)) -> 0 | T94: 70 | U94: =IF(U93+SUMPRODUCT(($U$16='Para Ocultar'!$A$2:$A$7)*('Para Ocultar'!$C$2:$C$7))>12,(U93+SUMPRODUCT(($U$16='Para Ocultar'!$A$2:$A$7)*('Para Ocultar'!$C$2:$C$7)))-12,U93+SUMPRODUCT(($U$16='Para Ocultar'!$A$2:$A$7)*('Para Ocultar'!$C$2:$C$7))) -> 11 | V94: 2027 | W94: 0 | X94: 0 | Y94: 0 | Z94: 0 | AA94: -1.668226969e-12 | AB94: 1.668226969e-12 | AC94: 0 | AD94: -2.018554632e-10 | AE94: -1.668226969e-12 | AF94: 1.668226969e-12 | AG94: 0 | AH94: -2.018554632e-10 | AI94: =SUMPRODUCT((U94='Comparación Alternativas'!$Z$5:$Z$246)*('Comparación Alternativas'!$AA$5:$AA$246=Alternativas!V94)*('Comparación Alternativas'!$AV$5:$AV$246)) -> 0 | AJ94: =SUMPRODUCT((U94='Comparación Alternativas'!$Z$5:$Z$246)*('Comparación Alternativas'!$AA$5:$AA$246=Alternativas!V94)*('Comparación Alternativas'!$BF$5:$BF$246)) -> 0
B95: 71 | C95: =IF(C94+SUMPRODUCT(($C$16='Para Ocultar'!$A$2:$A$7)*('Para Ocultar'!$C$2:$C$7))>12,(C94+SUMPRODUCT(($C$16='Para Ocultar'!$A$2:$A$7)*('Para Ocultar'!$C$2:$C$7)))-12,C94+SUMPRODUCT(($C$16='Para Ocultar'!$A$2:$A$7)*('Para Ocultar'!$C$2:$C$7))) -> 12 | D95: 2027 | E95: 0 | F95: 0 | G95: 0 | H95: 0 | I95: 6.45518763e-12 | J95: -6.45518763e-12 | K95: 0 | L95: 2.83106086e-10 | M95: 0 | N95: 0 | O95: 0 | P95: 0 | Q95: =SUMPRODUCT((C95='Comparación Alternativas'!$Z$5:$Z$246)*(Alternativas!D95='Comparación Alternativas'!$AA$5:$AA$246)*('Comparación Alternativas'!$AQ$5:$AQ$246)) -> 0 | R95: =SUMPRODUCT((C95='Comparación Alternativas'!$Z$5:$Z$246)*('Comparación Alternativas'!$AA$5:$AA$246=Alternativas!D95)*('Comparación Alternativas'!$BA$5:$BA$246)) -> 0 | T95: 71 | U95: =IF(U94+SUMPRODUCT(($U$16='Para Ocultar'!$A$2:$A$7)*('Para Ocultar'!$C$2:$C$7))>12,(U94+SUMPRODUCT(($U$16='Para Ocultar'!$A$2:$A$7)*('Para Ocultar'!$C$2:$C$7)))-12,U94+SUMPRODUCT(($U$16='Para Ocultar'!$A$2:$A$7)*('Para Ocultar'!$C$2:$C$7))) -> 12 | V95: 2027 | W95: 0 | X95: 0 | Y95: 0 | Z95: 0 | AA95: -1.68212886e-12 | AB95: 1.68212886e-12 | AC95: 0 | AD95: -2.035375921e-10 | AE95: -1.68212886e-12 | AF95: 1.68212886e-12 | AG95: 0 | AH95: -2.035375921e-10 | AI95: =SUMPRODUCT((U95='Comparación Alternativas'!$Z$5:$Z$246)*('Comparación Alternativas'!$AA$5:$AA$246=Alternativas!V95)*('Comparación Alternativas'!$AV$5:$AV$246)) -> 0 | AJ95: =SUMPRODUCT((U95='Comparación Alternativas'!$Z$5:$Z$246)*('Comparación Alternativas'!$AA$5:$AA$246=Alternativas!V95)*('Comparación Alternativas'!$BF$5:$BF$246)) -> 0
B96: 72 | C96: =IF(C95+SUMPRODUCT(($C$16='Para Ocultar'!$A$2:$A$7)*('Para Ocultar'!$C$2:$C$7))>12,(C95+SUMPRODUCT(($C$16='Para Ocultar'!$A$2:$A$7)*('Para Ocultar'!$C$2:$C$7)))-12,C95+SUMPRODUCT(($C$16='Para Ocultar'!$A$2:$A$7)*('Para Ocultar'!$C$2:$C$7))) -> 1 | D96: 2028 | E96: 0 | F96: 0 | G96: 0 | H96: 0 | I96: 6.605808674e-12 | J96: -6.605808674e-12 | K96: 0 | L96: 2.897118947e-10 | M96: 0 | N96: 0 | O96: 0 | P96: 0 | Q96: =SUMPRODUCT((C96='Comparación Alternativas'!$Z$5:$Z$246)*(Alternativas!D96='Comparación Alternativas'!$AA$5:$AA$246)*('Comparación Alternativas'!$AQ$5:$AQ$246)) -> 0 | R96: =SUMPRODUCT((C96='Comparación Alternativas'!$Z$5:$Z$246)*('Comparación Alternativas'!$AA$5:$AA$246=Alternativas!D96)*('Comparación Alternativas'!$BA$5:$BA$246)) -> 0 | T96: 72 | U96: =IF(U95+SUMPRODUCT(($U$16='Para Ocultar'!$A$2:$A$7)*('Para Ocultar'!$C$2:$C$7))>12,(U95+SUMPRODUCT(($U$16='Para Ocultar'!$A$2:$A$7)*('Para Ocultar'!$C$2:$C$7)))-12,U95+SUMPRODUCT(($U$16='Para Ocultar'!$A$2:$A$7)*('Para Ocultar'!$C$2:$C$7))) -> 1 | V96: 2028 | W96: 0 | X96: 0 | Y96: 0 | Z96: 0 | AA96: -1.696146601e-12 | AB96: 1.696146601e-12 | AC96: 0 | AD96: -2.052337387e-10 | AE96: -1.696146601e-12 | AF96: 1.696146601e-12 | AG96: 0 | AH96: -2.052337387e-10 | AI96: =SUMPRODUCT((U96='Comparación Alternativas'!$Z$5:$Z$246)*('Comparación Alternativas'!$AA$5:$AA$246=Alternativas!V96)*('Comparación Alternativas'!$AV$5:$AV$246)) -> 0 | AJ96: =SUMPRODUCT((U96='Comparación Alternativas'!$Z$5:$Z$246)*('Comparación Alternativas'!$AA$5:$AA$246=Alternativas!V96)*('Comparación Alternativas'!$BF$5:$BF$246)) -> 0
B97: 73 | C97: =IF(C96+SUMPRODUCT(($C$16='Para Ocultar'!$A$2:$A$7)*('Para Ocultar'!$C$2:$C$7))>12,(C96+SUMPRODUCT(($C$16='Para Ocultar'!$A$2:$A$7)*('Para Ocultar'!$C$2:$C$7)))-12,C96+SUMPRODUCT(($C$16='Para Ocultar'!$A$2:$A$7)*('Para Ocultar'!$C$2:$C$7))) -> 2 | D97: 2028 | E97: 0 | F97: 0 | G97: 0 | H97: 0 | I97: 6.75994421e-12 | J97: -6.75994421e-12 | K97: 0 | L97: 2.964718389e-10 | M97: 0 | N97: 0 | O97: 0 | P97: 0 | Q97: =SUMPRODUCT((C97='Comparación Alternativas'!$Z$5:$Z$246)*(Alternativas!D97='Comparación Alternativas'!$AA$5:$AA$246)*('Comparación Alternativas'!$AQ$5:$AQ$246)) -> 0 | R97: =SUMPRODUCT((C97='Comparación Alternativas'!$Z$5:$Z$246)*('Comparación Alternativas'!$AA$5:$AA$246=Alternativas!D97)*('Comparación Alternativas'!$BA$5:$BA$246)) -> 0 | T97: 73 | U97: =IF(U96+SUMPRODUCT(($U$16='Para Ocultar'!$A$2:$A$7)*('Para Ocultar'!$C$2:$C$7))>12,(U96+SUMPRODUCT(($U$16='Para Ocultar'!$A$2:$A$7)*('Para Ocultar'!$C$2:$C$7)))-12,U96+SUMPRODUCT(($U$16='Para Ocultar'!$A$2:$A$7)*('Para Ocultar'!$C$2:$C$7))) -> 2 | V97: 2028 | W97: 0 | X97: 0 | Y97: 0 | Z97: 0 | AA97: -1.710281156e-12 | AB97: 1.710281156e-12 | AC97: 0 | AD97: -2.069440198e-10 | AE97: -1.710281156e-12 | AF97: 1.710281156e-12 | AG97: 0 | AH97: -2.069440198e-10 | AI97: =SUMPRODUCT((U97='Comparación Alternativas'!$Z$5:$Z$246)*('Comparación Alternativas'!$AA$5:$AA$246=Alternativas!V97)*('Comparación Alternativas'!$AV$5:$AV$246)) -> 0 | AJ97: =SUMPRODUCT((U97='Comparación Alternativas'!$Z$5:$Z$246)*('Comparación Alternativas'!$AA$5:$AA$246=Alternativas!V97)*('Comparación Alternativas'!$BF$5:$BF$246)) -> 0
B98: 74 | C98: =IF(C97+SUMPRODUCT(($C$16='Para Ocultar'!$A$2:$A$7)*('Para Ocultar'!$C$2:$C$7))>12,(C97+SUMPRODUCT(($C$16='Para Ocultar'!$A$2:$A$7)*('Para Ocultar'!$C$2:$C$7)))-12,C97+SUMPRODUCT(($C$16='Para Ocultar'!$A$2:$A$7)*('Para Ocultar'!$C$2:$C$7))) -> 3 | D98: 2028 | E98: 0 | F98: 0 | G98: 0 | H98: 0 | I98: 6.917676242e-12 | J98: -6.917676242e-12 | K98: 0 | L98: 3.033895152e-10 | M98: 0 | N98: 0 | O98: 0 | P98: 0 | Q98: =SUMPRODUCT((C98='Comparación Alternativas'!$Z$5:$Z$246)*(Alternativas!D98='Comparación Alternativas'!$AA$5:$AA$246)*('Comparación Alternativas'!$AQ$5:$AQ$246)) -> 0 | R98: =SUMPRODUCT((C98='Comparación Alternativas'!$Z$5:$Z$246)*('Comparación Alternativas'!$AA$5:$AA$246=Alternativas!D98)*('Comparación Alternativas'!$BA$5:$BA$246)) -> 0 | T98: 74 | U98: =IF(U97+SUMPRODUCT(($U$16='Para Ocultar'!$A$2:$A$7)*('Para Ocultar'!$C$2:$C$7))>12,(U97+SUMPRODUCT(($U$16='Para Ocultar'!$A$2:$A$7)*('Para Ocultar'!$C$2:$C$7)))-12,U97+SUMPRODUCT(($U$16='Para Ocultar'!$A$2:$A$7)*('Para Ocultar'!$C$2:$C$7))) -> 3 | V98: 2028 | W98: 0 | X98: 0 | Y98: 0 | Z98: 0 | AA98: -1.724533499e-12 | AB98: 1.724533499e-12 | AC98: 0 | AD98: -2.086685533e-10 | AE98: -1.724533499e-12 | AF98: 1.724533499e-12 | AG98: 0 | AH98: -2.086685533e-10 | AI98: =SUMPRODUCT((U98='Comparación Alternativas'!$Z$5:$Z$246)*('Comparación Alternativas'!$AA$5:$AA$246=Alternativas!V98)*('Comparación Alternativas'!$AV$5:$AV$246)) -> 0 | AJ98: =SUMPRODUCT((U98='Comparación Alternativas'!$Z$5:$Z$246)*('Comparación Alternativas'!$AA$5:$AA$246=Alternativas!V98)*('Comparación Alternativas'!$BF$5:$BF$246)) -> 0
B99: 75 | C99: =IF(C98+SUMPRODUCT(($C$16='Para Ocultar'!$A$2:$A$7)*('Para Ocultar'!$C$2:$C$7))>12,(C98+SUMPRODUCT(($C$16='Para Ocultar'!$A$2:$A$7)*('Para Ocultar'!$C$2:$C$7)))-12,C98+SUMPRODUCT(($C$16='Para Ocultar'!$A$2:$A$7)*('Para Ocultar'!$C$2:$C$7))) -> 4 | D99: 2028 | E99: 0 | F99: 0 | G99: 0 | H99: 0 | I99: 7.079088687e-12 | J99: -7.079088687e-12 | K99: 0 | L99: 3.104686039e-10 | M99: 0 | N99: 0 | O99: 0 | P99: 0 | Q99: =SUMPRODUCT((C99='Comparación Alternativas'!$Z$5:$Z$246)*(Alternativas!D99='Comparación Alternativas'!$AA$5:$AA$246)*('Comparación Alternativas'!$AQ$5:$AQ$246)) -> 0 | R99: =SUMPRODUCT((C99='Comparación Alternativas'!$Z$5:$Z$246)*('Comparación Alternativas'!$AA$5:$AA$246=Alternativas!D99)*('Comparación Alternativas'!$BA$5:$BA$246)) -> 0 | T99: 75 | U99: =IF(U98+SUMPRODUCT(($U$16='Para Ocultar'!$A$2:$A$7)*('Para Ocultar'!$C$2:$C$7))>12,(U98+SUMPRODUCT(($U$16='Para Ocultar'!$A$2:$A$7)*('Para Ocultar'!$C$2:$C$7)))-12,U98+SUMPRODUCT(($U$16='Para Ocultar'!$A$2:$A$7)*('Para Ocultar'!$C$2:$C$7))) -> 4 | V99: 2028 | W99: 0 | X99: 0 | Y99: 0 | Z99: 0 | AA99: -1.738904611e-12 | AB99: 1.738904611e-12 | AC99: 0 | AD99: -2.104074579e-10 | AE99: -1.738904611e-12 | AF99: 1.738904611e-12 | AG99: 0 | AH99: -2.104074579e-10 | AI99: =SUMPRODUCT((U99='Comparación Alternativas'!$Z$5:$Z$246)*('Comparación Alternativas'!$AA$5:$AA$246=Alternativas!V99)*('Comparación Alternativas'!$AV$5:$AV$246)) -> 0 | AJ99: =SUMPRODUCT((U99='Comparación Alternativas'!$Z$5:$Z$246)*('Comparación Alternativas'!$AA$5:$AA$246=Alternativas!V99)*('Comparación Alternativas'!$BF$5:$BF$246)) -> 0
B100: 76 | C100: =IF(C99+SUMPRODUCT(($C$16='Para Ocultar'!$A$2:$A$7)*('Para Ocultar'!$C$2:$C$7))>12,(C99+SUMPRODUCT(($C$16='Para Ocultar'!$A$2:$A$7)*('Para Ocultar'!$C$2:$C$7)))-12,C99+SUMPRODUCT(($C$16='Para Ocultar'!$A$2:$A$7)*('Para Ocultar'!$C$2:$C$7))) -> 5 | D100: 2028 | E100: 0 | F100: 0 | G100: 0 | H100: 0 | I100: 7.244267423e-12 | J100: -7.244267423e-12 | K100: 0 | L100: 3.177128713e-10 | M100: 0 | N100: 0 | O100: 0 | P100: 0 | Q100: =SUMPRODUCT((C100='Comparación Alternativas'!$Z$5:$Z$246)*(Alternativas!D100='Comparación Alternativas'!$AA$5:$AA$246)*('Comparación Alternativas'!$AQ$5:$AQ$246)) -> 0 | R100: =SUMPRODUCT((C100='Comparación Alternativas'!$Z$5:$Z$246)*('Comparación Alternativas'!$AA$5:$AA$246=Alternativas!D100)*('Comparación Alternativas'!$BA$5:$BA$246)) -> 0 | T100: 76 | U100: =IF(U99+SUMPRODUCT(($U$16='Para Ocultar'!$A$2:$A$7)*('Para Ocultar'!$C$2:$C$7))>12,(U99+SUMPRODUCT(($U$16='Para Ocultar'!$A$2:$A$7)*('Para Ocultar'!$C$2:$C$7)))-12,U99+SUMPRODUCT(($U$16='Para Ocultar'!$A$2:$A$7)*('Para Ocultar'!$C$2:$C$7))) -> 5 | V100: 2028 | W100: 0 | X100: 0 | Y100: 0 | Z100: 0 | AA100: -1.753395483e-12 | AB100: 1.753395483e-12 | AC100: 0 | AD100: -2.121608534e-10 | AE100: -1.753395483e-12 | AF100: 1.753395483e-12 | AG100: 0 | AH100: -2.121608534e-10 | AI100: =SUMPRODUCT((U100='Comparación Alternativas'!$Z$5:$Z$246)*('Comparación Alternativas'!$AA$5:$AA$246=Alternativas!V100)*('Comparación Alternativas'!$AV$5:$AV$246)) -> 0 | AJ100: =SUMPRODUCT((U100='Comparación Alternativas'!$Z$5:$Z$246)*('Comparación Alternativas'!$AA$5:$AA$246=Alternativas!V100)*('Comparación Alternativas'!$BF$5:$BF$246)) -> 0
B101: 77 | C101: =IF(C100+SUMPRODUCT(($C$16='Para Ocultar'!$A$2:$A$7)*('Para Ocultar'!$C$2:$C$7))>12,(C100+SUMPRODUCT(($C$16='Para Ocultar'!$A$2:$A$7)*('Para Ocultar'!$C$2:$C$7)))-12,C100+SUMPRODUCT(($C$16='Para Ocultar'!$A$2:$A$7)*('Para Ocultar'!$C$2:$C$7))) -> 6 | D101: 2028 | E101: 0 | F101: 0 | G101: 0 | H101: 0 | I101: 7.41330033e-12 | J101: -7.41330033e-12 | K101: 0 | L101: 3.251261716e-10 | M101: 0 | N101: 0 | O101: 0 | P101: 0 | Q101: =SUMPRODUCT((C101='Comparación Alternativas'!$Z$5:$Z$246)*(Alternativas!D101='Comparación Alternativas'!$AA$5:$AA$246)*('Comparación Alternativas'!$AQ$5:$AQ$246)) -> 0 | R101: =SUMPRODUCT((C101='Comparación Alternativas'!$Z$5:$Z$246)*('Comparación Alternativas'!$AA$5:$AA$246=Alternativas!D101)*('Comparación Alternativas'!$BA$5:$BA$246)) -> 0 | T101: 77 | U101: =IF(U100+SUMPRODUCT(($U$16='Para Ocultar'!$A$2:$A$7)*('Para Ocultar'!$C$2:$C$7))>12,(U100+SUMPRODUCT(($U$16='Para Ocultar'!$A$2:$A$7)*('Para Ocultar'!$C$2:$C$7)))-12,U100+SUMPRODUCT(($U$16='Para Ocultar'!$A$2:$A$7)*('Para Ocultar'!$C$2:$C$7))) -> 6 | V101: 2028 | W101: 0 | X101: 0 | Y101: 0 | Z101: 0 | AA101: -1.768007112e-12 | AB101: 1.768007112e-12 | AC101: 0 | AD101: -2.139288605e-10 | AE101: -1.768007112e-12 | AF101: 1.768007112e-12 | AG101: 0 | AH101: -2.139288605e-10 | AI101: =SUMPRODUCT((U101='Comparación Alternativas'!$Z$5:$Z$246)*('Comparación Alternativas'!$AA$5:$AA$246=Alternativas!V101)*('Comparación Alternativas'!$AV$5:$AV$246)) -> 0 | AJ101: =SUMPRODUCT((U101='Comparación Alternativas'!$Z$5:$Z$246)*('Comparación Alternativas'!$AA$5:$AA$246=Alternativas!V101)*('Comparación Alternativas'!$BF$5:$BF$246)) -> 0
B102: 78 | C102: =IF(C101+SUMPRODUCT(($C$16='Para Ocultar'!$A$2:$A$7)*('Para Ocultar'!$C$2:$C$7))>12,(C101+SUMPRODUCT(($C$16='Para Ocultar'!$A$2:$A$7)*('Para Ocultar'!$C$2:$C$7)))-12,C101+SUMPRODUCT(($C$16='Para Ocultar'!$A$2:$A$7)*('Para Ocultar'!$C$2:$C$7))) -> 7 | D102: 2028 | E102: 0 | F102: 0 | G102: 0 | H102: 0 | I102: 7.586277338e-12 | J102: -7.586277338e-12 | K102: 0 | L102: 3.32712449e-10 | M102: 0 | N102: 0 | O102: 0 | P102: 0 | Q102: =SUMPRODUCT((C102='Comparación Alternativas'!$Z$5:$Z$246)*(Alternativas!D102='Comparación Alternativas'!$AA$5:$AA$246)*('Comparación Alternativas'!$AQ$5:$AQ$246)) -> 0 | R102: =SUMPRODUCT((C102='Comparación Alternativas'!$Z$5:$Z$246)*('Comparación Alternativas'!$AA$5:$AA$246=Alternativas!D102)*('Comparación Alternativas'!$BA$5:$BA$246)) -> 0 | T102: 78 | U102: =IF(U101+SUMPRODUCT(($U$16='Para Ocultar'!$A$2:$A$7)*('Para Ocultar'!$C$2:$C$7))>12,(U101+SUMPRODUCT(($U$16='Para Ocultar'!$A$2:$A$7)*('Para Ocultar'!$C$2:$C$7)))-12,U101+SUMPRODUCT(($U$16='Para Ocultar'!$A$2:$A$7)*('Para Ocultar'!$C$2:$C$7))) -> 7 | V102: 2028 | W102: 0 | X102: 0 | Y102: 0 | Z102: 0 | AA102: -1.782740504e-12 | AB102: 1.782740504e-12 | AC102: 0 | AD102: -2.15711601e-10 | AE102: -1.782740504e-12 | AF102: 1.782740504e-12 | AG102: 0 | AH102: -2.15711601e-10 | AI102: =SUMPRODUCT((U102='Comparación Alternativas'!$Z$5:$Z$246)*('Comparación Alternativas'!$AA$5:$AA$246=Alternativas!V102)*('Comparación Alternativas'!$AV$5:$AV$246)) -> 0 | AJ102: =SUMPRODUCT((U102='Comparación Alternativas'!$Z$5:$Z$246)*('Comparación Alternativas'!$AA$5:$AA$246=Alternativas!V102)*('Comparación Alternativas'!$BF$5:$BF$246)) -> 0
B103: 79 | C103: =IF(C102+SUMPRODUCT(($C$16='Para Ocultar'!$A$2:$A$7)*('Para Ocultar'!$C$2:$C$7))>12,(C102+SUMPRODUCT(($C$16='Para Ocultar'!$A$2:$A$7)*('Para Ocultar'!$C$2:$C$7)))-12,C102+SUMPRODUCT(($C$16='Para Ocultar'!$A$2:$A$7)*('Para Ocultar'!$C$2:$C$7))) -> 8 | D103: 2028 | E103: 0 | F103: 0 | G103: 0 | H103: 0 | I103: 7.763290476e-12 | J103: -7.763290476e-12 | K103: 0 | L103: 3.404757394e-10 | M103: 0 | N103: 0 | O103: 0 | P103: 0 | Q103: =SUMPRODUCT((C103='Comparación Alternativas'!$Z$5:$Z$246)*(Alternativas!D103='Comparación Alternativas'!$AA$5:$AA$246)*('Comparación Alternativas'!$AQ$5:$AQ$246)) -> 0 | R103: =SUMPRODUCT((C103='Comparación Alternativas'!$Z$5:$Z$246)*('Comparación Alternativas'!$AA$5:$AA$246=Alternativas!D103)*('Comparación Alternativas'!$BA$5:$BA$246)) -> 0 | T103: 79 | U103: =IF(U102+SUMPRODUCT(($U$16='Para Ocultar'!$A$2:$A$7)*('Para Ocultar'!$C$2:$C$7))>12,(U102+SUMPRODUCT(($U$16='Para Ocultar'!$A$2:$A$7)*('Para Ocultar'!$C$2:$C$7)))-12,U102+SUMPRODUCT(($U$16='Para Ocultar'!$A$2:$A$7)*('Para Ocultar'!$C$2:$C$7))) -> 8 | V103: 2028 | W103: 0 | X103: 0 | Y103: 0 | Z103: 0 | AA103: -1.797596675e-12 | AB103: 1.797596675e-12 | AC103: 0 | AD103: -2.175091977e-10 | AE103: -1.797596675e-12 | AF103: 1.797596675e-12 | AG103: 0 | AH103: -2.175091977e-10 | AI103: =SUMPRODUCT((U103='Comparación Alternativas'!$Z$5:$Z$246)*('Comparación Alternativas'!$AA$5:$AA$246=Alternativas!V103)*('Comparación Alternativas'!$AV$5:$AV$246)) -> 0 | AJ103: =SUMPRODUCT((U103='Comparación Alternativas'!$Z$5:$Z$246)*('Comparación Alternativas'!$AA$5:$AA$246=Alternativas!V103)*('Comparación Alternativas'!$BF$5:$BF$246)) -> 0
B104: 80 | C104: =IF(C103+SUMPRODUCT(($C$16='Para Ocultar'!$A$2:$A$7)*('Para Ocultar'!$C$2:$C$7))>12,(C103+SUMPRODUCT(($C$16='Para Ocultar'!$A$2:$A$7)*('Para Ocultar'!$C$2:$C$7)))-12,C103+SUMPRODUCT(($C$16='Para Ocultar'!$A$2:$A$7)*('Para Ocultar'!$C$2:$C$7))) -> 9 | D104: 2028 | E104: 0 | F104: 0 | G104: 0 | H104: 0 | I104: 7.94443392e-12 | J104: -7.94443392e-12 | K104: 0 | L104: 3.484201733e-10 | M104: 0 | N104: 0 | O104: 0 | P104: 0 | Q104: =SUMPRODUCT((C104='Comparación Alternativas'!$Z$5:$Z$246)*(Alternativas!D104='Comparación Alternativas'!$AA$5:$AA$246)*('Comparación Alternativas'!$AQ$5:$AQ$246)) -> 0 | R104: =SUMPRODUCT((C104='Comparación Alternativas'!$Z$5:$Z$246)*('Comparación Alternativas'!$AA$5:$AA$246=Alternativas!D104)*('Comparación Alternativas'!$BA$5:$BA$246)) -> 0 | T104: 80 | U104: =IF(U103+SUMPRODUCT(($U$16='Para Ocultar'!$A$2:$A$7)*('Para Ocultar'!$C$2:$C$7))>12,(U103+SUMPRODUCT(($U$16='Para Ocultar'!$A$2:$A$7)*('Para Ocultar'!$C$2:$C$7)))-12,U103+SUMPRODUCT(($U$16='Para Ocultar'!$A$2:$A$7)*('Para Ocultar'!$C$2:$C$7))) -> 9 | V104: 2028 | W104: 0 | X104: 0 | Y104: 0 | Z104: 0 | AA104: -1.812576648e-12 | AB104: 1.812576648e-12 | AC104: 0 | AD104: -2.193217744e-10 | AE104: -1.812576648e-12 | AF104: 1.812576648e-12 | AG104: 0 | AH104: -2.193217744e-10 | AI104: =SUMPRODUCT((U104='Comparación Alternativas'!$Z$5:$Z$246)*('Comparación Alternativas'!$AA$5:$AA$246=Alternativas!V104)*('Comparación Alternativas'!$AV$5:$AV$246)) -> 0 | AJ104: =SUMPRODUCT((U104='Comparación Alternativas'!$Z$5:$Z$246)*('Comparación Alternativas'!$AA$5:$AA$246=Alternativas!V104)*('Comparación Alternativas'!$BF$5:$BF$246)) -> 0
B105: 81 | C105: =IF(C104+SUMPRODUCT(($C$16='Para Ocultar'!$A$2:$A$7)*('Para Ocultar'!$C$2:$C$7))>12,(C104+SUMPRODUCT(($C$16='Para Ocultar'!$A$2:$A$7)*('Para Ocultar'!$C$2:$C$7)))-12,C104+SUMPRODUCT(($C$16='Para Ocultar'!$A$2:$A$7)*('Para Ocultar'!$C$2:$C$7))) -> 10 | D105: 2028 | E105: 0 | F105: 0 | G105: 0 | H105: 0 | I105: 8.129804045e-12 | J105: -8.129804045e-12 | K105: 0 | L105: 3.565499774e-10 | M105: 0 | N105: 0 | O105: 0 | P105: 0 | Q105: =SUMPRODUCT((C105='Comparación Alternativas'!$Z$5:$Z$246)*(Alternativas!D105='Comparación Alternativas'!$AA$5:$AA$246)*('Comparación Alternativas'!$AQ$5:$AQ$246)) -> 0 | R105: =SUMPRODUCT((C105='Comparación Alternativas'!$Z$5:$Z$246)*('Comparación Alternativas'!$AA$5:$AA$246=Alternativas!D105)*('Comparación Alternativas'!$BA$5:$BA$246)) -> 0 | T105: 81 | U105: =IF(U104+SUMPRODUCT(($U$16='Para Ocultar'!$A$2:$A$7)*('Para Ocultar'!$C$2:$C$7))>12,(U104+SUMPRODUCT(($U$16='Para Ocultar'!$A$2:$A$7)*('Para Ocultar'!$C$2:$C$7)))-12,U104+SUMPRODUCT(($U$16='Para Ocultar'!$A$2:$A$7)*('Para Ocultar'!$C$2:$C$7))) -> 10 | V105: 2028 | W105: 0 | X105: 0 | Y105: 0 | Z105: 0 | AA105: -1.827681453e-12 | AB105: 1.827681453e-12 | AC105: 0 | AD105: -2.211494558e-10 | AE105: -1.827681453e-12 | AF105: 1.827681453e-12 | AG105: 0 | AH105: -2.211494558e-10 | AI105: =SUMPRODUCT((U105='Comparación Alternativas'!$Z$5:$Z$246)*('Comparación Alternativas'!$AA$5:$AA$246=Alternativas!V105)*('Comparación Alternativas'!$AV$5:$AV$246)) -> 0 | AJ105: =SUMPRODUCT((U105='Comparación Alternativas'!$Z$5:$Z$246)*('Comparación Alternativas'!$AA$5:$AA$246=Alternativas!V105)*('Comparación Alternativas'!$BF$5:$BF$246)) -> 0
B106: 82 | C106: =IF(C105+SUMPRODUCT(($C$16='Para Ocultar'!$A$2:$A$7)*('Para Ocultar'!$C$2:$C$7))>12,(C105+SUMPRODUCT(($C$16='Para Ocultar'!$A$2:$A$7)*('Para Ocultar'!$C$2:$C$7)))-12,C105+SUMPRODUCT(($C$16='Para Ocultar'!$A$2:$A$7)*('Para Ocultar'!$C$2:$C$7))) -> 11 | D106: 2028 | E106: 0 | F106: 0 | G106: 0 | H106: 0 | I106: 8.319499472e-12 | J106: -8.319499472e-12 | K106: 0 | L106: 3.648694769e-10 | M106: 0 | N106: 0 | O106: 0 | P106: 0 | Q106: =SUMPRODUCT((C106='Comparación Alternativas'!$Z$5:$Z$246)*(Alternativas!D106='Comparación Alternativas'!$AA$5:$AA$246)*('Comparación Alternativas'!$AQ$5:$AQ$246)) -> 0 | R106: =SUMPRODUCT((C106='Comparación Alternativas'!$Z$5:$Z$246)*('Comparación Alternativas'!$AA$5:$AA$246=Alternativas!D106)*('Comparación Alternativas'!$BA$5:$BA$246)) -> 0 | T106: 82 | U106: =IF(U105+SUMPRODUCT(($U$16='Para Ocultar'!$A$2:$A$7)*('Para Ocultar'!$C$2:$C$7))>12,(U105+SUMPRODUCT(($U$16='Para Ocultar'!$A$2:$A$7)*('Para Ocultar'!$C$2:$C$7)))-12,U105+SUMPRODUCT(($U$16='Para Ocultar'!$A$2:$A$7)*('Para Ocultar'!$C$2:$C$7))) -> 11 | V106: 2028 | W106: 0 | X106: 0 | Y106: 0 | Z106: 0 | AA106: -1.842912132e-12 | AB106: 1.842912132e-12 | AC106: 0 | AD106: -2.229923679e-10 | AE106: -1.842912132e-12 | AF106: 1.842912132e-12 | AG106: 0 | AH106: -2.229923679e-10 | AI106: =SUMPRODUCT((U106='Comparación Alternativas'!$Z$5:$Z$246)*('Comparación Alternativas'!$AA$5:$AA$246=Alternativas!V106)*('Comparación Alternativas'!$AV$5:$AV$246)) -> 0 | AJ106: =SUMPRODUCT((U106='Comparación Alternativas'!$Z$5:$Z$246)*('Comparación Alternativas'!$AA$5:$AA$246=Alternativas!V106)*('Comparación Alternativas'!$BF$5:$BF$246)) -> 0
B107: 83 | C107: =IF(C106+SUMPRODUCT(($C$16='Para Ocultar'!$A$2:$A$7)*('Para Ocultar'!$C$2:$C$7))>12,(C106+SUMPRODUCT(($C$16='Para Ocultar'!$A$2:$A$7)*('Para Ocultar'!$C$2:$C$7)))-12,C106+SUMPRODUCT(($C$16='Para Ocultar'!$A$2:$A$7)*('Para Ocultar'!$C$2:$C$7))) -> 12 | D107: 2028 | E107: 0 | F107: 0 | G107: 0 | H107: 0 | I107: 8.513621127e-12 | J107: -8.513621127e-12 | K107: 0 | L107: 3.73383098e-10 | M107: 0 | N107: 0 | O107: 0 | P107: 0 | Q107: =SUMPRODUCT((C107='Comparación Alternativas'!$Z$5:$Z$246)*(Alternativas!D107='Comparación Alternativas'!$AA$5:$AA$246)*('Comparación Alternativas'!$AQ$5:$AQ$246)) -> 0 | R107: =SUMPRODUCT((C107='Comparación Alternativas'!$Z$5:$Z$246)*('Comparación Alternativas'!$AA$5:$AA$246=Alternativas!D107)*('Comparación Alternativas'!$BA$5:$BA$246)) -> 0 | T107: 83 | U107: =IF(U106+SUMPRODUCT(($U$16='Para Ocultar'!$A$2:$A$7)*('Para Ocultar'!$C$2:$C$7))>12,(U106+SUMPRODUCT(($U$16='Para Ocultar'!$A$2:$A$7)*('Para Ocultar'!$C$2:$C$7)))-12,U106+SUMPRODUCT(($U$16='Para Ocultar'!$A$2:$A$7)*('Para Ocultar'!$C$2:$C$7))) -> 12 | V107: 2028 | W107: 0 | X107: 0 | Y107: 0 | Z107: 0 | AA107: -1.858269733e-12 | AB107: 1.858269733e-12 | AC107: 0 | AD107: -2.248506377e-10 | AE107: -1.858269733e-12 | AF107: 1.858269733e-12 | AG107: 0 | AH107: -2.248506377e-10 | AI107: =SUMPRODUCT((U107='Comparación Alternativas'!$Z$5:$Z$246)*('Comparación Alternativas'!$AA$5:$AA$246=Alternativas!V107)*('Comparación Alternativas'!$AV$5:$AV$246)) -> 0 | AJ107: =SUMPRODUCT((U107='Comparación Alternativas'!$Z$5:$Z$246)*('Comparación Alternativas'!$AA$5:$AA$246=Alternativas!V107)*('Comparación Alternativas'!$BF$5:$BF$246)) -> 0
B108: 84 | C108: =IF(C107+SUMPRODUCT(($C$16='Para Ocultar'!$A$2:$A$7)*('Para Ocultar'!$C$2:$C$7))>12,(C107+SUMPRODUCT(($C$16='Para Ocultar'!$A$2:$A$7)*('Para Ocultar'!$C$2:$C$7)))-12,C107+SUMPRODUCT(($C$16='Para Ocultar'!$A$2:$A$7)*('Para Ocultar'!$C$2:$C$7))) -> 1 | D108: 2029 | E108: 0 | F108: 0 | G108: 0 | H108: 0 | I108: 8.712272286e-12 | J108: -8.712272286e-12 | K108: 0 | L108: 3.820953703e-10 | M108: 0 | N108: 0 | O108: 0 | P108: 0 | Q108: =SUMPRODUCT((C108='Comparación Alternativas'!$Z$5:$Z$246)*(Alternativas!D108='Comparación Alternativas'!$AA$5:$AA$246)*('Comparación Alternativas'!$AQ$5:$AQ$246)) -> 0 | R108: =SUMPRODUCT((C108='Comparación Alternativas'!$Z$5:$Z$246)*('Comparación Alternativas'!$AA$5:$AA$246=Alternativas!D108)*('Comparación Alternativas'!$BA$5:$BA$246)) -> 0 | T108: 84 | U108: =IF(U107+SUMPRODUCT(($U$16='Para Ocultar'!$A$2:$A$7)*('Para Ocultar'!$C$2:$C$7))>12,(U107+SUMPRODUCT(($U$16='Para Ocultar'!$A$2:$A$7)*('Para Ocultar'!$C$2:$C$7)))-12,U107+SUMPRODUCT(($U$16='Para Ocultar'!$A$2:$A$7)*('Para Ocultar'!$C$2:$C$7))) -> 1 | V108: 2029 | W108: 0 | X108: 0 | Y108: 0 | Z108: 0 | AA108: -1.873755314e-12 | AB108: 1.873755314e-12 | AC108: 0 | AD108: -2.26724393e-10 | AE108: -1.873755314e-12 | AF108: 1.873755314e-12 | AG108: 0 | AH108: -2.26724393e-10 | AI108: =SUMPRODUCT((U108='Comparación Alternativas'!$Z$5:$Z$246)*('Comparación Alternativas'!$AA$5:$AA$246=Alternativas!V108)*('Comparación Alternativas'!$AV$5:$AV$246)) -> 0 | AJ108: =SUMPRODUCT((U108='Comparación Alternativas'!$Z$5:$Z$246)*('Comparación Alternativas'!$AA$5:$AA$246=Alternativas!V108)*('Comparación Alternativas'!$BF$5:$BF$246)) -> 0
B109: 85 | C109: =IF(C108+SUMPRODUCT(($C$16='Para Ocultar'!$A$2:$A$7)*('Para Ocultar'!$C$2:$C$7))>12,(C108+SUMPRODUCT(($C$16='Para Ocultar'!$A$2:$A$7)*('Para Ocultar'!$C$2:$C$7)))-12,C108+SUMPRODUCT(($C$16='Para Ocultar'!$A$2:$A$7)*('Para Ocultar'!$C$2:$C$7))) -> 2 | D109: 2029 | E109: 0 | F109: 0 | G109: 0 | H109: 0 | I109: 8.91555864e-12 | J109: -8.91555864e-12 | K109: 0 | L109: 3.910109289e-10 | M109: 0 | N109: 0 | O109: 0 | P109: 0 | Q109: =SUMPRODUCT((C109='Comparación Alternativas'!$Z$5:$Z$246)*(Alternativas!D109='Comparación Alternativas'!$AA$5:$AA$246)*('Comparación Alternativas'!$AQ$5:$AQ$246)) -> 0 | R109: =SUMPRODUCT((C109='Comparación Alternativas'!$Z$5:$Z$246)*('Comparación Alternativas'!$AA$5:$AA$246=Alternativas!D109)*('Comparación Alternativas'!$BA$5:$BA$246)) -> 0 | T109: 85 | U109: =IF(U108+SUMPRODUCT(($U$16='Para Ocultar'!$A$2:$A$7)*('Para Ocultar'!$C$2:$C$7))>12,(U108+SUMPRODUCT(($U$16='Para Ocultar'!$A$2:$A$7)*('Para Ocultar'!$C$2:$C$7)))-12,U108+SUMPRODUCT(($U$16='Para Ocultar'!$A$2:$A$7)*('Para Ocultar'!$C$2:$C$7))) -> 2 | V109: 2029 | W109: 0 | X109: 0 | Y109: 0 | Z109: 0 | AA109: -1.889369942e-12 | AB109: 1.889369942e-12 | AC109: 0 | AD109: -2.286137629e-10 | AE109: -1.889369942e-12 | AF109: 1.889369942e-12 | AG109: 0 | AH109: -2.286137629e-10 | AI109: =SUMPRODUCT((U109='Comparación Alternativas'!$Z$5:$Z$246)*('Comparación Alternativas'!$AA$5:$AA$246=Alternativas!V109)*('Comparación Alternativas'!$AV$5:$AV$246)) -> 0 | AJ109: =SUMPRODUCT((U109='Comparación Alternativas'!$Z$5:$Z$246)*('Comparación Alternativas'!$AA$5:$AA$246=Alternativas!V109)*('Comparación Alternativas'!$BF$5:$BF$246)) -> 0
B110: 86 | C110: =IF(C109+SUMPRODUCT(($C$16='Para Ocultar'!$A$2:$A$7)*('Para Ocultar'!$C$2:$C$7))>12,(C109+SUMPRODUCT(($C$16='Para Ocultar'!$A$2:$A$7)*('Para Ocultar'!$C$2:$C$7)))-12,C109+SUMPRODUCT(($C$16='Para Ocultar'!$A$2:$A$7)*('Para Ocultar'!$C$2:$C$7))) -> 3 | D110: 2029 | E110: 0 | F110: 0 | G110: 0 | H110: 0 | I110: 9.123588341e-12 | J110: -9.123588341e-12 | K110: 0 | L110: 4.001345173e-10 | M110: 0 | N110: 0 | O110: 0 | P110: 0 | Q110: =SUMPRODUCT((C110='Comparación Alternativas'!$Z$5:$Z$246)*(Alternativas!D110='Comparación Alternativas'!$AA$5:$AA$246)*('Comparación Alternativas'!$AQ$5:$AQ$246)) -> 0 | R110: =SUMPRODUCT((C110='Comparación Alternativas'!$Z$5:$Z$246)*('Comparación Alternativas'!$AA$5:$AA$246=Alternativas!D110)*('Comparación Alternativas'!$BA$5:$BA$246)) -> 0 | T110: 86 | U110: =IF(U109+SUMPRODUCT(($U$16='Para Ocultar'!$A$2:$A$7)*('Para Ocultar'!$C$2:$C$7))>12,(U109+SUMPRODUCT(($U$16='Para Ocultar'!$A$2:$A$7)*('Para Ocultar'!$C$2:$C$7)))-12,U109+SUMPRODUCT(($U$16='Para Ocultar'!$A$2:$A$7)*('Para Ocultar'!$C$2:$C$7))) -> 3 | V110: 2029 | W110: 0 | X110: 0 | Y110: 0 | Z110: 0 | AA110: -1.905114691e-12 | AB110: 1.905114691e-12 | AC110: 0 | AD110: -2.305188776e-10 | AE110: -1.905114691e-12 | AF110: 1.905114691e-12 | AG110: 0 | AH110: -2.305188776e-10 | AI110: =SUMPRODUCT((U110='Comparación Alternativas'!$Z$5:$Z$246)*('Comparación Alternativas'!$AA$5:$AA$246=Alternativas!V110)*('Comparación Alternativas'!$AV$5:$AV$246)) -> 0 | AJ110: =SUMPRODUCT((U110='Comparación Alternativas'!$Z$5:$Z$246)*('Comparación Alternativas'!$AA$5:$AA$246=Alternativas!V110)*('Comparación Alternativas'!$BF$5:$BF$246)) -> 0
B111: 87 | C111: =IF(C110+SUMPRODUCT(($C$16='Para Ocultar'!$A$2:$A$7)*('Para Ocultar'!$C$2:$C$7))>12,(C110+SUMPRODUCT(($C$16='Para Ocultar'!$A$2:$A$7)*('Para Ocultar'!$C$2:$C$7)))-12,C110+SUMPRODUCT(($C$16='Para Ocultar'!$A$2:$A$7)*('Para Ocultar'!$C$2:$C$7))) -> 4 | D111: 2029 | E111: 0 | F111: 0 | G111: 0 | H111: 0 | I111: 9.336472069e-12 | J111: -9.336472069e-12 | K111: 0 | L111: 4.094709893e-10 | M111: 0 | N111: 0 | O111: 0 | P111: 0 | Q111: =SUMPRODUCT((C111='Comparación Alternativas'!$Z$5:$Z$246)*(Alternativas!D111='Comparación Alternativas'!$AA$5:$AA$246)*('Comparación Alternativas'!$AQ$5:$AQ$246)) -> 0 | R111: =SUMPRODUCT((C111='Comparación Alternativas'!$Z$5:$Z$246)*('Comparación Alternativas'!$AA$5:$AA$246=Alternativas!D111)*('Comparación Alternativas'!$BA$5:$BA$246)) -> 0 | T111: 87 | U111: =IF(U110+SUMPRODUCT(($U$16='Para Ocultar'!$A$2:$A$7)*('Para Ocultar'!$C$2:$C$7))>12,(U110+SUMPRODUCT(($U$16='Para Ocultar'!$A$2:$A$7)*('Para Ocultar'!$C$2:$C$7)))-12,U110+SUMPRODUCT(($U$16='Para Ocultar'!$A$2:$A$7)*('Para Ocultar'!$C$2:$C$7))) -> 4 | V111: 2029 | W111: 0 | X111: 0 | Y111: 0 | Z111: 0 | AA111: -1.920990647e-12 | AB111: 1.920990647e-12 | AC111: 0 | AD111: -2.324398683e-10 | AE111: -1.920990647e-12 | AF111: 1.920990647e-12 | AG111: 0 | AH111: -2.324398683e-10 | AI111: =SUMPRODUCT((U111='Comparación Alternativas'!$Z$5:$Z$246)*('Comparación Alternativas'!$AA$5:$AA$246=Alternativas!V111)*('Comparación Alternativas'!$AV$5:$AV$246)) -> 0 | AJ111: =SUMPRODUCT((U111='Comparación Alternativas'!$Z$5:$Z$246)*('Comparación Alternativas'!$AA$5:$AA$246=Alternativas!V111)*('Comparación Alternativas'!$BF$5:$BF$246)) -> 0
B112: 88 | C112: =IF(C111+SUMPRODUCT(($C$16='Para Ocultar'!$A$2:$A$7)*('Para Ocultar'!$C$2:$C$7))>12,(C111+SUMPRODUCT(($C$16='Para Ocultar'!$A$2:$A$7)*('Para Ocultar'!$C$2:$C$7)))-12,C111+SUMPRODUCT(($C$16='Para Ocultar'!$A$2:$A$7)*('Para Ocultar'!$C$2:$C$7))) -> 5 | D112: 2029 | E112: 0 | F112: 0 | G112: 0 | H112: 0 | I112: 9.554323084e-12 | J112: -9.554323084e-12 | K112: 0 | L112: 4.190253124e-10 | M112: 0 | N112: 0 | O112: 0 | P112: 0 | Q112: =SUMPRODUCT((C112='Comparación Alternativas'!$Z$5:$Z$246)*(Alternativas!D112='Comparación Alternativas'!$AA$5:$AA$246)*('Comparación Alternativas'!$AQ$5:$AQ$246)) -> 0 | R112: =SUMPRODUCT((C112='Comparación Alternativas'!$Z$5:$Z$246)*('Comparación Alternativas'!$AA$5:$AA$246=Alternativas!D112)*('Comparación Alternativas'!$BA$5:$BA$246)) -> 0 | T112: 88 | U112: =IF(U111+SUMPRODUCT(($U$16='Para Ocultar'!$A$2:$A$7)*('Para Ocultar'!$C$2:$C$7))>12,(U111+SUMPRODUCT(($U$16='Para Ocultar'!$A$2:$A$7)*('Para Ocultar'!$C$2:$C$7)))-12,U111+SUMPRODUCT(($U$16='Para Ocultar'!$A$2:$A$7)*('Para Ocultar'!$C$2:$C$7))) -> 5 | V112: 2029 | W112: 0 | X112: 0 | Y112: 0 | Z112: 0 | AA112: -1.936998902e-12 | AB112: 1.936998902e-12 | AC112: 0 | AD112: -2.343768672e-10 | AE112: -1.936998902e-12 | AF112: 1.936998902e-12 | AG112: 0 | AH112: -2.343768672e-10 | AI112: =SUMPRODUCT((U112='Comparación Alternativas'!$Z$5:$Z$246)*('Comparación Alternativas'!$AA$5:$AA$246=Alternativas!V112)*('Comparación Alternativas'!$AV$5:$AV$246)) -> 0 | AJ112: =SUMPRODUCT((U112='Comparación Alternativas'!$Z$5:$Z$246)*('Comparación Alternativas'!$AA$5:$AA$246=Alternativas!V112)*('Comparación Alternativas'!$BF$5:$BF$246)) -> 0
B113: 89 | C113: =IF(C112+SUMPRODUCT(($C$16='Para Ocultar'!$A$2:$A$7)*('Para Ocultar'!$C$2:$C$7))>12,(C112+SUMPRODUCT(($C$16='Para Ocultar'!$A$2:$A$7)*('Para Ocultar'!$C$2:$C$7)))-12,C112+SUMPRODUCT(($C$16='Para Ocultar'!$A$2:$A$7)*('Para Ocultar'!$C$2:$C$7))) -> 6 | D113: 2029 | E113: 0 | F113: 0 | G113: 0 | H113: 0 | I113: 9.77725729e-12 | J113: -9.77725729e-12 | K113: 0 | L113: 4.288025697e-10 | M113: 0 | N113: 0 | O113: 0 | P113: 0 | Q113: =SUMPRODUCT((C113='Comparación Alternativas'!$Z$5:$Z$246)*(Alternativas!D113='Comparación Alternativas'!$AA$5:$AA$246)*('Comparación Alternativas'!$AQ$5:$AQ$246)) -> 0 | R113: =SUMPRODUCT((C113='Comparación Alternativas'!$Z$5:$Z$246)*('Comparación Alternativas'!$AA$5:$AA$246=Alternativas!D113)*('Comparación Alternativas'!$BA$5:$BA$246)) -> 0 | T113: 89 | U113: =IF(U112+SUMPRODUCT(($U$16='Para Ocultar'!$A$2:$A$7)*('Para Ocultar'!$C$2:$C$7))>12,(U112+SUMPRODUCT(($U$16='Para Ocultar'!$A$2:$A$7)*('Para Ocultar'!$C$2:$C$7)))-12,U112+SUMPRODUCT(($U$16='Para Ocultar'!$A$2:$A$7)*('Para Ocultar'!$C$2:$C$7))) -> 6 | V113: 2029 | W113: 0 | X113: 0 | Y113: 0 | Z113: 0 | AA113: -1.95314056e-12 | AB113: 1.95314056e-12 | AC113: 0 | AD113: -2.363300077e-10 | AE113: -1.95314056e-12 | AF113: 1.95314056e-12 | AG113: 0 | AH113: -2.363300077e-10 | AI113: =SUMPRODUCT((U113='Comparación Alternativas'!$Z$5:$Z$246)*('Comparación Alternativas'!$AA$5:$AA$246=Alternativas!V113)*('Comparación Alternativas'!$AV$5:$AV$246)) -> 0 | AJ113: =SUMPRODUCT((U113='Comparación Alternativas'!$Z$5:$Z$246)*('Comparación Alternativas'!$AA$5:$AA$246=Alternativas!V113)*('Comparación Alternativas'!$BF$5:$BF$246)) -> 0
B114: 90 | C114: =IF(C113+SUMPRODUCT(($C$16='Para Ocultar'!$A$2:$A$7)*('Para Ocultar'!$C$2:$C$7))>12,(C113+SUMPRODUCT(($C$16='Para Ocultar'!$A$2:$A$7)*('Para Ocultar'!$C$2:$C$7)))-12,C113+SUMPRODUCT(($C$16='Para Ocultar'!$A$2:$A$7)*('Para Ocultar'!$C$2:$C$7))) -> 7 | D114: 2029 | E114: 0 | F114: 0 | G114: 0 | H114: 0 | I114: 1.000539329e-11 | J114: -1.000539329e-11 | K114: 0 | L114: 4.38807963e-10 | M114: 0 | N114: 0 | O114: 0 | P114: 0 | Q114: =SUMPRODUCT((C114='Comparación Alternativas'!$Z$5:$Z$246)*(Alternativas!D114='Comparación Alternativas'!$AA$5:$AA$246)*('Comparación Alternativas'!$AQ$5:$AQ$246)) -> 0 | R114: =SUMPRODUCT((C114='Comparación Alternativas'!$Z$5:$Z$246)*('Comparación Alternativas'!$AA$5:$AA$246=Alternativas!D114)*('Comparación Alternativas'!$BA$5:$BA$246)) -> 0 | T114: 90 | U114: =IF(U113+SUMPRODUCT(($U$16='Para Ocultar'!$A$2:$A$7)*('Para Ocultar'!$C$2:$C$7))>12,(U113+SUMPRODUCT(($U$16='Para Ocultar'!$A$2:$A$7)*('Para Ocultar'!$C$2:$C$7)))-12,U113+SUMPRODUCT(($U$16='Para Ocultar'!$A$2:$A$7)*('Para Ocultar'!$C$2:$C$7))) -> 7 | V114: 2029 | W114: 0 | X114: 0 | Y114: 0 | Z114: 0 | AA114: -1.969416731e-12 | AB114: 1.969416731e-12 | AC114: 0 | AD114: -2.382994245e-10 | AE114: -1.969416731e-12 | AF114: 1.969416731e-12 | AG114: 0 | AH114: -2.382994245e-10 | AI114: =SUMPRODUCT((U114='Comparación Alternativas'!$Z$5:$Z$246)*('Comparación Alternativas'!$AA$5:$AA$246=Alternativas!V114)*('Comparación Alternativas'!$AV$5:$AV$246)) -> 0 | AJ114: =SUMPRODUCT((U114='Comparación Alternativas'!$Z$5:$Z$246)*('Comparación Alternativas'!$AA$5:$AA$246=Alternativas!V114)*('Comparación Alternativas'!$BF$5:$BF$246)) -> 0
B115: 91 | C115: =IF(C114+SUMPRODUCT(($C$16='Para Ocultar'!$A$2:$A$7)*('Para Ocultar'!$C$2:$C$7))>12,(C114+SUMPRODUCT(($C$16='Para Ocultar'!$A$2:$A$7)*('Para Ocultar'!$C$2:$C$7)))-12,C114+SUMPRODUCT(($C$16='Para Ocultar'!$A$2:$A$7)*('Para Ocultar'!$C$2:$C$7))) -> 8 | D115: 2029 | E115: 0 | F115: 0 | G115: 0 | H115: 0 | I115: 1.023885247e-11 | J115: -1.023885247e-11 | K115: 0 | L115: 4.490468155e-10 | M115: 0 | N115: 0 | O115: 0 | P115: 0 | Q115: =SUMPRODUCT((C115='Comparación Alternativas'!$Z$5:$Z$246)*(Alternativas!D115='Comparación Alternativas'!$AA$5:$AA$246)*('Comparación Alternativas'!$AQ$5:$AQ$246)) -> 0 | R115: =SUMPRODUCT((C115='Comparación Alternativas'!$Z$5:$Z$246)*('Comparación Alternativas'!$AA$5:$AA$246=Alternativas!D115)*('Comparación Alternativas'!$BA$5:$BA$246)) -> 0 | T115: 91 | U115: =IF(U114+SUMPRODUCT(($U$16='Para Ocultar'!$A$2:$A$7)*('Para Ocultar'!$C$2:$C$7))>12,(U114+SUMPRODUCT(($U$16='Para Ocultar'!$A$2:$A$7)*('Para Ocultar'!$C$2:$C$7)))-12,U114+SUMPRODUCT(($U$16='Para Ocultar'!$A$2:$A$7)*('Para Ocultar'!$C$2:$C$7))) -> 8 | V115: 2029 | W115: 0 | X115: 0 | Y115: 0 | Z115: 0 | AA115: -1.985828537e-12 | AB115: 1.985828537e-12 | AC115: 0 | AD115: -2.40285253e-10 | AE115: -1.985828537e-12 | AF115: 1.985828537e-12 | AG115: 0 | AH115: -2.40285253e-10 | AI115: =SUMPRODUCT((U115='Comparación Alternativas'!$Z$5:$Z$246)*('Comparación Alternativas'!$AA$5:$AA$246=Alternativas!V115)*('Comparación Alternativas'!$AV$5:$AV$246)) -> 0 | AJ115: =SUMPRODUCT((U115='Comparación Alternativas'!$Z$5:$Z$246)*('Comparación Alternativas'!$AA$5:$AA$246=Alternativas!V115)*('Comparación Alternativas'!$BF$5:$BF$246)) -> 0
B116: 92 | C116: =IF(C115+SUMPRODUCT(($C$16='Para Ocultar'!$A$2:$A$7)*('Para Ocultar'!$C$2:$C$7))>12,(C115+SUMPRODUCT(($C$16='Para Ocultar'!$A$2:$A$7)*('Para Ocultar'!$C$2:$C$7)))-12,C115+SUMPRODUCT(($C$16='Para Ocultar'!$A$2:$A$7)*('Para Ocultar'!$C$2:$C$7))) -> 9 | D116: 2029 | E116: 0 | F116: 0 | G116: 0 | H116: 0 | I116: 1.047775903e-11 | J116: -1.047775903e-11 | K116: 0 | L116: 4.595245745e-10 | M116: 0 | N116: 0 | O116: 0 | P116: 0 | Q116: =SUMPRODUCT((C116='Comparación Alternativas'!$Z$5:$Z$246)*(Alternativas!D116='Comparación Alternativas'!$AA$5:$AA$246)*('Comparación Alternativas'!$AQ$5:$AQ$246)) -> 0 | R116: =SUMPRODUCT((C116='Comparación Alternativas'!$Z$5:$Z$246)*('Comparación Alternativas'!$AA$5:$AA$246=Alternativas!D116)*('Comparación Alternativas'!$BA$5:$BA$246)) -> 0 | T116: 92 | U116: =IF(U115+SUMPRODUCT(($U$16='Para Ocultar'!$A$2:$A$7)*('Para Ocultar'!$C$2:$C$7))>12,(U115+SUMPRODUCT(($U$16='Para Ocultar'!$A$2:$A$7)*('Para Ocultar'!$C$2:$C$7)))-12,U115+SUMPRODUCT(($U$16='Para Ocultar'!$A$2:$A$7)*('Para Ocultar'!$C$2:$C$7))) -> 9 | V116: 2029 | W116: 0 | X116: 0 | Y116: 0 | Z116: 0 | AA116: -2.002377108e-12 | AB116: 2.002377108e-12 | AC116: 0 | AD116: -2.422876301e-10 | AE116: -2.002377108e-12 | AF116: 2.002377108e-12 | AG116: 0 | AH116: -2.422876301e-10 | AI116: =SUMPRODUCT((U116='Comparación Alternativas'!$Z$5:$Z$246)*('Comparación Alternativas'!$AA$5:$AA$246=Alternativas!V116)*('Comparación Alternativas'!$AV$5:$AV$246)) -> 0 | AJ116: =SUMPRODUCT((U116='Comparación Alternativas'!$Z$5:$Z$246)*('Comparación Alternativas'!$AA$5:$AA$246=Alternativas!V116)*('Comparación Alternativas'!$BF$5:$BF$246)) -> 0
B117: 93 | C117: =IF(C116+SUMPRODUCT(($C$16='Para Ocultar'!$A$2:$A$7)*('Para Ocultar'!$C$2:$C$7))>12,(C116+SUMPRODUCT(($C$16='Para Ocultar'!$A$2:$A$7)*('Para Ocultar'!$C$2:$C$7)))-12,C116+SUMPRODUCT(($C$16='Para Ocultar'!$A$2:$A$7)*('Para Ocultar'!$C$2:$C$7))) -> 10 | D117: 2029 | E117: 0 | F117: 0 | G117: 0 | H117: 0 | I117: 1.072224007e-11 | J117: -1.072224007e-11 | K117: 0 | L117: 4.702468146e-10 | M117: 0 | N117: 0 | O117: 0 | P117: 0 | Q117: =SUMPRODUCT((C117='Comparación Alternativas'!$Z$5:$Z$246)*(Alternativas!D117='Comparación Alternativas'!$AA$5:$AA$246)*('Comparación Alternativas'!$AQ$5:$AQ$246)) -> 0 | R117: =SUMPRODUCT((C117='Comparación Alternativas'!$Z$5:$Z$246)*('Comparación Alternativas'!$AA$5:$AA$246=Alternativas!D117)*('Comparación Alternativas'!$BA$5:$BA$246)) -> 0 | T117: 93 | U117: =IF(U116+SUMPRODUCT(($U$16='Para Ocultar'!$A$2:$A$7)*('Para Ocultar'!$C$2:$C$7))>12,(U116+SUMPRODUCT(($U$16='Para Ocultar'!$A$2:$A$7)*('Para Ocultar'!$C$2:$C$7)))-12,U116+SUMPRODUCT(($U$16='Para Ocultar'!$A$2:$A$7)*('Para Ocultar'!$C$2:$C$7))) -> 10 | V117: 2029 | W117: 0 | X117: 0 | Y117: 0 | Z117: 0 | AA117: -2.019063584e-12 | AB117: 2.019063584e-12 | AC117: 0 | AD117: -2.443066937e-10 | AE117: -2.019063584e-12 | AF117: 2.019063584e-12 | AG117: 0 | AH117: -2.443066937e-10 | AI117: =SUMPRODUCT((U117='Comparación Alternativas'!$Z$5:$Z$246)*('Comparación Alternativas'!$AA$5:$AA$246=Alternativas!V117)*('Comparación Alternativas'!$AV$5:$AV$246)) -> 0 | AJ117: =SUMPRODUCT((U117='Comparación Alternativas'!$Z$5:$Z$246)*('Comparación Alternativas'!$AA$5:$AA$246=Alternativas!V117)*('Comparación Alternativas'!$BF$5:$BF$246)) -> 0
B118: 94 | C118: =IF(C117+SUMPRODUCT(($C$16='Para Ocultar'!$A$2:$A$7)*('Para Ocultar'!$C$2:$C$7))>12,(C117+SUMPRODUCT(($C$16='Para Ocultar'!$A$2:$A$7)*('Para Ocultar'!$C$2:$C$7)))-12,C117+SUMPRODUCT(($C$16='Para Ocultar'!$A$2:$A$7)*('Para Ocultar'!$C$2:$C$7))) -> 11 | D118: 2029 | E118: 0 | F118: 0 | G118: 0 | H118: 0 | I118: 1.097242567e-11 | J118: -1.097242567e-11 | K118: 0 | L118: 4.812192402e-10 | M118: 0 | N118: 0 | O118: 0 | P118: 0 | Q118: =SUMPRODUCT((C118='Comparación Alternativas'!$Z$5:$Z$246)*(Alternativas!D118='Comparación Alternativas'!$AA$5:$AA$246)*('Comparación Alternativas'!$AQ$5:$AQ$246)) -> 0 | R118: =SUMPRODUCT((C118='Comparación Alternativas'!$Z$5:$Z$246)*('Comparación Alternativas'!$AA$5:$AA$246=Alternativas!D118)*('Comparación Alternativas'!$BA$5:$BA$246)) -> 0 | T118: 94 | U118: =IF(U117+SUMPRODUCT(($U$16='Para Ocultar'!$A$2:$A$7)*('Para Ocultar'!$C$2:$C$7))>12,(U117+SUMPRODUCT(($U$16='Para Ocultar'!$A$2:$A$7)*('Para Ocultar'!$C$2:$C$7)))-12,U117+SUMPRODUCT(($U$16='Para Ocultar'!$A$2:$A$7)*('Para Ocultar'!$C$2:$C$7))) -> 11 | V118: 2029 | W118: 0 | X118: 0 | Y118: 0 | Z118: 0 | AA118: -2.035889114e-12 | AB118: 2.035889114e-12 | AC118: 0 | AD118: -2.463425828e-10 | AE118: -2.035889114e-12 | AF118: 2.035889114e-12 | AG118: 0 | AH118: -2.463425828e-10 | AI118: =SUMPRODUCT((U118='Comparación Alternativas'!$Z$5:$Z$246)*('Comparación Alternativas'!$AA$5:$AA$246=Alternativas!V118)*('Comparación Alternativas'!$AV$5:$AV$246)) -> 0 | AJ118: =SUMPRODUCT((U118='Comparación Alternativas'!$Z$5:$Z$246)*('Comparación Alternativas'!$AA$5:$AA$246=Alternativas!V118)*('Comparación Alternativas'!$BF$5:$BF$246)) -> 0
B119: 95 | C119: =IF(C118+SUMPRODUCT(($C$16='Para Ocultar'!$A$2:$A$7)*('Para Ocultar'!$C$2:$C$7))>12,(C118+SUMPRODUCT(($C$16='Para Ocultar'!$A$2:$A$7)*('Para Ocultar'!$C$2:$C$7)))-12,C118+SUMPRODUCT(($C$16='Para Ocultar'!$A$2:$A$7)*('Para Ocultar'!$C$2:$C$7))) -> 12 | D119: 2029 | E119: 0 | F119: 0 | G119: 0 | H119: 0 | I119: 1.122844894e-11 | J119: -1.122844894e-11 | K119: 0 | L119: 4.924476892e-10 | M119: 0 | N119: 0 | O119: 0 | P119: 0 | Q119: =SUMPRODUCT((C119='Comparación Alternativas'!$Z$5:$Z$246)*(Alternativas!D119='Comparación Alternativas'!$AA$5:$AA$246)*('Comparación Alternativas'!$AQ$5:$AQ$246)) -> 0 | R119: =SUMPRODUCT((C119='Comparación Alternativas'!$Z$5:$Z$246)*('Comparación Alternativas'!$AA$5:$AA$246=Alternativas!D119)*('Comparación Alternativas'!$BA$5:$BA$246)) -> 0 | T119: 95 | U119: =IF(U118+SUMPRODUCT(($U$16='Para Ocultar'!$A$2:$A$7)*('Para Ocultar'!$C$2:$C$7))>12,(U118+SUMPRODUCT(($U$16='Para Ocultar'!$A$2:$A$7)*('Para Ocultar'!$C$2:$C$7)))-12,U118+SUMPRODUCT(($U$16='Para Ocultar'!$A$2:$A$7)*('Para Ocultar'!$C$2:$C$7))) -> 12 | V119: 2029 | W119: 0 | X119: 0 | Y119: 0 | Z119: 0 | AA119: -2.052854857e-12 | AB119: 2.052854857e-12 | AC119: 0 | AD119: -2.483954377e-10 | AE119: -2.052854857e-12 | AF119: 2.052854857e-12 | AG119: 0 | AH119: -2.483954377e-10 | AI119: =SUMPRODUCT((U119='Comparación Alternativas'!$Z$5:$Z$246)*('Comparación Alternativas'!$AA$5:$AA$246=Alternativas!V119)*('Comparación Alternativas'!$AV$5:$AV$246)) -> 0 | AJ119: =SUMPRODUCT((U119='Comparación Alternativas'!$Z$5:$Z$246)*('Comparación Alternativas'!$AA$5:$AA$246=Alternativas!V119)*('Comparación Alternativas'!$BF$5:$BF$246)) -> 0
B120: 96 | C120: =IF(C119+SUMPRODUCT(($C$16='Para Ocultar'!$A$2:$A$7)*('Para Ocultar'!$C$2:$C$7))>12,(C119+SUMPRODUCT(($C$16='Para Ocultar'!$A$2:$A$7)*('Para Ocultar'!$C$2:$C$7)))-12,C119+SUMPRODUCT(($C$16='Para Ocultar'!$A$2:$A$7)*('Para Ocultar'!$C$2:$C$7))) -> 1 | D120: 2030 | E120: 0 | F120: 0 | G120: 0 | H120: 0 | I120: 1.149044608e-11 | J120: -1.149044608e-11 | K120: 0 | L120: 5.039381353e-10 | M120: 0 | N120: 0 | O120: 0 | P120: 0 | Q120: =SUMPRODUCT((C120='Comparación Alternativas'!$Z$5:$Z$246)*(Alternativas!D120='Comparación Alternativas'!$AA$5:$AA$246)*('Comparación Alternativas'!$AQ$5:$AQ$246)) -> 0 | R120: =SUMPRODUCT((C120='Comparación Alternativas'!$Z$5:$Z$246)*('Comparación Alternativas'!$AA$5:$AA$246=Alternativas!D120)*('Comparación Alternativas'!$BA$5:$BA$246)) -> 0 | T120: 96 | U120: =IF(U119+SUMPRODUCT(($U$16='Para Ocultar'!$A$2:$A$7)*('Para Ocultar'!$C$2:$C$7))>12,(U119+SUMPRODUCT(($U$16='Para Ocultar'!$A$2:$A$7)*('Para Ocultar'!$C$2:$C$7)))-12,U119+SUMPRODUCT(($U$16='Para Ocultar'!$A$2:$A$7)*('Para Ocultar'!$C$2:$C$7))) -> 1 | V120: 2030 | W120: 0 | X120: 0 | Y120: 0 | Z120: 0 | AA120: -2.069961981e-12 | AB120: 2.069961981e-12 | AC120: 0 | AD120: -2.504653997e-10 | AE120: -2.069961981e-12 | AF120: 2.069961981e-12 | AG120: 0 | AH120: -2.504653997e-10 | AI120: =SUMPRODUCT((U120='Comparación Alternativas'!$Z$5:$Z$246)*('Comparación Alternativas'!$AA$5:$AA$246=Alternativas!V120)*('Comparación Alternativas'!$AV$5:$AV$246)) -> 0 | AJ120: =SUMPRODUCT((U120='Comparación Alternativas'!$Z$5:$Z$246)*('Comparación Alternativas'!$AA$5:$AA$246=Alternativas!V120)*('Comparación Alternativas'!$BF$5:$BF$246)) -> 0
B121: 97 | C121: =IF(C120+SUMPRODUCT(($C$16='Para Ocultar'!$A$2:$A$7)*('Para Ocultar'!$C$2:$C$7))>12,(C120+SUMPRODUCT(($C$16='Para Ocultar'!$A$2:$A$7)*('Para Ocultar'!$C$2:$C$7)))-12,C120+SUMPRODUCT(($C$16='Para Ocultar'!$A$2:$A$7)*('Para Ocultar'!$C$2:$C$7))) -> 2 | D121: 2030 | E121: 0 | F121: =-H120*($C$15/$C$16) -> 0 | G121: =F121+E121 -> 0 | H121: =E121+H120 -> 0 | I121: =L120-L120+K121-J121 -> 1.175855649e-11 | J121: =-L120*$C$15/$C$16 -> -1.175855649e-11 | K121: 0 | L121: =L120+I121 -> 5.156966917e-10 | M121: 0 | N121: 0 | O121: 0 | P121: 0 | Q121: =SUMPRODUCT((C121='Comparación Alternativas'!$Z$5:$Z$246)*(Alternativas!D121='Comparación Alternativas'!$AA$5:$AA$246)*('Comparación Alternativas'!$AQ$5:$AQ$246)) -> 0 | R121: =SUMPRODUCT((C121='Comparación Alternativas'!$Z$5:$Z$246)*('Comparación Alternativas'!$AA$5:$AA$246=Alternativas!D121)*('Comparación Alternativas'!$BA$5:$BA$246)) -> 0 | T121: 97 | U121: =IF(U120+SUMPRODUCT(($U$16='Para Ocultar'!$A$2:$A$7)*('Para Ocultar'!$C$2:$C$7))>12,(U120+SUMPRODUCT(($U$16='Para Ocultar'!$A$2:$A$7)*('Para Ocultar'!$C$2:$C$7)))-12,U120+SUMPRODUCT(($U$16='Para Ocultar'!$A$2:$A$7)*('Para Ocultar'!$C$2:$C$7))) -> 2 | V121: 2030 | W121: 0 | X121: 0 | Y121: =X121+W121 -> 0 | Z121: =W121+Z120 -> 0 | AA121: =AD120-AD120+AC121-AB121 -> -2.087211664e-12 | AB121: 2.087211664e-12 | AC121: =-IF($U$18>=T121,$U$12*$U$15/$U$16,IF($U$17+$U$18>=T121,$U$12*$AB$20,0)) -> 0 | AD121: =AD120+AA121 -> -2.525526113e-10 | AE121: -2.087211664e-12 | AF121: 2.087211664e-12 | AG121: 0 | AH121: -2.525526113e-10 | AI121: =SUMPRODUCT((U121='Comparación Alternativas'!$Z$5:$Z$246)*('Comparación Alternativas'!$AA$5:$AA$246=Alternativas!V121)*('Comparación Alternativas'!$AV$5:$AV$246)) -> 0 | AJ121: =SUMPRODUCT((U121='Comparación Alternativas'!$Z$5:$Z$246)*('Comparación Alternativas'!$AA$5:$AA$246=Alternativas!V121)*('Comparación Alternativas'!$BF$5:$BF$246)) -> 0
B122: 98 | C122: =IF(C121+SUMPRODUCT(($C$16='Para Ocultar'!$A$2:$A$7)*('Para Ocultar'!$C$2:$C$7))>12,(C121+SUMPRODUCT(($C$16='Para Ocultar'!$A$2:$A$7)*('Para Ocultar'!$C$2:$C$7)))-12,C121+SUMPRODUCT(($C$16='Para Ocultar'!$A$2:$A$7)*('Para Ocultar'!$C$2:$C$7))) -> 3 | D122: 2030 | E122: 0 | F122: 0 | G122: 0 | H122: 0 | I122: 1.203292281e-11 | J122: -1.203292281e-11 | K122: 0 | L122: 5.277296146e-10 | M122: 0 | N122: 0 | O122: 0 | P122: 0 | Q122: =SUMPRODUCT((C122='Comparación Alternativas'!$Z$5:$Z$246)*(Alternativas!D122='Comparación Alternativas'!$AA$5:$AA$246)*('Comparación Alternativas'!$AQ$5:$AQ$246)) -> 0 | R122: =SUMPRODUCT((C122='Comparación Alternativas'!$Z$5:$Z$246)*('Comparación Alternativas'!$AA$5:$AA$246=Alternativas!D122)*('Comparación Alternativas'!$BA$5:$BA$246)) -> 0 | T122: 98 | U122: =IF(U121+SUMPRODUCT(($U$16='Para Ocultar'!$A$2:$A$7)*('Para Ocultar'!$C$2:$C$7))>12,(U121+SUMPRODUCT(($U$16='Para Ocultar'!$A$2:$A$7)*('Para Ocultar'!$C$2:$C$7)))-12,U121+SUMPRODUCT(($U$16='Para Ocultar'!$A$2:$A$7)*('Para Ocultar'!$C$2:$C$7))) -> 3 | V122: 2030 | W122: 0 | X122: 0 | Y122: 0 | Z122: 0 | AA122: -2.104605094e-12 | AB122: 2.104605094e-12 | AC122: 0 | AD122: -2.546572164e-10 | AE122: -2.104605094e-12 | AF122: 2.104605094e-12 | AG122: 0 | AH122: -2.546572164e-10 | AI122: =SUMPRODUCT((U122='Comparación Alternativas'!$Z$5:$Z$246)*('Comparación Alternativas'!$AA$5:$AA$246=Alternativas!V122)*('Comparación Alternativas'!$AV$5:$AV$246)) -> 0 | AJ122: =SUMPRODUCT((U122='Comparación Alternativas'!$Z$5:$Z$246)*('Comparación Alternativas'!$AA$5:$AA$246=Alternativas!V122)*('Comparación Alternativas'!$BF$5:$BF$246)) -> 0
B123: 99 | C123: =IF(C122+SUMPRODUCT(($C$16='Para Ocultar'!$A$2:$A$7)*('Para Ocultar'!$C$2:$C$7))>12,(C122+SUMPRODUCT(($C$16='Para Ocultar'!$A$2:$A$7)*('Para Ocultar'!$C$2:$C$7)))-12,C122+SUMPRODUCT(($C$16='Para Ocultar'!$A$2:$A$7)*('Para Ocultar'!$C$2:$C$7))) -> 4 | D123: 2030 | E123: 0 | F123: 0 | G123: 0 | H123: 0 | I123: 1.231369101e-11 | J123: -1.231369101e-11 | K123: 0 | L123: 5.400433056e-10 | M123: 0 | N123: 0 | O123: 0 | P123: 0 | Q123: =SUMPRODUCT((C123='Comparación Alternativas'!$Z$5:$Z$246)*(Alternativas!D123='Comparación Alternativas'!$AA$5:$AA$246)*('Comparación Alternativas'!$AQ$5:$AQ$246)) -> 0 | R123: =SUMPRODUCT((C123='Comparación Alternativas'!$Z$5:$Z$246)*('Comparación Alternativas'!$AA$5:$AA$246=Alternativas!D123)*('Comparación Alternativas'!$BA$5:$BA$246)) -> 0 | T123: 99 | U123: =IF(U122+SUMPRODUCT(($U$16='Para Ocultar'!$A$2:$A$7)*('Para Ocultar'!$C$2:$C$7))>12,(U122+SUMPRODUCT(($U$16='Para Ocultar'!$A$2:$A$7)*('Para Ocultar'!$C$2:$C$7)))-12,U122+SUMPRODUCT(($U$16='Para Ocultar'!$A$2:$A$7)*('Para Ocultar'!$C$2:$C$7))) -> 4 | V123: 2030 | W123: 0 | X123: 0 | Y123: 0 | Z123: 0 | AA123: -2.12214347e-12 | AB123: 2.12214347e-12 | AC123: 0 | AD123: -2.567793599e-10 | AE123: -2.12214347e-12 | AF123: 2.12214347e-12 | AG123: 0 | AH123: -2.567793599e-10 | AI123: =SUMPRODUCT((U123='Comparación Alternativas'!$Z$5:$Z$246)*('Comparación Alternativas'!$AA$5:$AA$246=Alternativas!V123)*('Comparación Alternativas'!$AV$5:$AV$246)) -> 0 | AJ123: =SUMPRODUCT((U123='Comparación Alternativas'!$Z$5:$Z$246)*('Comparación Alternativas'!$AA$5:$AA$246=Alternativas!V123)*('Comparación Alternativas'!$BF$5:$BF$246)) -> 0
B124: 100 | C124: =IF(C123+SUMPRODUCT(($C$16='Para Ocultar'!$A$2:$A$7)*('Para Ocultar'!$C$2:$C$7))>12,(C123+SUMPRODUCT(($C$16='Para Ocultar'!$A$2:$A$7)*('Para Ocultar'!$C$2:$C$7)))-12,C123+SUMPRODUCT(($C$16='Para Ocultar'!$A$2:$A$7)*('Para Ocultar'!$C$2:$C$7))) -> 5 | D124: 2030 | E124: 0 | F124: 0 | G124: 0 | H124: 0 | I124: 1.260101046e-11 | J124: -1.260101046e-11 | K124: 0 | L124: 5.52644316e-10 | M124: 0 | N124: 0 | O124: 0 | P124: 0 | Q124: =SUMPRODUCT((C124='Comparación Alternativas'!$Z$5:$Z$246)*(Alternativas!D124='Comparación Alternativas'!$AA$5:$AA$246)*('Comparación Alternativas'!$AQ$5:$AQ$246)) -> 0 | R124: =SUMPRODUCT((C124='Comparación Alternativas'!$Z$5:$Z$246)*('Comparación Alternativas'!$AA$5:$AA$246=Alternativas!D124)*('Comparación Alternativas'!$BA$5:$BA$246)) -> 0 | T124: 100 | U124: =IF(U123+SUMPRODUCT(($U$16='Para Ocultar'!$A$2:$A$7)*('Para Ocultar'!$C$2:$C$7))>12,(U123+SUMPRODUCT(($U$16='Para Ocultar'!$A$2:$A$7)*('Para Ocultar'!$C$2:$C$7)))-12,U123+SUMPRODUCT(($U$16='Para Ocultar'!$A$2:$A$7)*('Para Ocultar'!$C$2:$C$7))) -> 5 | V124: 2030 | W124: 0 | X124: 0 | Y124: 0 | Z124: 0 | AA124: -2.139827999e-12 | AB124: 2.139827999e-12 | AC124: 0 | AD124: -2.589191879e-10 | AE124: -2.139827999e-12 | AF124: 2.139827999e-12 | AG124: 0 | AH124: -2.589191879e-10 | AI124: =SUMPRODUCT((U124='Comparación Alternativas'!$Z$5:$Z$246)*('Comparación Alternativas'!$AA$5:$AA$246=Alternativas!V124)*('Comparación Alternativas'!$AV$5:$AV$246)) -> 0 | AJ124: =SUMPRODUCT((U124='Comparación Alternativas'!$Z$5:$Z$246)*('Comparación Alternativas'!$AA$5:$AA$246=Alternativas!V124)*('Comparación Alternativas'!$BF$5:$BF$246)) -> 0
B125: 101 | C125: =IF(C124+SUMPRODUCT(($C$16='Para Ocultar'!$A$2:$A$7)*('Para Ocultar'!$C$2:$C$7))>12,(C124+SUMPRODUCT(($C$16='Para Ocultar'!$A$2:$A$7)*('Para Ocultar'!$C$2:$C$7)))-12,C124+SUMPRODUCT(($C$16='Para Ocultar'!$A$2:$A$7)*('Para Ocultar'!$C$2:$C$7))) -> 6 | D125: 2030 | E125: 0 | F125: 0 | G125: 0 | H125: 0 | I125: 1.289503404e-11 | J125: -1.289503404e-11 | K125: 0 | L125: 5.655393501e-10 | M125: 0 | N125: 0 | O125: 0 | P125: 0 | Q125: =SUMPRODUCT((C125='Comparación Alternativas'!$Z$5:$Z$246)*(Alternativas!D125='Comparación Alternativas'!$AA$5:$AA$246)*('Comparación Alternativas'!$AQ$5:$AQ$246)) -> 0 | R125: =SUMPRODUCT((C125='Comparación Alternativas'!$Z$5:$Z$246)*('Comparación Alternativas'!$AA$5:$AA$246=Alternativas!D125)*('Comparación Alternativas'!$BA$5:$BA$246)) -> 0 | T125: 101 | U125: =IF(U124+SUMPRODUCT(($U$16='Para Ocultar'!$A$2:$A$7)*('Para Ocultar'!$C$2:$C$7))>12,(U124+SUMPRODUCT(($U$16='Para Ocultar'!$A$2:$A$7)*('Para Ocultar'!$C$2:$C$7)))-12,U124+SUMPRODUCT(($U$16='Para Ocultar'!$A$2:$A$7)*('Para Ocultar'!$C$2:$C$7))) -> 6 | V125: 2030 | W125: 0 | X125: 0 | Y125: 0 | Z125: 0 | AA125: -2.157659899e-12 | AB125: 2.157659899e-12 | AC125: 0 | AD125: -2.610768478e-10 | AE125: -2.157659899e-12 | AF125: 2.157659899e-12 | AG125: 0 | AH125: -2.610768478e-10 | AI125: =SUMPRODUCT((U125='Comparación Alternativas'!$Z$5:$Z$246)*('Comparación Alternativas'!$AA$5:$AA$246=Alternativas!V125)*('Comparación Alternativas'!$AV$5:$AV$246)) -> 0 | AJ125: =SUMPRODUCT((U125='Comparación Alternativas'!$Z$5:$Z$246)*('Comparación Alternativas'!$AA$5:$AA$246=Alternativas!V125)*('Comparación Alternativas'!$BF$5:$BF$246)) -> 0
B126: 102 | C126: =IF(C125+SUMPRODUCT(($C$16='Para Ocultar'!$A$2:$A$7)*('Para Ocultar'!$C$2:$C$7))>12,(C125+SUMPRODUCT(($C$16='Para Ocultar'!$A$2:$A$7)*('Para Ocultar'!$C$2:$C$7)))-12,C125+SUMPRODUCT(($C$16='Para Ocultar'!$A$2:$A$7)*('Para Ocultar'!$C$2:$C$7))) -> 7 | D126: 2030 | E126: 0 | F126: 0 | G126: 0 | H126: 0 | I126: 1.319591817e-11 | J126: -1.319591817e-11 | K126: 0 | L126: 5.787352682e-10 | M126: 0 | N126: 0 | O126: 0 | P126: 0 | Q126: =SUMPRODUCT((C126='Comparación Alternativas'!$Z$5:$Z$246)*(Alternativas!D126='Comparación Alternativas'!$AA$5:$AA$246)*('Comparación Alternativas'!$AQ$5:$AQ$246)) -> 0 | R126: =SUMPRODUCT((C126='Comparación Alternativas'!$Z$5:$Z$246)*('Comparación Alternativas'!$AA$5:$AA$246=Alternativas!D126)*('Comparación Alternativas'!$BA$5:$BA$246)) -> 0 | T126: 102 | U126: =IF(U125+SUMPRODUCT(($U$16='Para Ocultar'!$A$2:$A$7)*('Para Ocultar'!$C$2:$C$7))>12,(U125+SUMPRODUCT(($U$16='Para Ocultar'!$A$2:$A$7)*('Para Ocultar'!$C$2:$C$7)))-12,U125+SUMPRODUCT(($U$16='Para Ocultar'!$A$2:$A$7)*('Para Ocultar'!$C$2:$C$7))) -> 7 | V126: 2030 | W126: 0 | X126: 0 | Y126: 0 | Z126: 0 | AA126: -2.175640398e-12 | AB126: 2.175640398e-12 | AC126: 0 | AD126: -2.632524882e-10 | AE126: -2.175640398e-12 | AF126: 2.175640398e-12 | AG126: 0 | AH126: -2.632524882e-10 | AI126: =SUMPRODUCT((U126='Comparación Alternativas'!$Z$5:$Z$246)*('Comparación Alternativas'!$AA$5:$AA$246=Alternativas!V126)*('Comparación Alternativas'!$AV$5:$AV$246)) -> 0 | AJ126: =SUMPRODUCT((U126='Comparación Alternativas'!$Z$5:$Z$246)*('Comparación Alternativas'!$AA$5:$AA$246=Alternativas!V126)*('Comparación Alternativas'!$BF$5:$BF$246)) -> 0
B127: 103 | C127: =IF(C126+SUMPRODUCT(($C$16='Para Ocultar'!$A$2:$A$7)*('Para Ocultar'!$C$2:$C$7))>12,(C126+SUMPRODUCT(($C$16='Para Ocultar'!$A$2:$A$7)*('Para Ocultar'!$C$2:$C$7)))-12,C126+SUMPRODUCT(($C$16='Para Ocultar'!$A$2:$A$7)*('Para Ocultar'!$C$2:$C$7))) -> 8 | D127: 2030 | E127: 0 | F127: 0 | G127: 0 | H127: 0 | I127: 1.350382293e-11 | J127: -1.350382293e-11 | K127: 0 | L127: 5.922390912e-10 | M127: 0 | N127: 0 | O127: 0 | P127: 0 | Q127: =SUMPRODUCT((C127='Comparación Alternativas'!$Z$5:$Z$246)*(Alternativas!D127='Comparación Alternativas'!$AA$5:$AA$246)*('Comparación Alternativas'!$AQ$5:$AQ$246)) -> 0 | R127: =SUMPRODUCT((C127='Comparación Alternativas'!$Z$5:$Z$246)*('Comparación Alternativas'!$AA$5:$AA$246=Alternativas!D127)*('Comparación Alternativas'!$BA$5:$BA$246)) -> 0 | T127: 103 | U127: =IF(U126+SUMPRODUCT(($U$16='Para Ocultar'!$A$2:$A$7)*('Para Ocultar'!$C$2:$C$7))>12,(U126+SUMPRODUCT(($U$16='Para Ocultar'!$A$2:$A$7)*('Para Ocultar'!$C$2:$C$7)))-12,U126+SUMPRODUCT(($U$16='Para Ocultar'!$A$2:$A$7)*('Para Ocultar'!$C$2:$C$7))) -> 8 | V127: 2030 | W127: 0 | X127: 0 | Y127: 0 | Z127: 0 | AA127: -2.193770735e-12 | AB127: 2.193770735e-12 | AC127: 0 | AD127: -2.654462589e-10 | AE127: -2.193770735e-12 | AF127: 2.193770735e-12 | AG127: 0 | AH127: -2.654462589e-10 | AI127: =SUMPRODUCT((U127='Comparación Alternativas'!$Z$5:$Z$246)*('Comparación Alternativas'!$AA$5:$AA$246=Alternativas!V127)*('Comparación Alternativas'!$AV$5:$AV$246)) -> 0 | AJ127: =SUMPRODUCT((U127='Comparación Alternativas'!$Z$5:$Z$246)*('Comparación Alternativas'!$AA$5:$AA$246=Alternativas!V127)*('Comparación Alternativas'!$BF$5:$BF$246)) -> 0
B128: 104 | C128: =IF(C127+SUMPRODUCT(($C$16='Para Ocultar'!$A$2:$A$7)*('Para Ocultar'!$C$2:$C$7))>12,(C127+SUMPRODUCT(($C$16='Para Ocultar'!$A$2:$A$7)*('Para Ocultar'!$C$2:$C$7)))-12,C127+SUMPRODUCT(($C$16='Para Ocultar'!$A$2:$A$7)*('Para Ocultar'!$C$2:$C$7))) -> 9 | D128: 2030 | E128: 0 | F128: 0 | G128: 0 | H128: 0 | I128: 1.381891213e-11 | J128: -1.381891213e-11 | K128: 0 | L128: 6.060580033e-10 | M128: 0 | N128: 0 | O128: 0 | P128: 0 | Q128: =SUMPRODUCT((C128='Comparación Alternativas'!$Z$5:$Z$246)*(Alternativas!D128='Comparación Alternativas'!$AA$5:$AA$246)*('Comparación Alternativas'!$AQ$5:$AQ$246)) -> 0 | R128: =SUMPRODUCT((C128='Comparación Alternativas'!$Z$5:$Z$246)*('Comparación Alternativas'!$AA$5:$AA$246=Alternativas!D128)*('Comparación Alternativas'!$BA$5:$BA$246)) -> 0 | T128: 104 | U128: =IF(U127+SUMPRODUCT(($U$16='Para Ocultar'!$A$2:$A$7)*('Para Ocultar'!$C$2:$C$7))>12,(U127+SUMPRODUCT(($U$16='Para Ocultar'!$A$2:$A$7)*('Para Ocultar'!$C$2:$C$7)))-12,U127+SUMPRODUCT(($U$16='Para Ocultar'!$A$2:$A$7)*('Para Ocultar'!$C$2:$C$7))) -> 9 | V128: 2030 | W128: 0 | X128: 0 | Y128: 0 | Z128: 0 | AA128: -2.212052158e-12 | AB128: 2.212052158e-12 | AC128: 0 | AD128: -2.676583111e-10 | AE128: -2.212052158e-12 | AF128: 2.212052158e-12 | AG128: 0 | AH128: -2.676583111e-10 | AI128: =SUMPRODUCT((U128='Comparación Alternativas'!$Z$5:$Z$246)*('Comparación Alternativas'!$AA$5:$AA$246=Alternativas!V128)*('Comparación Alternativas'!$AV$5:$AV$246)) -> 0 | AJ128: =SUMPRODUCT((U128='Comparación Alternativas'!$Z$5:$Z$246)*('Comparación Alternativas'!$AA$5:$AA$246=Alternativas!V128)*('Comparación Alternativas'!$BF$5:$BF$246)) -> 0
B129: 105 | C129: =IF(C128+SUMPRODUCT(($C$16='Para Ocultar'!$A$2:$A$7)*('Para Ocultar'!$C$2:$C$7))>12,(C128+SUMPRODUCT(($C$16='Para Ocultar'!$A$2:$A$7)*('Para Ocultar'!$C$2:$C$7)))-12,C128+SUMPRODUCT(($C$16='Para Ocultar'!$A$2:$A$7)*('Para Ocultar'!$C$2:$C$7))) -> 10 | D129: 2030 | E129: 0 | F129: 0 | G129: 0 | H129: 0 | I129: 1.414135341e-11 | J129: -1.414135341e-11 | K129: 0 | L129: 6.201993567e-10 | M129: 0 | N129: 0 | O129: 0 | P129: 0 | Q129: =SUMPRODUCT((C129='Comparación Alternativas'!$Z$5:$Z$246)*(Alternativas!D129='Comparación Alternativas'!$AA$5:$AA$246)*('Comparación Alternativas'!$AQ$5:$AQ$246)) -> 0 | R129: =SUMPRODUCT((C129='Comparación Alternativas'!$Z$5:$Z$246)*('Comparación Alternativas'!$AA$5:$AA$246=Alternativas!D129)*('Comparación Alternativas'!$BA$5:$BA$246)) -> 0 | T129: 105 | U129: =IF(U128+SUMPRODUCT(($U$16='Para Ocultar'!$A$2:$A$7)*('Para Ocultar'!$C$2:$C$7))>12,(U128+SUMPRODUCT(($U$16='Para Ocultar'!$A$2:$A$7)*('Para Ocultar'!$C$2:$C$7)))-12,U128+SUMPRODUCT(($U$16='Para Ocultar'!$A$2:$A$7)*('Para Ocultar'!$C$2:$C$7))) -> 10 | V129: 2030 | W129: 0 | X129: 0 | Y129: 0 | Z129: 0 | AA129: -2.230485926e-12 | AB129: 2.230485926e-12 | AC129: 0 | AD129: -2.69888797e-10 | AE129: -2.230485926e-12 | AF129: 2.230485926e-12 | AG129: 0 | AH129: -2.69888797e-10 | AI129: =SUMPRODUCT((U129='Comparación Alternativas'!$Z$5:$Z$246)*('Comparación Alternativas'!$AA$5:$AA$246=Alternativas!V129)*('Comparación Alternativas'!$AV$5:$AV$246)) -> 0 | AJ129: =SUMPRODUCT((U129='Comparación Alternativas'!$Z$5:$Z$246)*('Comparación Alternativas'!$AA$5:$AA$246=Alternativas!V129)*('Comparación Alternativas'!$BF$5:$BF$246)) -> 0
B130: 106 | C130: =IF(C129+SUMPRODUCT(($C$16='Para Ocultar'!$A$2:$A$7)*('Para Ocultar'!$C$2:$C$7))>12,(C129+SUMPRODUCT(($C$16='Para Ocultar'!$A$2:$A$7)*('Para Ocultar'!$C$2:$C$7)))-12,C129+SUMPRODUCT(($C$16='Para Ocultar'!$A$2:$A$7)*('Para Ocultar'!$C$2:$C$7))) -> 11 | D130: 2030 | E130: 0 | F130: 0 | G130: 0 | H130: 0 | I130: 1.447131832e-11 | J130: -1.447131832e-11 | K130: 0 | L130: 6.34670675e-10 | M130: 0 | N130: 0 | O130: 0 | P130: 0 | Q130: =SUMPRODUCT((C130='Comparación Alternativas'!$Z$5:$Z$246)*(Alternativas!D130='Comparación Alternativas'!$AA$5:$AA$246)*('Comparación Alternativas'!$AQ$5:$AQ$246)) -> 0 | R130: =SUMPRODUCT((C130='Comparación Alternativas'!$Z$5:$Z$246)*('Comparación Alternativas'!$AA$5:$AA$246=Alternativas!D130)*('Comparación Alternativas'!$BA$5:$BA$246)) -> 0 | T130: 106 | U130: =IF(U129+SUMPRODUCT(($U$16='Para Ocultar'!$A$2:$A$7)*('Para Ocultar'!$C$2:$C$7))>12,(U129+SUMPRODUCT(($U$16='Para Ocultar'!$A$2:$A$7)*('Para Ocultar'!$C$2:$C$7)))-12,U129+SUMPRODUCT(($U$16='Para Ocultar'!$A$2:$A$7)*('Para Ocultar'!$C$2:$C$7))) -> 11 | V130: 2030 | W130: 0 | X130: 0 | Y130: 0 | Z130: 0 | AA130: -2.249073308e-12 | AB130: 2.249073308e-12 | AC130: 0 | AD130: -2.721378703e-10 | AE130: -2.249073308e-12 | AF130: 2.249073308e-12 | AG130: 0 | AH130: -2.721378703e-10 | AI130: =SUMPRODUCT((U130='Comparación Alternativas'!$Z$5:$Z$246)*('Comparación Alternativas'!$AA$5:$AA$246=Alternativas!V130)*('Comparación Alternativas'!$AV$5:$AV$246)) -> 0 | AJ130: =SUMPRODUCT((U130='Comparación Alternativas'!$Z$5:$Z$246)*('Comparación Alternativas'!$AA$5:$AA$246=Alternativas!V130)*('Comparación Alternativas'!$BF$5:$BF$246)) -> 0
B131: 107 | C131: =IF(C130+SUMPRODUCT(($C$16='Para Ocultar'!$A$2:$A$7)*('Para Ocultar'!$C$2:$C$7))>12,(C130+SUMPRODUCT(($C$16='Para Ocultar'!$A$2:$A$7)*('Para Ocultar'!$C$2:$C$7)))-12,C130+SUMPRODUCT(($C$16='Para Ocultar'!$A$2:$A$7)*('Para Ocultar'!$C$2:$C$7))) -> 12 | D131: 2030 | E131: 0 | F131: 0 | G131: 0 | H131: 0 | I131: 1.480898242e-11 | J131: -1.480898242e-11 | K131: 0 | L131: 6.494796574e-10 | M131: 0 | N131: 0 | O131: 0 | P131: 0 | Q131: =SUMPRODUCT((C131='Comparación Alternativas'!$Z$5:$Z$246)*(Alternativas!D131='Comparación Alternativas'!$AA$5:$AA$246)*('Comparación Alternativas'!$AQ$5:$AQ$246)) -> 0 | R131: =SUMPRODUCT((C131='Comparación Alternativas'!$Z$5:$Z$246)*('Comparación Alternativas'!$AA$5:$AA$246=Alternativas!D131)*('Comparación Alternativas'!$BA$5:$BA$246)) -> 0 | T131: 107 | U131: =IF(U130+SUMPRODUCT(($U$16='Para Ocultar'!$A$2:$A$7)*('Para Ocultar'!$C$2:$C$7))>12,(U130+SUMPRODUCT(($U$16='Para Ocultar'!$A$2:$A$7)*('Para Ocultar'!$C$2:$C$7)))-12,U130+SUMPRODUCT(($U$16='Para Ocultar'!$A$2:$A$7)*('Para Ocultar'!$C$2:$C$7))) -> 12 | V131: 2030 | W131: 0 | X131: 0 | Y131: 0 | Z131: 0 | AA131: -2.267815586e-12 | AB131: 2.267815586e-12 | AC131: 0 | AD131: -2.744056859e-10 | AE131: -2.267815586e-12 | AF131: 2.267815586e-12 | AG131: 0 | AH131: -2.744056859e-10 | AI131: =SUMPRODUCT((U131='Comparación Alternativas'!$Z$5:$Z$246)*('Comparación Alternativas'!$AA$5:$AA$246=Alternativas!V131)*('Comparación Alternativas'!$AV$5:$AV$246)) -> 0 | AJ131: =SUMPRODUCT((U131='Comparación Alternativas'!$Z$5:$Z$246)*('Comparación Alternativas'!$AA$5:$AA$246=Alternativas!V131)*('Comparación Alternativas'!$BF$5:$BF$246)) -> 0
B132: 108 | C132: =IF(C131+SUMPRODUCT(($C$16='Para Ocultar'!$A$2:$A$7)*('Para Ocultar'!$C$2:$C$7))>12,(C131+SUMPRODUCT(($C$16='Para Ocultar'!$A$2:$A$7)*('Para Ocultar'!$C$2:$C$7)))-12,C131+SUMPRODUCT(($C$16='Para Ocultar'!$A$2:$A$7)*('Para Ocultar'!$C$2:$C$7))) -> 1 | D132: 2031 | E132: 0 | F132: 0 | G132: 0 | H132: 0 | I132: 1.515452534e-11 | J132: -1.515452534e-11 | K132: 0 | L132: 6.646341828e-10 | M132: 0 | N132: 0 | O132: 0 | P132: 0 | Q132: =SUMPRODUCT((C132='Comparación Alternativas'!$Z$5:$Z$246)*(Alternativas!D132='Comparación Alternativas'!$AA$5:$AA$246)*('Comparación Alternativas'!$AQ$5:$AQ$246)) -> 0 | R132: =SUMPRODUCT((C132='Comparación Alternativas'!$Z$5:$Z$246)*('Comparación Alternativas'!$AA$5:$AA$246=Alternativas!D132)*('Comparación Alternativas'!$BA$5:$BA$246)) -> 0 | T132: 108 | U132: =IF(U131+SUMPRODUCT(($U$16='Para Ocultar'!$A$2:$A$7)*('Para Ocultar'!$C$2:$C$7))>12,(U131+SUMPRODUCT(($U$16='Para Ocultar'!$A$2:$A$7)*('Para Ocultar'!$C$2:$C$7)))-12,U131+SUMPRODUCT(($U$16='Para Ocultar'!$A$2:$A$7)*('Para Ocultar'!$C$2:$C$7))) -> 1 | V132: 2031 | W132: 0 | X132: 0 | Y132: 0 | Z132: 0 | AA132: -2.286714049e-12 | AB132: 2.286714049e-12 | AC132: 0 | AD132: -2.766923999e-10 | AE132: -2.286714049e-12 | AF132: 2.286714049e-12 | AG132: 0 | AH132: -2.766923999e-10 | AI132: =SUMPRODUCT((U132='Comparación Alternativas'!$Z$5:$Z$246)*('Comparación Alternativas'!$AA$5:$AA$246=Alternativas!V132)*('Comparación Alternativas'!$AV$5:$AV$246)) -> 0 | AJ132: =SUMPRODUCT((U132='Comparación Alternativas'!$Z$5:$Z$246)*('Comparación Alternativas'!$AA$5:$AA$246=Alternativas!V132)*('Comparación Alternativas'!$BF$5:$BF$246)) -> 0
B133: 109 | C133: =IF(C132+SUMPRODUCT(($C$16='Para Ocultar'!$A$2:$A$7)*('Para Ocultar'!$C$2:$C$7))>12,(C132+SUMPRODUCT(($C$16='Para Ocultar'!$A$2:$A$7)*('Para Ocultar'!$C$2:$C$7)))-12,C132+SUMPRODUCT(($C$16='Para Ocultar'!$A$2:$A$7)*('Para Ocultar'!$C$2:$C$7))) -> 2 | D133: 2031 | E133: 0 | F133: 0 | G133: 0 | H133: 0 | I133: 1.550813093e-11 | J133: -1.550813093e-11 | K133: 0 | L133: 6.801423137e-10 | M133: 0 | N133: 0 | O133: 0 | P133: 0 | Q133: =SUMPRODUCT((C133='Comparación Alternativas'!$Z$5:$Z$246)*(Alternativas!D133='Comparación Alternativas'!$AA$5:$AA$246)*('Comparación Alternativas'!$AQ$5:$AQ$246)) -> 0 | R133: =SUMPRODUCT((C133='Comparación Alternativas'!$Z$5:$Z$246)*('Comparación Alternativas'!$AA$5:$AA$246=Alternativas!D133)*('Comparación Alternativas'!$BA$5:$BA$246)) -> 0 | T133: 109 | U133: =IF(U132+SUMPRODUCT(($U$16='Para Ocultar'!$A$2:$A$7)*('Para Ocultar'!$C$2:$C$7))>12,(U132+SUMPRODUCT(($U$16='Para Ocultar'!$A$2:$A$7)*('Para Ocultar'!$C$2:$C$7)))-12,U132+SUMPRODUCT(($U$16='Para Ocultar'!$A$2:$A$7)*('Para Ocultar'!$C$2:$C$7))) -> 2 | V133: 2031 | W133: 0 | X133: 0 | Y133: 0 | Z133: 0 | AA133: -2.305769999e-12 | AB133: 2.305769999e-12 | AC133: 0 | AD133: -2.789981699e-10 | AE133: -2.305769999e-12 | AF133: 2.305769999e-12 | AG133: 0 | AH133: -2.789981699e-10 | AI133: =SUMPRODUCT((U133='Comparación Alternativas'!$Z$5:$Z$246)*('Comparación Alternativas'!$AA$5:$AA$246=Alternativas!V133)*('Comparación Alternativas'!$AV$5:$AV$246)) -> 0 | AJ133: =SUMPRODUCT((U133='Comparación Alternativas'!$Z$5:$Z$246)*('Comparación Alternativas'!$AA$5:$AA$246=Alternativas!V133)*('Comparación Alternativas'!$BF$5:$BF$246)) -> 0
B134: 110 | C134: =IF(C133+SUMPRODUCT(($C$16='Para Ocultar'!$A$2:$A$7)*('Para Ocultar'!$C$2:$C$7))>12,(C133+SUMPRODUCT(($C$16='Para Ocultar'!$A$2:$A$7)*('Para Ocultar'!$C$2:$C$7)))-12,C133+SUMPRODUCT(($C$16='Para Ocultar'!$A$2:$A$7)*('Para Ocultar'!$C$2:$C$7))) -> 3 | D134: 2031 | E134: 0 | F134: 0 | G134: 0 | H134: 0 | I134: 1.586998732e-11 | J134: -1.586998732e-11 | K134: 0 | L134: 6.96012301e-10 | M134: 0 | N134: 0 | O134: 0 | P134: 0 | Q134: =SUMPRODUCT((C134='Comparación Alternativas'!$Z$5:$Z$246)*(Alternativas!D134='Comparación Alternativas'!$AA$5:$AA$246)*('Comparación Alternativas'!$AQ$5:$AQ$246)) -> 0 | R134: =SUMPRODUCT((C134='Comparación Alternativas'!$Z$5:$Z$246)*('Comparación Alternativas'!$AA$5:$AA$246=Alternativas!D134)*('Comparación Alternativas'!$BA$5:$BA$246)) -> 0 | T134: 110 | U134: =IF(U133+SUMPRODUCT(($U$16='Para Ocultar'!$A$2:$A$7)*('Para Ocultar'!$C$2:$C$7))>12,(U133+SUMPRODUCT(($U$16='Para Ocultar'!$A$2:$A$7)*('Para Ocultar'!$C$2:$C$7)))-12,U133+SUMPRODUCT(($U$16='Para Ocultar'!$A$2:$A$7)*('Para Ocultar'!$C$2:$C$7))) -> 3 | V134: 2031 | W134: 0 | X134: 0 | Y134: 0 | Z134: 0 | AA134: -2.324984749e-12 | AB134: 2.324984749e-12 | AC134: 0 | AD134: -2.813231547e-10 | AE134: -2.324984749e-12 | AF134: 2.324984749e-12 | AG134: 0 | AH134: -2.813231547e-10 | AI134: =SUMPRODUCT((U134='Comparación Alternativas'!$Z$5:$Z$246)*('Comparación Alternativas'!$AA$5:$AA$246=Alternativas!V134)*('Comparación Alternativas'!$AV$5:$AV$246)) -> 0 | AJ134: =SUMPRODUCT((U134='Comparación Alternativas'!$Z$5:$Z$246)*('Comparación Alternativas'!$AA$5:$AA$246=Alternativas!V134)*('Comparación Alternativas'!$BF$5:$BF$246)) -> 0
B135: 111 | C135: =IF(C134+SUMPRODUCT(($C$16='Para Ocultar'!$A$2:$A$7)*('Para Ocultar'!$C$2:$C$7))>12,(C134+SUMPRODUCT(($C$16='Para Ocultar'!$A$2:$A$7)*('Para Ocultar'!$C$2:$C$7)))-12,C134+SUMPRODUCT(($C$16='Para Ocultar'!$A$2:$A$7)*('Para Ocultar'!$C$2:$C$7))) -> 4 | D135: 2031 | E135: 0 | F135: 0 | G135: 0 | H135: 0 | I135: 1.624028702e-11 | J135: -1.624028702e-11 | K135: 0 | L135: 7.12252588e-10 | M135: 0 | N135: 0 | O135: 0 | P135: 0 | Q135: =SUMPRODUCT((C135='Comparación Alternativas'!$Z$5:$Z$246)*(Alternativas!D135='Comparación Alternativas'!$AA$5:$AA$246)*('Comparación Alternativas'!$AQ$5:$AQ$246)) -> 0 | R135: =SUMPRODUCT((C135='Comparación Alternativas'!$Z$5:$Z$246)*('Comparación Alternativas'!$AA$5:$AA$246=Alternativas!D135)*('Comparación Alternativas'!$BA$5:$BA$246)) -> 0 | T135: 111 | U135: =IF(U134+SUMPRODUCT(($U$16='Para Ocultar'!$A$2:$A$7)*('Para Ocultar'!$C$2:$C$7))>12,(U134+SUMPRODUCT(($U$16='Para Ocultar'!$A$2:$A$7)*('Para Ocultar'!$C$2:$C$7)))-12,U134+SUMPRODUCT(($U$16='Para Ocultar'!$A$2:$A$7)*('Para Ocultar'!$C$2:$C$7))) -> 4 | V135: 2031 | W135: 0 | X135: 0 | Y135: 0 | Z135: 0 | AA135: -2.344359622e-12 | AB135: 2.344359622e-12 | AC135: 0 | AD135: -2.836675143e-10 | AE135: -2.344359622e-12 | AF135: 2.344359622e-12 | AG135: 0 | AH135: -2.836675143e-10 | AI135: =SUMPRODUCT((U135='Comparación Alternativas'!$Z$5:$Z$246)*('Comparación Alternativas'!$AA$5:$AA$246=Alternativas!V135)*('Comparación Alternativas'!$AV$5:$AV$246)) -> 0 | AJ135: =SUMPRODUCT((U135='Comparación Alternativas'!$Z$5:$Z$246)*('Comparación Alternativas'!$AA$5:$AA$246=Alternativas!V135)*('Comparación Alternativas'!$BF$5:$BF$246)) -> 0
B136: 112 | C136: =IF(C135+SUMPRODUCT(($C$16='Para Ocultar'!$A$2:$A$7)*('Para Ocultar'!$C$2:$C$7))>12,(C135+SUMPRODUCT(($C$16='Para Ocultar'!$A$2:$A$7)*('Para Ocultar'!$C$2:$C$7)))-12,C135+SUMPRODUCT(($C$16='Para Ocultar'!$A$2:$A$7)*('Para Ocultar'!$C$2:$C$7))) -> 5 | D136: 2031 | E136: 0 | F136: 0 | G136: 0 | H136: 0 | I136: 1.661922705e-11 | J136: -1.661922705e-11 | K136: 0 | L136: 7.288718151e-10 | M136: 0 | N136: 0 | O136: 0 | P136: 0 | Q136: =SUMPRODUCT((C136='Comparación Alternativas'!$Z$5:$Z$246)*(Alternativas!D136='Comparación Alternativas'!$AA$5:$AA$246)*('Comparación Alternativas'!$AQ$5:$AQ$246)) -> 0 | R136: =SUMPRODUCT((C136='Comparación Alternativas'!$Z$5:$Z$246)*('Comparación Alternativas'!$AA$5:$AA$246=Alternativas!D136)*('Comparación Alternativas'!$BA$5:$BA$246)) -> 0 | T136: 112 | U136: =IF(U135+SUMPRODUCT(($U$16='Para Ocultar'!$A$2:$A$7)*('Para Ocultar'!$C$2:$C$7))>12,(U135+SUMPRODUCT(($U$16='Para Ocultar'!$A$2:$A$7)*('Para Ocultar'!$C$2:$C$7)))-12,U135+SUMPRODUCT(($U$16='Para Ocultar'!$A$2:$A$7)*('Para Ocultar'!$C$2:$C$7))) -> 5 | V136: 2031 | W136: 0 | X136: 0 | Y136: 0 | Z136: 0 | AA136: -2.363895953e-12 | AB136: 2.363895953e-12 | AC136: 0 | AD136: -2.860314103e-10 | AE136: -2.363895953e-12 | AF136: 2.363895953e-12 | AG136: 0 | AH136: -2.860314103e-10 | AI136: =SUMPRODUCT((U136='Comparación Alternativas'!$Z$5:$Z$246)*('Comparación Alternativas'!$AA$5:$AA$246=Alternativas!V136)*('Comparación Alternativas'!$AV$5:$AV$246)) -> 0 | AJ136: =SUMPRODUCT((U136='Comparación Alternativas'!$Z$5:$Z$246)*('Comparación Alternativas'!$AA$5:$AA$246=Alternativas!V136)*('Comparación Alternativas'!$BF$5:$BF$246)) -> 0
B137: 113 | C137: =IF(C136+SUMPRODUCT(($C$16='Para Ocultar'!$A$2:$A$7)*('Para Ocultar'!$C$2:$C$7))>12,(C136+SUMPRODUCT(($C$16='Para Ocultar'!$A$2:$A$7)*('Para Ocultar'!$C$2:$C$7)))-12,C136+SUMPRODUCT(($C$16='Para Ocultar'!$A$2:$A$7)*('Para Ocultar'!$C$2:$C$7))) -> 6 | D137: 2031 | E137: 0 | F137: 0 | G137: 0 | H137: 0 | I137: 1.700700902e-11 | J137: -1.700700902e-11 | K137: 0 | L137: 7.458788241e-10 | M137: 0 | N137: 0 | O137: 0 | P137: 0 | Q137: =SUMPRODUCT((C137='Comparación Alternativas'!$Z$5:$Z$246)*(Alternativas!D137='Comparación Alternativas'!$AA$5:$AA$246)*('Comparación Alternativas'!$AQ$5:$AQ$246)) -> 0 | R137: =SUMPRODUCT((C137='Comparación Alternativas'!$Z$5:$Z$246)*('Comparación Alternativas'!$AA$5:$AA$246=Alternativas!D137)*('Comparación Alternativas'!$BA$5:$BA$246)) -> 0 | T137: 113 | U137: =IF(U136+SUMPRODUCT(($U$16='Para Ocultar'!$A$2:$A$7)*('Para Ocultar'!$C$2:$C$7))>12,(U136+SUMPRODUCT(($U$16='Para Ocultar'!$A$2:$A$7)*('Para Ocultar'!$C$2:$C$7)))-12,U136+SUMPRODUCT(($U$16='Para Ocultar'!$A$2:$A$7)*('Para Ocultar'!$C$2:$C$7))) -> 6 | V137: 2031 | W137: 0 | X137: 0 | Y137: 0 | Z137: 0 | AA137: -2.383595085e-12 | AB137: 2.383595085e-12 | AC137: 0 | AD137: -2.884150053e-10 | AE137: -2.383595085e-12 | AF137: 2.383595085e-12 | AG137: 0 | AH137: -2.884150053e-10 | AI137: =SUMPRODUCT((U137='Comparación Alternativas'!$Z$5:$Z$246)*('Comparación Alternativas'!$AA$5:$AA$246=Alternativas!V137)*('Comparación Alternativas'!$AV$5:$AV$246)) -> 0 | AJ137: =SUMPRODUCT((U137='Comparación Alternativas'!$Z$5:$Z$246)*('Comparación Alternativas'!$AA$5:$AA$246=Alternativas!V137)*('Comparación Alternativas'!$BF$5:$BF$246)) -> 0
B138: 114 | C138: =IF(C137+SUMPRODUCT(($C$16='Para Ocultar'!$A$2:$A$7)*('Para Ocultar'!$C$2:$C$7))>12,(C137+SUMPRODUCT(($C$16='Para Ocultar'!$A$2:$A$7)*('Para Ocultar'!$C$2:$C$7)))-12,C137+SUMPRODUCT(($C$16='Para Ocultar'!$A$2:$A$7)*('Para Ocultar'!$C$2:$C$7))) -> 7 | D138: 2031 | E138: 0 | F138: 0 | G138: 0 | H138: 0 | I138: 1.740383923e-11 | J138: -1.740383923e-11 | K138: 0 | L138: 7.632826633e-10 | M138: 0 | N138: 0 | O138: 0 | P138: 0 | Q138: =SUMPRODUCT((C138='Comparación Alternativas'!$Z$5:$Z$246)*(Alternativas!D138='Comparación Alternativas'!$AA$5:$AA$246)*('Comparación Alternativas'!$AQ$5:$AQ$246)) -> 0 | R138: =SUMPRODUCT((C138='Comparación Alternativas'!$Z$5:$Z$246)*('Comparación Alternativas'!$AA$5:$AA$246=Alternativas!D138)*('Comparación Alternativas'!$BA$5:$BA$246)) -> 0 | T138: 114 | U138: =IF(U137+SUMPRODUCT(($U$16='Para Ocultar'!$A$2:$A$7)*('Para Ocultar'!$C$2:$C$7))>12,(U137+SUMPRODUCT(($U$16='Para Ocultar'!$A$2:$A$7)*('Para Ocultar'!$C$2:$C$7)))-12,U137+SUMPRODUCT(($U$16='Para Ocultar'!$A$2:$A$7)*('Para Ocultar'!$C$2:$C$7))) -> 7 | V138: 2031 | W138: 0 | X138: 0 | Y138: 0 | Z138: 0 | AA138: -2.403458378e-12 | AB138: 2.403458378e-12 | AC138: 0 | AD138: -2.908184637e-10 | AE138: -2.403458378e-12 | AF138: 2.403458378e-12 | AG138: 0 | AH138: -2.908184637e-10 | AI138: =SUMPRODUCT((U138='Comparación Alternativas'!$Z$5:$Z$246)*('Comparación Alternativas'!$AA$5:$AA$246=Alternativas!V138)*('Comparación Alternativas'!$AV$5:$AV$246)) -> 0 | AJ138: =SUMPRODUCT((U138='Comparación Alternativas'!$Z$5:$Z$246)*('Comparación Alternativas'!$AA$5:$AA$246=Alternativas!V138)*('Comparación Alternativas'!$BF$5:$BF$246)) -> 0
B139: 115 | C139: =IF(C138+SUMPRODUCT(($C$16='Para Ocultar'!$A$2:$A$7)*('Para Ocultar'!$C$2:$C$7))>12,(C138+SUMPRODUCT(($C$16='Para Ocultar'!$A$2:$A$7)*('Para Ocultar'!$C$2:$C$7)))-12,C138+SUMPRODUCT(($C$16='Para Ocultar'!$A$2:$A$7)*('Para Ocultar'!$C$2:$C$7))) -> 8 | D139: 2031 | E139: 0 | F139: 0 | G139: 0 | H139: 0 | I139: 1.780992881e-11 | J139: -1.780992881e-11 | K139: 0 | L139: 7.810925922e-10 | M139: 0 | N139: 0 | O139: 0 | P139: 0 | Q139: =SUMPRODUCT((C139='Comparación Alternativas'!$Z$5:$Z$246)*(Alternativas!D139='Comparación Alternativas'!$AA$5:$AA$246)*('Comparación Alternativas'!$AQ$5:$AQ$246)) -> 0 | R139: =SUMPRODUCT((C139='Comparación Alternativas'!$Z$5:$Z$246)*('Comparación Alternativas'!$AA$5:$AA$246=Alternativas!D139)*('Comparación Alternativas'!$BA$5:$BA$246)) -> 0 | T139: 115 | U139: =IF(U138+SUMPRODUCT(($U$16='Para Ocultar'!$A$2:$A$7)*('Para Ocultar'!$C$2:$C$7))>12,(U138+SUMPRODUCT(($U$16='Para Ocultar'!$A$2:$A$7)*('Para Ocultar'!$C$2:$C$7)))-12,U138+SUMPRODUCT(($U$16='Para Ocultar'!$A$2:$A$7)*('Para Ocultar'!$C$2:$C$7))) -> 8 | V139: 2031 | W139: 0 | X139: 0 | Y139: 0 | Z139: 0 | AA139: -2.423487198e-12 | AB139: 2.423487198e-12 | AC139: 0 | AD139: -2.932419509e-10 | AE139: -2.423487198e-12 | AF139: 2.423487198e-12 | AG139: 0 | AH139: -2.932419509e-10 | AI139: =SUMPRODUCT((U139='Comparación Alternativas'!$Z$5:$Z$246)*('Comparación Alternativas'!$AA$5:$AA$246=Alternativas!V139)*('Comparación Alternativas'!$AV$5:$AV$246)) -> 0 | AJ139: =SUMPRODUCT((U139='Comparación Alternativas'!$Z$5:$Z$246)*('Comparación Alternativas'!$AA$5:$AA$246=Alternativas!V139)*('Comparación Alternativas'!$BF$5:$BF$246)) -> 0
B140: 116 | C140: =IF(C139+SUMPRODUCT(($C$16='Para Ocultar'!$A$2:$A$7)*('Para Ocultar'!$C$2:$C$7))>12,(C139+SUMPRODUCT(($C$16='Para Ocultar'!$A$2:$A$7)*('Para Ocultar'!$C$2:$C$7)))-12,C139+SUMPRODUCT(($C$16='Para Ocultar'!$A$2:$A$7)*('Para Ocultar'!$C$2:$C$7))) -> 9 | D140: 2031 | E140: 0 | F140: =-H139*($C$15/$C$16) -> 0 | G140: =F140+E140 -> 0 | H140: =E140+H139 -> 0 | I140: =L139-L139+K140-J140 -> 1.822549382e-11 | J140: =-L139*$C$15/$C$16 -> -1.822549382e-11 | K140: 0 | L140: =L139+I140 -> 7.99318086e-10 | M140: 0 | N140: 0 | O140: 0 | P140: 0 | Q140: =SUMPRODUCT((C140='Comparación Alternativas'!$Z$5:$Z$246)*(Alternativas!D140='Comparación Alternativas'!$AA$5:$AA$246)*('Comparación Alternativas'!$AQ$5:$AQ$246)) -> 0 | R140: =SUMPRODUCT((C140='Comparación Alternativas'!$Z$5:$Z$246)*('Comparación Alternativas'!$AA$5:$AA$246=Alternativas!D140)*('Comparación Alternativas'!$BA$5:$BA$246)) -> 0 | T140: 116 | U140: =IF(U139+SUMPRODUCT(($U$16='Para Ocultar'!$A$2:$A$7)*('Para Ocultar'!$C$2:$C$7))>12,(U139+SUMPRODUCT(($U$16='Para Ocultar'!$A$2:$A$7)*('Para Ocultar'!$C$2:$C$7)))-12,U139+SUMPRODUCT(($U$16='Para Ocultar'!$A$2:$A$7)*('Para Ocultar'!$C$2:$C$7))) -> 9 | V140: 2031 | W140: 0 | X140: 0 | Y140: =X140+W140 -> 0 | Z140: =W140+Z139 -> 0 | AA140: =AD139-AD139+AC140-AB140 -> -2.443682924e-12 | AB140: 2.443682924e-12 | AC140: 0 | AD140: =AD139+AA140 -> -2.956856338e-10 | AE140: -2.443682924e-12 | AF140: 2.443682924e-12 | AG140: 0 | AH140: -2.956856338e-10 | AI140: =SUMPRODUCT((U140='Comparación Alternativas'!$Z$5:$Z$246)*('Comparación Alternativas'!$AA$5:$AA$246=Alternativas!V140)*('Comparación Alternativas'!$AV$5:$AV$246)) -> 0 | AJ140: =SUMPRODUCT((U140='Comparación Alternativas'!$Z$5:$Z$246)*('Comparación Alternativas'!$AA$5:$AA$246=Alternativas!V140)*('Comparación Alternativas'!$BF$5:$BF$246)) -> 0
B141: 117 | C141: =IF(C140+SUMPRODUCT(($C$16='Para Ocultar'!$A$2:$A$7)*('Para Ocultar'!$C$2:$C$7))>12,(C140+SUMPRODUCT(($C$16='Para Ocultar'!$A$2:$A$7)*('Para Ocultar'!$C$2:$C$7)))-12,C140+SUMPRODUCT(($C$16='Para Ocultar'!$A$2:$A$7)*('Para Ocultar'!$C$2:$C$7))) -> 10 | D141: 2031 | E141: 0 | F141: 0 | G141: 0 | H141: 0 | I141: 1.865075534e-11 | J141: -1.865075534e-11 | K141: 0 | L141: 8.179688413e-10 | M141: 0 | N141: 0 | O141: 0 | P141: 0 | Q141: =SUMPRODUCT((C141='Comparación Alternativas'!$Z$5:$Z$246)*(Alternativas!D141='Comparación Alternativas'!$AA$5:$AA$246)*('Comparación Alternativas'!$AQ$5:$AQ$246)) -> 0 | R141: =SUMPRODUCT((C141='Comparación Alternativas'!$Z$5:$Z$246)*('Comparación Alternativas'!$AA$5:$AA$246=Alternativas!D141)*('Comparación Alternativas'!$BA$5:$BA$246)) -> 0 | T141: 117 | U141: =IF(U140+SUMPRODUCT(($U$16='Para Ocultar'!$A$2:$A$7)*('Para Ocultar'!$C$2:$C$7))>12,(U140+SUMPRODUCT(($U$16='Para Ocultar'!$A$2:$A$7)*('Para Ocultar'!$C$2:$C$7)))-12,U140+SUMPRODUCT(($U$16='Para Ocultar'!$A$2:$A$7)*('Para Ocultar'!$C$2:$C$7))) -> 10 | V141: 2031 | W141: 0 | X141: 0 | Y141: 0 | Z141: 0 | AA141: -2.464046949e-12 | AB141: 2.464046949e-12 | AC141: 0 | AD141: -2.981496808e-10 | AE141: -2.464046949e-12 | AF141: 2.464046949e-12 | AG141: 0 | AH141: -2.981496808e-10 | AI141: =SUMPRODUCT((U141='Comparación Alternativas'!$Z$5:$Z$246)*('Comparación Alternativas'!$AA$5:$AA$246=Alternativas!V141)*('Comparación Alternativas'!$AV$5:$AV$246)) -> 0 | AJ141: =SUMPRODUCT((U141='Comparación Alternativas'!$Z$5:$Z$246)*('Comparación Alternativas'!$AA$5:$AA$246=Alternativas!V141)*('Comparación Alternativas'!$BF$5:$BF$246)) -> 0
B142: 118 | C142: =IF(C141+SUMPRODUCT(($C$16='Para Ocultar'!$A$2:$A$7)*('Para Ocultar'!$C$2:$C$7))>12,(C141+SUMPRODUCT(($C$16='Para Ocultar'!$A$2:$A$7)*('Para Ocultar'!$C$2:$C$7)))-12,C141+SUMPRODUCT(($C$16='Para Ocultar'!$A$2:$A$7)*('Para Ocultar'!$C$2:$C$7))) -> 11 | D142: 2031 | E142: 0 | F142: 0 | G142: 0 | H142: 0 | I142: 1.908593963e-11 | J142: -1.908593963e-11 | K142: 0 | L142: 8.370547809e-10 | M142: 0 | N142: 0 | O142: 0 | P142: 0 | Q142: =SUMPRODUCT((C142='Comparación Alternativas'!$Z$5:$Z$246)*(Alternativas!D142='Comparación Alternativas'!$AA$5:$AA$246)*('Comparación Alternativas'!$AQ$5:$AQ$246)) -> 0 | R142: =SUMPRODUCT((C142='Comparación Alternativas'!$Z$5:$Z$246)*('Comparación Alternativas'!$AA$5:$AA$246=Alternativas!D142)*('Comparación Alternativas'!$BA$5:$BA$246)) -> 0 | T142: 118 | U142: =IF(U141+SUMPRODUCT(($U$16='Para Ocultar'!$A$2:$A$7)*('Para Ocultar'!$C$2:$C$7))>12,(U141+SUMPRODUCT(($U$16='Para Ocultar'!$A$2:$A$7)*('Para Ocultar'!$C$2:$C$7)))-12,U141+SUMPRODUCT(($U$16='Para Ocultar'!$A$2:$A$7)*('Para Ocultar'!$C$2:$C$7))) -> 11 | V142: 2031 | W142: 0 | X142: 0 | Y142: 0 | Z142: 0 | AA142: -2.484580673e-12 | AB142: 2.484580673e-12 | AC142: 0 | AD142: -3.006342615e-10 | AE142: -2.484580673e-12 | AF142: 2.484580673e-12 | AG142: 0 | AH142: -3.006342615e-10 | AI142: =SUMPRODUCT((U142='Comparación Alternativas'!$Z$5:$Z$246)*('Comparación Alternativas'!$AA$5:$AA$246=Alternativas!V142)*('Comparación Alternativas'!$AV$5:$AV$246)) -> 0 | AJ142: =SUMPRODUCT((U142='Comparación Alternativas'!$Z$5:$Z$246)*('Comparación Alternativas'!$AA$5:$AA$246=Alternativas!V142)*('Comparación Alternativas'!$BF$5:$BF$246)) -> 0
B143: 119 | C143: =IF(C142+SUMPRODUCT(($C$16='Para Ocultar'!$A$2:$A$7)*('Para Ocultar'!$C$2:$C$7))>12,(C142+SUMPRODUCT(($C$16='Para Ocultar'!$A$2:$A$7)*('Para Ocultar'!$C$2:$C$7)))-12,C142+SUMPRODUCT(($C$16='Para Ocultar'!$A$2:$A$7)*('Para Ocultar'!$C$2:$C$7))) -> 12 | D143: 2031 | E143: 0 | F143: 0 | G143: 0 | H143: 0 | I143: 1.953127822e-11 | J143: -1.953127822e-11 | K143: 0 | L143: 8.565860592e-10 | M143: 0 | N143: 0 | O143: 0 | P143: 0 | Q143: =SUMPRODUCT((C143='Comparación Alternativas'!$Z$5:$Z$246)*(Alternativas!D143='Comparación Alternativas'!$AA$5:$AA$246)*('Comparación Alternativas'!$AQ$5:$AQ$246)) -> 0 | R143: =SUMPRODUCT((C143='Comparación Alternativas'!$Z$5:$Z$246)*('Comparación Alternativas'!$AA$5:$AA$246=Alternativas!D143)*('Comparación Alternativas'!$BA$5:$BA$246)) -> 0 | T143: 119 | U143: =IF(U142+SUMPRODUCT(($U$16='Para Ocultar'!$A$2:$A$7)*('Para Ocultar'!$C$2:$C$7))>12,(U142+SUMPRODUCT(($U$16='Para Ocultar'!$A$2:$A$7)*('Para Ocultar'!$C$2:$C$7)))-12,U142+SUMPRODUCT(($U$16='Para Ocultar'!$A$2:$A$7)*('Para Ocultar'!$C$2:$C$7))) -> 12 | V143: 2031 | W143: 0 | X143: 0 | Y143: 0 | Z143: 0 | AA143: -2.505285512e-12 | AB143: 2.505285512e-12 | AC143: 0 | AD143: -3.03139547e-10 | AE143: -2.505285512e-12 | AF143: 2.505285512e-12 | AG143: 0 | AH143: -3.03139547e-10 | AI143: =SUMPRODUCT((U143='Comparación Alternativas'!$Z$5:$Z$246)*('Comparación Alternativas'!$AA$5:$AA$246=Alternativas!V143)*('Comparación Alternativas'!$AV$5:$AV$246)) -> 0 | AJ143: =SUMPRODUCT((U143='Comparación Alternativas'!$Z$5:$Z$246)*('Comparación Alternativas'!$AA$5:$AA$246=Alternativas!V143)*('Comparación Alternativas'!$BF$5:$BF$246)) -> 0
B144: 120 | C144: =IF(C143+SUMPRODUCT(($C$16='Para Ocultar'!$A$2:$A$7)*('Para Ocultar'!$C$2:$C$7))>12,(C143+SUMPRODUCT(($C$16='Para Ocultar'!$A$2:$A$7)*('Para Ocultar'!$C$2:$C$7)))-12,C143+SUMPRODUCT(($C$16='Para Ocultar'!$A$2:$A$7)*('Para Ocultar'!$C$2:$C$7))) -> 1 | D144: 2032 | E144: 0 | F144: 0 | G144: 0 | H144: 0 | I144: 1.998700805e-11 | J144: -1.998700805e-11 | K144: 0 | L144: 8.765730672e-10 | M144: 0 | N144: 0 | O144: 0 | P144: 0 | Q144: =SUMPRODUCT((C144='Comparación Alternativas'!$Z$5:$Z$246)*(Alternativas!D144='Comparación Alternativas'!$AA$5:$AA$246)*('Comparación Alternativas'!$AQ$5:$AQ$246)) -> 0 | R144: =SUMPRODUCT((C144='Comparación Alternativas'!$Z$5:$Z$246)*('Comparación Alternativas'!$AA$5:$AA$246=Alternativas!D144)*('Comparación Alternativas'!$BA$5:$BA$246)) -> 0 | T144: 120 | U144: =IF(U143+SUMPRODUCT(($U$16='Para Ocultar'!$A$2:$A$7)*('Para Ocultar'!$C$2:$C$7))>12,(U143+SUMPRODUCT(($U$16='Para Ocultar'!$A$2:$A$7)*('Para Ocultar'!$C$2:$C$7)))-12,U143+SUMPRODUCT(($U$16='Para Ocultar'!$A$2:$A$7)*('Para Ocultar'!$C$2:$C$7))) -> 1 | V144: 2032 | W144: 0 | X144: 0 | Y144: 0 | Z144: 0 | AA144: -2.526162891e-12 | AB144: 2.526162891e-12 | AC144: 0 | AD144: -3.056657099e-10 | AE144: -2.526162891e-12 | AF144: 2.526162891e-12 | AG144: 0 | AH144: -3.056657099e-10 | AI144: =SUMPRODUCT((U144='Comparación Alternativas'!$Z$5:$Z$246)*('Comparación Alternativas'!$AA$5:$AA$246=Alternativas!V144)*('Comparación Alternativas'!$AV$5:$AV$246)) -> 0 | AJ144: =SUMPRODUCT((U144='Comparación Alternativas'!$Z$5:$Z$246)*('Comparación Alternativas'!$AA$5:$AA$246=Alternativas!V144)*('Comparación Alternativas'!$BF$5:$BF$246)) -> 0
B145: 121 | C145: =IF(C144+SUMPRODUCT(($C$16='Para Ocultar'!$A$2:$A$7)*('Para Ocultar'!$C$2:$C$7))>12,(C144+SUMPRODUCT(($C$16='Para Ocultar'!$A$2:$A$7)*('Para Ocultar'!$C$2:$C$7)))-12,C144+SUMPRODUCT(($C$16='Para Ocultar'!$A$2:$A$7)*('Para Ocultar'!$C$2:$C$7))) -> 2 | D145: 2032 | E145: 0 | F145: 0 | G145: 0 | H145: 0 | I145: 2.045337157e-11 | J145: -2.045337157e-11 | K145: 0 | L145: 8.970264388e-10 | M145: 0 | N145: 0 | O145: 0 | P145: 0 | Q145: =SUMPRODUCT((C145='Comparación Alternativas'!$Z$5:$Z$246)*(Alternativas!D145='Comparación Alternativas'!$AA$5:$AA$246)*('Comparación Alternativas'!$AQ$5:$AQ$246)) -> 0 | R145: =SUMPRODUCT((C145='Comparación Alternativas'!$Z$5:$Z$246)*('Comparación Alternativas'!$AA$5:$AA$246=Alternativas!D145)*('Comparación Alternativas'!$BA$5:$BA$246)) -> 0 | T145: 121 | U145: =IF(U144+SUMPRODUCT(($U$16='Para Ocultar'!$A$2:$A$7)*('Para Ocultar'!$C$2:$C$7))>12,(U144+SUMPRODUCT(($U$16='Para Ocultar'!$A$2:$A$7)*('Para Ocultar'!$C$2:$C$7)))-12,U144+SUMPRODUCT(($U$16='Para Ocultar'!$A$2:$A$7)*('Para Ocultar'!$C$2:$C$7))) -> 2 | V145: 2032 | W145: 0 | X145: 0 | Y145: 0 | Z145: 0 | AA145: -2.547214249e-12 | AB145: 2.547214249e-12 | AC145: 0 | AD145: -3.082129241e-10 | AE145: -2.547214249e-12 | AF145: 2.547214249e-12 | AG145: 0 | AH145: -3.082129241e-10 | AI145: =SUMPRODUCT((U145='Comparación Alternativas'!$Z$5:$Z$246)*('Comparación Alternativas'!$AA$5:$AA$246=Alternativas!V145)*('Comparación Alternativas'!$AV$5:$AV$246)) -> 0 | AJ145: =SUMPRODUCT((U145='Comparación Alternativas'!$Z$5:$Z$246)*('Comparación Alternativas'!$AA$5:$AA$246=Alternativas!V145)*('Comparación Alternativas'!$BF$5:$BF$246)) -> 0
B146: 122 | C146: =IF(C145+SUMPRODUCT(($C$16='Para Ocultar'!$A$2:$A$7)*('Para Ocultar'!$C$2:$C$7))>12,(C145+SUMPRODUCT(($C$16='Para Ocultar'!$A$2:$A$7)*('Para Ocultar'!$C$2:$C$7)))-12,C145+SUMPRODUCT(($C$16='Para Ocultar'!$A$2:$A$7)*('Para Ocultar'!$C$2:$C$7))) -> 3 | D146: 2032 | E146: 0 | F146: 0 | G146: 0 | H146: 0 | I146: 2.093061691e-11 | J146: -2.093061691e-11 | K146: 0 | L146: 9.179570557e-10 | M146: 0 | N146: 0 | O146: 0 | P146: 0 | Q146: =SUMPRODUCT((C146='Comparación Alternativas'!$Z$5:$Z$246)*(Alternativas!D146='Comparación Alternativas'!$AA$5:$AA$246)*('Comparación Alternativas'!$AQ$5:$AQ$246)) -> 0 | R146: =SUMPRODUCT((C146='Comparación Alternativas'!$Z$5:$Z$246)*('Comparación Alternativas'!$AA$5:$AA$246=Alternativas!D146)*('Comparación Alternativas'!$BA$5:$BA$246)) -> 0 | T146: 122 | U146: =IF(U145+SUMPRODUCT(($U$16='Para Ocultar'!$A$2:$A$7)*('Para Ocultar'!$C$2:$C$7))>12,(U145+SUMPRODUCT(($U$16='Para Ocultar'!$A$2:$A$7)*('Para Ocultar'!$C$2:$C$7)))-12,U145+SUMPRODUCT(($U$16='Para Ocultar'!$A$2:$A$7)*('Para Ocultar'!$C$2:$C$7))) -> 3 | V146: 2032 | W146: 0 | X146: 0 | Y146: 0 | Z146: 0 | AA146: -2.568441034e-12 | AB146: 2.568441034e-12 | AC146: 0 | AD146: -3.107813652e-10 | AE146: -2.568441034e-12 | AF146: 2.568441034e-12 | AG146: 0 | AH146: -3.107813652e-10 | AI146: =SUMPRODUCT((U146='Comparación Alternativas'!$Z$5:$Z$246)*('Comparación Alternativas'!$AA$5:$AA$246=Alternativas!V146)*('Comparación Alternativas'!$AV$5:$AV$246)) -> 0 | AJ146: =SUMPRODUCT((U146='Comparación Alternativas'!$Z$5:$Z$246)*('Comparación Alternativas'!$AA$5:$AA$246=Alternativas!V146)*('Comparación Alternativas'!$BF$5:$BF$246)) -> 0
B147: 123 | C147: =IF(C146+SUMPRODUCT(($C$16='Para Ocultar'!$A$2:$A$7)*('Para Ocultar'!$C$2:$C$7))>12,(C146+SUMPRODUCT(($C$16='Para Ocultar'!$A$2:$A$7)*('Para Ocultar'!$C$2:$C$7)))-12,C146+SUMPRODUCT(($C$16='Para Ocultar'!$A$2:$A$7)*('Para Ocultar'!$C$2:$C$7))) -> 4 | D147: 2032 | E147: 0 | F147: 0 | G147: 0 | H147: 0 | I147: 2.141899797e-11 | J147: -2.141899797e-11 | K147: 0 | L147: 9.393760537e-10 | M147: 0 | N147: 0 | O147: 0 | P147: 0 | Q147: =SUMPRODUCT((C147='Comparación Alternativas'!$Z$5:$Z$246)*(Alternativas!D147='Comparación Alternativas'!$AA$5:$AA$246)*('Comparación Alternativas'!$AQ$5:$AQ$246)) -> 0 | R147: =SUMPRODUCT((C147='Comparación Alternativas'!$Z$5:$Z$246)*('Comparación Alternativas'!$AA$5:$AA$246=Alternativas!D147)*('Comparación Alternativas'!$BA$5:$BA$246)) -> 0 | T147: 123 | U147: =IF(U146+SUMPRODUCT(($U$16='Para Ocultar'!$A$2:$A$7)*('Para Ocultar'!$C$2:$C$7))>12,(U146+SUMPRODUCT(($U$16='Para Ocultar'!$A$2:$A$7)*('Para Ocultar'!$C$2:$C$7)))-12,U146+SUMPRODUCT(($U$16='Para Ocultar'!$A$2:$A$7)*('Para Ocultar'!$C$2:$C$7))) -> 4 | V147: 2032 | W147: 0 | X147: 0 | Y147: 0 | Z147: 0 | AA147: -2.58984471e-12 | AB147: 2.58984471e-12 | AC147: 0 | AD147: -3.133712099e-10 | AE147: -2.58984471e-12 | AF147: 2.58984471e-12 | AG147: 0 | AH147: -3.133712099e-10 | AI147: =SUMPRODUCT((U147='Comparación Alternativas'!$Z$5:$Z$246)*('Comparación Alternativas'!$AA$5:$AA$246=Alternativas!V147)*('Comparación Alternativas'!$AV$5:$AV$246)) -> 0 | AJ147: =SUMPRODUCT((U147='Comparación Alternativas'!$Z$5:$Z$246)*('Comparación Alternativas'!$AA$5:$AA$246=Alternativas!V147)*('Comparación Alternativas'!$BF$5:$BF$246)) -> 0
B148: 124 | C148: =IF(C147+SUMPRODUCT(($C$16='Para Ocultar'!$A$2:$A$7)*('Para Ocultar'!$C$2:$C$7))>12,(C147+SUMPRODUCT(($C$16='Para Ocultar'!$A$2:$A$7)*('Para Ocultar'!$C$2:$C$7)))-12,C147+SUMPRODUCT(($C$16='Para Ocultar'!$A$2:$A$7)*('Para Ocultar'!$C$2:$C$7))) -> 5 | D148: 2032 | E148: 0 | F148: 0 | G148: 0 | H148: 0 | I148: 2.191877459e-11 | J148: -2.191877459e-11 | K148: 0 | L148: 9.612948282e-10 | M148: 0 | N148: 0 | O148: 0 | P148: 0 | Q148: =SUMPRODUCT((C148='Comparación Alternativas'!$Z$5:$Z$246)*(Alternativas!D148='Comparación Alternativas'!$AA$5:$AA$246)*('Comparación Alternativas'!$AQ$5:$AQ$246)) -> 0 | R148: =SUMPRODUCT((C148='Comparación Alternativas'!$Z$5:$Z$246)*('Comparación Alternativas'!$AA$5:$AA$246=Alternativas!D148)*('Comparación Alternativas'!$BA$5:$BA$246)) -> 0 | T148: 124 | U148: =IF(U147+SUMPRODUCT(($U$16='Para Ocultar'!$A$2:$A$7)*('Para Ocultar'!$C$2:$C$7))>12,(U147+SUMPRODUCT(($U$16='Para Ocultar'!$A$2:$A$7)*('Para Ocultar'!$C$2:$C$7)))-12,U147+SUMPRODUCT(($U$16='Para Ocultar'!$A$2:$A$7)*('Para Ocultar'!$C$2:$C$7))) -> 5 | V148: 2032 | W148: 0 | X148: 0 | Y148: 0 | Z148: 0 | AA148: -2.611426749e-12 | AB148: 2.611426749e-12 | AC148: 0 | AD148: -3.159826366e-10 | AE148: -2.611426749e-12 | AF148: 2.611426749e-12 | AG148: 0 | AH148: -3.159826366e-10 | AI148: =SUMPRODUCT((U148='Comparación Alternativas'!$Z$5:$Z$246)*('Comparación Alternativas'!$AA$5:$AA$246=Alternativas!V148)*('Comparación Alternativas'!$AV$5:$AV$246)) -> 0 | AJ148: =SUMPRODUCT((U148='Comparación Alternativas'!$Z$5:$Z$246)*('Comparación Alternativas'!$AA$5:$AA$246=Alternativas!V148)*('Comparación Alternativas'!$BF$5:$BF$246)) -> 0
B149: 125 | C149: =IF(C148+SUMPRODUCT(($C$16='Para Ocultar'!$A$2:$A$7)*('Para Ocultar'!$C$2:$C$7))>12,(C148+SUMPRODUCT(($C$16='Para Ocultar'!$A$2:$A$7)*('Para Ocultar'!$C$2:$C$7)))-12,C148+SUMPRODUCT(($C$16='Para Ocultar'!$A$2:$A$7)*('Para Ocultar'!$C$2:$C$7))) -> 6 | D149: 2032 | E149: 0 | F149: 0 | G149: 0 | H149: 0 | I149: 2.243021266e-11 | J149: -2.243021266e-11 | K149: 0 | L149: 9.837250409e-10 | M149: 0 | N149: 0 | O149: 0 | P149: 0 | Q149: =SUMPRODUCT((C149='Comparación Alternativas'!$Z$5:$Z$246)*(Alternativas!D149='Comparación Alternativas'!$AA$5:$AA$246)*('Comparación Alternativas'!$AQ$5:$AQ$246)) -> 0 | R149: =SUMPRODUCT((C149='Comparación Alternativas'!$Z$5:$Z$246)*('Comparación Alternativas'!$AA$5:$AA$246=Alternativas!D149)*('Comparación Alternativas'!$BA$5:$BA$246)) -> 0 | T149: 125 | U149: =IF(U148+SUMPRODUCT(($U$16='Para Ocultar'!$A$2:$A$7)*('Para Ocultar'!$C$2:$C$7))>12,(U148+SUMPRODUCT(($U$16='Para Ocultar'!$A$2:$A$7)*('Para Ocultar'!$C$2:$C$7)))-12,U148+SUMPRODUCT(($U$16='Para Ocultar'!$A$2:$A$7)*('Para Ocultar'!$C$2:$C$7))) -> 6 | V149: 2032 | W149: 0 | X149: 0 | Y149: 0 | Z149: 0 | AA149: -2.633188638e-12 | AB149: 2.633188638e-12 | AC149: 0 | AD149: -3.186158253e-10 | AE149: -2.633188638e-12 | AF149: 2.633188638e-12 | AG149: 0 | AH149: -3.186158253e-10 | AI149: =SUMPRODUCT((U149='Comparación Alternativas'!$Z$5:$Z$246)*('Comparación Alternativas'!$AA$5:$AA$246=Alternativas!V149)*('Comparación Alternativas'!$AV$5:$AV$246)) -> 0 | AJ149: =SUMPRODUCT((U149='Comparación Alternativas'!$Z$5:$Z$246)*('Comparación Alternativas'!$AA$5:$AA$246=Alternativas!V149)*('Comparación Alternativas'!$BF$5:$BF$246)) -> 0
B150: 126 | C150: =IF(C149+SUMPRODUCT(($C$16='Para Ocultar'!$A$2:$A$7)*('Para Ocultar'!$C$2:$C$7))>12,(C149+SUMPRODUCT(($C$16='Para Ocultar'!$A$2:$A$7)*('Para Ocultar'!$C$2:$C$7)))-12,C149+SUMPRODUCT(($C$16='Para Ocultar'!$A$2:$A$7)*('Para Ocultar'!$C$2:$C$7))) -> 7 | D150: 2032 | E150: 0 | F150: 0 | G150: 0 | H150: 0 | I150: 2.295358429e-11 | J150: -2.295358429e-11 | K150: 0 | L150: 1.006678625e-09 | M150: 0 | N150: 0 | O150: 0 | P150: 0 | Q150: =SUMPRODUCT((C150='Comparación Alternativas'!$Z$5:$Z$246)*(Alternativas!D150='Comparación Alternativas'!$AA$5:$AA$246)*('Comparación Alternativas'!$AQ$5:$AQ$246)) -> 0 | R150: =SUMPRODUCT((C150='Comparación Alternativas'!$Z$5:$Z$246)*('Comparación Alternativas'!$AA$5:$AA$246=Alternativas!D150)*('Comparación Alternativas'!$BA$5:$BA$246)) -> 0 | T150: 126 | U150: =IF(U149+SUMPRODUCT(($U$16='Para Ocultar'!$A$2:$A$7)*('Para Ocultar'!$C$2:$C$7))>12,(U149+SUMPRODUCT(($U$16='Para Ocultar'!$A$2:$A$7)*('Para Ocultar'!$C$2:$C$7)))-12,U149+SUMPRODUCT(($U$16='Para Ocultar'!$A$2:$A$7)*('Para Ocultar'!$C$2:$C$7))) -> 7 | V150: 2032 | W150: 0 | X150: 0 | Y150: 0 | Z150: 0 | AA150: -2.655131877e-12 | AB150: 2.655131877e-12 | AC150: 0 | AD150: -3.212709571e-10 | AE150: -2.655131877e-12 | AF150: 2.655131877e-12 | AG150: 0 | AH150: -3.212709571e-10 | AI150: =SUMPRODUCT((U150='Comparación Alternativas'!$Z$5:$Z$246)*('Comparación Alternativas'!$AA$5:$AA$246=Alternativas!V150)*('Comparación Alternativas'!$AV$5:$AV$246)) -> 0 | AJ150: =SUMPRODUCT((U150='Comparación Alternativas'!$Z$5:$Z$246)*('Comparación Alternativas'!$AA$5:$AA$246=Alternativas!V150)*('Comparación Alternativas'!$BF$5:$BF$246)) -> 0
B151: 127 | C151: =IF(C150+SUMPRODUCT(($C$16='Para Ocultar'!$A$2:$A$7)*('Para Ocultar'!$C$2:$C$7))>12,(C150+SUMPRODUCT(($C$16='Para Ocultar'!$A$2:$A$7)*('Para Ocultar'!$C$2:$C$7)))-12,C150+SUMPRODUCT(($C$16='Para Ocultar'!$A$2:$A$7)*('Para Ocultar'!$C$2:$C$7))) -> 8 | D151: 2032 | E151: 0 | F151: 0 | G151: 0 | H151: 0 | I151: 2.348916792e-11 | J151: -2.348916792e-11 | K151: 0 | L151: 1.030167793e-09 | M151: 0 | N151: 0 | O151: 0 | P151: 0 | Q151: =SUMPRODUCT((C151='Comparación Alternativas'!$Z$5:$Z$246)*(Alternativas!D151='Comparación Alternativas'!$AA$5:$AA$246)*('Comparación Alternativas'!$AQ$5:$AQ$246)) -> 0 | R151: =SUMPRODUCT((C151='Comparación Alternativas'!$Z$5:$Z$246)*('Comparación Alternativas'!$AA$5:$AA$246=Alternativas!D151)*('Comparación Alternativas'!$BA$5:$BA$246)) -> 0 | T151: 127 | U151: =IF(U150+SUMPRODUCT(($U$16='Para Ocultar'!$A$2:$A$7)*('Para Ocultar'!$C$2:$C$7))>12,(U150+SUMPRODUCT(($U$16='Para Ocultar'!$A$2:$A$7)*('Para Ocultar'!$C$2:$C$7)))-12,U150+SUMPRODUCT(($U$16='Para Ocultar'!$A$2:$A$7)*('Para Ocultar'!$C$2:$C$7))) -> 8 | V151: 2032 | W151: 0 | X151: 0 | Y151: 0 | Z151: 0 | AA151: -2.677257976e-12 | AB151: 2.677257976e-12 | AC151: 0 | AD151: -3.239482151e-10 | AE151: -2.677257976e-12 | AF151: 2.677257976e-12 | AG151: 0 | AH151: -3.239482151e-10 | AI151: =SUMPRODUCT((U151='Comparación Alternativas'!$Z$5:$Z$246)*('Comparación Alternativas'!$AA$5:$AA$246=Alternativas!V151)*('Comparación Alternativas'!$AV$5:$AV$246)) -> 0 | AJ151: =SUMPRODUCT((U151='Comparación Alternativas'!$Z$5:$Z$246)*('Comparación Alternativas'!$AA$5:$AA$246=Alternativas!V151)*('Comparación Alternativas'!$BF$5:$BF$246)) -> 0
B152: 128 | C152: =IF(C151+SUMPRODUCT(($C$16='Para Ocultar'!$A$2:$A$7)*('Para Ocultar'!$C$2:$C$7))>12,(C151+SUMPRODUCT(($C$16='Para Ocultar'!$A$2:$A$7)*('Para Ocultar'!$C$2:$C$7)))-12,C151+SUMPRODUCT(($C$16='Para Ocultar'!$A$2:$A$7)*('Para Ocultar'!$C$2:$C$7))) -> 9 | D152: 2032 | E152: 0 | F152: 0 | G152: 0 | H152: 0 | I152: 2.403724851e-11 | J152: -2.403724851e-11 | K152: 0 | L152: 1.054205042e-09 | M152: 0 | N152: 0 | O152: 0 | P152: 0 | Q152: =SUMPRODUCT((C152='Comparación Alternativas'!$Z$5:$Z$246)*(Alternativas!D152='Comparación Alternativas'!$AA$5:$AA$246)*('Comparación Alternativas'!$AQ$5:$AQ$246)) -> 0 | R152: =SUMPRODUCT((C152='Comparación Alternativas'!$Z$5:$Z$246)*('Comparación Alternativas'!$AA$5:$AA$246=Alternativas!D152)*('Comparación Alternativas'!$BA$5:$BA$246)) -> 0 | T152: 128 | U152: =IF(U151+SUMPRODUCT(($U$16='Para Ocultar'!$A$2:$A$7)*('Para Ocultar'!$C$2:$C$7))>12,(U151+SUMPRODUCT(($U$16='Para Ocultar'!$A$2:$A$7)*('Para Ocultar'!$C$2:$C$7)))-12,U151+SUMPRODUCT(($U$16='Para Ocultar'!$A$2:$A$7)*('Para Ocultar'!$C$2:$C$7))) -> 9 | V152: 2032 | W152: 0 | X152: 0 | Y152: 0 | Z152: 0 | AA152: -2.699568459e-12 | AB152: 2.699568459e-12 | AC152: 0 | AD152: -3.266477836e-10 | AE152: -2.699568459e-12 | AF152: 2.699568459e-12 | AG152: 0 | AH152: -3.266477836e-10 | AI152: =SUMPRODUCT((U152='Comparación Alternativas'!$Z$5:$Z$246)*('Comparación Alternativas'!$AA$5:$AA$246=Alternativas!V152)*('Comparación Alternativas'!$AV$5:$AV$246)) -> 0 | AJ152: =SUMPRODUCT((U152='Comparación Alternativas'!$Z$5:$Z$246)*('Comparación Alternativas'!$AA$5:$AA$246=Alternativas!V152)*('Comparación Alternativas'!$BF$5:$BF$246)) -> 0
B153: 129 | C153: =IF(C152+SUMPRODUCT(($C$16='Para Ocultar'!$A$2:$A$7)*('Para Ocultar'!$C$2:$C$7))>12,(C152+SUMPRODUCT(($C$16='Para Ocultar'!$A$2:$A$7)*('Para Ocultar'!$C$2:$C$7)))-12,C152+SUMPRODUCT(($C$16='Para Ocultar'!$A$2:$A$7)*('Para Ocultar'!$C$2:$C$7))) -> 10 | D153: 2032 | E153: 0 | F153: 0 | G153: 0 | H153: 0 | I153: 2.459811764e-11 | J153: -2.459811764e-11 | K153: =-IF($C$18>=B153,$C$12*$C$15/$C$16,IF($C$17+$C$18>=B153,$C$12*$J$20,0)) -> 0 | L153: 1.078803159e-09 | M153: =IF($C$14="Alemán",E153,I153) -> 0 | N153: =IF($C$14="Alemán",F153,J153) -> 0 | O153: =IF($C$14="Alemán",G153,K153) -> 0 | P153: =IF($C$14="Alemán",H153,L153) -> 0 | Q153: =SUMPRODUCT((C153='Comparación Alternativas'!$Z$5:$Z$246)*(Alternativas!D153='Comparación Alternativas'!$AA$5:$AA$246)*('Comparación Alternativas'!$AQ$5:$AQ$246)) -> 0 | R153: =SUMPRODUCT((C153='Comparación Alternativas'!$Z$5:$Z$246)*('Comparación Alternativas'!$AA$5:$AA$246=Alternativas!D153)*('Comparación Alternativas'!$BA$5:$BA$246)) -> 0 | T153: 129 | U153: =IF(U152+SUMPRODUCT(($U$16='Para Ocultar'!$A$2:$A$7)*('Para Ocultar'!$C$2:$C$7))>12,(U152+SUMPRODUCT(($U$16='Para Ocultar'!$A$2:$A$7)*('Para Ocultar'!$C$2:$C$7)))-12,U152+SUMPRODUCT(($U$16='Para Ocultar'!$A$2:$A$7)*('Para Ocultar'!$C$2:$C$7))) -> 10 | V153: 2032 | W153: 0 | X153: 0 | Y153: 0 | Z153: 0 | AA153: -2.722064863e-12 | AB153: 2.722064863e-12 | AC153: =-IF($U$18>=T153,$U$12*$U$15/$U$16,IF($U$17+$U$18>=T153,$U$12*$AB$20,0)) -> 0 | AD153: -3.293698484e-10 | AE153: =IF($U$14="Alemán",W153,AA153) -> -2.722064863e-12 | AF153: =IF($U$14="Alemán",X153,AB153) -> 2.722064863e-12 | AG153: =IF($U$14="Alemán",Y153,AC153) -> 0 | AH153: =IF($U$14="Alemán",Z153,AD153) -> -3.293698484e-10 | AI153: =SUMPRODUCT((U153='Comparación Alternativas'!$Z$5:$Z$246)*('Comparación Alternativas'!$AA$5:$AA$246=Alternativas!V153)*('Comparación Alternativas'!$AV$5:$AV$246)) -> 0 | AJ153: =SUMPRODUCT((U153='Comparación Alternativas'!$Z$5:$Z$246)*('Comparación Alternativas'!$AA$5:$AA$246=Alternativas!V153)*('Comparación Alternativas'!$BF$5:$BF$246)) -> 0
B154: 130 | C154: =IF(C153+SUMPRODUCT(($C$16='Para Ocultar'!$A$2:$A$7)*('Para Ocultar'!$C$2:$C$7))>12,(C153+SUMPRODUCT(($C$16='Para Ocultar'!$A$2:$A$7)*('Para Ocultar'!$C$2:$C$7)))-12,C153+SUMPRODUCT(($C$16='Para Ocultar'!$A$2:$A$7)*('Para Ocultar'!$C$2:$C$7))) -> 11 | D154: =IF(C154<=C153,D153+1,D153) -> 2032 | E154: 0 | F154: 0 | G154: 0 | H154: 0 | I154: 2.517207372e-11 | J154: -2.517207372e-11 | K154: 0 | L154: 1.103975233e-09 | M154: 0 | N154: 0 | O154: 0 | P154: 0 | Q154: =SUMPRODUCT((C154='Comparación Alternativas'!$Z$5:$Z$246)*(Alternativas!D154='Comparación Alternativas'!$AA$5:$AA$246)*('Comparación Alternativas'!$AQ$5:$AQ$246)) -> 0 | R154: =SUMPRODUCT((C154='Comparación Alternativas'!$Z$5:$Z$246)*('Comparación Alternativas'!$AA$5:$AA$246=Alternativas!D154)*('Comparación Alternativas'!$BA$5:$BA$246)) -> 0 | T154: 130 | U154: =IF(U153+SUMPRODUCT(($U$16='Para Ocultar'!$A$2:$A$7)*('Para Ocultar'!$C$2:$C$7))>12,(U153+SUMPRODUCT(($U$16='Para Ocultar'!$A$2:$A$7)*('Para Ocultar'!$C$2:$C$7)))-12,U153+SUMPRODUCT(($U$16='Para Ocultar'!$A$2:$A$7)*('Para Ocultar'!$C$2:$C$7))) -> 11 | V154: =IF(U154<=U153,V153+1,V153) -> 2032 | W154: =IF($U$18>=T154,0,-IF(T154<=$U$17+$U$18,$V$12/$U$17,0)) -> 0 | X154: =-Z153*($U$15/$U$16) -> 0 | Y154: 0 | Z154: 0 | AA154: -2.744748737e-12 | AB154: =-AD153*$U$15/$U$16 -> 2.744748737e-12 | AC154: 0 | AD154: -3.321145972e-10 | AE154: -2.744748737e-12 | AF154: 2.744748737e-12 | AG154: 0 | AH154: -3.321145972e-10 | AI154: =SUMPRODUCT((U154='Comparación Alternativas'!$Z$5:$Z$246)*('Comparación Alternativas'!$AA$5:$AA$246=Alternativas!V154)*('Comparación Alternativas'!$AV$5:$AV$246)) -> 0 | AJ154: =SUMPRODUCT((U154='Comparación Alternativas'!$Z$5:$Z$246)*('Comparación Alternativas'!$AA$5:$AA$246=Alternativas!V154)*('Comparación Alternativas'!$BF$5:$BF$246)) -> 0
B155: 131 | C155: =IF(C154+SUMPRODUCT(($C$16='Para Ocultar'!$A$2:$A$7)*('Para Ocultar'!$C$2:$C$7))>12,(C154+SUMPRODUCT(($C$16='Para Ocultar'!$A$2:$A$7)*('Para Ocultar'!$C$2:$C$7)))-12,C154+SUMPRODUCT(($C$16='Para Ocultar'!$A$2:$A$7)*('Para Ocultar'!$C$2:$C$7))) -> 12 | D155: 2032 | E155: 0 | F155: 0 | G155: 0 | H155: 0 | I155: 2.57594221e-11 | J155: -2.57594221e-11 | K155: 0 | L155: 1.129734655e-09 | M155: 0 | N155: 0 | O155: 0 | P155: 0 | Q155: =SUMPRODUCT((C155='Comparación Alternativas'!$Z$5:$Z$246)*(Alternativas!D155='Comparación Alternativas'!$AA$5:$AA$246)*('Comparación Alternativas'!$AQ$5:$AQ$246)) -> 0 | R155: =SUMPRODUCT((C155='Comparación Alternativas'!$Z$5:$Z$246)*('Comparación Alternativas'!$AA$5:$AA$246=Alternativas!D155)*('Comparación Alternativas'!$BA$5:$BA$246)) -> 0 | T155: 131 | U155: =IF(U154+SUMPRODUCT(($U$16='Para Ocultar'!$A$2:$A$7)*('Para Ocultar'!$C$2:$C$7))>12,(U154+SUMPRODUCT(($U$16='Para Ocultar'!$A$2:$A$7)*('Para Ocultar'!$C$2:$C$7)))-12,U154+SUMPRODUCT(($U$16='Para Ocultar'!$A$2:$A$7)*('Para Ocultar'!$C$2:$C$7))) -> 12 | V155: 2032 | W155: 0 | X155: 0 | Y155: 0 | Z155: 0 | AA155: -2.767621643e-12 | AB155: 2.767621643e-12 | AC155: 0 | AD155: -3.348822188e-10 | AE155: -2.767621643e-12 | AF155: 2.767621643e-12 | AG155: 0 | AH155: -3.348822188e-10 | AI155: =SUMPRODUCT((U155='Comparación Alternativas'!$Z$5:$Z$246)*('Comparación Alternativas'!$AA$5:$AA$246=Alternativas!V155)*('Comparación Alternativas'!$AV$5:$AV$246)) -> 0 | AJ155: =SUMPRODUCT((U155='Comparación Alternativas'!$Z$5:$Z$246)*('Comparación Alternativas'!$AA$5:$AA$246=Alternativas!V155)*('Comparación Alternativas'!$BF$5:$BF$246)) -> 0
B156: 132 | C156: =IF(C155+SUMPRODUCT(($C$16='Para Ocultar'!$A$2:$A$7)*('Para Ocultar'!$C$2:$C$7))>12,(C155+SUMPRODUCT(($C$16='Para Ocultar'!$A$2:$A$7)*('Para Ocultar'!$C$2:$C$7)))-12,C155+SUMPRODUCT(($C$16='Para Ocultar'!$A$2:$A$7)*('Para Ocultar'!$C$2:$C$7))) -> 1 | D156: 2033 | E156: 0 | F156: 0 | G156: 0 | H156: 0 | I156: 2.636047529e-11 | J156: -2.636047529e-11 | K156: 0 | L156: 1.15609513e-09 | M156: 0 | N156: 0 | O156: 0 | P156: 0 | Q156: =SUMPRODUCT((C156='Comparación Alternativas'!$Z$5:$Z$246)*(Alternativas!D156='Comparación Alternativas'!$AA$5:$AA$246)*('Comparación Alternativas'!$AQ$5:$AQ$246)) -> 0 | R156: =SUMPRODUCT((C156='Comparación Alternativas'!$Z$5:$Z$246)*('Comparación Alternativas'!$AA$5:$AA$246=Alternativas!D156)*('Comparación Alternativas'!$BA$5:$BA$246)) -> 0 | T156: 132 | U156: =IF(U155+SUMPRODUCT(($U$16='Para Ocultar'!$A$2:$A$7)*('Para Ocultar'!$C$2:$C$7))>12,(U155+SUMPRODUCT(($U$16='Para Ocultar'!$A$2:$A$7)*('Para Ocultar'!$C$2:$C$7)))-12,U155+SUMPRODUCT(($U$16='Para Ocultar'!$A$2:$A$7)*('Para Ocultar'!$C$2:$C$7))) -> 1 | V156: 2033 | W156: 0 | X156: 0 | Y156: 0 | Z156: 0 | AA156: -2.790685157e-12 | AB156: 2.790685157e-12 | AC156: 0 | AD156: -3.37672904e-10 | AE156: -2.790685157e-12 | AF156: 2.790685157e-12 | AG156: 0 | AH156: -3.37672904e-10 | AI156: =SUMPRODUCT((U156='Comparación Alternativas'!$Z$5:$Z$246)*('Comparación Alternativas'!$AA$5:$AA$246=Alternativas!V156)*('Comparación Alternativas'!$AV$5:$AV$246)) -> 0 | AJ156: =SUMPRODUCT((U156='Comparación Alternativas'!$Z$5:$Z$246)*('Comparación Alternativas'!$AA$5:$AA$246=Alternativas!V156)*('Comparación Alternativas'!$BF$5:$BF$246)) -> 0
B157: 133 | C157: =IF(C156+SUMPRODUCT(($C$16='Para Ocultar'!$A$2:$A$7)*('Para Ocultar'!$C$2:$C$7))>12,(C156+SUMPRODUCT(($C$16='Para Ocultar'!$A$2:$A$7)*('Para Ocultar'!$C$2:$C$7)))-12,C156+SUMPRODUCT(($C$16='Para Ocultar'!$A$2:$A$7)*('Para Ocultar'!$C$2:$C$7))) -> 2 | D157: 2033 | E157: 0 | F157: 0 | G157: 0 | H157: 0 | I157: 2.697555304e-11 | J157: -2.697555304e-11 | K157: 0 | L157: 1.183070683e-09 | M157: 0 | N157: 0 | O157: 0 | P157: 0 | Q157: =SUMPRODUCT((C157='Comparación Alternativas'!$Z$5:$Z$246)*(Alternativas!D157='Comparación Alternativas'!$AA$5:$AA$246)*('Comparación Alternativas'!$AQ$5:$AQ$246)) -> 0 | R157: =SUMPRODUCT((C157='Comparación Alternativas'!$Z$5:$Z$246)*('Comparación Alternativas'!$AA$5:$AA$246=Alternativas!D157)*('Comparación Alternativas'!$BA$5:$BA$246)) -> 0 | T157: 133 | U157: =IF(U156+SUMPRODUCT(($U$16='Para Ocultar'!$A$2:$A$7)*('Para Ocultar'!$C$2:$C$7))>12,(U156+SUMPRODUCT(($U$16='Para Ocultar'!$A$2:$A$7)*('Para Ocultar'!$C$2:$C$7)))-12,U156+SUMPRODUCT(($U$16='Para Ocultar'!$A$2:$A$7)*('Para Ocultar'!$C$2:$C$7))) -> 2 | V157: 2033 | W157: 0 | X157: 0 | Y157: 0 | Z157: 0 | AA157: -2.813940866e-12 | AB157: 2.813940866e-12 | AC157: 0 | AD157: -3.404868448e-10 | AE157: -2.813940866e-12 | AF157: 2.813940866e-12 | AG157: 0 | AH157: -3.404868448e-10 | AI157: =SUMPRODUCT((U157='Comparación Alternativas'!$Z$5:$Z$246)*('Comparación Alternativas'!$AA$5:$AA$246=Alternativas!V157)*('Comparación Alternativas'!$AV$5:$AV$246)) -> 0 | AJ157: =SUMPRODUCT((U157='Comparación Alternativas'!$Z$5:$Z$246)*('Comparación Alternativas'!$AA$5:$AA$246=Alternativas!V157)*('Comparación Alternativas'!$BF$5:$BF$246)) -> 0
B158: 134 | C158: =IF(C157+SUMPRODUCT(($C$16='Para Ocultar'!$A$2:$A$7)*('Para Ocultar'!$C$2:$C$7))>12,(C157+SUMPRODUCT(($C$16='Para Ocultar'!$A$2:$A$7)*('Para Ocultar'!$C$2:$C$7)))-12,C157+SUMPRODUCT(($C$16='Para Ocultar'!$A$2:$A$7)*('Para Ocultar'!$C$2:$C$7))) -> 3 | D158: 2033 | E158: =IF($C$18>=B158,0,-IF(B158<=$C$17+$C$18,$D$12/$C$17,0)) -> 0 | F158: 0 | G158: 0 | H158: 0 | I158: 2.760498261e-11 | J158: -2.760498261e-11 | K158: 0 | L158: 1.210675666e-09 | M158: 0 | N158: 0 | O158: 0 | P158: 0 | Q158: =SUMPRODUCT((C158='Comparación Alternativas'!$Z$5:$Z$246)*(Alternativas!D158='Comparación Alternativas'!$AA$5:$AA$246)*('Comparación Alternativas'!$AQ$5:$AQ$246)) -> 0 | R158: =SUMPRODUCT((C158='Comparación Alternativas'!$Z$5:$Z$246)*('Comparación Alternativas'!$AA$5:$AA$246=Alternativas!D158)*('Comparación Alternativas'!$BA$5:$BA$246)) -> 0 | T158: 134 | U158: =IF(U157+SUMPRODUCT(($U$16='Para Ocultar'!$A$2:$A$7)*('Para Ocultar'!$C$2:$C$7))>12,(U157+SUMPRODUCT(($U$16='Para Ocultar'!$A$2:$A$7)*('Para Ocultar'!$C$2:$C$7)))-12,U157+SUMPRODUCT(($U$16='Para Ocultar'!$A$2:$A$7)*('Para Ocultar'!$C$2:$C$7))) -> 3 | V158: 2033 | W158: 0 | X158: 0 | Y158: 0 | Z158: 0 | AA158: -2.837390374e-12 | AB158: 2.837390374e-12 | AC158: 0 | AD158: -3.433242352e-10 | AE158: -2.837390374e-12 | AF158: 2.837390374e-12 | AG158: 0 | AH158: -3.433242352e-10 | AI158: =SUMPRODUCT((U158='Comparación Alternativas'!$Z$5:$Z$246)*('Comparación Alternativas'!$AA$5:$AA$246=Alternativas!V158)*('Comparación Alternativas'!$AV$5:$AV$246)) -> 0 | AJ158: =SUMPRODUCT((U158='Comparación Alternativas'!$Z$5:$Z$246)*('Comparación Alternativas'!$AA$5:$AA$246=Alternativas!V158)*('Comparación Alternativas'!$BF$5:$BF$246)) -> 0
B159: 135 | C159: =IF(C158+SUMPRODUCT(($C$16='Para Ocultar'!$A$2:$A$7)*('Para Ocultar'!$C$2:$C$7))>12,(C158+SUMPRODUCT(($C$16='Para Ocultar'!$A$2:$A$7)*('Para Ocultar'!$C$2:$C$7)))-12,C158+SUMPRODUCT(($C$16='Para Ocultar'!$A$2:$A$7)*('Para Ocultar'!$C$2:$C$7))) -> 4 | D159: 2033 | E159: 0 | F159: 0 | G159: 0 | H159: 0 | I159: 2.824909887e-11 | J159: -2.824909887e-11 | K159: 0 | L159: 1.238924765e-09 | M159: 0 | N159: 0 | O159: 0 | P159: 0 | Q159: =SUMPRODUCT((C159='Comparación Alternativas'!$Z$5:$Z$246)*(Alternativas!D159='Comparación Alternativas'!$AA$5:$AA$246)*('Comparación Alternativas'!$AQ$5:$AQ$246)) -> 0 | R159: =SUMPRODUCT((C159='Comparación Alternativas'!$Z$5:$Z$246)*('Comparación Alternativas'!$AA$5:$AA$246=Alternativas!D159)*('Comparación Alternativas'!$BA$5:$BA$246)) -> 0 | T159: 135 | U159: =IF(U158+SUMPRODUCT(($U$16='Para Ocultar'!$A$2:$A$7)*('Para Ocultar'!$C$2:$C$7))>12,(U158+SUMPRODUCT(($U$16='Para Ocultar'!$A$2:$A$7)*('Para Ocultar'!$C$2:$C$7)))-12,U158+SUMPRODUCT(($U$16='Para Ocultar'!$A$2:$A$7)*('Para Ocultar'!$C$2:$C$7))) -> 4 | V159: 2033 | W159: 0 | X159: 0 | Y159: 0 | Z159: 0 | AA159: -2.861035293e-12 | AB159: 2.861035293e-12 | AC159: 0 | AD159: -3.461852705e-10 | AE159: -2.861035293e-12 | AF159: 2.861035293e-12 | AG159: 0 | AH159: -3.461852705e-10 | AI159: =SUMPRODUCT((U159='Comparación Alternativas'!$Z$5:$Z$246)*('Comparación Alternativas'!$AA$5:$AA$246=Alternativas!V159)*('Comparación Alternativas'!$AV$5:$AV$246)) -> 0 | AJ159: =SUMPRODUCT((U159='Comparación Alternativas'!$Z$5:$Z$246)*('Comparación Alternativas'!$AA$5:$AA$246=Alternativas!V159)*('Comparación Alternativas'!$BF$5:$BF$246)) -> 0
B160: 136 | C160: =IF(C159+SUMPRODUCT(($C$16='Para Ocultar'!$A$2:$A$7)*('Para Ocultar'!$C$2:$C$7))>12,(C159+SUMPRODUCT(($C$16='Para Ocultar'!$A$2:$A$7)*('Para Ocultar'!$C$2:$C$7)))-12,C159+SUMPRODUCT(($C$16='Para Ocultar'!$A$2:$A$7)*('Para Ocultar'!$C$2:$C$7))) -> 5 | D160: 2033 | E160: 0 | F160: 0 | G160: 0 | H160: 0 | I160: 2.890824451e-11 | J160: -2.890824451e-11 | K160: 0 | L160: 1.267833009e-09 | M160: 0 | N160: 0 | O160: 0 | P160: 0 | Q160: =SUMPRODUCT((C160='Comparación Alternativas'!$Z$5:$Z$246)*(Alternativas!D160='Comparación Alternativas'!$AA$5:$AA$246)*('Comparación Alternativas'!$AQ$5:$AQ$246)) -> 0 | R160: =SUMPRODUCT((C160='Comparación Alternativas'!$Z$5:$Z$246)*('Comparación Alternativas'!$AA$5:$AA$246=Alternativas!D160)*('Comparación Alternativas'!$BA$5:$BA$246)) -> 0 | T160: 136 | U160: =IF(U159+SUMPRODUCT(($U$16='Para Ocultar'!$A$2:$A$7)*('Para Ocultar'!$C$2:$C$7))>12,(U159+SUMPRODUCT(($U$16='Para Ocultar'!$A$2:$A$7)*('Para Ocultar'!$C$2:$C$7)))-12,U159+SUMPRODUCT(($U$16='Para Ocultar'!$A$2:$A$7)*('Para Ocultar'!$C$2:$C$7))) -> 5 | V160: 2033 | W160: 0 | X160: 0 | Y160: 0 | Z160: 0 | AA160: -2.884877254e-12 | AB160: 2.884877254e-12 | AC160: 0 | AD160: -3.490701478e-10 | AE160: -2.884877254e-12 | AF160: 2.884877254e-12 | AG160: 0 | AH160: -3.490701478e-10 | AI160: =SUMPRODUCT((U160='Comparación Alternativas'!$Z$5:$Z$246)*('Comparación Alternativas'!$AA$5:$AA$246=Alternativas!V160)*('Comparación Alternativas'!$AV$5:$AV$246)) -> 0 | AJ160: =SUMPRODUCT((U160='Comparación Alternativas'!$Z$5:$Z$246)*('Comparación Alternativas'!$AA$5:$AA$246=Alternativas!V160)*('Comparación Alternativas'!$BF$5:$BF$246)) -> 0
B161: 137 | C161: =IF(C160+SUMPRODUCT(($C$16='Para Ocultar'!$A$2:$A$7)*('Para Ocultar'!$C$2:$C$7))>12,(C160+SUMPRODUCT(($C$16='Para Ocultar'!$A$2:$A$7)*('Para Ocultar'!$C$2:$C$7)))-12,C160+SUMPRODUCT(($C$16='Para Ocultar'!$A$2:$A$7)*('Para Ocultar'!$C$2:$C$7))) -> 6 | D161: 2033 | E161: 0 | F161: 0 | G161: 0 | H161: 0 | I161: 2.958277022e-11 | J161: -2.958277022e-11 | K161: 0 | L161: 1.29741578e-09 | M161: 0 | N161: 0 | O161: 0 | P161: 0 | Q161: =SUMPRODUCT((C161='Comparación Alternativas'!$Z$5:$Z$246)*(Alternativas!D161='Comparación Alternativas'!$AA$5:$AA$246)*('Comparación Alternativas'!$AQ$5:$AQ$246)) -> 0 | R161: =SUMPRODUCT((C161='Comparación Alternativas'!$Z$5:$Z$246)*('Comparación Alternativas'!$AA$5:$AA$246=Alternativas!D161)*('Comparación Alternativas'!$BA$5:$BA$246)) -> 0 | T161: 137 | U161: =IF(U160+SUMPRODUCT(($U$16='Para Ocultar'!$A$2:$A$7)*('Para Ocultar'!$C$2:$C$7))>12,(U160+SUMPRODUCT(($U$16='Para Ocultar'!$A$2:$A$7)*('Para Ocultar'!$C$2:$C$7)))-12,U160+SUMPRODUCT(($U$16='Para Ocultar'!$A$2:$A$7)*('Para Ocultar'!$C$2:$C$7))) -> 6 | V161: 2033 | W161: 0 | X161: 0 | Y161: 0 | Z161: 0 | AA161: -2.908917898e-12 | AB161: 2.908917898e-12 | AC161: 0 | AD161: -3.519790656e-10 | AE161: -2.908917898e-12 | AF161: 2.908917898e-12 | AG161: 0 | AH161: -3.519790656e-10 | AI161: =SUMPRODUCT((U161='Comparación Alternativas'!$Z$5:$Z$246)*('Comparación Alternativas'!$AA$5:$AA$246=Alternativas!V161)*('Comparación Alternativas'!$AV$5:$AV$246)) -> 0 | AJ161: =SUMPRODUCT((U161='Comparación Alternativas'!$Z$5:$Z$246)*('Comparación Alternativas'!$AA$5:$AA$246=Alternativas!V161)*('Comparación Alternativas'!$BF$5:$BF$246)) -> 0
B162: 138 | C162: =IF(C161+SUMPRODUCT(($C$16='Para Ocultar'!$A$2:$A$7)*('Para Ocultar'!$C$2:$C$7))>12,(C161+SUMPRODUCT(($C$16='Para Ocultar'!$A$2:$A$7)*('Para Ocultar'!$C$2:$C$7)))-12,C161+SUMPRODUCT(($C$16='Para Ocultar'!$A$2:$A$7)*('Para Ocultar'!$C$2:$C$7))) -> 7 | D162: 2033 | E162: 0 | F162: 0 | G162: 0 | H162: 0 | I162: 3.027303486e-11 | J162: -3.027303486e-11 | K162: 0 | L162: 1.327688814e-09 | M162: 0 | N162: 0 | O162: 0 | P162: 0 | Q162: =SUMPRODUCT((C162='Comparación Alternativas'!$Z$5:$Z$246)*(Alternativas!D162='Comparación Alternativas'!$AA$5:$AA$246)*('Comparación Alternativas'!$AQ$5:$AQ$246)) -> 0 | R162: =SUMPRODUCT((C162='Comparación Alternativas'!$Z$5:$Z$246)*('Comparación Alternativas'!$AA$5:$AA$246=Alternativas!D162)*('Comparación Alternativas'!$BA$5:$BA$246)) -> 0 | T162: 138 | U162: =IF(U161+SUMPRODUCT(($U$16='Para Ocultar'!$A$2:$A$7)*('Para Ocultar'!$C$2:$C$7))>12,(U161+SUMPRODUCT(($U$16='Para Ocultar'!$A$2:$A$7)*('Para Ocultar'!$C$2:$C$7)))-12,U161+SUMPRODUCT(($U$16='Para Ocultar'!$A$2:$A$7)*('Para Ocultar'!$C$2:$C$7))) -> 7 | V162: 2033 | W162: 0 | X162: 0 | Y162: 0 | Z162: 0 | AA162: -2.93315888e-12 | AB162: 2.93315888e-12 | AC162: 0 | AD162: -3.549122245e-10 | AE162: -2.93315888e-12 | AF162: 2.93315888e-12 | AG162: 0 | AH162: -3.549122245e-10 | AI162: =SUMPRODUCT((U162='Comparación Alternativas'!$Z$5:$Z$246)*('Comparación Alternativas'!$AA$5:$AA$246=Alternativas!V162)*('Comparación Alternativas'!$AV$5:$AV$246)) -> 0 | AJ162: =SUMPRODUCT((U162='Comparación Alternativas'!$Z$5:$Z$246)*('Comparación Alternativas'!$AA$5:$AA$246=Alternativas!V162)*('Comparación Alternativas'!$BF$5:$BF$246)) -> 0
B163: 139 | C163: =IF(C162+SUMPRODUCT(($C$16='Para Ocultar'!$A$2:$A$7)*('Para Ocultar'!$C$2:$C$7))>12,(C162+SUMPRODUCT(($C$16='Para Ocultar'!$A$2:$A$7)*('Para Ocultar'!$C$2:$C$7)))-12,C162+SUMPRODUCT(($C$16='Para Ocultar'!$A$2:$A$7)*('Para Ocultar'!$C$2:$C$7))) -> 8 | D163: 2033 | E163: 0 | F163: 0 | G163: 0 | H163: 0 | I163: 3.097940567e-11 | J163: -3.097940567e-11 | K163: 0 | L163: 1.35866822e-09 | M163: 0 | N163: 0 | O163: 0 | P163: 0 | Q163: =SUMPRODUCT((C163='Comparación Alternativas'!$Z$5:$Z$246)*(Alternativas!D163='Comparación Alternativas'!$AA$5:$AA$246)*('Comparación Alternativas'!$AQ$5:$AQ$246)) -> 0 | R163: =SUMPRODUCT((C163='Comparación Alternativas'!$Z$5:$Z$246)*('Comparación Alternativas'!$AA$5:$AA$246=Alternativas!D163)*('Comparación Alternativas'!$BA$5:$BA$246)) -> 0 | T163: 139 | U163: =IF(U162+SUMPRODUCT(($U$16='Para Ocultar'!$A$2:$A$7)*('Para Ocultar'!$C$2:$C$7))>12,(U162+SUMPRODUCT(($U$16='Para Ocultar'!$A$2:$A$7)*('Para Ocultar'!$C$2:$C$7)))-12,U162+SUMPRODUCT(($U$16='Para Ocultar'!$A$2:$A$7)*('Para Ocultar'!$C$2:$C$7))) -> 8 | V163: 2033 | W163: 0 | X163: 0 | Y163: 0 | Z163: 0 | AA163: -2.957601871e-12 | AB163: 2.957601871e-12 | AC163: 0 | AD163: -3.578698264e-10 | AE163: -2.957601871e-12 | AF163: 2.957601871e-12 | AG163: 0 | AH163: -3.578698264e-10 | AI163: =SUMPRODUCT((U163='Comparación Alternativas'!$Z$5:$Z$246)*('Comparación Alternativas'!$AA$5:$AA$246=Alternativas!V163)*('Comparación Alternativas'!$AV$5:$AV$246)) -> 0 | AJ163: =SUMPRODUCT((U163='Comparación Alternativas'!$Z$5:$Z$246)*('Comparación Alternativas'!$AA$5:$AA$246=Alternativas!V163)*('Comparación Alternativas'!$BF$5:$BF$246)) -> 0
B164: 140 | C164: =IF(C163+SUMPRODUCT(($C$16='Para Ocultar'!$A$2:$A$7)*('Para Ocultar'!$C$2:$C$7))>12,(C163+SUMPRODUCT(($C$16='Para Ocultar'!$A$2:$A$7)*('Para Ocultar'!$C$2:$C$7)))-12,C163+SUMPRODUCT(($C$16='Para Ocultar'!$A$2:$A$7)*('Para Ocultar'!$C$2:$C$7))) -> 9 | D164: 2033 | E164: 0 | F164: 0 | G164: 0 | H164: 0 | I164: 3.170225847e-11 | J164: -3.170225847e-11 | K164: 0 | L164: 1.390370479e-09 | M164: 0 | N164: 0 | O164: 0 | P164: 0 | Q164: =SUMPRODUCT((C164='Comparación Alternativas'!$Z$5:$Z$246)*(Alternativas!D164='Comparación Alternativas'!$AA$5:$AA$246)*('Comparación Alternativas'!$AQ$5:$AQ$246)) -> 0 | R164: =SUMPRODUCT((C164='Comparación Alternativas'!$Z$5:$Z$246)*('Comparación Alternativas'!$AA$5:$AA$246=Alternativas!D164)*('Comparación Alternativas'!$BA$5:$BA$246)) -> 0 | T164: 140 | U164: =IF(U163+SUMPRODUCT(($U$16='Para Ocultar'!$A$2:$A$7)*('Para Ocultar'!$C$2:$C$7))>12,(U163+SUMPRODUCT(($U$16='Para Ocultar'!$A$2:$A$7)*('Para Ocultar'!$C$2:$C$7)))-12,U163+SUMPRODUCT(($U$16='Para Ocultar'!$A$2:$A$7)*('Para Ocultar'!$C$2:$C$7))) -> 9 | V164: 2033 | W164: 0 | X164: 0 | Y164: 0 | Z164: 0 | AA164: -2.982248553e-12 | AB164: 2.982248553e-12 | AC164: 0 | AD164: -3.60852075e-10 | AE164: -2.982248553e-12 | AF164: 2.982248553e-12 | AG164: 0 | AH164: -3.60852075e-10 | AI164: =SUMPRODUCT((U164='Comparación Alternativas'!$Z$5:$Z$246)*('Comparación Alternativas'!$AA$5:$AA$246=Alternativas!V164)*('Comparación Alternativas'!$AV$5:$AV$246)) -> 0 | AJ164: =SUMPRODUCT((U164='Comparación Alternativas'!$Z$5:$Z$246)*('Comparación Alternativas'!$AA$5:$AA$246=Alternativas!V164)*('Comparación Alternativas'!$BF$5:$BF$246)) -> 0
B165: 141 | C165: =IF(C164+SUMPRODUCT(($C$16='Para Ocultar'!$A$2:$A$7)*('Para Ocultar'!$C$2:$C$7))>12,(C164+SUMPRODUCT(($C$16='Para Ocultar'!$A$2:$A$7)*('Para Ocultar'!$C$2:$C$7)))-12,C164+SUMPRODUCT(($C$16='Para Ocultar'!$A$2:$A$7)*('Para Ocultar'!$C$2:$C$7))) -> 10 | D165: 2033 | E165: 0 | F165: 0 | G165: 0 | H165: 0 | I165: 3.244197783e-11 | J165: -3.244197783e-11 | K165: 0 | L165: 1.422812456e-09 | M165: 0 | N165: 0 | O165: 0 | P165: 0 | Q165: =SUMPRODUCT((C165='Comparación Alternativas'!$Z$5:$Z$246)*(Alternativas!D165='Comparación Alternativas'!$AA$5:$AA$246)*('Comparación Alternativas'!$AQ$5:$AQ$246)) -> 0 | R165: =SUMPRODUCT((C165='Comparación Alternativas'!$Z$5:$Z$246)*('Comparación Alternativas'!$AA$5:$AA$246=Alternativas!D165)*('Comparación Alternativas'!$BA$5:$BA$246)) -> 0 | T165: 141 | U165: =IF(U164+SUMPRODUCT(($U$16='Para Ocultar'!$A$2:$A$7)*('Para Ocultar'!$C$2:$C$7))>12,(U164+SUMPRODUCT(($U$16='Para Ocultar'!$A$2:$A$7)*('Para Ocultar'!$C$2:$C$7)))-12,U164+SUMPRODUCT(($U$16='Para Ocultar'!$A$2:$A$7)*('Para Ocultar'!$C$2:$C$7))) -> 10 | V165: 2033 | W165: 0 | X165: 0 | Y165: 0 | Z165: 0 | AA165: -3.007100625e-12 | AB165: 3.007100625e-12 | AC165: 0 | AD165: -3.638591756e-10 | AE165: -3.007100625e-12 | AF165: 3.007100625e-12 | AG165: 0 | AH165: -3.638591756e-10 | AI165: =SUMPRODUCT((U165='Comparación Alternativas'!$Z$5:$Z$246)*('Comparación Alternativas'!$AA$5:$AA$246=Alternativas!V165)*('Comparación Alternativas'!$AV$5:$AV$246)) -> 0 | AJ165: =SUMPRODUCT((U165='Comparación Alternativas'!$Z$5:$Z$246)*('Comparación Alternativas'!$AA$5:$AA$246=Alternativas!V165)*('Comparación Alternativas'!$BF$5:$BF$246)) -> 0
B166: 142 | C166: =IF(C165+SUMPRODUCT(($C$16='Para Ocultar'!$A$2:$A$7)*('Para Ocultar'!$C$2:$C$7))>12,(C165+SUMPRODUCT(($C$16='Para Ocultar'!$A$2:$A$7)*('Para Ocultar'!$C$2:$C$7)))-12,C165+SUMPRODUCT(($C$16='Para Ocultar'!$A$2:$A$7)*('Para Ocultar'!$C$2:$C$7))) -> 11 | D166: 2033 | E166: 0 | F166: 0 | G166: 0 | H166: 0 | I166: 3.319895732e-11 | J166: -3.319895732e-11 | K166: 0 | L166: 1.456011414e-09 | M166: 0 | N166: 0 | O166: 0 | P166: 0 | Q166: =SUMPRODUCT((C166='Comparación Alternativas'!$Z$5:$Z$246)*(Alternativas!D166='Comparación Alternativas'!$AA$5:$AA$246)*('Comparación Alternativas'!$AQ$5:$AQ$246)) -> 0 | R166: =SUMPRODUCT((C166='Comparación Alternativas'!$Z$5:$Z$246)*('Comparación Alternativas'!$AA$5:$AA$246=Alternativas!D166)*('Comparación Alternativas'!$BA$5:$BA$246)) -> 0 | T166: 142 | U166: =IF(U165+SUMPRODUCT(($U$16='Para Ocultar'!$A$2:$A$7)*('Para Ocultar'!$C$2:$C$7))>12,(U165+SUMPRODUCT(($U$16='Para Ocultar'!$A$2:$A$7)*('Para Ocultar'!$C$2:$C$7)))-12,U165+SUMPRODUCT(($U$16='Para Ocultar'!$A$2:$A$7)*('Para Ocultar'!$C$2:$C$7))) -> 11 | V166: 2033 | W166: 0 | X166: 0 | Y166: 0 | Z166: 0 | AA166: -3.032159796e-12 | AB166: 3.032159796e-12 | AC166: 0 | AD166: -3.668913354e-10 | AE166: -3.032159796e-12 | AF166: 3.032159796e-12 | AG166: 0 | AH166: -3.668913354e-10 | AI166: =SUMPRODUCT((U166='Comparación Alternativas'!$Z$5:$Z$246)*('Comparación Alternativas'!$AA$5:$AA$246=Alternativas!V166)*('Comparación Alternativas'!$AV$5:$AV$246)) -> 0 | AJ166: =SUMPRODUCT((U166='Comparación Alternativas'!$Z$5:$Z$246)*('Comparación Alternativas'!$AA$5:$AA$246=Alternativas!V166)*('Comparación Alternativas'!$BF$5:$BF$246)) -> 0
B167: 143 | C167: =IF(C166+SUMPRODUCT(($C$16='Para Ocultar'!$A$2:$A$7)*('Para Ocultar'!$C$2:$C$7))>12,(C166+SUMPRODUCT(($C$16='Para Ocultar'!$A$2:$A$7)*('Para Ocultar'!$C$2:$C$7)))-12,C166+SUMPRODUCT(($C$16='Para Ocultar'!$A$2:$A$7)*('Para Ocultar'!$C$2:$C$7))) -> 12 | D167: 2033 | E167: 0 | F167: 0 | G167: 0 | H167: 0 | I167: 3.397359965e-11 | J167: -3.397359965e-11 | K167: 0 | L167: 1.489985013e-09 | M167: 0 | N167: 0 | O167: 0 | P167: 0 | Q167: =SUMPRODUCT((C167='Comparación Alternativas'!$Z$5:$Z$246)*(Alternativas!D167='Comparación Alternativas'!$AA$5:$AA$246)*('Comparación Alternativas'!$AQ$5:$AQ$246)) -> 0 | R167: =SUMPRODUCT((C167='Comparación Alternativas'!$Z$5:$Z$246)*('Comparación Alternativas'!$AA$5:$AA$246=Alternativas!D167)*('Comparación Alternativas'!$BA$5:$BA$246)) -> 0 | T167: 143 | U167: =IF(U166+SUMPRODUCT(($U$16='Para Ocultar'!$A$2:$A$7)*('Para Ocultar'!$C$2:$C$7))>12,(U166+SUMPRODUCT(($U$16='Para Ocultar'!$A$2:$A$7)*('Para Ocultar'!$C$2:$C$7)))-12,U166+SUMPRODUCT(($U$16='Para Ocultar'!$A$2:$A$7)*('Para Ocultar'!$C$2:$C$7))) -> 12 | V167: 2033 | W167: 0 | X167: 0 | Y167: 0 | Z167: 0 | AA167: -3.057427795e-12 | AB167: 3.057427795e-12 | AC167: 0 | AD167: -3.699487632e-10 | AE167: -3.057427795e-12 | AF167: 3.057427795e-12 | AG167: 0 | AH167: -3.699487632e-10 | AI167: =SUMPRODUCT((U167='Comparación Alternativas'!$Z$5:$Z$246)*('Comparación Alternativas'!$AA$5:$AA$246=Alternativas!V167)*('Comparación Alternativas'!$AV$5:$AV$246)) -> 0 | AJ167: =SUMPRODUCT((U167='Comparación Alternativas'!$Z$5:$Z$246)*('Comparación Alternativas'!$AA$5:$AA$246=Alternativas!V167)*('Comparación Alternativas'!$BF$5:$BF$246)) -> 0
B168: 144 | C168: =IF(C167+SUMPRODUCT(($C$16='Para Ocultar'!$A$2:$A$7)*('Para Ocultar'!$C$2:$C$7))>12,(C167+SUMPRODUCT(($C$16='Para Ocultar'!$A$2:$A$7)*('Para Ocultar'!$C$2:$C$7)))-12,C167+SUMPRODUCT(($C$16='Para Ocultar'!$A$2:$A$7)*('Para Ocultar'!$C$2:$C$7))) -> 1 | D168: 2034 | E168: 0 | F168: 0 | G168: 0 | H168: 0 | I168: 3.476631698e-11 | J168: -3.476631698e-11 | K168: 0 | L168: 1.52475133e-09 | M168: 0 | N168: 0 | O168: 0 | P168: 0 | Q168: =SUMPRODUCT((C168='Comparación Alternativas'!$Z$5:$Z$246)*(Alternativas!D168='Comparación Alternativas'!$AA$5:$AA$246)*('Comparación Alternativas'!$AQ$5:$AQ$246)) -> 0 | R168: =SUMPRODUCT((C168='Comparación Alternativas'!$Z$5:$Z$246)*('Comparación Alternativas'!$AA$5:$AA$246=Alternativas!D168)*('Comparación Alternativas'!$BA$5:$BA$246)) -> 0 | T168: 144 | U168: =IF(U167+SUMPRODUCT(($U$16='Para Ocultar'!$A$2:$A$7)*('Para Ocultar'!$C$2:$C$7))>12,(U167+SUMPRODUCT(($U$16='Para Ocultar'!$A$2:$A$7)*('Para Ocultar'!$C$2:$C$7)))-12,U167+SUMPRODUCT(($U$16='Para Ocultar'!$A$2:$A$7)*('Para Ocultar'!$C$2:$C$7))) -> 1 | V168: 2034 | W168: 0 | X168: 0 | Y168: 0 | Z168: 0 | AA168: -3.08290636e-12 | AB168: 3.08290636e-12 | AC168: 0 | AD168: -3.730316695e-10 | AE168: -3.08290636e-12 | AF168: 3.08290636e-12 | AG168: 0 | AH168: -3.730316695e-10 | AI168: =SUMPRODUCT((U168='Comparación Alternativas'!$Z$5:$Z$246)*('Comparación Alternativas'!$AA$5:$AA$246=Alternativas!V168)*('Comparación Alternativas'!$AV$5:$AV$246)) -> 0 | AJ168: =SUMPRODUCT((U168='Comparación Alternativas'!$Z$5:$Z$246)*('Comparación Alternativas'!$AA$5:$AA$246=Alternativas!V168)*('Comparación Alternativas'!$BF$5:$BF$246)) -> 0
B169: 145 | C169: =IF(C168+SUMPRODUCT(($C$16='Para Ocultar'!$A$2:$A$7)*('Para Ocultar'!$C$2:$C$7))>12,(C168+SUMPRODUCT(($C$16='Para Ocultar'!$A$2:$A$7)*('Para Ocultar'!$C$2:$C$7)))-12,C168+SUMPRODUCT(($C$16='Para Ocultar'!$A$2:$A$7)*('Para Ocultar'!$C$2:$C$7))) -> 2 | D169: 2034 | E169: 0 | F169: 0 | G169: 0 | H169: 0 | I169: 3.557753104e-11 | J169: -3.557753104e-11 | K169: 0 | L169: 1.560328861e-09 | M169: 0 | N169: 0 | O169: 0 | P169: 0 | Q169: =SUMPRODUCT((C169='Comparación Alternativas'!$Z$5:$Z$246)*(Alternativas!D169='Comparación Alternativas'!$AA$5:$AA$246)*('Comparación Alternativas'!$AQ$5:$AQ$246)) -> 0 | R169: =SUMPRODUCT((C169='Comparación Alternativas'!$Z$5:$Z$246)*('Comparación Alternativas'!$AA$5:$AA$246=Alternativas!D169)*('Comparación Alternativas'!$BA$5:$BA$246)) -> 0 | T169: 145 | U169: =IF(U168+SUMPRODUCT(($U$16='Para Ocultar'!$A$2:$A$7)*('Para Ocultar'!$C$2:$C$7))>12,(U168+SUMPRODUCT(($U$16='Para Ocultar'!$A$2:$A$7)*('Para Ocultar'!$C$2:$C$7)))-12,U168+SUMPRODUCT(($U$16='Para Ocultar'!$A$2:$A$7)*('Para Ocultar'!$C$2:$C$7))) -> 2 | V169: 2034 | W169: 0 | X169: 0 | Y169: 0 | Z169: 0 | AA169: -3.108597246e-12 | AB169: 3.108597246e-12 | AC169: 0 | AD169: -3.761402668e-10 | AE169: -3.108597246e-12 | AF169: 3.108597246e-12 | AG169: 0 | AH169: -3.761402668e-10 | AI169: =SUMPRODUCT((U169='Comparación Alternativas'!$Z$5:$Z$246)*('Comparación Alternativas'!$AA$5:$AA$246=Alternativas!V169)*('Comparación Alternativas'!$AV$5:$AV$246)) -> 0 | AJ169: =SUMPRODUCT((U169='Comparación Alternativas'!$Z$5:$Z$246)*('Comparación Alternativas'!$AA$5:$AA$246=Alternativas!V169)*('Comparación Alternativas'!$BF$5:$BF$246)) -> 0
B170: 146 | C170: =IF(C169+SUMPRODUCT(($C$16='Para Ocultar'!$A$2:$A$7)*('Para Ocultar'!$C$2:$C$7))>12,(C169+SUMPRODUCT(($C$16='Para Ocultar'!$A$2:$A$7)*('Para Ocultar'!$C$2:$C$7)))-12,C169+SUMPRODUCT(($C$16='Para Ocultar'!$A$2:$A$7)*('Para Ocultar'!$C$2:$C$7))) -> 3 | D170: 2034 | E170: 0 | F170: 0 | G170: 0 | H170: 0 | I170: 3.640767343e-11 | J170: -3.640767343e-11 | K170: 0 | L170: 1.596736535e-09 | M170: 0 | N170: 0 | O170: 0 | P170: 0 | Q170: =SUMPRODUCT((C170='Comparación Alternativas'!$Z$5:$Z$246)*(Alternativas!D170='Comparación Alternativas'!$AA$5:$AA$246)*('Comparación Alternativas'!$AQ$5:$AQ$246)) -> 0 | R170: =SUMPRODUCT((C170='Comparación Alternativas'!$Z$5:$Z$246)*('Comparación Alternativas'!$AA$5:$AA$246=Alternativas!D170)*('Comparación Alternativas'!$BA$5:$BA$246)) -> 0 | T170: 146 | U170: =IF(U169+SUMPRODUCT(($U$16='Para Ocultar'!$A$2:$A$7)*('Para Ocultar'!$C$2:$C$7))>12,(U169+SUMPRODUCT(($U$16='Para Ocultar'!$A$2:$A$7)*('Para Ocultar'!$C$2:$C$7)))-12,U169+SUMPRODUCT(($U$16='Para Ocultar'!$A$2:$A$7)*('Para Ocultar'!$C$2:$C$7))) -> 3 | V170: 2034 | W170: 0 | X170: 0 | Y170: 0 | Z170: 0 | AA170: -3.134502223e-12 | AB170: 3.134502223e-12 | AC170: 0 | AD170: -3.79274769e-10 | AE170: -3.134502223e-12 | AF170: 3.134502223e-12 | AG170: 0 | AH170: -3.79274769e-10 | AI170: =SUMPRODUCT((U170='Comparación Alternativas'!$Z$5:$Z$246)*('Comparación Alternativas'!$AA$5:$AA$246=Alternativas!V170)*('Comparación Alternativas'!$AV$5:$AV$246)) -> 0 | AJ170: =SUMPRODUCT((U170='Comparación Alternativas'!$Z$5:$Z$246)*('Comparación Alternativas'!$AA$5:$AA$246=Alternativas!V170)*('Comparación Alternativas'!$BF$5:$BF$246)) -> 0
B171: 147 | C171: =IF(C170+SUMPRODUCT(($C$16='Para Ocultar'!$A$2:$A$7)*('Para Ocultar'!$C$2:$C$7))>12,(C170+SUMPRODUCT(($C$16='Para Ocultar'!$A$2:$A$7)*('Para Ocultar'!$C$2:$C$7)))-12,C170+SUMPRODUCT(($C$16='Para Ocultar'!$A$2:$A$7)*('Para Ocultar'!$C$2:$C$7))) -> 4 | D171: 2034 | E171: 0 | F171: 0 | G171: 0 | H171: 0 | I171: 3.725718581e-11 | J171: -3.725718581e-11 | K171: 0 | L171: 1.633993721e-09 | M171: 0 | N171: 0 | O171: 0 | P171: 0 | Q171: =SUMPRODUCT((C171='Comparación Alternativas'!$Z$5:$Z$246)*(Alternativas!D171='Comparación Alternativas'!$AA$5:$AA$246)*('Comparación Alternativas'!$AQ$5:$AQ$246)) -> 0 | R171: =SUMPRODUCT((C171='Comparación Alternativas'!$Z$5:$Z$246)*('Comparación Alternativas'!$AA$5:$AA$246=Alternativas!D171)*('Comparación Alternativas'!$BA$5:$BA$246)) -> 0 | T171: 147 | U171: =IF(U170+SUMPRODUCT(($U$16='Para Ocultar'!$A$2:$A$7)*('Para Ocultar'!$C$2:$C$7))>12,(U170+SUMPRODUCT(($U$16='Para Ocultar'!$A$2:$A$7)*('Para Ocultar'!$C$2:$C$7)))-12,U170+SUMPRODUCT(($U$16='Para Ocultar'!$A$2:$A$7)*('Para Ocultar'!$C$2:$C$7))) -> 4 | V171: 2034 | W171: 0 | X171: 0 | Y171: 0 | Z171: 0 | AA171: -3.160623075e-12 | AB171: 3.160623075e-12 | AC171: 0 | AD171: -3.824353921e-10 | AE171: -3.160623075e-12 | AF171: 3.160623075e-12 | AG171: 0 | AH171: -3.824353921e-10 | AI171: =SUMPRODUCT((U171='Comparación Alternativas'!$Z$5:$Z$246)*('Comparación Alternativas'!$AA$5:$AA$246=Alternativas!V171)*('Comparación Alternativas'!$AV$5:$AV$246)) -> 0 | AJ171: =SUMPRODUCT((U171='Comparación Alternativas'!$Z$5:$Z$246)*('Comparación Alternativas'!$AA$5:$AA$246=Alternativas!V171)*('Comparación Alternativas'!$BF$5:$BF$246)) -> 0
B172: 148 | C172: =IF(C171+SUMPRODUCT(($C$16='Para Ocultar'!$A$2:$A$7)*('Para Ocultar'!$C$2:$C$7))>12,(C171+SUMPRODUCT(($C$16='Para Ocultar'!$A$2:$A$7)*('Para Ocultar'!$C$2:$C$7)))-12,C171+SUMPRODUCT(($C$16='Para Ocultar'!$A$2:$A$7)*('Para Ocultar'!$C$2:$C$7))) -> 5 | D172: 2034 | E172: 0 | F172: 0 | G172: 0 | H172: 0 | I172: 3.812652015e-11 | J172: -3.812652015e-11 | K172: 0 | L172: 1.672120241e-09 | M172: 0 | N172: 0 | O172: 0 | P172: 0 | Q172: =SUMPRODUCT((C172='Comparación Alternativas'!$Z$5:$Z$246)*(Alternativas!D172='Comparación Alternativas'!$AA$5:$AA$246)*('Comparación Alternativas'!$AQ$5:$AQ$246)) -> 0 | R172: =SUMPRODUCT((C172='Comparación Alternativas'!$Z$5:$Z$246)*('Comparación Alternativas'!$AA$5:$AA$246=Alternativas!D172)*('Comparación Alternativas'!$BA$5:$BA$246)) -> 0 | T172: 148 | U172: =IF(U171+SUMPRODUCT(($U$16='Para Ocultar'!$A$2:$A$7)*('Para Ocultar'!$C$2:$C$7))>12,(U171+SUMPRODUCT(($U$16='Para Ocultar'!$A$2:$A$7)*('Para Ocultar'!$C$2:$C$7)))-12,U171+SUMPRODUCT(($U$16='Para Ocultar'!$A$2:$A$7)*('Para Ocultar'!$C$2:$C$7))) -> 5 | V172: 2034 | W172: 0 | X172: 0 | Y172: 0 | Z172: 0 | AA172: -3.186961601e-12 | AB172: 3.186961601e-12 | AC172: 0 | AD172: -3.856223537e-10 | AE172: -3.186961601e-12 | AF172: 3.186961601e-12 | AG172: 0 | AH172: -3.856223537e-10 | AI172: =SUMPRODUCT((U172='Comparación Alternativas'!$Z$5:$Z$246)*('Comparación Alternativas'!$AA$5:$AA$246=Alternativas!V172)*('Comparación Alternativas'!$AV$5:$AV$246)) -> 0 | AJ172: =SUMPRODUCT((U172='Comparación Alternativas'!$Z$5:$Z$246)*('Comparación Alternativas'!$AA$5:$AA$246=Alternativas!V172)*('Comparación Alternativas'!$BF$5:$BF$246)) -> 0
B173: 149 | C173: =IF(C172+SUMPRODUCT(($C$16='Para Ocultar'!$A$2:$A$7)*('Para Ocultar'!$C$2:$C$7))>12,(C172+SUMPRODUCT(($C$16='Para Ocultar'!$A$2:$A$7)*('Para Ocultar'!$C$2:$C$7)))-12,C172+SUMPRODUCT(($C$16='Para Ocultar'!$A$2:$A$7)*('Para Ocultar'!$C$2:$C$7))) -> 6 | D173: 2034 | E173: 0 | F173: 0 | G173: 0 | H173: 0 | I173: 3.901613895e-11 | J173: -3.901613895e-11 | K173: 0 | L173: 1.71113638e-09 | M173: 0 | N173: 0 | O173: 0 | P173: 0 | Q173: =SUMPRODUCT((C173='Comparación Alternativas'!$Z$5:$Z$246)*(Alternativas!D173='Comparación Alternativas'!$AA$5:$AA$246)*('Comparación Alternativas'!$AQ$5:$AQ$246)) -> 0 | R173: =SUMPRODUCT((C173='Comparación Alternativas'!$Z$5:$Z$246)*('Comparación Alternativas'!$AA$5:$AA$246=Alternativas!D173)*('Comparación Alternativas'!$BA$5:$BA$246)) -> 0 | T173: 149 | U173: =IF(U172+SUMPRODUCT(($U$16='Para Ocultar'!$A$2:$A$7)*('Para Ocultar'!$C$2:$C$7))>12,(U172+SUMPRODUCT(($U$16='Para Ocultar'!$A$2:$A$7)*('Para Ocultar'!$C$2:$C$7)))-12,U172+SUMPRODUCT(($U$16='Para Ocultar'!$A$2:$A$7)*('Para Ocultar'!$C$2:$C$7))) -> 6 | V173: 2034 | W173: 0 | X173: 0 | Y173: 0 | Z173: 0 | AA173: -3.213519614e-12 | AB173: 3.213519614e-12 | AC173: 0 | AD173: -3.888358733e-10 | AE173: -3.213519614e-12 | AF173: 3.213519614e-12 | AG173: 0 | AH173: -3.888358733e-10 | AI173: =SUMPRODUCT((U173='Comparación Alternativas'!$Z$5:$Z$246)*('Comparación Alternativas'!$AA$5:$AA$246=Alternativas!V173)*('Comparación Alternativas'!$AV$5:$AV$246)) -> 0 | AJ173: =SUMPRODUCT((U173='Comparación Alternativas'!$Z$5:$Z$246)*('Comparación Alternativas'!$AA$5:$AA$246=Alternativas!V173)*('Comparación Alternativas'!$BF$5:$BF$246)) -> 0
B174: 150 | C174: =IF(C173+SUMPRODUCT(($C$16='Para Ocultar'!$A$2:$A$7)*('Para Ocultar'!$C$2:$C$7))>12,(C173+SUMPRODUCT(($C$16='Para Ocultar'!$A$2:$A$7)*('Para Ocultar'!$C$2:$C$7)))-12,C173+SUMPRODUCT(($C$16='Para Ocultar'!$A$2:$A$7)*('Para Ocultar'!$C$2:$C$7))) -> 7 | D174: 2034 | E174: 0 | F174: 0 | G174: 0 | H174: 0 | I174: 3.992651553e-11 | J174: -3.992651553e-11 | K174: 0 | L174: 1.751062895e-09 | M174: 0 | N174: 0 | O174: 0 | P174: 0 | Q174: =SUMPRODUCT((C174='Comparación Alternativas'!$Z$5:$Z$246)*(Alternativas!D174='Comparación Alternativas'!$AA$5:$AA$246)*('Comparación Alternativas'!$AQ$5:$AQ$246)) -> 0 | R174: =SUMPRODUCT((C174='Comparación Alternativas'!$Z$5:$Z$246)*('Comparación Alternativas'!$AA$5:$AA$246=Alternativas!D174)*('Comparación Alternativas'!$BA$5:$BA$246)) -> 0 | T174: 150 | U174: =IF(U173+SUMPRODUCT(($U$16='Para Ocultar'!$A$2:$A$7)*('Para Ocultar'!$C$2:$C$7))>12,(U173+SUMPRODUCT(($U$16='Para Ocultar'!$A$2:$A$7)*('Para Ocultar'!$C$2:$C$7)))-12,U173+SUMPRODUCT(($U$16='Para Ocultar'!$A$2:$A$7)*('Para Ocultar'!$C$2:$C$7))) -> 7 | V174: 2034 | W174: 0 | X174: 0 | Y174: 0 | Z174: 0 | AA174: -3.240298944e-12 | AB174: 3.240298944e-12 | AC174: 0 | AD174: -3.920761722e-10 | AE174: -3.240298944e-12 | AF174: 3.240298944e-12 | AG174: 0 | AH174: -3.920761722e-10 | AI174: =SUMPRODUCT((U174='Comparación Alternativas'!$Z$5:$Z$246)*('Comparación Alternativas'!$AA$5:$AA$246=Alternativas!V174)*('Comparación Alternativas'!$AV$5:$AV$246)) -> 0 | AJ174: =SUMPRODUCT((U174='Comparación Alternativas'!$Z$5:$Z$246)*('Comparación Alternativas'!$AA$5:$AA$246=Alternativas!V174)*('Comparación Alternativas'!$BF$5:$BF$246)) -> 0
B175: 151 | C175: =IF(C174+SUMPRODUCT(($C$16='Para Ocultar'!$A$2:$A$7)*('Para Ocultar'!$C$2:$C$7))>12,(C174+SUMPRODUCT(($C$16='Para Ocultar'!$A$2:$A$7)*('Para Ocultar'!$C$2:$C$7)))-12,C174+SUMPRODUCT(($C$16='Para Ocultar'!$A$2:$A$7)*('Para Ocultar'!$C$2:$C$7))) -> 8 | D175: 2034 | E175: 0 | F175: 0 | G175: 0 | H175: 0 | I175: 4.085813422e-11 | J175: -4.085813422e-11 | K175: 0 | L175: 1.79192103e-09 | M175: 0 | N175: 0 | O175: 0 | P175: 0 | Q175: =SUMPRODUCT((C175='Comparación Alternativas'!$Z$5:$Z$246)*(Alternativas!D175='Comparación Alternativas'!$AA$5:$AA$246)*('Comparación Alternativas'!$AQ$5:$AQ$246)) -> 0 | R175: =SUMPRODUCT((C175='Comparación Alternativas'!$Z$5:$Z$246)*('Comparación Alternativas'!$AA$5:$AA$246=Alternativas!D175)*('Comparación Alternativas'!$BA$5:$BA$246)) -> 0 | T175: 151 | U175: =IF(U174+SUMPRODUCT(($U$16='Para Ocultar'!$A$2:$A$7)*('Para Ocultar'!$C$2:$C$7))>12,(U174+SUMPRODUCT(($U$16='Para Ocultar'!$A$2:$A$7)*('Para Ocultar'!$C$2:$C$7)))-12,U174+SUMPRODUCT(($U$16='Para Ocultar'!$A$2:$A$7)*('Para Ocultar'!$C$2:$C$7))) -> 8 | V175: 2034 | W175: 0 | X175: 0 | Y175: 0 | Z175: 0 | AA175: -3.267301435e-12 | AB175: 3.267301435e-12 | AC175: 0 | AD175: -3.953434737e-10 | AE175: -3.267301435e-12 | AF175: 3.267301435e-12 | AG175: 0 | AH175: -3.953434737e-10 | AI175: =SUMPRODUCT((U175='Comparación Alternativas'!$Z$5:$Z$246)*('Comparación Alternativas'!$AA$5:$AA$246=Alternativas!V175)*('Comparación Alternativas'!$AV$5:$AV$246)) -> 0 | AJ175: =SUMPRODUCT((U175='Comparación Alternativas'!$Z$5:$Z$246)*('Comparación Alternativas'!$AA$5:$AA$246=Alternativas!V175)*('Comparación Alternativas'!$BF$5:$BF$246)) -> 0
B176: 152 | C176: =IF(C175+SUMPRODUCT(($C$16='Para Ocultar'!$A$2:$A$7)*('Para Ocultar'!$C$2:$C$7))>12,(C175+SUMPRODUCT(($C$16='Para Ocultar'!$A$2:$A$7)*('Para Ocultar'!$C$2:$C$7)))-12,C175+SUMPRODUCT(($C$16='Para Ocultar'!$A$2:$A$7)*('Para Ocultar'!$C$2:$C$7))) -> 9 | D176: 2034 | E176: 0 | F176: 0 | G176: 0 | H176: 0 | I176: 4.181149069e-11 | J176: -4.181149069e-11 | K176: 0 | L176: 1.83373252e-09 | M176: 0 | N176: 0 | O176: 0 | P176: 0 | Q176: =SUMPRODUCT((C176='Comparación Alternativas'!$Z$5:$Z$246)*(Alternativas!D176='Comparación Alternativas'!$AA$5:$AA$246)*('Comparación Alternativas'!$AQ$5:$AQ$246)) -> 0 | R176: =SUMPRODUCT((C176='Comparación Alternativas'!$Z$5:$Z$246)*('Comparación Alternativas'!$AA$5:$AA$246=Alternativas!D176)*('Comparación Alternativas'!$BA$5:$BA$246)) -> 0 | T176: 152 | U176: =IF(U175+SUMPRODUCT(($U$16='Para Ocultar'!$A$2:$A$7)*('Para Ocultar'!$C$2:$C$7))>12,(U175+SUMPRODUCT(($U$16='Para Ocultar'!$A$2:$A$7)*('Para Ocultar'!$C$2:$C$7)))-12,U175+SUMPRODUCT(($U$16='Para Ocultar'!$A$2:$A$7)*('Para Ocultar'!$C$2:$C$7))) -> 9 | V176: 2034 | W176: 0 | X176: 0 | Y176: 0 | Z176: 0 | AA176: -3.294528947e-12 | AB176: 3.294528947e-12 | AC176: 0 | AD176: -3.986380026e-10 | AE176: -3.294528947e-12 | AF176: 3.294528947e-12 | AG176: 0 | AH176: -3.986380026e-10 | AI176: =SUMPRODUCT((U176='Comparación Alternativas'!$Z$5:$Z$246)*('Comparación Alternativas'!$AA$5:$AA$246=Alternativas!V176)*('Comparación Alternativas'!$AV$5:$AV$246)) -> 0 | AJ176: =SUMPRODUCT((U176='Comparación Alternativas'!$Z$5:$Z$246)*('Comparación Alternativas'!$AA$5:$AA$246=Alternativas!V176)*('Comparación Alternativas'!$BF$5:$BF$246)) -> 0
B177: 153 | C177: =IF(C176+SUMPRODUCT(($C$16='Para Ocultar'!$A$2:$A$7)*('Para Ocultar'!$C$2:$C$7))>12,(C176+SUMPRODUCT(($C$16='Para Ocultar'!$A$2:$A$7)*('Para Ocultar'!$C$2:$C$7)))-12,C176+SUMPRODUCT(($C$16='Para Ocultar'!$A$2:$A$7)*('Para Ocultar'!$C$2:$C$7))) -> 10 | D177: 2034 | E177: 0 | F177: 0 | G177: 0 | H177: 0 | I177: 4.278709214e-11 | J177: -4.278709214e-11 | K177: 0 | L177: 1.876519612e-09 | M177: 0 | N177: 0 | O177: 0 | P177: 0 | Q177: =SUMPRODUCT((C177='Comparación Alternativas'!$Z$5:$Z$246)*(Alternativas!D177='Comparación Alternativas'!$AA$5:$AA$246)*('Comparación Alternativas'!$AQ$5:$AQ$246)) -> 0 | R177: =SUMPRODUCT((C177='Comparación Alternativas'!$Z$5:$Z$246)*('Comparación Alternativas'!$AA$5:$AA$246=Alternativas!D177)*('Comparación Alternativas'!$BA$5:$BA$246)) -> 0 | T177: 153 | U177: =IF(U176+SUMPRODUCT(($U$16='Para Ocultar'!$A$2:$A$7)*('Para Ocultar'!$C$2:$C$7))>12,(U176+SUMPRODUCT(($U$16='Para Ocultar'!$A$2:$A$7)*('Para Ocultar'!$C$2:$C$7)))-12,U176+SUMPRODUCT(($U$16='Para Ocultar'!$A$2:$A$7)*('Para Ocultar'!$C$2:$C$7))) -> 10 | V177: 2034 | W177: 0 | X177: 0 | Y177: 0 | Z177: 0 | AA177: -3.321983355e-12 | AB177: 3.321983355e-12 | AC177: 0 | AD177: -4.01959986e-10 | AE177: -3.321983355e-12 | AF177: 3.321983355e-12 | AG177: 0 | AH177: -4.01959986e-10 | AI177: =SUMPRODUCT((U177='Comparación Alternativas'!$Z$5:$Z$246)*('Comparación Alternativas'!$AA$5:$AA$246=Alternativas!V177)*('Comparación Alternativas'!$AV$5:$AV$246)) -> 0 | AJ177: =SUMPRODUCT((U177='Comparación Alternativas'!$Z$5:$Z$246)*('Comparación Alternativas'!$AA$5:$AA$246=Alternativas!V177)*('Comparación Alternativas'!$BF$5:$BF$246)) -> 0
B178: 154 | C178: =IF(C177+SUMPRODUCT(($C$16='Para Ocultar'!$A$2:$A$7)*('Para Ocultar'!$C$2:$C$7))>12,(C177+SUMPRODUCT(($C$16='Para Ocultar'!$A$2:$A$7)*('Para Ocultar'!$C$2:$C$7)))-12,C177+SUMPRODUCT(($C$16='Para Ocultar'!$A$2:$A$7)*('Para Ocultar'!$C$2:$C$7))) -> 11 | D178: 2034 | E178: 0 | F178: 0 | G178: 0 | H178: 0 | I178: 4.378545762e-11 | J178: -4.378545762e-11 | K178: 0 | L178: 1.92030507e-09 | M178: 0 | N178: 0 | O178: 0 | P178: 0 | Q178: =SUMPRODUCT((C178='Comparación Alternativas'!$Z$5:$Z$246)*(Alternativas!D178='Comparación Alternativas'!$AA$5:$AA$246)*('Comparación Alternativas'!$AQ$5:$AQ$246)) -> 0 | R178: =SUMPRODUCT((C178='Comparación Alternativas'!$Z$5:$Z$246)*('Comparación Alternativas'!$AA$5:$AA$246=Alternativas!D178)*('Comparación Alternativas'!$BA$5:$BA$246)) -> 0 | T178: 154 | U178: =IF(U177+SUMPRODUCT(($U$16='Para Ocultar'!$A$2:$A$7)*('Para Ocultar'!$C$2:$C$7))>12,(U177+SUMPRODUCT(($U$16='Para Ocultar'!$A$2:$A$7)*('Para Ocultar'!$C$2:$C$7)))-12,U177+SUMPRODUCT(($U$16='Para Ocultar'!$A$2:$A$7)*('Para Ocultar'!$C$2:$C$7))) -> 11 | V178: 2034 | W178: 0 | X178: 0 | Y178: 0 | Z178: 0 | AA178: -3.34966655e-12 | AB178: 3.34966655e-12 | AC178: 0 | AD178: -4.053096525e-10 | AE178: -3.34966655e-12 | AF178: 3.34966655e-12 | AG178: 0 | AH178: -4.053096525e-10 | AI178: =SUMPRODUCT((U178='Comparación Alternativas'!$Z$5:$Z$246)*('Comparación Alternativas'!$AA$5:$AA$246=Alternativas!V178)*('Comparación Alternativas'!$AV$5:$AV$246)) -> 0 | AJ178: =SUMPRODUCT((U178='Comparación Alternativas'!$Z$5:$Z$246)*('Comparación Alternativas'!$AA$5:$AA$246=Alternativas!V178)*('Comparación Alternativas'!$BF$5:$BF$246)) -> 0
B179: 155 | C179: =IF(C178+SUMPRODUCT(($C$16='Para Ocultar'!$A$2:$A$7)*('Para Ocultar'!$C$2:$C$7))>12,(C178+SUMPRODUCT(($C$16='Para Ocultar'!$A$2:$A$7)*('Para Ocultar'!$C$2:$C$7)))-12,C178+SUMPRODUCT(($C$16='Para Ocultar'!$A$2:$A$7)*('Para Ocultar'!$C$2:$C$7))) -> 12 | D179: 2034 | E179: 0 | F179: 0 | G179: 0 | H179: 0 | I179: 4.48071183e-11 | J179: -4.48071183e-11 | K179: 0 | L179: 1.965112188e-09 | M179: 0 | N179: 0 | O179: 0 | P179: 0 | Q179: =SUMPRODUCT((C179='Comparación Alternativas'!$Z$5:$Z$246)*(Alternativas!D179='Comparación Alternativas'!$AA$5:$AA$246)*('Comparación Alternativas'!$AQ$5:$AQ$246)) -> 0 | R179: =SUMPRODUCT((C179='Comparación Alternativas'!$Z$5:$Z$246)*('Comparación Alternativas'!$AA$5:$AA$246=Alternativas!D179)*('Comparación Alternativas'!$BA$5:$BA$246)) -> 0 | T179: 155 | U179: =IF(U178+SUMPRODUCT(($U$16='Para Ocultar'!$A$2:$A$7)*('Para Ocultar'!$C$2:$C$7))>12,(U178+SUMPRODUCT(($U$16='Para Ocultar'!$A$2:$A$7)*('Para Ocultar'!$C$2:$C$7)))-12,U178+SUMPRODUCT(($U$16='Para Ocultar'!$A$2:$A$7)*('Para Ocultar'!$C$2:$C$7))) -> 12 | V179: 2034 | W179: 0 | X179: 0 | Y179: 0 | Z179: 0 | AA179: -3.377580438e-12 | AB179: 3.377580438e-12 | AC179: 0 | AD179: -4.08687233e-10 | AE179: -3.377580438e-12 | AF179: 3.377580438e-12 | AG179: 0 | AH179: -4.08687233e-10 | AI179: =SUMPRODUCT((U179='Comparación Alternativas'!$Z$5:$Z$246)*('Comparación Alternativas'!$AA$5:$AA$246=Alternativas!V179)*('Comparación Alternativas'!$AV$5:$AV$246)) -> 0 | AJ179: =SUMPRODUCT((U179='Comparación Alternativas'!$Z$5:$Z$246)*('Comparación Alternativas'!$AA$5:$AA$246=Alternativas!V179)*('Comparación Alternativas'!$BF$5:$BF$246)) -> 0
B180: 156 | C180: =IF(C179+SUMPRODUCT(($C$16='Para Ocultar'!$A$2:$A$7)*('Para Ocultar'!$C$2:$C$7))>12,(C179+SUMPRODUCT(($C$16='Para Ocultar'!$A$2:$A$7)*('Para Ocultar'!$C$2:$C$7)))-12,C179+SUMPRODUCT(($C$16='Para Ocultar'!$A$2:$A$7)*('Para Ocultar'!$C$2:$C$7))) -> 1 | D180: 2035 | E180: 0 | F180: 0 | G180: 0 | H180: 0 | I180: 4.585261773e-11 | J180: -4.585261773e-11 | K180: 0 | L180: 2.010964806e-09 | M180: 0 | N180: 0 | O180: 0 | P180: 0 | Q180: =SUMPRODUCT((C180='Comparación Alternativas'!$Z$5:$Z$246)*(Alternativas!D180='Comparación Alternativas'!$AA$5:$AA$246)*('Comparación Alternativas'!$AQ$5:$AQ$246)) -> 0 | R180: =SUMPRODUCT((C180='Comparación Alternativas'!$Z$5:$Z$246)*('Comparación Alternativas'!$AA$5:$AA$246=Alternativas!D180)*('Comparación Alternativas'!$BA$5:$BA$246)) -> 0 | T180: 156 | U180: =IF(U179+SUMPRODUCT(($U$16='Para Ocultar'!$A$2:$A$7)*('Para Ocultar'!$C$2:$C$7))>12,(U179+SUMPRODUCT(($U$16='Para Ocultar'!$A$2:$A$7)*('Para Ocultar'!$C$2:$C$7)))-12,U179+SUMPRODUCT(($U$16='Para Ocultar'!$A$2:$A$7)*('Para Ocultar'!$C$2:$C$7))) -> 1 | V180: 2035 | W180: 0 | X180: 0 | Y180: 0 | Z180: 0 | AA180: -3.405726941e-12 | AB180: 3.405726941e-12 | AC180: 0 | AD180: -4.120929599e-10 | AE180: -3.405726941e-12 | AF180: 3.405726941e-12 | AG180: 0 | AH180: -4.120929599e-10 | AI180: =SUMPRODUCT((U180='Comparación Alternativas'!$Z$5:$Z$246)*('Comparación Alternativas'!$AA$5:$AA$246=Alternativas!V180)*('Comparación Alternativas'!$AV$5:$AV$246)) -> 0 | AJ180: =SUMPRODUCT((U180='Comparación Alternativas'!$Z$5:$Z$246)*('Comparación Alternativas'!$AA$5:$AA$246=Alternativas!V180)*('Comparación Alternativas'!$BF$5:$BF$246)) -> 0
B181: 157 | C181: =IF(C180+SUMPRODUCT(($C$16='Para Ocultar'!$A$2:$A$7)*('Para Ocultar'!$C$2:$C$7))>12,(C180+SUMPRODUCT(($C$16='Para Ocultar'!$A$2:$A$7)*('Para Ocultar'!$C$2:$C$7)))-12,C180+SUMPRODUCT(($C$16='Para Ocultar'!$A$2:$A$7)*('Para Ocultar'!$C$2:$C$7))) -> 2 | D181: 2035 | E181: 0 | F181: 0 | G181: 0 | H181: 0 | I181: 4.692251214e-11 | J181: -4.692251214e-11 | K181: 0 | L181: 2.057887318e-09 | M181: 0 | N181: 0 | O181: 0 | P181: 0 | Q181: =SUMPRODUCT((C181='Comparación Alternativas'!$Z$5:$Z$246)*(Alternativas!D181='Comparación Alternativas'!$AA$5:$AA$246)*('Comparación Alternativas'!$AQ$5:$AQ$246)) -> 0 | R181: =SUMPRODUCT((C181='Comparación Alternativas'!$Z$5:$Z$246)*('Comparación Alternativas'!$AA$5:$AA$246=Alternativas!D181)*('Comparación Alternativas'!$BA$5:$BA$246)) -> 0 | T181: 157 | U181: =IF(U180+SUMPRODUCT(($U$16='Para Ocultar'!$A$2:$A$7)*('Para Ocultar'!$C$2:$C$7))>12,(U180+SUMPRODUCT(($U$16='Para Ocultar'!$A$2:$A$7)*('Para Ocultar'!$C$2:$C$7)))-12,U180+SUMPRODUCT(($U$16='Para Ocultar'!$A$2:$A$7)*('Para Ocultar'!$C$2:$C$7))) -> 2 | V181: 2035 | W181: 0 | X181: 0 | Y181: 0 | Z181: 0 | AA181: -3.434107999e-12 | AB181: 3.434107999e-12 | AC181: 0 | AD181: -4.155270679e-10 | AE181: -3.434107999e-12 | AF181: 3.434107999e-12 | AG181: 0 | AH181: -4.155270679e-10 | AI181: =SUMPRODUCT((U181='Comparación Alternativas'!$Z$5:$Z$246)*('Comparación Alternativas'!$AA$5:$AA$246=Alternativas!V181)*('Comparación Alternativas'!$AV$5:$AV$246)) -> 0 | AJ181: =SUMPRODUCT((U181='Comparación Alternativas'!$Z$5:$Z$246)*('Comparación Alternativas'!$AA$5:$AA$246=Alternativas!V181)*('Comparación Alternativas'!$BF$5:$BF$246)) -> 0
B182: 158 | C182: =IF(C181+SUMPRODUCT(($C$16='Para Ocultar'!$A$2:$A$7)*('Para Ocultar'!$C$2:$C$7))>12,(C181+SUMPRODUCT(($C$16='Para Ocultar'!$A$2:$A$7)*('Para Ocultar'!$C$2:$C$7)))-12,C181+SUMPRODUCT(($C$16='Para Ocultar'!$A$2:$A$7)*('Para Ocultar'!$C$2:$C$7))) -> 3 | D182: 2035 | E182: 0 | F182: 0 | G182: 0 | H182: 0 | I182: 4.801737076e-11 | J182: -4.801737076e-11 | K182: 0 | L182: 2.105904689e-09 | M182: 0 | N182: 0 | O182: 0 | P182: 0 | Q182: =SUMPRODUCT((C182='Comparación Alternativas'!$Z$5:$Z$246)*(Alternativas!D182='Comparación Alternativas'!$AA$5:$AA$246)*('Comparación Alternativas'!$AQ$5:$AQ$246)) -> 0 | R182: =SUMPRODUCT((C182='Comparación Alternativas'!$Z$5:$Z$246)*('Comparación Alternativas'!$AA$5:$AA$246=Alternativas!D182)*('Comparación Alternativas'!$BA$5:$BA$246)) -> 0 | T182: 158 | U182: =IF(U181+SUMPRODUCT(($U$16='Para Ocultar'!$A$2:$A$7)*('Para Ocultar'!$C$2:$C$7))>12,(U181+SUMPRODUCT(($U$16='Para Ocultar'!$A$2:$A$7)*('Para Ocultar'!$C$2:$C$7)))-12,U181+SUMPRODUCT(($U$16='Para Ocultar'!$A$2:$A$7)*('Para Ocultar'!$C$2:$C$7))) -> 3 | V182: 2035 | W182: 0 | X182: 0 | Y182: 0 | Z182: 0 | AA182: -3.462725566e-12 | AB182: 3.462725566e-12 | AC182: 0 | AD182: -4.189897935e-10 | AE182: -3.462725566e-12 | AF182: 3.462725566e-12 | AG182: 0 | AH182: -4.189897935e-10 | AI182: =SUMPRODUCT((U182='Comparación Alternativas'!$Z$5:$Z$246)*('Comparación Alternativas'!$AA$5:$AA$246=Alternativas!V182)*('Comparación Alternativas'!$AV$5:$AV$246)) -> 0 | AJ182: =SUMPRODUCT((U182='Comparación Alternativas'!$Z$5:$Z$246)*('Comparación Alternativas'!$AA$5:$AA$246=Alternativas!V182)*('Comparación Alternativas'!$BF$5:$BF$246)) -> 0
B183: 159 | C183: =IF(C182+SUMPRODUCT(($C$16='Para Ocultar'!$A$2:$A$7)*('Para Ocultar'!$C$2:$C$7))>12,(C182+SUMPRODUCT(($C$16='Para Ocultar'!$A$2:$A$7)*('Para Ocultar'!$C$2:$C$7)))-12,C182+SUMPRODUCT(($C$16='Para Ocultar'!$A$2:$A$7)*('Para Ocultar'!$C$2:$C$7))) -> 4 | D183: 2035 | E183: 0 | F183: 0 | G183: 0 | H183: 0 | I183: 4.913777607e-11 | J183: -4.913777607e-11 | K183: 0 | L183: 2.155042465e-09 | M183: 0 | N183: 0 | O183: 0 | P183: 0 | Q183: =SUMPRODUCT((C183='Comparación Alternativas'!$Z$5:$Z$246)*(Alternativas!D183='Comparación Alternativas'!$AA$5:$AA$246)*('Comparación Alternativas'!$AQ$5:$AQ$246)) -> 0 | R183: =SUMPRODUCT((C183='Comparación Alternativas'!$Z$5:$Z$246)*('Comparación Alternativas'!$AA$5:$AA$246=Alternativas!D183)*('Comparación Alternativas'!$BA$5:$BA$246)) -> 0 | T183: 159 | U183: =IF(U182+SUMPRODUCT(($U$16='Para Ocultar'!$A$2:$A$7)*('Para Ocultar'!$C$2:$C$7))>12,(U182+SUMPRODUCT(($U$16='Para Ocultar'!$A$2:$A$7)*('Para Ocultar'!$C$2:$C$7)))-12,U182+SUMPRODUCT(($U$16='Para Ocultar'!$A$2:$A$7)*('Para Ocultar'!$C$2:$C$7))) -> 4 | V183: 2035 | W183: 0 | X183: 0 | Y183: 0 | Z183: 0 | AA183: -3.491581612e-12 | AB183: 3.491581612e-12 | AC183: 0 | AD183: -4.224813751e-10 | AE183: -3.491581612e-12 | AF183: 3.491581612e-12 | AG183: 0 | AH183: -4.224813751e-10 | AI183: =SUMPRODUCT((U183='Comparación Alternativas'!$Z$5:$Z$246)*('Comparación Alternativas'!$AA$5:$AA$246=Alternativas!V183)*('Comparación Alternativas'!$AV$5:$AV$246)) -> 0 | AJ183: =SUMPRODUCT((U183='Comparación Alternativas'!$Z$5:$Z$246)*('Comparación Alternativas'!$AA$5:$AA$246=Alternativas!V183)*('Comparación Alternativas'!$BF$5:$BF$246)) -> 0
B184: 160 | C184: =IF(C183+SUMPRODUCT(($C$16='Para Ocultar'!$A$2:$A$7)*('Para Ocultar'!$C$2:$C$7))>12,(C183+SUMPRODUCT(($C$16='Para Ocultar'!$A$2:$A$7)*('Para Ocultar'!$C$2:$C$7)))-12,C183+SUMPRODUCT(($C$16='Para Ocultar'!$A$2:$A$7)*('Para Ocultar'!$C$2:$C$7))) -> 5 | D184: 2035 | E184: 0 | F184: 0 | G184: 0 | H184: 0 | I184: 5.028432418e-11 | J184: -5.028432418e-11 | K184: 0 | L184: 2.205326789e-09 | M184: 0 | N184: 0 | O184: 0 | P184: 0 | Q184: =SUMPRODUCT((C184='Comparación Alternativas'!$Z$5:$Z$246)*(Alternativas!D184='Comparación Alternativas'!$AA$5:$AA$246)*('Comparación Alternativas'!$AQ$5:$AQ$246)) -> 0 | R184: =SUMPRODUCT((C184='Comparación Alternativas'!$Z$5:$Z$246)*('Comparación Alternativas'!$AA$5:$AA$246=Alternativas!D184)*('Comparación Alternativas'!$BA$5:$BA$246)) -> 0 | T184: 160 | U184: =IF(U183+SUMPRODUCT(($U$16='Para Ocultar'!$A$2:$A$7)*('Para Ocultar'!$C$2:$C$7))>12,(U183+SUMPRODUCT(($U$16='Para Ocultar'!$A$2:$A$7)*('Para Ocultar'!$C$2:$C$7)))-12,U183+SUMPRODUCT(($U$16='Para Ocultar'!$A$2:$A$7)*('Para Ocultar'!$C$2:$C$7))) -> 5 | V184: 2035 | W184: 0 | X184: 0 | Y184: 0 | Z184: 0 | AA184: -3.520678126e-12 | AB184: 3.520678126e-12 | AC184: 0 | AD184: -4.260020532e-10 | AE184: -3.520678126e-12 | AF184: 3.520678126e-12 | AG184: 0 | AH184: -4.260020532e-10 | AI184: =SUMPRODUCT((U184='Comparación Alternativas'!$Z$5:$Z$246)*('Comparación Alternativas'!$AA$5:$AA$246=Alternativas!V184)*('Comparación Alternativas'!$AV$5:$AV$246)) -> 0 | AJ184: =SUMPRODUCT((U184='Comparación Alternativas'!$Z$5:$Z$246)*('Comparación Alternativas'!$AA$5:$AA$246=Alternativas!V184)*('Comparación Alternativas'!$BF$5:$BF$246)) -> 0
B185: 161 | C185: =IF(C184+SUMPRODUCT(($C$16='Para Ocultar'!$A$2:$A$7)*('Para Ocultar'!$C$2:$C$7))>12,(C184+SUMPRODUCT(($C$16='Para Ocultar'!$A$2:$A$7)*('Para Ocultar'!$C$2:$C$7)))-12,C184+SUMPRODUCT(($C$16='Para Ocultar'!$A$2:$A$7)*('Para Ocultar'!$C$2:$C$7))) -> 6 | D185: 2035 | E185: 0 | F185: 0 | G185: 0 | H185: 0 | I185: 5.145762508e-11 | J185: -5.145762508e-11 | K185: 0 | L185: 2.256784414e-09 | M185: 0 | N185: 0 | O185: 0 | P185: 0 | Q185: =SUMPRODUCT((C185='Comparación Alternativas'!$Z$5:$Z$246)*(Alternativas!D185='Comparación Alternativas'!$AA$5:$AA$246)*('Comparación Alternativas'!$AQ$5:$AQ$246)) -> 0 | R185: =SUMPRODUCT((C185='Comparación Alternativas'!$Z$5:$Z$246)*('Comparación Alternativas'!$AA$5:$AA$246=Alternativas!D185)*('Comparación Alternativas'!$BA$5:$BA$246)) -> 0 | T185: 161 | U185: =IF(U184+SUMPRODUCT(($U$16='Para Ocultar'!$A$2:$A$7)*('Para Ocultar'!$C$2:$C$7))>12,(U184+SUMPRODUCT(($U$16='Para Ocultar'!$A$2:$A$7)*('Para Ocultar'!$C$2:$C$7)))-12,U184+SUMPRODUCT(($U$16='Para Ocultar'!$A$2:$A$7)*('Para Ocultar'!$C$2:$C$7))) -> 6 | V185: 2035 | W185: 0 | X185: 0 | Y185: 0 | Z185: 0 | AA185: -3.55001711e-12 | AB185: 3.55001711e-12 | AC185: =-IF($U$18>=T185,$U$12*$U$15/$U$16,IF($U$17+$U$18>=T185,$U$12*$AB$20,0)) -> 0 | AD185: -4.295520703e-10 | AE185: -3.55001711e-12 | AF185: 3.55001711e-12 | AG185: 0 | AH185: -4.295520703e-10 | AI185: =SUMPRODUCT((U185='Comparación Alternativas'!$Z$5:$Z$246)*('Comparación Alternativas'!$AA$5:$AA$246=Alternativas!V185)*('Comparación Alternativas'!$AV$5:$AV$246)) -> 0 | AJ185: =SUMPRODUCT((U185='Comparación Alternativas'!$Z$5:$Z$246)*('Comparación Alternativas'!$AA$5:$AA$246=Alternativas!V185)*('Comparación Alternativas'!$BF$5:$BF$246)) -> 0
B186: 162 | C186: =IF(C185+SUMPRODUCT(($C$16='Para Ocultar'!$A$2:$A$7)*('Para Ocultar'!$C$2:$C$7))>12,(C185+SUMPRODUCT(($C$16='Para Ocultar'!$A$2:$A$7)*('Para Ocultar'!$C$2:$C$7)))-12,C185+SUMPRODUCT(($C$16='Para Ocultar'!$A$2:$A$7)*('Para Ocultar'!$C$2:$C$7))) -> 7 | D186: 2035 | E186: 0 | F186: 0 | G186: 0 | H186: 0 | I186: 5.2658303e-11 | J186: -5.2658303e-11 | K186: 0 | L186: 2.309442717e-09 | M186: 0 | N186: 0 | O186: 0 | P186: 0 | Q186: =SUMPRODUCT((C186='Comparación Alternativas'!$Z$5:$Z$246)*(Alternativas!D186='Comparación Alternativas'!$AA$5:$AA$246)*('Comparación Alternativas'!$AQ$5:$AQ$246)) -> 0 | R186: =SUMPRODUCT((C186='Comparación Alternativas'!$Z$5:$Z$246)*('Comparación Alternativas'!$AA$5:$AA$246=Alternativas!D186)*('Comparación Alternativas'!$BA$5:$BA$246)) -> 0 | T186: 162 | U186: =IF(U185+SUMPRODUCT(($U$16='Para Ocultar'!$A$2:$A$7)*('Para Ocultar'!$C$2:$C$7))>12,(U185+SUMPRODUCT(($U$16='Para Ocultar'!$A$2:$A$7)*('Para Ocultar'!$C$2:$C$7)))-12,U185+SUMPRODUCT(($U$16='Para Ocultar'!$A$2:$A$7)*('Para Ocultar'!$C$2:$C$7))) -> 7 | V186: 2035 | W186: 0 | X186: 0 | Y186: 0 | Z186: 0 | AA186: -3.579600586e-12 | AB186: 3.579600586e-12 | AC186: 0 | AD186: -4.331316709e-10 | AE186: -3.579600586e-12 | AF186: 3.579600586e-12 | AG186: 0 | AH186: -4.331316709e-10 | AI186: =SUMPRODUCT((U186='Comparación Alternativas'!$Z$5:$Z$246)*('Comparación Alternativas'!$AA$5:$AA$246=Alternativas!V186)*('Comparación Alternativas'!$AV$5:$AV$246)) -> 0 | AJ186: =SUMPRODUCT((U186='Comparación Alternativas'!$Z$5:$Z$246)*('Comparación Alternativas'!$AA$5:$AA$246=Alternativas!V186)*('Comparación Alternativas'!$BF$5:$BF$246)) -> 0
B187: 163 | C187: =IF(C186+SUMPRODUCT(($C$16='Para Ocultar'!$A$2:$A$7)*('Para Ocultar'!$C$2:$C$7))>12,(C186+SUMPRODUCT(($C$16='Para Ocultar'!$A$2:$A$7)*('Para Ocultar'!$C$2:$C$7)))-12,C186+SUMPRODUCT(($C$16='Para Ocultar'!$A$2:$A$7)*('Para Ocultar'!$C$2:$C$7))) -> 8 | D187: 2035 | E187: 0 | F187: 0 | G187: 0 | H187: 0 | I187: 5.388699674e-11 | J187: -5.388699674e-11 | K187: 0 | L187: 2.363329714e-09 | M187: 0 | N187: 0 | O187: 0 | P187: 0 | Q187: =SUMPRODUCT((C187='Comparación Alternativas'!$Z$5:$Z$246)*(Alternativas!D187='Comparación Alternativas'!$AA$5:$AA$246)*('Comparación Alternativas'!$AQ$5:$AQ$246)) -> 0 | R187: =SUMPRODUCT((C187='Comparación Alternativas'!$Z$5:$Z$246)*('Comparación Alternativas'!$AA$5:$AA$246=Alternativas!D187)*('Comparación Alternativas'!$BA$5:$BA$246)) -> 0 | T187: 163 | U187: =IF(U186+SUMPRODUCT(($U$16='Para Ocultar'!$A$2:$A$7)*('Para Ocultar'!$C$2:$C$7))>12,(U186+SUMPRODUCT(($U$16='Para Ocultar'!$A$2:$A$7)*('Para Ocultar'!$C$2:$C$7)))-12,U186+SUMPRODUCT(($U$16='Para Ocultar'!$A$2:$A$7)*('Para Ocultar'!$C$2:$C$7))) -> 8 | V187: 2035 | W187: 0 | X187: 0 | Y187: 0 | Z187: 0 | AA187: -3.609430591e-12 | AB187: 3.609430591e-12 | AC187: 0 | AD187: -4.367411015e-10 | AE187: -3.609430591e-12 | AF187: 3.609430591e-12 | AG187: 0 | AH187: -4.367411015e-10 | AI187: =SUMPRODUCT((U187='Comparación Alternativas'!$Z$5:$Z$246)*('Comparación Alternativas'!$AA$5:$AA$246=Alternativas!V187)*('Comparación Alternativas'!$AV$5:$AV$246)) -> 0 | AJ187: =SUMPRODUCT((U187='Comparación Alternativas'!$Z$5:$Z$246)*('Comparación Alternativas'!$AA$5:$AA$246=Alternativas!V187)*('Comparación Alternativas'!$BF$5:$BF$246)) -> 0
B188: 164 | C188: =IF(C187+SUMPRODUCT(($C$16='Para Ocultar'!$A$2:$A$7)*('Para Ocultar'!$C$2:$C$7))>12,(C187+SUMPRODUCT(($C$16='Para Ocultar'!$A$2:$A$7)*('Para Ocultar'!$C$2:$C$7)))-12,C187+SUMPRODUCT(($C$16='Para Ocultar'!$A$2:$A$7)*('Para Ocultar'!$C$2:$C$7))) -> 9 | D188: 2035 | E188: 0 | F188: 0 | G188: 0 | H188: 0 | I188: 5.514435999e-11 | J188: -5.514435999e-11 | K188: 0 | L188: 2.418474074e-09 | M188: 0 | N188: 0 | O188: 0 | P188: 0 | Q188: =SUMPRODUCT((C188='Comparación Alternativas'!$Z$5:$Z$246)*(Alternativas!D188='Comparación Alternativas'!$AA$5:$AA$246)*('Comparación Alternativas'!$AQ$5:$AQ$246)) -> 0 | R188: =SUMPRODUCT((C188='Comparación Alternativas'!$Z$5:$Z$246)*('Comparación Alternativas'!$AA$5:$AA$246=Alternativas!D188)*('Comparación Alternativas'!$BA$5:$BA$246)) -> 0 | T188: 164 | U188: =IF(U187+SUMPRODUCT(($U$16='Para Ocultar'!$A$2:$A$7)*('Para Ocultar'!$C$2:$C$7))>12,(U187+SUMPRODUCT(($U$16='Para Ocultar'!$A$2:$A$7)*('Para Ocultar'!$C$2:$C$7)))-12,U187+SUMPRODUCT(($U$16='Para Ocultar'!$A$2:$A$7)*('Para Ocultar'!$C$2:$C$7))) -> 9 | V188: 2035 | W188: 0 | X188: 0 | Y188: 0 | Z188: 0 | AA188: -3.639509179e-12 | AB188: 3.639509179e-12 | AC188: 0 | AD188: -4.403806107e-10 | AE188: -3.639509179e-12 | AF188: 3.639509179e-12 | AG188: 0 | AH188: -4.403806107e-10 | AI188: =SUMPRODUCT((U188='Comparación Alternativas'!$Z$5:$Z$246)*('Comparación Alternativas'!$AA$5:$AA$246=Alternativas!V188)*('Comparación Alternativas'!$AV$5:$AV$246)) -> 0 | AJ188: =SUMPRODUCT((U188='Comparación Alternativas'!$Z$5:$Z$246)*('Comparación Alternativas'!$AA$5:$AA$246=Alternativas!V188)*('Comparación Alternativas'!$BF$5:$BF$246)) -> 0
B189: 165 | C189: =IF(C188+SUMPRODUCT(($C$16='Para Ocultar'!$A$2:$A$7)*('Para Ocultar'!$C$2:$C$7))>12,(C188+SUMPRODUCT(($C$16='Para Ocultar'!$A$2:$A$7)*('Para Ocultar'!$C$2:$C$7)))-12,C188+SUMPRODUCT(($C$16='Para Ocultar'!$A$2:$A$7)*('Para Ocultar'!$C$2:$C$7))) -> 10 | D189: 2035 | E189: 0 | F189: 0 | G189: 0 | H189: 0 | I189: 5.643106173e-11 | J189: -5.643106173e-11 | K189: 0 | L189: 2.474905136e-09 | M189: 0 | N189: 0 | O189: 0 | P189: 0 | Q189: =SUMPRODUCT((C189='Comparación Alternativas'!$Z$5:$Z$246)*(Alternativas!D189='Comparación Alternativas'!$AA$5:$AA$246)*('Comparación Alternativas'!$AQ$5:$AQ$246)) -> 0 | R189: =SUMPRODUCT((C189='Comparación Alternativas'!$Z$5:$Z$246)*('Comparación Alternativas'!$AA$5:$AA$246=Alternativas!D189)*('Comparación Alternativas'!$BA$5:$BA$246)) -> 0 | T189: 165 | U189: =IF(U188+SUMPRODUCT(($U$16='Para Ocultar'!$A$2:$A$7)*('Para Ocultar'!$C$2:$C$7))>12,(U188+SUMPRODUCT(($U$16='Para Ocultar'!$A$2:$A$7)*('Para Ocultar'!$C$2:$C$7)))-12,U188+SUMPRODUCT(($U$16='Para Ocultar'!$A$2:$A$7)*('Para Ocultar'!$C$2:$C$7))) -> 10 | V189: 2035 | W189: 0 | X189: 0 | Y189: 0 | Z189: 0 | AA189: -3.669838422e-12 | AB189: 3.669838422e-12 | AC189: 0 | AD189: -4.440504491e-10 | AE189: -3.669838422e-12 | AF189: 3.669838422e-12 | AG189: 0 | AH189: -4.440504491e-10 | AI189: =SUMPRODUCT((U189='Comparación Alternativas'!$Z$5:$Z$246)*('Comparación Alternativas'!$AA$5:$AA$246=Alternativas!V189)*('Comparación Alternativas'!$AV$5:$AV$246)) -> 0 | AJ189: =SUMPRODUCT((U189='Comparación Alternativas'!$Z$5:$Z$246)*('Comparación Alternativas'!$AA$5:$AA$246=Alternativas!V189)*('Comparación Alternativas'!$BF$5:$BF$246)) -> 0
B190: 166 | C190: =IF(C189+SUMPRODUCT(($C$16='Para Ocultar'!$A$2:$A$7)*('Para Ocultar'!$C$2:$C$7))>12,(C189+SUMPRODUCT(($C$16='Para Ocultar'!$A$2:$A$7)*('Para Ocultar'!$C$2:$C$7)))-12,C189+SUMPRODUCT(($C$16='Para Ocultar'!$A$2:$A$7)*('Para Ocultar'!$C$2:$C$7))) -> 11 | D190: 2035 | E190: 0 | F190: 0 | G190: 0 | H190: 0 | I190: 5.77477865e-11 | J190: -5.77477865e-11 | K190: 0 | L190: 2.532652922e-09 | M190: 0 | N190: 0 | O190: 0 | P190: 0 | Q190: =SUMPRODUCT((C190='Comparación Alternativas'!$Z$5:$Z$246)*(Alternativas!D190='Comparación Alternativas'!$AA$5:$AA$246)*('Comparación Alternativas'!$AQ$5:$AQ$246)) -> 0 | R190: =SUMPRODUCT((C190='Comparación Alternativas'!$Z$5:$Z$246)*('Comparación Alternativas'!$AA$5:$AA$246=Alternativas!D190)*('Comparación Alternativas'!$BA$5:$BA$246)) -> 0 | T190: 166 | U190: =IF(U189+SUMPRODUCT(($U$16='Para Ocultar'!$A$2:$A$7)*('Para Ocultar'!$C$2:$C$7))>12,(U189+SUMPRODUCT(($U$16='Para Ocultar'!$A$2:$A$7)*('Para Ocultar'!$C$2:$C$7)))-12,U189+SUMPRODUCT(($U$16='Para Ocultar'!$A$2:$A$7)*('Para Ocultar'!$C$2:$C$7))) -> 11 | V190: 2035 | W190: 0 | X190: 0 | Y190: 0 | Z190: 0 | AA190: -3.700420409e-12 | AB190: 3.700420409e-12 | AC190: 0 | AD190: -4.477508695e-10 | AE190: -3.700420409e-12 | AF190: 3.700420409e-12 | AG190: 0 | AH190: -4.477508695e-10 | AI190: =SUMPRODUCT((U190='Comparación Alternativas'!$Z$5:$Z$246)*('Comparación Alternativas'!$AA$5:$AA$246=Alternativas!V190)*('Comparación Alternativas'!$AV$5:$AV$246)) -> 0 | AJ190: =SUMPRODUCT((U190='Comparación Alternativas'!$Z$5:$Z$246)*('Comparación Alternativas'!$AA$5:$AA$246=Alternativas!V190)*('Comparación Alternativas'!$BF$5:$BF$246)) -> 0
B191: 167 | C191: =IF(C190+SUMPRODUCT(($C$16='Para Ocultar'!$A$2:$A$7)*('Para Ocultar'!$C$2:$C$7))>12,(C190+SUMPRODUCT(($C$16='Para Ocultar'!$A$2:$A$7)*('Para Ocultar'!$C$2:$C$7)))-12,C190+SUMPRODUCT(($C$16='Para Ocultar'!$A$2:$A$7)*('Para Ocultar'!$C$2:$C$7))) -> 12 | D191: 2035 | E191: 0 | F191: 0 | G191: 0 | H191: 0 | I191: 5.909523485e-11 | J191: -5.909523485e-11 | K191: 0 | L191: 2.591748157e-09 | M191: 0 | N191: 0 | O191: 0 | P191: 0 | Q191: =SUMPRODUCT((C191='Comparación Alternativas'!$Z$5:$Z$246)*(Alternativas!D191='Comparación Alternativas'!$AA$5:$AA$246)*('Comparación Alternativas'!$AQ$5:$AQ$246)) -> 0 | R191: =SUMPRODUCT((C191='Comparación Alternativas'!$Z$5:$Z$246)*('Comparación Alternativas'!$AA$5:$AA$246=Alternativas!D191)*('Comparación Alternativas'!$BA$5:$BA$246)) -> 0 | T191: 167 | U191: =IF(U190+SUMPRODUCT(($U$16='Para Ocultar'!$A$2:$A$7)*('Para Ocultar'!$C$2:$C$7))>12,(U190+SUMPRODUCT(($U$16='Para Ocultar'!$A$2:$A$7)*('Para Ocultar'!$C$2:$C$7)))-12,U190+SUMPRODUCT(($U$16='Para Ocultar'!$A$2:$A$7)*('Para Ocultar'!$C$2:$C$7))) -> 12 | V191: 2035 | W191: 0 | X191: 0 | Y191: 0 | Z191: 0 | AA191: -3.731257246e-12 | AB191: 3.731257246e-12 | AC191: 0 | AD191: -4.514821267e-10 | AE191: -3.731257246e-12 | AF191: 3.731257246e-12 | AG191: 0 | AH191: -4.514821267e-10 | AI191: =SUMPRODUCT((U191='Comparación Alternativas'!$Z$5:$Z$246)*('Comparación Alternativas'!$AA$5:$AA$246=Alternativas!V191)*('Comparación Alternativas'!$AV$5:$AV$246)) -> 0 | AJ191: =SUMPRODUCT((U191='Comparación Alternativas'!$Z$5:$Z$246)*('Comparación Alternativas'!$AA$5:$AA$246=Alternativas!V191)*('Comparación Alternativas'!$BF$5:$BF$246)) -> 0
B192: 168 | C192: =IF(C191+SUMPRODUCT(($C$16='Para Ocultar'!$A$2:$A$7)*('Para Ocultar'!$C$2:$C$7))>12,(C191+SUMPRODUCT(($C$16='Para Ocultar'!$A$2:$A$7)*('Para Ocultar'!$C$2:$C$7)))-12,C191+SUMPRODUCT(($C$16='Para Ocultar'!$A$2:$A$7)*('Para Ocultar'!$C$2:$C$7))) -> 1 | D192: 2036 | E192: 0 | F192: 0 | G192: 0 | H192: 0 | I192: 6.047412367e-11 | J192: -6.047412367e-11 | K192: 0 | L192: 2.652222281e-09 | M192: 0 | N192: 0 | O192: 0 | P192: 0 | Q192: =SUMPRODUCT((C192='Comparación Alternativas'!$Z$5:$Z$246)*(Alternativas!D192='Comparación Alternativas'!$AA$5:$AA$246)*('Comparación Alternativas'!$AQ$5:$AQ$246)) -> 0 | R192: =SUMPRODUCT((C192='Comparación Alternativas'!$Z$5:$Z$246)*('Comparación Alternativas'!$AA$5:$AA$246=Alternativas!D192)*('Comparación Alternativas'!$BA$5:$BA$246)) -> 0 | T192: 168 | U192: =IF(U191+SUMPRODUCT(($U$16='Para Ocultar'!$A$2:$A$7)*('Para Ocultar'!$C$2:$C$7))>12,(U191+SUMPRODUCT(($U$16='Para Ocultar'!$A$2:$A$7)*('Para Ocultar'!$C$2:$C$7)))-12,U191+SUMPRODUCT(($U$16='Para Ocultar'!$A$2:$A$7)*('Para Ocultar'!$C$2:$C$7))) -> 1 | V192: 2036 | W192: 0 | X192: 0 | Y192: 0 | Z192: 0 | AA192: -3.762351056e-12 | AB192: 3.762351056e-12 | AC192: 0 | AD192: -4.552444778e-10 | AE192: -3.762351056e-12 | AF192: 3.762351056e-12 | AG192: 0 | AH192: -4.552444778e-10 | AI192: =SUMPRODUCT((U192='Comparación Alternativas'!$Z$5:$Z$246)*('Comparación Alternativas'!$AA$5:$AA$246=Alternativas!V192)*('Comparación Alternativas'!$AV$5:$AV$246)) -> 0 | AJ192: =SUMPRODUCT((U192='Comparación Alternativas'!$Z$5:$Z$246)*('Comparación Alternativas'!$AA$5:$AA$246=Alternativas!V192)*('Comparación Alternativas'!$BF$5:$BF$246)) -> 0
B193: 169 | C193: =IF(C192+SUMPRODUCT(($C$16='Para Ocultar'!$A$2:$A$7)*('Para Ocultar'!$C$2:$C$7))>12,(C192+SUMPRODUCT(($C$16='Para Ocultar'!$A$2:$A$7)*('Para Ocultar'!$C$2:$C$7)))-12,C192+SUMPRODUCT(($C$16='Para Ocultar'!$A$2:$A$7)*('Para Ocultar'!$C$2:$C$7))) -> 2 | D193: 2036 | E193: 0 | F193: 0 | G193: 0 | H193: 0 | I193: 6.188518655e-11 | J193: -6.188518655e-11 | K193: 0 | L193: 2.714107467e-09 | M193: 0 | N193: 0 | O193: 0 | P193: 0 | Q193: =SUMPRODUCT((C193='Comparación Alternativas'!$Z$5:$Z$246)*(Alternativas!D193='Comparación Alternativas'!$AA$5:$AA$246)*('Comparación Alternativas'!$AQ$5:$AQ$246)) -> 0 | R193: =SUMPRODUCT((C193='Comparación Alternativas'!$Z$5:$Z$246)*('Comparación Alternativas'!$AA$5:$AA$246=Alternativas!D193)*('Comparación Alternativas'!$BA$5:$BA$246)) -> 0 | T193: 169 | U193: =IF(U192+SUMPRODUCT(($U$16='Para Ocultar'!$A$2:$A$7)*('Para Ocultar'!$C$2:$C$7))>12,(U192+SUMPRODUCT(($U$16='Para Ocultar'!$A$2:$A$7)*('Para Ocultar'!$C$2:$C$7)))-12,U192+SUMPRODUCT(($U$16='Para Ocultar'!$A$2:$A$7)*('Para Ocultar'!$C$2:$C$7))) -> 2 | V193: 2036 | W193: 0 | X193: 0 | Y193: 0 | Z193: 0 | AA193: -3.793703982e-12 | AB193: 3.793703982e-12 | AC193: 0 | AD193: -4.590381818e-10 | AE193: -3.793703982e-12 | AF193: 3.793703982e-12 | AG193: 0 | AH193: -4.590381818e-10 | AI193: =SUMPRODUCT((U193='Comparación Alternativas'!$Z$5:$Z$246)*('Comparación Alternativas'!$AA$5:$AA$246=Alternativas!V193)*('Comparación Alternativas'!$AV$5:$AV$246)) -> 0 | AJ193: =SUMPRODUCT((U193='Comparación Alternativas'!$Z$5:$Z$246)*('Comparación Alternativas'!$AA$5:$AA$246=Alternativas!V193)*('Comparación Alternativas'!$BF$5:$BF$246)) -> 0
B194: 170 | C194: =IF(C193+SUMPRODUCT(($C$16='Para Ocultar'!$A$2:$A$7)*('Para Ocultar'!$C$2:$C$7))>12,(C193+SUMPRODUCT(($C$16='Para Ocultar'!$A$2:$A$7)*('Para Ocultar'!$C$2:$C$7)))-12,C193+SUMPRODUCT(($C$16='Para Ocultar'!$A$2:$A$7)*('Para Ocultar'!$C$2:$C$7))) -> 3 | D194: 2036 | E194: 0 | F194: 0 | G194: 0 | H194: 0 | I194: 6.332917424e-11 | J194: -6.332917424e-11 | K194: 0 | L194: 2.777436642e-09 | M194: 0 | N194: 0 | O194: 0 | P194: 0 | Q194: =SUMPRODUCT((C194='Comparación Alternativas'!$Z$5:$Z$246)*(Alternativas!D194='Comparación Alternativas'!$AA$5:$AA$246)*('Comparación Alternativas'!$AQ$5:$AQ$246)) -> 0 | R194: =SUMPRODUCT((C194='Comparación Alternativas'!$Z$5:$Z$246)*('Comparación Alternativas'!$AA$5:$AA$246=Alternativas!D194)*('Comparación Alternativas'!$BA$5:$BA$246)) -> 0 | T194: 170 | U194: =IF(U193+SUMPRODUCT(($U$16='Para Ocultar'!$A$2:$A$7)*('Para Ocultar'!$C$2:$C$7))>12,(U193+SUMPRODUCT(($U$16='Para Ocultar'!$A$2:$A$7)*('Para Ocultar'!$C$2:$C$7)))-12,U193+SUMPRODUCT(($U$16='Para Ocultar'!$A$2:$A$7)*('Para Ocultar'!$C$2:$C$7))) -> 3 | V194: 2036 | W194: 0 | X194: 0 | Y194: 0 | Z194: 0 | AA194: -3.825318182e-12 | AB194: 3.825318182e-12 | AC194: 0 | AD194: -4.628635e-10 | AE194: -3.825318182e-12 | AF194: 3.825318182e-12 | AG194: 0 | AH194: -4.628635e-10 | AI194: =SUMPRODUCT((U194='Comparación Alternativas'!$Z$5:$Z$246)*('Comparación Alternativas'!$AA$5:$AA$246=Alternativas!V194)*('Comparación Alternativas'!$AV$5:$AV$246)) -> 0 | AJ194: =SUMPRODUCT((U194='Comparación Alternativas'!$Z$5:$Z$246)*('Comparación Alternativas'!$AA$5:$AA$246=Alternativas!V194)*('Comparación Alternativas'!$BF$5:$BF$246)) -> 0
B195: 171 | C195: =IF(C194+SUMPRODUCT(($C$16='Para Ocultar'!$A$2:$A$7)*('Para Ocultar'!$C$2:$C$7))>12,(C194+SUMPRODUCT(($C$16='Para Ocultar'!$A$2:$A$7)*('Para Ocultar'!$C$2:$C$7)))-12,C194+SUMPRODUCT(($C$16='Para Ocultar'!$A$2:$A$7)*('Para Ocultar'!$C$2:$C$7))) -> 4 | D195: 2036 | E195: 0 | F195: 0 | G195: 0 | H195: 0 | I195: 6.480685497e-11 | J195: -6.480685497e-11 | K195: 0 | L195: 2.842243496e-09 | M195: 0 | N195: 0 | O195: 0 | P195: 0 | Q195: =SUMPRODUCT((C195='Comparación Alternativas'!$Z$5:$Z$246)*(Alternativas!D195='Comparación Alternativas'!$AA$5:$AA$246)*('Comparación Alternativas'!$AQ$5:$AQ$246)) -> 0 | R195: =SUMPRODUCT((C195='Comparación Alternativas'!$Z$5:$Z$246)*('Comparación Alternativas'!$AA$5:$AA$246=Alternativas!D195)*('Comparación Alternativas'!$BA$5:$BA$246)) -> 0 | T195: 171 | U195: =IF(U194+SUMPRODUCT(($U$16='Para Ocultar'!$A$2:$A$7)*('Para Ocultar'!$C$2:$C$7))>12,(U194+SUMPRODUCT(($U$16='Para Ocultar'!$A$2:$A$7)*('Para Ocultar'!$C$2:$C$7)))-12,U194+SUMPRODUCT(($U$16='Para Ocultar'!$A$2:$A$7)*('Para Ocultar'!$C$2:$C$7))) -> 4 | V195: 2036 | W195: 0 | X195: 0 | Y195: 0 | Z195: 0 | AA195: -3.857195833e-12 | AB195: 3.857195833e-12 | AC195: 0 | AD195: -4.667206958e-10 | AE195: -3.857195833e-12 | AF195: 3.857195833e-12 | AG195: 0 | AH195: -4.667206958e-10 | AI195: =SUMPRODUCT((U195='Comparación Alternativas'!$Z$5:$Z$246)*('Comparación Alternativas'!$AA$5:$AA$246=Alternativas!V195)*('Comparación Alternativas'!$AV$5:$AV$246)) -> 0 | AJ195: =SUMPRODUCT((U195='Comparación Alternativas'!$Z$5:$Z$246)*('Comparación Alternativas'!$AA$5:$AA$246=Alternativas!V195)*('Comparación Alternativas'!$BF$5:$BF$246)) -> 0
B196: 172 | C196: =IF(C195+SUMPRODUCT(($C$16='Para Ocultar'!$A$2:$A$7)*('Para Ocultar'!$C$2:$C$7))>12,(C195+SUMPRODUCT(($C$16='Para Ocultar'!$A$2:$A$7)*('Para Ocultar'!$C$2:$C$7)))-12,C195+SUMPRODUCT(($C$16='Para Ocultar'!$A$2:$A$7)*('Para Ocultar'!$C$2:$C$7))) -> 5 | D196: 2036 | E196: 0 | F196: 0 | G196: 0 | H196: 0 | I196: 6.631901492e-11 | J196: -6.631901492e-11 | K196: 0 | L196: 2.908562511e-09 | M196: 0 | N196: 0 | O196: 0 | P196: 0 | Q196: =SUMPRODUCT((C196='Comparación Alternativas'!$Z$5:$Z$246)*(Alternativas!D196='Comparación Alternativas'!$AA$5:$AA$246)*('Comparación Alternativas'!$AQ$5:$AQ$246)) -> 0 | R196: =SUMPRODUCT((C196='Comparación Alternativas'!$Z$5:$Z$246)*('Comparación Alternativas'!$AA$5:$AA$246=Alternativas!D196)*('Comparación Alternativas'!$BA$5:$BA$246)) -> 0 | T196: 172 | U196: =IF(U195+SUMPRODUCT(($U$16='Para Ocultar'!$A$2:$A$7)*('Para Ocultar'!$C$2:$C$7))>12,(U195+SUMPRODUCT(($U$16='Para Ocultar'!$A$2:$A$7)*('Para Ocultar'!$C$2:$C$7)))-12,U195+SUMPRODUCT(($U$16='Para Ocultar'!$A$2:$A$7)*('Para Ocultar'!$C$2:$C$7))) -> 5 | V196: 2036 | W196: 0 | X196: 0 | Y196: 0 | Z196: 0 | AA196: -3.889339132e-12 | AB196: 3.889339132e-12 | AC196: 0 | AD196: -4.706100349e-10 | AE196: -3.889339132e-12 | AF196: 3.889339132e-12 | AG196: 0 | AH196: -4.706100349e-10 | AI196: =SUMPRODUCT((U196='Comparación Alternativas'!$Z$5:$Z$246)*('Comparación Alternativas'!$AA$5:$AA$246=Alternativas!V196)*('Comparación Alternativas'!$AV$5:$AV$246)) -> 0 | AJ196: =SUMPRODUCT((U196='Comparación Alternativas'!$Z$5:$Z$246)*('Comparación Alternativas'!$AA$5:$AA$246=Alternativas!V196)*('Comparación Alternativas'!$BF$5:$BF$246)) -> 0
B197: 173 | C197: =IF(C196+SUMPRODUCT(($C$16='Para Ocultar'!$A$2:$A$7)*('Para Ocultar'!$C$2:$C$7))>12,(C196+SUMPRODUCT(($C$16='Para Ocultar'!$A$2:$A$7)*('Para Ocultar'!$C$2:$C$7)))-12,C196+SUMPRODUCT(($C$16='Para Ocultar'!$A$2:$A$7)*('Para Ocultar'!$C$2:$C$7))) -> 6 | D197: 2036 | E197: 0 | F197: 0 | G197: 0 | H197: 0 | I197: 6.78664586e-11 | J197: -6.78664586e-11 | K197: 0 | L197: 2.97642897e-09 | M197: 0 | N197: 0 | O197: 0 | P197: 0 | Q197: =SUMPRODUCT((C197='Comparación Alternativas'!$Z$5:$Z$246)*(Alternativas!D197='Comparación Alternativas'!$AA$5:$AA$246)*('Comparación Alternativas'!$AQ$5:$AQ$246)) -> 0 | R197: =SUMPRODUCT((C197='Comparación Alternativas'!$Z$5:$Z$246)*('Comparación Alternativas'!$AA$5:$AA$246=Alternativas!D197)*('Comparación Alternativas'!$BA$5:$BA$246)) -> 0 | T197: 173 | U197: =IF(U196+SUMPRODUCT(($U$16='Para Ocultar'!$A$2:$A$7)*('Para Ocultar'!$C$2:$C$7))>12,(U196+SUMPRODUCT(($U$16='Para Ocultar'!$A$2:$A$7)*('Para Ocultar'!$C$2:$C$7)))-12,U196+SUMPRODUCT(($U$16='Para Ocultar'!$A$2:$A$7)*('Para Ocultar'!$C$2:$C$7))) -> 6 | V197: 2036 | W197: 0 | X197: 0 | Y197: 0 | Z197: 0 | AA197: -3.921750291e-12 | AB197: 3.921750291e-12 | AC197: 0 | AD197: -4.745317852e-10 | AE197: -3.921750291e-12 | AF197: 3.921750291e-12 | AG197: 0 | AH197: -4.745317852e-10 | AI197: =SUMPRODUCT((U197='Comparación Alternativas'!$Z$5:$Z$246)*('Comparación Alternativas'!$AA$5:$AA$246=Alternativas!V197)*('Comparación Alternativas'!$AV$5:$AV$246)) -> 0 | AJ197: =SUMPRODUCT((U197='Comparación Alternativas'!$Z$5:$Z$246)*('Comparación Alternativas'!$AA$5:$AA$246=Alternativas!V197)*('Comparación Alternativas'!$BF$5:$BF$246)) -> 0
B198: 174 | C198: =IF(C197+SUMPRODUCT(($C$16='Para Ocultar'!$A$2:$A$7)*('Para Ocultar'!$C$2:$C$7))>12,(C197+SUMPRODUCT(($C$16='Para Ocultar'!$A$2:$A$7)*('Para Ocultar'!$C$2:$C$7)))-12,C197+SUMPRODUCT(($C$16='Para Ocultar'!$A$2:$A$7)*('Para Ocultar'!$C$2:$C$7))) -> 7 | D198: 2036 | E198: 0 | F198: 0 | G198: 0 | H198: 0 | I198: 6.94500093e-11 | J198: -6.94500093e-11 | K198: 0 | L198: 3.045878979e-09 | M198: 0 | N198: 0 | O198: 0 | P198: 0 | Q198: =SUMPRODUCT((C198='Comparación Alternativas'!$Z$5:$Z$246)*(Alternativas!D198='Comparación Alternativas'!$AA$5:$AA$246)*('Comparación Alternativas'!$AQ$5:$AQ$246)) -> 0 | R198: =SUMPRODUCT((C198='Comparación Alternativas'!$Z$5:$Z$246)*('Comparación Alternativas'!$AA$5:$AA$246=Alternativas!D198)*('Comparación Alternativas'!$BA$5:$BA$246)) -> 0 | T198: 174 | U198: =IF(U197+SUMPRODUCT(($U$16='Para Ocultar'!$A$2:$A$7)*('Para Ocultar'!$C$2:$C$7))>12,(U197+SUMPRODUCT(($U$16='Para Ocultar'!$A$2:$A$7)*('Para Ocultar'!$C$2:$C$7)))-12,U197+SUMPRODUCT(($U$16='Para Ocultar'!$A$2:$A$7)*('Para Ocultar'!$C$2:$C$7))) -> 7 | V198: 2036 | W198: 0 | X198: 0 | Y198: 0 | Z198: 0 | AA198: -3.954431543e-12 | AB198: 3.954431543e-12 | AC198: 0 | AD198: -4.784862168e-10 | AE198: -3.954431543e-12 | AF198: 3.954431543e-12 | AG198: 0 | AH198: -4.784862168e-10 | AI198: =SUMPRODUCT((U198='Comparación Alternativas'!$Z$5:$Z$246)*('Comparación Alternativas'!$AA$5:$AA$246=Alternativas!V198)*('Comparación Alternativas'!$AV$5:$AV$246)) -> 0 | AJ198: =SUMPRODUCT((U198='Comparación Alternativas'!$Z$5:$Z$246)*('Comparación Alternativas'!$AA$5:$AA$246=Alternativas!V198)*('Comparación Alternativas'!$BF$5:$BF$246)) -> 0
B199: 175 | C199: =IF(C198+SUMPRODUCT(($C$16='Para Ocultar'!$A$2:$A$7)*('Para Ocultar'!$C$2:$C$7))>12,(C198+SUMPRODUCT(($C$16='Para Ocultar'!$A$2:$A$7)*('Para Ocultar'!$C$2:$C$7)))-12,C198+SUMPRODUCT(($C$16='Para Ocultar'!$A$2:$A$7)*('Para Ocultar'!$C$2:$C$7))) -> 8 | D199: 2036 | E199: 0 | F199: 0 | G199: 0 | H199: 0 | I199: 7.107050952e-11 | J199: -7.107050952e-11 | K199: 0 | L199: 3.116949489e-09 | M199: 0 | N199: 0 | O199: 0 | P199: 0 | Q199: =SUMPRODUCT((C199='Comparación Alternativas'!$Z$5:$Z$246)*(Alternativas!D199='Comparación Alternativas'!$AA$5:$AA$246)*('Comparación Alternativas'!$AQ$5:$AQ$246)) -> 0 | R199: =SUMPRODUCT((C199='Comparación Alternativas'!$Z$5:$Z$246)*('Comparación Alternativas'!$AA$5:$AA$246=Alternativas!D199)*('Comparación Alternativas'!$BA$5:$BA$246)) -> 0 | T199: 175 | U199: =IF(U198+SUMPRODUCT(($U$16='Para Ocultar'!$A$2:$A$7)*('Para Ocultar'!$C$2:$C$7))>12,(U198+SUMPRODUCT(($U$16='Para Ocultar'!$A$2:$A$7)*('Para Ocultar'!$C$2:$C$7)))-12,U198+SUMPRODUCT(($U$16='Para Ocultar'!$A$2:$A$7)*('Para Ocultar'!$C$2:$C$7))) -> 8 | V199: 2036 | W199: 0 | X199: 0 | Y199: 0 | Z199: 0 | AA199: -3.98738514e-12 | AB199: 3.98738514e-12 | AC199: 0 | AD199: -4.824736019e-10 | AE199: -3.98738514e-12 | AF199: 3.98738514e-12 | AG199: 0 | AH199: -4.824736019e-10 | AI199: =SUMPRODUCT((U199='Comparación Alternativas'!$Z$5:$Z$246)*('Comparación Alternativas'!$AA$5:$AA$246=Alternativas!V199)*('Comparación Alternativas'!$AV$5:$AV$246)) -> 0 | AJ199: =SUMPRODUCT((U199='Comparación Alternativas'!$Z$5:$Z$246)*('Comparación Alternativas'!$AA$5:$AA$246=Alternativas!V199)*('Comparación Alternativas'!$BF$5:$BF$246)) -> 0
B200: 176 | C200: =IF(C199+SUMPRODUCT(($C$16='Para Ocultar'!$A$2:$A$7)*('Para Ocultar'!$C$2:$C$7))>12,(C199+SUMPRODUCT(($C$16='Para Ocultar'!$A$2:$A$7)*('Para Ocultar'!$C$2:$C$7)))-12,C199+SUMPRODUCT(($C$16='Para Ocultar'!$A$2:$A$7)*('Para Ocultar'!$C$2:$C$7))) -> 9 | D200: 2036 | E200: 0 | F200: 0 | G200: 0 | H200: 0 | I200: 7.272882141e-11 | J200: -7.272882141e-11 | K200: 0 | L200: 3.18967831e-09 | M200: 0 | N200: 0 | O200: 0 | P200: 0 | Q200: =SUMPRODUCT((C200='Comparación Alternativas'!$Z$5:$Z$246)*(Alternativas!D200='Comparación Alternativas'!$AA$5:$AA$246)*('Comparación Alternativas'!$AQ$5:$AQ$246)) -> 0 | R200: =SUMPRODUCT((C200='Comparación Alternativas'!$Z$5:$Z$246)*('Comparación Alternativas'!$AA$5:$AA$246=Alternativas!D200)*('Comparación Alternativas'!$BA$5:$BA$246)) -> 0 | T200: 176 | U200: =IF(U199+SUMPRODUCT(($U$16='Para Ocultar'!$A$2:$A$7)*('Para Ocultar'!$C$2:$C$7))>12,(U199+SUMPRODUCT(($U$16='Para Ocultar'!$A$2:$A$7)*('Para Ocultar'!$C$2:$C$7)))-12,U199+SUMPRODUCT(($U$16='Para Ocultar'!$A$2:$A$7)*('Para Ocultar'!$C$2:$C$7))) -> 9 | V200: 2036 | W200: 0 | X200: 0 | Y200: 0 | Z200: 0 | AA200: -4.020613349e-12 | AB200: 4.020613349e-12 | AC200: 0 | AD200: -4.864942153e-10 | AE200: -4.020613349e-12 | AF200: 4.020613349e-12 | AG200: 0 | AH200: -4.864942153e-10 | AI200: =SUMPRODUCT((U200='Comparación Alternativas'!$Z$5:$Z$246)*('Comparación Alternativas'!$AA$5:$AA$246=Alternativas!V200)*('Comparación Alternativas'!$AV$5:$AV$246)) -> 0 | AJ200: =SUMPRODUCT((U200='Comparación Alternativas'!$Z$5:$Z$246)*('Comparación Alternativas'!$AA$5:$AA$246=Alternativas!V200)*('Comparación Alternativas'!$BF$5:$BF$246)) -> 0
B201: 177 | C201: =IF(C200+SUMPRODUCT(($C$16='Para Ocultar'!$A$2:$A$7)*('Para Ocultar'!$C$2:$C$7))>12,(C200+SUMPRODUCT(($C$16='Para Ocultar'!$A$2:$A$7)*('Para Ocultar'!$C$2:$C$7)))-12,C200+SUMPRODUCT(($C$16='Para Ocultar'!$A$2:$A$7)*('Para Ocultar'!$C$2:$C$7))) -> 10 | D201: 2036 | E201: 0 | F201: 0 | G201: 0 | H201: 0 | I201: 7.442582724e-11 | J201: -7.442582724e-11 | K201: 0 | L201: 3.264104137e-09 | M201: 0 | N201: 0 | O201: 0 | P201: 0 | Q201: =SUMPRODUCT((C201='Comparación Alternativas'!$Z$5:$Z$246)*(Alternativas!D201='Comparación Alternativas'!$AA$5:$AA$246)*('Comparación Alternativas'!$AQ$5:$AQ$246)) -> 0 | R201: =SUMPRODUCT((C201='Comparación Alternativas'!$Z$5:$Z$246)*('Comparación Alternativas'!$AA$5:$AA$246=Alternativas!D201)*('Comparación Alternativas'!$BA$5:$BA$246)) -> 0 | T201: 177 | U201: =IF(U200+SUMPRODUCT(($U$16='Para Ocultar'!$A$2:$A$7)*('Para Ocultar'!$C$2:$C$7))>12,(U200+SUMPRODUCT(($U$16='Para Ocultar'!$A$2:$A$7)*('Para Ocultar'!$C$2:$C$7)))-12,U200+SUMPRODUCT(($U$16='Para Ocultar'!$A$2:$A$7)*('Para Ocultar'!$C$2:$C$7))) -> 10 | V201: 2036 | W201: 0 | X201: 0 | Y201: 0 | Z201: 0 | AA201: -4.05411846e-12 | AB201: 4.05411846e-12 | AC201: 0 | AD201: -4.905483337e-10 | AE201: -4.05411846e-12 | AF201: 4.05411846e-12 | AG201: 0 | AH201: -4.905483337e-10 | AI201: =SUMPRODUCT((U201='Comparación Alternativas'!$Z$5:$Z$246)*('Comparación Alternativas'!$AA$5:$AA$246=Alternativas!V201)*('Comparación Alternativas'!$AV$5:$AV$246)) -> 0 | AJ201: =SUMPRODUCT((U201='Comparación Alternativas'!$Z$5:$Z$246)*('Comparación Alternativas'!$AA$5:$AA$246=Alternativas!V201)*('Comparación Alternativas'!$BF$5:$BF$246)) -> 0
